Workbook

Sheet Instructions
A1: Instructions
A3: Purpose
A4: This rating model is prepared to determine the rates sought by each rating category/TA to cover funding requirements for the forthcoming year.
A6: Conventions
A7: All yellow cells are input cells.
A8: The majority of tabs in this spreadhseet have been protected to ensure that values aren't inadvertantly changed.
A9: Should a user need to amend the content of a tab the password required is "gwrcrates".
A11: Process
A12: To run the rates model the following actions should be completed
B13: 1) | C13: On each of the tabs shaded green in the structure diagram below delete all values in the shaded yellow cell
B14: 2) | C14: In the control tab;
C15: a) | D15: In cell B5 enter the current rating year in the YYYY/YY date format
C16: b) | D16: Adjust the EDR rating basis if required by the rates funding policy
C17: c) | D17: Obtain "Flood protection" information from the Landcare & Wairarapa Accountant and enter in the relevant cells
C18: d) | D18: Obtian Water levy split from the water supply accountant and enter in the relevant cells
B19: 3) | C19: Obtain Capital Values (CVs) & corresponding assessments from each Territorial Authority (TA) and Equalised Capital Values (ECVs) & corresponding assessments from Quotable Value and enter into the relevant yellow cells on the "UHCC Adjustments" and "Capital values" tab
B20: 4) | C20: In the ESSBase retrieve the information required from the financial accounting system
B21: 5) | C21: Email the ESSBase extract to the respective management accountants and obtain confirmation that these rates values are correct before proceeding further.
B22: 6) | C22: Populate the "Class rates" tab with data provided by the Landcare & Wairarapa Accountant
B23: 7) | C23: Use the rating model from the previous year to populate the yellow cells using the PASTE SPECIAL>>VALUES comand in the "Comparison - TA" and "Comparison - Category" tabs.
B24: 8) | C24: On the "Check" tab if cell B7 says "Error" then a rounding/check total error occurs within the model and the error should be investigated and reconciled where possible. Explanations of the difference can be entered in the "Check" tab for future reference. If cell B7 reads "OK" then no rounding/check total errors have been found in the data that has been entered.
B25: 9) | C25: Once all checks have been completed the individual that has completed steps 1 through 9 above should forward the model to their manager for reivew and approval.
B26: 10) | C26: Once approval of the results is obtained the values can be used for distribution as required.
A28: Strucutre diagram
A29: The flow diagram below sets out the structure of this excel spreadsheet.

Sheet >>Input tabs

Sheet Control
A1: Control
A2: =check_total -> 0
A4: Years
A5: Current rating year | B5: 2022/23
A6: Previous rating year | B6: =VALUE(LEFT(year_current,4))-1&"/"&VALUE(RIGHT(year_current,2))-1 -> 2021/22
A9: GST
A10: GST % | B10: 0.15
A12: Error tolerance
A13: $ error tolerance | B13: 2
A15: TA's
A16: TA full name | B16: TA short name
A17: Wellington city | B17: Wellington
A18: Hutt city | B18: Hutt
A19: Upper Hutt city | B19: Upper Hutt
A20: Porirua city | B20: Porirua
A21: Kāpiti Coast district | B21: Kapiti
A22: Masterton district | B22: Masterton
A23: Carterton district | B23: Carterton
A24: South Wairarapa district | B24: South Wairarapa
A25: Tararua district | B25: Tararua
A28: TA's for rates check tab
A29: Excludes KCDC and UHC as they have their own rates check tab
A30: TA full name
A31: Wellington city
A32: Hutt city
A33: Porirua city
A34: Masterton district
A35: Carterton district
A36: South Wairarapa district
A37: Tararua district
A40: TA's
A41: TA full name | B41: Category group | C41: Concatenated row
A42: Wellington city | B42: District wide | C42: =A42&B42 -> Wellington cityDistrict wide
A43: Hutt city | B43: District wide | C43: =A43&B43 -> Hutt cityDistrict wide
A44: Upper Hutt city | B44: District wide | C44: Upper Hutt cityDistrict wide
A45: Porirua city | B45: District wide | C45: Porirua cityDistrict wide
A46: Kāpiti Coast district | B46: District wide | C46: Kāpiti Coast districtDistrict wide
A47: Masterton district | B47: District wide | C47: Masterton districtDistrict wide
A48: Carterton district | B48: District wide | C48: Carterton districtDistrict wide
A49: South Wairarapa district | B49: District wide | C49: South Wairarapa districtDistrict wide
A50: Tararua district | B50: District wide | C50: Tararua districtDistrict wide
A51: Region wide | C51: Region wide
A54: PT target differentials
A55: Category group | B55: Differential
A56: Wellington CBD | B56: 7
A57: Business - excl Wairarapa | B57: 1.4
A58: Business - Wairarapa | B58: 1
A59: Residential - excl Wairarapa & Otaki | B59: 1
A60: Residential - Wairarapa & Otaki | B60: 0.5
A61: Rural | B61: 0.25
A62: Tararua | B62: 0
A65: TA & Category | H65: PT differentials to use for rating model transition | P65: Calculation of differentials using the 2017/18 Transport rate
A66: TA full name | B66: Rating area | C66: Category group | D66: Concatenated name | E66: PT differential category | F66: PT differential | H66: 2017/18 | I66: 2018/19 | J66: 2019/20 | K66: 2020/21 | L66: 2021/22 | M66: 2022/23 | N66: 2023/24 onwards | P66: Rate levied | Q66: ECV | R66: Cents/ECV$
A67: Wellington city | B67: Wellington city | C67: Wellington CBD | D67: =B67&C67 -> Wellington cityWellington CBD | E67: Wellington CBD | F67: =IF(VALUE(LEFT(year_current,4))>2022,N67,INDEX($H67:$M67,,MATCH(year_current,$H$66:$M$66,0))) -> 6.957200855 | H67: =R67/R$96 -> 6.743205131 | I67: =($N67-$H67)/6+H67 -> 6.786004276 | J67: 6.82880342 | K67: 6.871602565 | L67: 6.91440171 | M67: =($N67-$H67)/6+L67 -> 6.957200855 | N67: =INDEX($B$56:$B$62,MATCH(E67,$A$56:$A$62,0),) -> 7 | P67: 25019166.08 | Q67: 9699270191 | R67: =(P67*100)/Q67 -> 0.2579489548
A68: Wellington city | B68: Wellington city | C68: Business | D68: =B68&C68 -> Wellington cityBusiness | E68: Business - excl Wairarapa | F68: 1.276837037 | H68: 0.6610222218 | I68: 0.7841851849 | J68: 0.9073481479 | K68: 1.030511111 | L68: 1.153674074 | M68: 1.276837037 | N68: =INDEX($B$56:$B$62,MATCH(E68,$A$56:$A$62,0),) -> 1.4 | P68: 1192769.666 | Q68: 4717078733 | R68: =(P68*100)/Q68 -> 0.02528619372
A69: Wellington city | B69: Wellington city | C69: Residential | D69: Wellington cityResidential | E69: Residential - excl Wairarapa & Otaki | F69: 0.9435037036 | H69: 0.6610222218 | I69: 0.7175185182 | J69: 0.7740148146 | K69: 0.8305111109 | L69: 0.8870074073 | M69: 0.9435037036 | N69: 1 | P69: 12199002 | Q69: 4.824372595e+10 | R69: =(P69*100)/Q69 -> 0.02528619372
A70: Wellington city | B70: Wellington city | C70: Rural | D70: Wellington cityRural | E70: Rural | F70: 0.2366297035 | H70: 0.1697782208 | I70: 0.1831485174 | J70: 0.1965188139 | K70: 0.2098891104 | L70: 0.2232594069 | M70: 0.2366297035 | N70: 0.25 | P70: 46420.2668 | Q70: 714756729.4 | R70: 0.006494554705
A71: Hutt city | B71: Hutt city | C71: Business | D71: Hutt cityBusiness | E71: Business - excl Wairarapa | F71: 1.403388872 | H71: 1.420333234 | I71: 1.416944362 | J71: 1.413555489 | K71: 1.410166617 | L71: 1.406777745 | M71: 1.403388872 | N71: 1.4 | P71: 2092334.59 | Q71: 3850999697 | R71: 0.05433224499
A72: Hutt city | B72: Hutt city | C72: Residential | D72: Hutt cityResidential | E72: Residential - excl Wairarapa & Otaki | F72: 1.070055539 | H72: 1.420333234 | I72: 1.350277695 | J72: 1.280222156 | K72: 1.210166617 | L72: 1.140111078 | M72: 1.070055539 | N72: 1 | P72: 9399014.05 | Q72: 1.729914538e+10 | R72: 0.05433224499
A73: Hutt city | B73: Hutt city | C73: Rural | D73: Hutt cityRural | E73: Rural | F73: 0.2686605526 | H73: 0.3619633154 | I73: 0.3433027628 | J73: 0.3246422102 | K73: 0.3059816577 | L73: 0.2873211051 | M73: 0.2686605526 | N73: 0.25 | P73: 44664.56015 | Q73: 322575294.9 | R73: 0.0138462433
A74: Upper Hutt city | B74: Upper Hutt city | C74: Business | D74: Upper Hutt cityBusiness | E74: Business - excl Wairarapa | F74: 1.432797773 | H74: 1.596786638 | I74: 1.563988865 | J74: 1.531191092 | K74: 1.498393319 | L74: 1.465595546 | M74: 1.432797773 | N74: 1.4 | P74: 725473.2635 | Q74: 1187700996 | R74: 0.0610821466
A75: Upper Hutt city | B75: Upper Hutt city | C75: Residential | D75: Upper Hutt cityResidential | E75: Residential - excl Wairarapa & Otaki | F75: 1.09946444 | H75: 1.596786638 | I75: 1.497322199 | J75: 1.397857759 | K75: 1.298393319 | L75: 1.198928879 | M75: 1.09946444 | N75: 1 | P75: 3744588.865 | Q75: 6130414651 | R75: 0.0610821466
A76: Upper Hutt city | B76: Upper Hutt city | C76: Rural | D76: Upper Hutt cityRural | E76: Rural | F76: 0.2761601175 | H76: 0.406960705 | I76: 0.3808005875 | J76: 0.35464047 | K76: 0.3284803525 | L76: 0.302320235 | M76: 0.2761601175 | N76: 0.25 | P76: 126321.4349 | Q76: 811441419.6 | R76: 0.01556753598
A77: Porirua city | B77: Porirua city | C77: Business | D77: Porirua cityBusiness | E77: Business - excl Wairarapa | F77: 1.441301386 | H77: 1.647808317 | I77: =($N77-$H77)/6+H77 -> 1.606506931 | J77: 1.565205544 | K77: 1.523904158 | L77: 1.482602772 | M77: 1.441301386 | N77: 1.4 | P77: 691972.2213 | Q77: 1097778116 | R77: 0.0630338874
A78: Porirua city | B78: Porirua city | C78: Residential | D78: Porirua cityResidential | E78: Residential - excl Wairarapa & Otaki | F78: 1.107968053 | H78: 1.647808317 | I78: 1.539840264 | J78: 1.431872211 | K78: 1.323904158 | L78: 1.215936106 | M78: 1.107968053 | N78: 1 | P78: 5277337.683 | Q78: 8372223102 | R78: 0.0630338874
A79: Porirua city | B79: Porirua city | C79: Rural | D79: Porirua cityRural | E79: Rural | F79: 0.2783086151 | H79: 0.4198516904 | I79: 0.3915430753 | J79: 0.3632344603 | K79: 0.3349258452 | L79: 0.3066172301 | M79: 0.2783086151 | N79: 0.25 | P79: 96761.34374 | Q79: 602474380.3 | R79: 0.016060657
A80: Kāpiti Coast district | B80: Kāpiti Coast district | C80: Business | D80: Kāpiti Coast districtBusiness | E80: Business - excl Wairarapa | F80: 1.283996095 | H80: 0.7039765706 | I80: 0.8199804755 | J80: 0.9359843804 | K80: 1.051988285 | L80: 1.16799219 | M80: 1.283996095 | N80: 1.4 | P80: 403085.5329 | Q80: 1496826987 | R80: 0.02692933361
A81: Kāpiti Coast district | B81: Kāpiti Coast district excl Ōtaki | C81: Residential | D81: Kāpiti Coast district excl Ōtaki Residential | E81: Residential - excl Wairarapa & Otaki | F81: 0.9506627618 | H81: 0.7039765706 | I81: 0.7533138088 | J81: 0.802651047 | K81: 0.8519882853 | L81: 0.9013255235 | M81: 0.9506627618 | N81: 1 | P81: 2549190.973 | Q81: 9466223746 | R81: =(P81*100)/Q81 -> 0.02692933361 | T81: Green cells not consistent with formulas above and below due to Otaki carveout
A82: Kāpiti Coast district | B82: Ōtaki rating area | C82: Residential | D82: Ōtaki rating areaResidential | E82: Residential - Wairarapa & Otaki | F82: 0.5339960951 | H82: =H81 -> 0.7039765706 | I82: 0.6699804755 | J82: 0.6359843804 | K82: 0.6019882853 | L82: 0.5679921902 | M82: 0.5339960951 | N82: 0.5
A83: Kāpiti Coast district | B83: Kāpiti Coast district | C83: Rural | D83: Kāpiti Coast districtRural | E83: Rural | F83: 0.2386873459 | H83: =R83/R$96 -> 0.1821240752 | I83: 0.1934367293 | J83: 0.2047493834 | K83: 0.2160620376 | L83: 0.2273746917 | M83: 0.2386873459 | N83: =INDEX($B$56:$B$62,MATCH(E83,$A$56:$A$62,0),) -> 0.25 | P83: 138343.5821 | Q83: 1985748559 | R83: =(P83*100)/Q83 -> 0.006966822737
A84: Masterton district | B84: Masterton district | C84: Business | D84: Masterton districtBusiness | E84: Business - Wairarapa | F84: 0.8748312371 | H84: =R84/R$96 -> 0.2489874227 | I84: 0.3741561856 | J84: 0.4993249485 | K84: 0.6244937114 | L84: 0.7496624742 | M84: 0.8748312371 | N84: 1 | P84: 38506.17602 | Q84: 404283094.1 | R84: 0.009524557565
A85: Masterton district | B85: Masterton district | C85: Residential | D85: Masterton districtResidential | E85: Residential - Wairarapa & Otaki | F85: 0.4581645705 | H85: =R85/R$96 -> 0.2489874227 | I85: 0.2908228523 | J85: 0.3326582818 | K85: 0.3744937114 | L85: 0.4163291409 | M85: 0.4581645705 | N85: 0.5 | P85: 199517.2283 | Q85: 2094766366 | R85: 0.009524557565
A86: Masterton district | B86: Masterton district | C86: Rural | D86: Masterton districtRural | E86: Rural | F86: 0.2202548332 | H86: 0.07152899945 | I86: 0.1012741662 | J86: 0.131019333 | K86: 0.1607644997 | L86: 0.1905096665 | M86: 0.2202548332 | N86: 0.25 | P86: 68725.16171 | Q86: 2511691056 | R86: 0.002736210791
A87: Carterton district | B87: Carterton district | C87: Business | D87: Carterton districtBusiness | E87: Business - Wairarapa | F87: 0.9077836874 | H87: 0.4467021244 | I87: =($N87-$H87)/6+H87 -> 0.538918437 | J87: 0.6311347496 | K87: 0.7233510622 | L87: 0.8155673748 | M87: 0.9077836874 | N87: 1 | P87: 16823.53518 | Q87: 98453654.54 | R87: 0.01708777115
A88: Carterton district | B88: Carterton district | C88: Residential | D88: Carterton districtResidential | E88: Residential - Wairarapa & Otaki | F88: 0.4911170207 | H88: 0.4467021244 | I88: 0.4555851037 | J88: 0.4644680829 | K88: 0.4733510622 | L88: 0.4822340415 | M88: 0.4911170207 | N88: 0.5 | P88: 109887.4071 | Q88: 643076303.8 | R88: 0.01708777115
A89: Carterton district | B89: Carterton district | C89: Rural | D89: Carterton districtRural | E89: Rural | F89: 0.2282861326 | H89: 0.1197167956 | I89: 0.141430663 | J89: 0.1631445304 | K89: 0.1848583978 | L89: 0.2065722652 | M89: 0.2282861326 | N89: 0.25 | P89: 72077.97135 | Q89: 1573910635 | R89: 0.004579546625
A90: South Wairarapa district | B90: South Wairarapa district | C90: Business | D90: South Wairarapa districtBusiness | E90: Business - Wairarapa | F90: 0.9317082878 | H90: 0.5902497269 | I90: 0.6585414391 | J90: 0.7268331513 | K90: 0.7951248635 | L90: 0.8634165756 | M90: 0.9317082878 | N90: 1 | P90: 44332.49903 | Q90: 196344625.2 | R90: 0.02257892162
A91: South Wairarapa district | B91: South Wairarapa district | C91: Residential | D91: South Wairarapa districtResidential | E91: Residential - Wairarapa & Otaki | F91: 0.5150416212 | H91: 0.5902497269 | I91: 0.5752081058 | J91: 0.5601664846 | K91: 0.5451248635 | L91: 0.5300832423 | M91: 0.5150416212 | N91: 0.5 | P91: 206694.8687 | Q91: 915432863.5 | R91: 0.02257892162
A92: South Wairarapa district | B92: South Wairarapa district | C92: Rural | D92: South Wairarapa districtRural | E92: Rural | F92: 0.2339071261 | H92: 0.1534427564 | I92: 0.1695356303 | J92: 0.1856285043 | K92: 0.2017213782 | L92: 0.2178142521 | M92: 0.2339071261 | N92: 0.25 | P92: 153385.1807 | Q92: 2613181710 | R92: 0.005869671448
A93: Tararua district | B93: Tararua district | C93: Rural | D93: Tararua districtRural | E93: Tararua | F93: 0 | H93: 0 | I93: 0 | J93: 0 | K93: 0 | L93: 0 | M93: 0 | N93: 0 | P93: 0 | Q93: 7041800 | R93: 0
A94: Region wide | D94: =A94&C94 -> Region wide | P94: =SUM(P67:P93) -> 64656396.14 | Q94: =SUM(Q67:Q93) -> 1.27056566e+11
P96: =SUMIF($C$67:$C$79,"Residential",P$67:P$79) -> 30619942.6 | Q96: =SUMIF($C$67:$C$79,"Residential",Q$67:Q$79) -> 8.004550909e+10 | R96: =(P96*100)/Q96 -> 0.03825316741
A99: WRS rates
A100: Category group | B100: Rating basis
A101: Wellington CBD | B101: Remainder
A102: Business | B102: Remainder
A103: Residential | B103: 15
A104: Rural | B104: 15
A107: Flood protection
A108: From Essbase / Landcare & Wairarapa Accountant
A109: TA full name | B109: [not used] | C109: River management | D109: [not used] | E109: Total
A110: Wellington city | C110: 55131.48 | E110: =SUM(B110:D110) -> 55131.48
A111: Hutt city | C111: 5098043.33 | E111: =SUM(B111:D111) -> 5098043.33
A112: Upper Hutt city | C112: 1136721.52 | E112: 1136721.52
A113: Porirua city | C113: 45883.36 | E113: 45883.36
A114: Kāpiti Coast district | C114: 1513486.56 | E114: 1513486.56
A115: Masterton district | E115: 0
A116: Carterton district | C116: 25282.96 | E116: 25282.96
A117: South Wairarapa district | E117: 0
A118: Tararua district | E118: 0
A119: Non district Wide | E119: 0
A120: Special Rates | E120: 0
A121: External Revenue | E121: 0
A122: Total | C122: =SUM(C110:C121) -> 7874549.21 | E122: =SUM(B122:D122) -> 7874549.21
A124: Non district-wide breakdown
A125: Greytown River Management Rate | D125: 98709.62
A126: Donalds Creek Stopbank River Management Rate | D126: 2788.75
A127: South Wairarapa district River Management Rates | D127: =SUM(D125:D126) -> 101498.37
A130: Stadium Rate
A131: =B66 -> Rating area | B131: Category group | C131: Concatenated name | D131: Stadium differential
A132: Wellington city | B132: Wellington CBD | C132: Wellington cityWellington CBD | D132: 2
A133: Wellington city | B133: Business | C133: Wellington cityBusiness | D133: 1.2
A134: Wellington city | B134: Residential | C134: Wellington cityResidential | D134: 1.2
A135: Wellington city | B135: Rural | C135: Wellington cityRural | D135: 1.2
A136: =B71 -> Hutt city | B136: Business | C136: Hutt cityBusiness | D136: 1
A137: Hutt city | B137: Residential | C137: Hutt cityResidential | D137: 1
A138: Hutt city | B138: Rural | C138: Hutt cityRural | D138: 1
A139: Upper Hutt city | B139: Business | C139: Upper Hutt cityBusiness | D139: 1
A140: Upper Hutt city | B140: Residential | C140: Upper Hutt cityResidential | D140: 1
A141: Upper Hutt city | B141: Rural | C141: Upper Hutt cityRural | D141: 1
A142: Porirua city | B142: Business | C142: Porirua cityBusiness | D142: 1
A143: Porirua city | B143: Residential | C143: Porirua cityResidential | D143: 1
A144: Porirua city | B144: Rural | C144: Porirua cityRural | D144: 1
A145: Kāpiti Coast district | B145: Business | C145: Kāpiti Coast districtBusiness | D145: 0.5
A146: Kāpiti Coast district excl Ōtaki | B146: Residential | C146: Kāpiti Coast district excl Ōtaki Residential | D146: 0.5
A147: Ōtaki rating area | B147: Residential | C147: Ōtaki rating areaResidential | D147: 0.5
A148: Kāpiti Coast district | B148: Rural | C148: Kāpiti Coast districtRural | D148: 0.5
A149: Masterton district | B149: Business | C149: Masterton districtBusiness | D149: 0.5
A150: Masterton district | B150: Residential | C150: Masterton districtResidential | D150: 0.5
A151: Masterton district | B151: Rural | C151: Masterton districtRural | D151: 0.5
A152: Carterton district | B152: Business | C152: Carterton districtBusiness | D152: 0.5
A153: Carterton district | B153: Residential | C153: Carterton districtResidential | D153: 0.5
A154: Carterton district | B154: Rural | C154: Carterton districtRural | D154: 0.5
A155: South Wairarapa district | B155: Business | C155: South Wairarapa districtBusiness | D155: 0.5
A156: South Wairarapa district | B156: Residential | C156: South Wairarapa districtResidential | D156: 0.5
A157: South Wairarapa district | B157: Rural | C157: South Wairarapa districtRural | D157: 0.5
A158: Tararua district | B158: Rural | C158: Tararua districtRural | D158: 0.5
A161: Water levy
A162: Need numbers for each city - March 31 comes from Wellington Water
A163: TA full name | B163: Share of levy | C163: =year_current -> 2022/23
A164: Wellington city | B164: 0.51 | C164: 21518811
A165: Hutt city | B165: 0.2637 | C165: 10964435
A166: Upper Hutt city | B166: 0.1087 | C166: 4613068
A167: Porirua city | B167: 0.1176 | C167: 4972459
A168: Kāpiti Coast district
A169: Masterton district
A170: Carterton district
A171: South Wairarapa district
A172: Tararua district
A173: Region wide | B173: =SUM(B164:B172) -> 1 | C173: =SUM(C164:C172) -> 42068773

Sheet UHCC Adjustments
A1: Wellington Regional Council
A2: ="UHCC Adjustments "&year_current -> UHCC Adjustments 2022/23
A3: Printed: | B3: =NOW() -> 2023-01-19T08:30:06.840
A4: =check_total -> 0
A6: TA full name | B6: Category group | C6: Sub category group | D6: CV | E6: Rateable Land Value
A8: Trentham Military Camp
A9: Upper Hutt city | B9: Business | C9: Trentham Military Camp | D9: 70490000 | E9: 29170000
A10: Upper Hutt city | B10: Residential | C10: Trentham Military Camp | D10: 32750000 | E10: 14855000
A11: Upper Hutt city | B11: Rural | C11: Trentham Military Camp | D11: 6114000 | E11: 4076000
A12: Upper Hutt city | B12: Business & Residential | C12: Trentham Military Camp | D12: =D10+D9 -> 103240000 | E12: =E10+E9 -> 44025000
A13: Upper Hutt | B13: Total | C13: Trentham Military Camp | D13: =+D9+D10+D11 -> 109354000 | E13: =+E9+E10+E11 -> 48101000
A15: Rest of Upper Hutt
A16: Upper Hutt city | B16: Business | C16: Rest of Upper Hutt city | D16: =+D23-D9 -> 1377756700 | E16: 374036600
A17: Upper Hutt city | B17: Residential | C17: Rest of Upper Hutt city | D17: 9066226100 | E17: 4908462500
A18: Upper Hutt city | B18: Rural | C18: Rest of Upper Hutt city | D18: 1164573000 | E18: 626904000
A19: Upper Hutt city | B19: Business & Residential | C19: Rest of Upper Hutt city | D19: 10443982800 | E19: 5282499100
A20: Upper Hutt | B20: Total | C20: Rest of Upper Hutt city | D20: =+D27-D13 -> 11608555800 | E20: 5909403100
A22: All Upper Hutt
A23: Upper Hutt city | B23: Business | C23: Total | D23: =INDEX(capital_values,MATCH($A16&B16,capital_values_rows,0),MATCH(D$6&" "&year_current,capital_values_header,0)) -> 1448246700 | E23: 403206600
A24: Upper Hutt city | B24: Residential | C24: Total | D24: =INDEX(capital_values,MATCH($A17&B17,capital_values_rows,0),MATCH(D$6&" "&year_current,capital_values_header,0)) -> 9098976100 | E24: 4923317500
A25: Upper Hutt city | B25: Rural | C25: Total | D25: =INDEX(capital_values,MATCH($A18&B18,capital_values_rows,0),MATCH(D$6&" "&year_current,capital_values_header,0)) -> 1170687000 | E25: 630980000
A26: Upper Hutt city | B26: Business & Residential | C26: Total | D26: =D24+D23 -> 10547222800 | E26: =E24+E23 -> 5326524100
A27: Upper Hutt | B27: All | C27: Total | D27: =+'Capital values'!F10 -> 11717909800 | E27: =+E23+E24+E25 -> 5957504100
A29: Trentham Military Camp share of rates
A30: Upper Hutt city | B30: Business | C30: Trentham % of Share | D30: =+D9/D23 -> 0.04867264673 | E30: 0.07234504594
A31: Upper Hutt city | B31: Residential | C31: Trentham % of Share | D31: 0.00359930608 | E31: 0.003017274429
A32: Upper Hutt city | B32: Rural | C32: Trentham % of Share | D32: 0.005222574437 | E32: 0.006459792703
A33: Upper Hutt city | B33: Business & Residential | C33: % of Share | D33: 0.009788358695 | E33: 0.00826523999
A34: Upper Hutt | B34: All | C34: % of Share | D34: 0.009332210425 | E34: 0.008074018782

Sheet Capital values
A1: Wellington Regional Council
A2: Rateable values
A3: =check_total -> 0
A5: Capital values
A6: =Control!A41 -> TA full name | B6: Rating area | C6: =Control!B41 -> Category group | D6: =Control!C41 -> Concatenated row | E6: ="CV "&year_previous -> CV 2021/22 | F6: ="CV "&year_current -> CV 2022/23 | G6: ="ECV "&year_previous -> ECV 2021/22 | H6: ="ECV "&year_current -> ECV 2022/23 | J6: Check CV | K6: Check ECV
A7: =Control!A52 -> 0 | C7: =Control!B52 -> 0 | D7: =Control!C52 -> 0
A8: =Control!A42 -> Wellington city | C8: =Control!B42 -> District wide | D8: =Control!C42 -> Wellington cityDistrict wide | E8: =SUMIF($A$19:$A$45,$A8,E$19:E$45) -> 74139924400 | F8: 114751871250 | G8: 87383049753 | H8: 119439703683 | K8: =ISBLANK(G8)+ISBLANK(H8) -> 0
A9: =Control!A43 -> Hutt city | C9: =Control!B43 -> District wide | D9: =Control!C43 -> Hutt cityDistrict wide | E9: 28871779500 | F9: 29131948500 | G9: 32345787106 | H9: 44154024498 | K9: =ISBLANK(G9)+ISBLANK(H9) -> 0
A10: =Control!A44 -> Upper Hutt city | C10: =Control!B44 -> District wide | D10: =Control!C44 -> Upper Hutt cityDistrict wide | E10: 11543431800 | F10: 11717909800 | G10: 13073239090 | H10: 17817751914 | K10: 0
A11: =Control!A45 -> Porirua city | C11: =Control!B45 -> District wide | D11: =Control!C45 -> Porirua cityDistrict wide | E11: 14451701650 | F11: =SUMIF($A$19:$A$45,$A11,F$19:F$45) -> 14623609200 | G11: 15695286062 | H11: 21241698999 | K11: 0
A12: =Control!A46 -> Kāpiti Coast district | C12: =Control!B46 -> District wide | D12: =Control!C46 -> Kāpiti Coast districtDistrict wide | E12: 19628808150 | F12: 19783157650 | G12: 19536115796 | H12: 26169483904 | K12: 0
A13: =Control!A47 -> Masterton district | C13: =Control!B47 -> District wide | D13: =Control!C47 -> Masterton districtDistrict wide | E13: 8640582655 | F13: 8787884155 | G13: 8631869241 | H13: 11263219050 | K13: 0
A14: =Control!A48 -> Carterton district | C14: =Control!B48 -> District wide | D14: =Control!C48 -> Carterton districtDistrict wide | E14: 3665691300 | F14: 3729014800 | G14: 3660511529 | H14: 4976485118 | K14: 0
A15: =Control!A49 -> South Wairarapa district | C15: =Control!B49 -> District wide | D15: =Control!C49 -> South Wairarapa districtDistrict wide | E15: 6252191400 | F15: 6354690200 | G15: 6175185837 | H15: 8115723950 | K15: 0
A16: =Control!A50 -> Tararua district | C16: =Control!B50 -> District wide | D16: =Control!C50 -> Tararua districtDistrict wide | E16: 15976500 | F16: 15976500 | G16: 15976500 | H16: 21686475 | K16: 0
A17: =Control!A51 -> Region wide | C17: =Control!B51 -> 0 | D17: =Control!C51 -> Region wide | E17: =SUM(E8:E16) -> 167210087355 | F17: =SUM(F8:F16) -> 208896062055 | G17: =SUM(G8:G16) -> 186517020914 | H17: =SUM(H8:H16) -> 253199777591
A19: =Control!A67 -> Wellington city | B19: =Control!B67 -> Wellington city | C19: =Control!C67 -> Wellington CBD | D19: =Control!D67 -> Wellington cityWellington CBD | E19: 9896987150 | F19: 13133427700 | G19: =E19 * (INDEX(G$8:G$16,MATCH($A19&"District wide",$D$8:$D$16,0))/INDEX(E$8:E$16,MATCH($A19&"District wide",$D$8:$D$16,0))) -> 1.166482064e+10 | H19: =F19 * (INDEX(H$8:H$16,MATCH($A19&"District wide",$D$8:$D$16,0))/INDEX(F$8:F$16,MATCH($A19&"District wide",$D$8:$D$16,0))) -> 1.366995323e+10 | J19: =ISBLANK(E19)+ISBLANK(F19) -> 0
A20: =Control!A68 -> Wellington city | B20: =Control!B68 -> Wellington city | C20: =Control!C68 -> Business | D20: =Control!D68 -> Wellington cityBusiness | E20: 4605086150 | F20: 6659900150 | G20: 5427662294 | H20: =F20 * (INDEX(H$8:H$16,MATCH($A20&"District wide",$D$8:$D$16,0))/INDEX(F$8:F$16,MATCH($A20&"District wide",$D$8:$D$16,0))) -> 6931969752 | J20: 0
A21: =Control!A69 -> Wellington city | B21: =Control!B69 -> Wellington city | C21: =Control!C69 -> Residential | D21: =Control!D69 -> Wellington cityResidential | E21: 58819065000 | F21: 93657459050 | G21: 6.932552636e+10 | H21: 9.748354458e+10 | J21: 0
A22: =Control!A70 -> Wellington city | B22: =Control!B70 -> Wellington city | C22: =Control!C70 -> Rural | D22: =Control!D70 -> Wellington cityRural | E22: 818786100 | F22: 1301084350 | G22: 965040456.8 | H22: 1354236123 | J22: 0
A23: =Control!A71 -> Hutt city | B23: =Control!B71 -> Hutt city | C23: =Control!C71 -> Business | D23: =Control!D71 -> Hutt cityBusiness | E23: =937206000+4035367500 -> 4972573500 | F23: =970658000+3935236500 -> 4905894500 | G23: 5570900256 | H23: 7435650449 | J23: 0
A24: =Control!A72 -> Hutt city | B24: =Control!B72 -> Hutt city | C24: =Control!C72 -> Residential | D24: =Control!D72 -> Hutt cityResidential | E24: 23478516000 | F24: 23837441000 | G24: 2.630357717e+10 | H24: 3.612937026e+10 | J24: 0
A25: =Control!A73 -> Hutt city | B25: =Control!B73 -> Hutt city | C25: =Control!C73 -> Rural | D25: =Control!D73 -> Hutt cityRural | E25: 420690000 | F25: 388613000 | G25: 471309680.7 | H25: 589003784.7 | J25: 0
A26: =Control!A74 -> Upper Hutt city | B26: =Control!B74 -> Upper Hutt city | C26: =Control!C74 -> Business | D26: =Control!D74 -> Upper Hutt cityBusiness | E26: 1426045700 | F26: 1448246700 | G26: 1615034135 | H26: 2202141922 | J26: 0
A27: =Control!A75 -> Upper Hutt city | B27: =Control!B75 -> Upper Hutt city | C27: =Control!C75 -> Residential | D27: =Control!D75 -> Upper Hutt cityResidential | E27: 8964529100 | F27: 9098976100 | G27: 1.015256418e+10 | H27: 1.383551347e+10 | J27: 0
A28: =Control!A76 -> Upper Hutt city | B28: =Control!B76 -> Upper Hutt city | C28: =Control!C76 -> Rural | D28: =Control!D76 -> Upper Hutt cityRural | E28: 1152857000 | F28: 1170687000 | G28: 1305640771 | H28: 1780096527 | J28: 0
A29: =Control!A77 -> Porirua city | B29: =Control!B77 -> Porirua city | C29: =Control!C77 -> Business | D29: =Control!D77 -> Porirua cityBusiness | E29: 1434625000 | F29: 1400176000 | G29: 1558076018 | H29: 2033842448 | J29: 0
A30: =Control!A78 -> Porirua city | B30: =Control!B78 -> Porirua city | C30: =Control!C78 -> Residential | D30: =Control!D78 -> Porirua cityResidential | E30: 12171960950 | F30: 12370577500 | G30: 1.321937123e+10 | H30: 1.796903077e+10 | J30: 0
A31: =Control!A79 -> Porirua city | B31: =Control!B79 -> Porirua city | C31: =Control!C79 -> Rural | D31: =Control!D79 -> Porirua cityRural | E31: 845115700 | F31: 852855700 | G31: 917838811.5 | H31: 1238825780 | J31: 0
A32: =Control!A80 -> Kāpiti Coast district | B32: =Control!B80 -> Kāpiti Coast district | C32: =Control!C80 -> Business | D32: =Control!D80 -> Kāpiti Coast districtBusiness | E32: 1763120000 | F32: 1775736500 | G32: 1754794087 | H32: 2348973232 | J32: 0
A33: =Control!A81 -> Kāpiti Coast district | B33: =Control!B81 -> Kāpiti Coast district excl Ōtaki | C33: =Control!C81 -> Residential | D33: =Control!D81 -> Kāpiti Coast district excl Ōtaki Residential | E33: 13585040800 | F33: 13678059800 | G33: 1.352088869e+10 | H33: 1.80935608e+10 | J33: 0
A34: =Control!A82 -> Kāpiti Coast district | B34: =Control!B82 -> Ōtaki rating area | C34: =Control!C82 -> Residential | D34: =Control!D82 -> Ōtaki rating areaResidential | E34: 1649798400 | F34: 1671453400 | G34: 1642007621 | H34: 2211025844 | J34: 0
A35: =Control!A83 -> Kāpiti Coast district | B35: =Control!B83 -> Kāpiti Coast district | C35: =Control!C83 -> Rural | D35: =Control!D83 -> Kāpiti Coast districtRural | E35: 2630848950 | F35: 2657907950 | G35: 2618425395 | H35: 3515924027 | J35: 0
A36: =Control!A84 -> Masterton district | B36: =Control!B84 -> Masterton district | C36: =Control!C84 -> Business | D36: =Control!D84 -> Masterton districtBusiness | E36: =569018600+165090000 -> 734108600 | F36: =571397600+165090000 -> 736487600 | G36: 733368303.6 | H36: 943938383.8 | J36: 0
A37: =Control!A85 -> Masterton district | B37: =Control!B85 -> Masterton district | C37: =Control!C85 -> Residential | D37: =Control!D85 -> Masterton districtResidential | E37: 3974865400 | F37: 4080427400 | G37: 3970857031 | H37: 5229785329 | J37: 0
A38: =Control!A86 -> Masterton district | B38: =Control!B86 -> Masterton district | C38: =Control!C86 -> Rural | D38: =Control!D86 -> Masterton districtRural | E38: 3931608655 | F38: 3970969155 | G38: 3927643907 | H38: 5089495338 | J38: 0
A39: =Control!A87 -> Carterton district | B39: =Control!B87 -> Carterton district | C39: =Control!C87 -> Business | D39: =Control!D87 -> Carterton districtBusiness | E39: 126627500 | F39: 133894500 | G39: 126448570.2 | H39: 178686334.7 | J39: 0
A40: =Control!A88 -> Carterton district | B40: =Control!B88 -> Carterton district | C40: =Control!C88 -> Residential | D40: =Control!D88 -> Carterton districtResidential | E40: 1285248500 | F40: 1318035500 | G40: 1283432392 | H40: 1758958975 | J40: 0
A41: =Control!A89 -> Carterton district | B41: =Control!B89 -> Carterton district | C41: =Control!C89 -> Rural | D41: =Control!D89 -> Carterton districtRural | E41: 2253815300 | F41: 2277084800 | G41: 2250630567 | H41: 3038839808 | J41: 0
A42: =Control!A90 -> South Wairarapa district | B42: =Control!B90 -> South Wairarapa district | C42: =Control!C90 -> Business | D42: =Control!D90 -> South Wairarapa districtBusiness | E42: 279106000 | F42: 287242000 | G42: 275668371 | H42: 366843497.6 | J42: 0
A43: =Control!A91 -> South Wairarapa district | B43: =Control!B91 -> South Wairarapa district | C43: =Control!C91 -> Residential | D43: =Control!D91 -> South Wairarapa districtResidential | E43: 2087271500 | F43: 2151921500 | G43: 2061563471 | H43: 2748269437 | J43: 0
A44: =Control!A92 -> South Wairarapa district | B44: =Control!B92 -> South Wairarapa district | C44: =Control!C92 -> Rural | D44: =Control!D92 -> South Wairarapa districtRural | E44: 3885813900 | F44: 3915526700 | G44: 3837953995 | H44: 5000611016 | J44: 0
A45: =Control!A93 -> Tararua district | B45: =Control!B93 -> Tararua district | C45: =Control!C93 -> Rural | D45: =Control!D93 -> Tararua districtRural | E45: 15976500 | F45: 15976500 | G45: 15976500 | H45: 21686475 | J45: 0
A46: =Control!A94 -> Region wide | C46: =Control!C94 -> 0 | D46: =Control!D94 -> Region wide | E46: =SUM(E19:E45) -> 167210087355 | F46: =SUM(F19:F45) -> 208896062055 | G46: =SUM(G19:G45) -> 1.865170209e+11 | H46: =SUM(H19:H45) -> 2.531997776e+11
A48: Greytown Urban -CV | E48: 1115086500 | F48: 1131557500 | J48: =ISBLANK(E48)+ISBLANK(F48) -> 0
A49: Featherston Urban - LV | E49: 281682500 | F49: 282168500 | J49: =ISBLANK(E49)+ISBLANK(F49) -> 0
A51: Check totals | E51: =Total_CV-E17 -> 0 | F51: =F17-F46 -> 0
A54: No. of Assessments (#)
A55: =Control!A41 -> TA full name | B55: Rating area | C55: =Control!B41 -> Category group | D55: =Control!C41 -> Concatenated row | E55: ="CV assessments "&year_previous -> CV assessments 2021/22 | F55: ="CV assessments "&year_current -> CV assessments 2022/23 | G55: ="ECV assessments "&year_previous -> ECV assessments 2021/22 | H55: ="ECV assessments "&year_current -> ECV assessments 2022/23
A56: =Control!A52 -> 0 | C56: =Control!B52 -> 0 | D56: =Control!C52 -> 0
A57: =Control!A42 -> Wellington city | C57: =Control!B42 -> District wide | D57: =Control!C42 -> Wellington cityDistrict wide | E57: =SUMIF($A$68:$A$94,$A57,E$68:E$94) -> 79344 | F57: 79856 | G57: 78889 | H57: 80677 | K57: =ISBLANK(G57)+ISBLANK(H57) -> 0
A58: =Control!A43 -> Hutt city | C58: =Control!B43 -> District wide | D58: =Control!C43 -> Hutt cityDistrict wide | E58: 40078 | F58: 40468 | G58: 40266 | H58: 40997 | K58: 0
A59: =Control!A44 -> Upper Hutt city | C59: =Control!B44 -> District wide | D59: =Control!C44 -> Upper Hutt cityDistrict wide | E59: 17323 | F59: 17575 | G59: 17181 | H59: 17609 | K59: 0
A60: =Control!A45 -> Porirua city | C60: =Control!B45 -> District wide | D60: =Control!C45 -> Porirua cityDistrict wide | E60: 19397 | F60: 19859 | G60: 19120 | H60: 19678 | K60: 0
A61: =Control!A46 -> Kāpiti Coast district | C61: =Control!B46 -> District wide | D61: =Control!C46 -> Kāpiti Coast districtDistrict wide | E61: 25477 | F61: 25554 | G61: 25116 | H61: 25432 | K61: 0
A62: =Control!A47 -> Masterton district | C62: =Control!B47 -> District wide | D62: =Control!C47 -> Masterton districtDistrict wide | E62: 12869 | F62: 13074 | G62: 12678 | H62: 12972 | K62: 0
A63: =Control!A48 -> Carterton district | C63: =Control!B48 -> District wide | D63: =Control!C48 -> Carterton districtDistrict wide | E63: 4919 | F63: 5010 | G63: 4883 | H63: 5020 | K63: 0
A64: =Control!A49 -> South Wairarapa district | C64: =Control!B49 -> District wide | D64: =Control!C49 -> South Wairarapa districtDistrict wide | E64: 7023 | F64: 7133 | G64: 6785 | H64: 7068 | K64: 0
A65: =Control!A50 -> Tararua district | C65: =Control!B50 -> District wide | D65: =Control!C50 -> Tararua districtDistrict wide | E65: 10 | F65: 10 | G65: 11 | H65: 11 | K65: 0
A66: =Control!A51 -> Region wide | C66: =Control!B51 -> 0 | D66: =Control!C51 -> Region wide | E66: =SUM(E57:E65) -> 206440 | F66: =SUM(F57:F65) -> 208539 | G66: =SUM(G57:G65) -> 204929 | H66: =SUM(H57:H65) -> 209464
A68: =Control!A67 -> Wellington city | B68: =Control!B67 -> Wellington city | C68: =Control!C67 -> Wellington CBD | D68: =Control!D67 -> Wellington cityWellington CBD | E68: 3276 | F68: 3331 | J68: =ISBLANK(E68)+ISBLANK(F68) -> 0
A69: =Control!A68 -> Wellington city | B69: =Control!B68 -> Wellington city | C69: =Control!C68 -> Business | D69: =Control!D68 -> Wellington cityBusiness | E69: 1885 | F69: 1885 | J69: 0
A70: =Control!A69 -> Wellington city | B70: =Control!B69 -> Wellington city | C70: =Control!C69 -> Residential | D70: =Control!D69 -> Wellington cityResidential | E70: 73346 | F70: 73796 | J70: 0
A71: =Control!A70 -> Wellington city | B71: =Control!B70 -> Wellington city | C71: =Control!C70 -> Rural | D71: =Control!D70 -> Wellington cityRural | E71: 837 | F71: 844 | J71: 0
A72: =Control!A71 -> Hutt city | B72: =Control!B71 -> Hutt city | C72: =Control!C71 -> Business | D72: =Control!D71 -> Hutt cityBusiness | E72: =369+2019 -> 2388 | F72: =371+1977 -> 2348 | J72: 0
A73: =Control!A72 -> Hutt city | B73: =Control!B72 -> Hutt city | C73: =Control!C72 -> Residential | D73: =Control!D72 -> Hutt cityResidential | E73: 37205 | F73: 37680 | J73: 0
A74: =Control!A73 -> Hutt city | B74: =Control!B73 -> Hutt city | C74: =Control!C73 -> Rural | D74: =Control!D73 -> Hutt cityRural | E74: 485 | F74: 440 | J74: 0
A75: =Control!A74 -> Upper Hutt city | B75: =Control!B74 -> Upper Hutt city | C75: =Control!C74 -> Business | D75: =Control!D74 -> Upper Hutt cityBusiness | E75: 748 | F75: 768 | J75: 0
A76: =Control!A75 -> Upper Hutt city | B76: =Control!B75 -> Upper Hutt city | C76: =Control!C75 -> Residential | D76: =Control!D75 -> Upper Hutt cityResidential | E76: 15249 | F76: 15478 | J76: 0
A77: =Control!A76 -> Upper Hutt city | B77: =Control!B76 -> Upper Hutt city | C77: =Control!C76 -> Rural | D77: =Control!D76 -> Upper Hutt cityRural | E77: 1326 | F77: 1329 | J77: 0
A78: =Control!A77 -> Porirua city | B78: =Control!B77 -> Porirua city | C78: =Control!C77 -> Business | D78: =Control!D77 -> Porirua cityBusiness | E78: 803 | F78: 801 | J78: 0
A79: =Control!A78 -> Porirua city | B79: =Control!B78 -> Porirua city | C79: =Control!C78 -> Residential | D79: =Control!D78 -> Porirua cityResidential | E79: 17967 | F79: 18419 | J79: =ISBLANK(E79)+ISBLANK(F79) -> 0
A80: =Control!A79 -> Porirua city | B80: =Control!B79 -> Porirua city | C80: =Control!C79 -> Rural | D80: =Control!D79 -> Porirua cityRural | E80: 627 | F80: 639 | J80: 0
A81: =Control!A80 -> Kāpiti Coast district | B81: =Control!B80 -> Kāpiti Coast district | C81: =Control!C80 -> Business | D81: =Control!D80 -> Kāpiti Coast districtBusiness | E81: 1309 | F81: 1303 | J81: 0
A82: =Control!A81 -> Kāpiti Coast district | B82: =Control!B81 -> Kāpiti Coast district excl Ōtaki | C82: =Control!C81 -> Residential | D82: =Control!D81 -> Kāpiti Coast district excl Ōtaki Residential | E82: 18238 | F82: 18314 | J82: 0
A83: =Control!A82 -> Kāpiti Coast district | B83: =Control!B82 -> Ōtaki rating area | C83: =Control!C82 -> Residential | D83: =Control!D82 -> Ōtaki rating areaResidential | E83: 3205 | F83: 3227 | J83: 0
A84: =Control!A83 -> Kāpiti Coast district | B84: =Control!B83 -> Kāpiti Coast district | C84: =Control!C83 -> Rural | D84: =Control!D83 -> Kāpiti Coast districtRural | E84: 2725 | F84: 2710 | J84: 0
A85: =Control!A84 -> Masterton district | B85: =Control!B84 -> Masterton district | C85: =Control!C84 -> Business | D85: =Control!D84 -> Masterton districtBusiness | E85: =549+22 -> 571 | F85: =550+20 -> 570 | J85: =ISBLANK(E85)+ISBLANK(F85) -> 0
A86: =Control!A85 -> Masterton district | B86: =Control!B85 -> Masterton district | C86: =Control!C85 -> Residential | D86: =Control!D85 -> Masterton districtResidential | E86: 8337 | F86: 8488 | J86: 0
A87: =Control!A86 -> Masterton district | B87: =Control!B86 -> Masterton district | C87: =Control!C86 -> Rural | D87: =Control!D86 -> Masterton districtRural | E87: 3961 | F87: 4016 | J87: 0
A88: =Control!A87 -> Carterton district | B88: =Control!B87 -> Carterton district | C88: =Control!C87 -> Business | D88: =Control!D87 -> Carterton districtBusiness | E88: 228 | F88: 236 | J88: 0
A89: =Control!A88 -> Carterton district | B89: =Control!B88 -> Carterton district | C89: =Control!C88 -> Residential | D89: =Control!D88 -> Carterton districtResidential | E89: 2558 | F89: 2599 | J89: 0
A90: =Control!A89 -> Carterton district | B90: =Control!B89 -> Carterton district | C90: =Control!C89 -> Rural | D90: =Control!D89 -> Carterton districtRural | E90: 2133 | F90: 2175 | J90: 0
A91: =Control!A90 -> South Wairarapa district | B91: =Control!B90 -> South Wairarapa district | C91: =Control!C90 -> Business | D91: =Control!D90 -> South Wairarapa districtBusiness | E91: 312 | F91: 315 | J91: 0
A92: =Control!A91 -> South Wairarapa district | B92: =Control!B91 -> South Wairarapa district | C92: =Control!C91 -> Residential | D92: =Control!D91 -> South Wairarapa districtResidential | E92: 3463 | F92: 3536 | J92: 0
A93: =Control!A92 -> South Wairarapa district | B93: =Control!B92 -> South Wairarapa district | C93: =Control!C92 -> Rural | D93: =Control!D92 -> South Wairarapa districtRural | E93: 3248 | F93: 3282 | J93: 0
A94: =Control!A93 -> Tararua district | B94: =Control!B93 -> Tararua district | C94: =Control!C93 -> Rural | D94: =Control!D93 -> Tararua districtRural | E94: 10 | F94: 10 | J94: 0
A95: =Control!A94 -> Region wide | C95: =Control!C94 -> 0 | D95: =Control!D94 -> Region wide | E95: =SUM(E68:E94) -> 206440 | F95: =SUM(F68:F94) -> 208539
A97: Check totals | E97: =Total_assessments-E66 -> 0 | F97: =F66-F95 -> 0
A100: Number of Assessments Contiguous for EDR
A101: =Control!A41 -> TA full name | C101: =Control!B41 -> Category group | D101: =Control!C41 -> Concatenated row | E101: ="Contiguous assements "&year_previous -> Contiguous assements 2021/22 | F101: ="Contiguous assements "&year_current -> Contiguous assements 2022/23
A102: =Control!A52 -> 0 | C102: =Control!B52 -> 0 | D102: =Control!C52 -> 0
A103: =Control!A42 -> Wellington city | C103: =Control!B42 -> District wide | D103: =Control!C42 -> Wellington cityDistrict wide | E103: =SUMIF($A$114:$A$140,$A103,E$114:E$140) -> 0 | F103: =SUMIF($A$114:$A$140,$A103,F$114:F$140) -> 0
A104: =Control!A43 -> Hutt city | C104: =Control!B43 -> District wide | D104: =Control!C43 -> Hutt cityDistrict wide | E104: =SUMIF($A$114:$A$140,$A104,E$114:E$140) -> 19 | F104: 19
A105: =Control!A44 -> Upper Hutt city | C105: =Control!B44 -> District wide | D105: =Control!C44 -> Upper Hutt cityDistrict wide | E105: 121 | F105: 101
A106: =Control!A45 -> Porirua city | C106: =Control!B45 -> District wide | D106: =Control!C45 -> Porirua cityDistrict wide | E106: 0 | F106: 0
A107: =Control!A46 -> Kāpiti Coast district | C107: =Control!B46 -> District wide | D107: =Control!C46 -> Kāpiti Coast districtDistrict wide | E107: 309 | F107: 289
A108: =Control!A47 -> Masterton district | C108: =Control!B47 -> District wide | D108: =Control!C47 -> Masterton districtDistrict wide | E108: 488 | F108: 528
A109: =Control!A48 -> Carterton district | C109: =Control!B48 -> District wide | D109: =Control!C48 -> Carterton districtDistrict wide | E109: 369 | F109: 394
A110: =Control!A49 -> South Wairarapa district | C110: =Control!B49 -> District wide | D110: =Control!C49 -> South Wairarapa districtDistrict wide | E110: 378 | F110: 368
A111: =Control!A50 -> Tararua district | C111: =Control!B50 -> District wide | D111: =Control!C50 -> Tararua districtDistrict wide | E111: 1 | F111: 1
A112: =Control!A51 -> Region wide | C112: =Control!B51 -> 0 | D112: =Control!C51 -> Region wide | E112: =SUM(E103:E111) -> 1685 | F112: =SUM(F103:F111) -> 1700
A114: =Control!A67 -> Wellington city | B114: =Control!B67 -> Wellington city | C114: =Control!C67 -> Wellington CBD | D114: =Control!D67 -> Wellington cityWellington CBD
A115: =Control!A68 -> Wellington city | B115: =Control!B68 -> Wellington city | C115: =Control!C68 -> Business | D115: =Control!D68 -> Wellington cityBusiness
A116: =Control!A69 -> Wellington city | B116: =Control!B69 -> Wellington city | C116: =Control!C69 -> Residential | D116: =Control!D69 -> Wellington cityResidential
A117: =Control!A70 -> Wellington city | B117: =Control!B70 -> Wellington city | C117: =Control!C70 -> Rural | D117: =Control!D70 -> Wellington cityRural
A118: =Control!A71 -> Hutt city | B118: =Control!B71 -> Hutt city | C118: =Control!C71 -> Business | D118: =Control!D71 -> Hutt cityBusiness
A119: =Control!A72 -> Hutt city | B119: =Control!B72 -> Hutt city | C119: =Control!C72 -> Residential | D119: =Control!D72 -> Hutt cityResidential | E119: 19 | F119: 19
A120: =Control!A73 -> Hutt city | B120: =Control!B73 -> Hutt city | C120: =Control!C73 -> Rural | D120: =Control!D73 -> Hutt cityRural
A121: =Control!A74 -> Upper Hutt city | B121: =Control!B74 -> Upper Hutt city | C121: =Control!C74 -> Business | D121: =Control!D74 -> Upper Hutt cityBusiness | E121: 19 | F121: 17
A122: =Control!A75 -> Upper Hutt city | B122: =Control!B75 -> Upper Hutt city | C122: =Control!C75 -> Residential | D122: =Control!D75 -> Upper Hutt cityResidential | E122: 48 | F122: 34
A123: =Control!A76 -> Upper Hutt city | B123: =Control!B76 -> Upper Hutt city | C123: =Control!C76 -> Rural | D123: =Control!D76 -> Upper Hutt cityRural | E123: 54 | F123: 50
A124: =Control!A77 -> Porirua city | B124: =Control!B77 -> Porirua city | C124: =Control!C77 -> Business | D124: =Control!D77 -> Porirua cityBusiness
A125: =Control!A78 -> Porirua city | B125: =Control!B78 -> Porirua city | C125: =Control!C78 -> Residential | D125: =Control!D78 -> Porirua cityResidential
A126: =Control!A79 -> Porirua city | B126: =Control!B79 -> Porirua city | C126: =Control!C79 -> Rural | D126: =Control!D79 -> Porirua cityRural
A127: =Control!A80 -> Kāpiti Coast district | B127: =Control!B80 -> Kāpiti Coast district | C127: =Control!C80 -> Business | D127: =Control!D80 -> Kāpiti Coast districtBusiness
A128: =Control!A81 -> Kāpiti Coast district | B128: =Control!B81 -> Kāpiti Coast district excl Ōtaki | C128: =Control!C81 -> Residential | D128: =Control!D81 -> Kāpiti Coast district excl Ōtaki Residential | E128: 132 | F128: 128
A129: =Control!A82 -> Kāpiti Coast district | B129: =Control!B82 -> Ōtaki rating area | C129: =Control!C82 -> Residential | D129: =Control!D82 -> Ōtaki rating areaResidential | E129: 41 | F129: 39
A130: =Control!A83 -> Kāpiti Coast district | B130: =Control!B83 -> Kāpiti Coast district | C130: =Control!C83 -> Rural | D130: =Control!D83 -> Kāpiti Coast districtRural | E130: 136 | F130: 122
A131: =Control!A84 -> Masterton district | B131: =Control!B84 -> Masterton district | C131: =Control!C84 -> Business | D131: =Control!D84 -> Masterton districtBusiness
A132: =Control!A85 -> Masterton district | B132: =Control!B85 -> Masterton district | C132: =Control!C85 -> Residential | D132: =Control!D85 -> Masterton districtResidential | E132: 82 | F132: 92
A133: =Control!A86 -> Masterton district | B133: =Control!B86 -> Masterton district | C133: =Control!C86 -> Rural | D133: =Control!D86 -> Masterton districtRural | E133: 406 | F133: 436
A134: =Control!A87 -> Carterton district | B134: =Control!B87 -> Carterton district | C134: =Control!C87 -> Business | D134: =Control!D87 -> Carterton districtBusiness
A135: =Control!A88 -> Carterton district | B135: =Control!B88 -> Carterton district | C135: =Control!C88 -> Residential | D135: =Control!D88 -> Carterton districtResidential | E135: 69 | F135: 78
A136: =Control!A89 -> Carterton district | B136: =Control!B89 -> Carterton district | C136: =Control!C89 -> Rural | D136: =Control!D89 -> Carterton districtRural | E136: 300 | F136: 316
A137: =Control!A90 -> South Wairarapa district | B137: =Control!B90 -> South Wairarapa district | C137: =Control!C90 -> Business | D137: =Control!D90 -> South Wairarapa districtBusiness
A138: =Control!A91 -> South Wairarapa district | B138: =Control!B91 -> South Wairarapa district | C138: =Control!C91 -> Residential | D138: =Control!D91 -> South Wairarapa districtResidential | E138: 91 | F138: 89
A139: =Control!A92 -> South Wairarapa district | B139: =Control!B92 -> South Wairarapa district | C139: =Control!C92 -> Rural | D139: =Control!D92 -> South Wairarapa districtRural | E139: 287 | F139: 279
A140: =Control!A93 -> Tararua district | B140: =Control!B93 -> Tararua district | C140: =Control!C93 -> Rural | D140: =Control!D93 -> Tararua districtRural | E140: 1 | F140: 1
A141: =Control!A94 -> Region wide | C141: =Control!C94 -> 0 | D141: =Control!D94 -> Region wide | E141: =SUM(E114:E140) -> 1685 | F141: =SUM(F114:F140) -> 1700
A143: Check totals | E143: =E112-E141 -> 0 | F143: =F112-F141 -> 0
A150: TA full name | B150: Rating area | C150: Category group
A151: Wellington city | B151: Wellington city | C151: Wellington CBD
A152: Wellington city | B152: Wellington city | C152: Business
A153: Wellington city | B153: Wellington city | C153: Residential
A154: Wellington city | B154: Wellington city | C154: Rural
A155: Hutt city | B155: Hutt city | C155: Business
A156: Hutt city | B156: Hutt city | C156: Residential
A157: Hutt city | B157: Hutt city | C157: Rural
A158: Upper Hutt city | B158: Upper Hutt city | C158: Business
A159: Upper Hutt city | B159: Upper Hutt city | C159: Residential
A160: Upper Hutt city | B160: Upper Hutt city | C160: Rural
A161: Porirua city | B161: Porirua city | C161: Business
A162: Porirua city | B162: Porirua city | C162: Residential
A163: Porirua city | B163: Porirua city | C163: Rural
A164: Kāpiti Coast district | B164: Kāpiti Coast district | C164: Business
A165: Kāpiti Coast district | B165: Kāpiti Coast district excl Ōtaki | C165: Residential
A166: Kāpiti Coast district | B166: Ōtaki rating area | C166: Residential
A167: Kāpiti Coast district | B167: Kāpiti Coast district | C167: Rural
A168: Masterton district | B168: Masterton district | C168: Business
A169: Masterton district | B169: Masterton district | C169: Residential
A170: Masterton district | B170: Masterton district | C170: Rural
A171: Carterton district | B171: Carterton district | C171: Business
A172: Carterton district | B172: Carterton district | C172: Residential
A173: Carterton district | B173: Carterton district | C173: Rural
A174: South Wairarapa district | B174: South Wairarapa district | C174: Business
A175: South Wairarapa district | B175: South Wairarapa district | C175: Residential
A176: South Wairarapa district | B176: South Wairarapa district | C176: Rural
A177: Tararua district | B177: Tararua district | C177: Rural

Sheet CV Analysis
A1: Greater Wellington Regional Council | C1: WARNING THIS TAB CONTAINS MANUALLY ENTERED INFORMATION, NOT JUST IN THE YELLOW CELLS. ENSURE IT IS SHOWING WHAT YOU REQUIRE BEFORE USING
A2: Analysis of Capital Value and Assessments
C5: Capital Values proposal | D5: ="Capital Values "&year_current -> Capital Values 2022/23 | F5: proposal | G5: ="CV assessments "&year_current -> CV assessments 2022/23 | I5: proposal | J5: ="Contiguous assements "&year_current -> Contiguous assements 2022/23 | L5: CV Average proposal | M5: CV Average 2020/21 | O5: CV Average movement | P5: change in CV | Q5: change in assessment
A7: =Control!A67 -> Wellington city | B7: =Control!C67 -> Wellington CBD | C7: 9921148650 | D7: ='Capital values'!F19 -> 13133427700 | F7: 3340 | G7: ='Capital values'!F68 -> 3331 | J7: ='Capital values'!F114 -> 0 | L7: =C7/F7 -> 2970403.787 | M7: =D7/G7 -> 3942788.262 | O7: =M7-L7 -> 972384.4744 | P7: =D7-C7 -> 3212279050 | Q7: =G7-F7 -> -9
A8: =Control!A68 -> Wellington city | B8: =Control!C68 -> Business | C8: 4638515650 | D8: ='Capital values'!F20 -> 6659900150 | F8: 1897 | G8: ='Capital values'!F69 -> 1885 | J8: ='Capital values'!F115 -> 0 | L8: =C8/F8 -> 2445184.844 | M8: =D8/G8 -> 3533103.528 | O8: =M8-L8 -> 1087918.683 | P8: =D8-C8 -> 2021384500 | Q8: =G8-F8 -> -12
A9: =Control!A69 -> Wellington city | B9: =Control!C69 -> Residential | C9: 57499964050 | D9: ='Capital values'!F21 -> 93657459050 | F9: 71826 | G9: ='Capital values'!F70 -> 73796 | J9: ='Capital values'!F116 -> 0 | L9: =C9/F9 -> 800545.2629 | M9: 1269140.049 | O9: 468594.7861 | P9: 36157495000 | Q9: 1970
A10: =Control!A70 -> Wellington city | B10: =Control!C70 -> Rural | C10: 794922100 | D10: ='Capital values'!F22 -> 1301084350 | F10: 790 | G10: ='Capital values'!F71 -> 844 | J10: ='Capital values'!F117 -> 0 | L10: =C10/F10 -> 1006230.506 | M10: =D10/G10 -> 1541569.135 | O10: =M10-L10 -> 535338.6287 | P10: 506162250 | Q10: 54
A11: =Control!A71 -> Hutt city | B11: =Control!C71 -> Business | C11: 3813013500 | D11: ='Capital values'!F23 -> 4905894500 | F11: 2359 | G11: ='Capital values'!F72 -> 2348 | J11: ='Capital values'!F118 -> 0 | L11: 1616368.588 | M11: 2089392.888 | O11: 473024.2992 | P11: 1092881000 | Q11: -11
A12: =Control!A72 -> Hutt city | B12: =Control!C72 -> Residential | C12: 17395848500 | D12: ='Capital values'!F24 -> 23837441000 | F12: 36551 | G12: ='Capital values'!F73 -> 37680 | I12: 125 | J12: ='Capital values'!F119 -> 19 | L12: 475933.5859 | M12: 632628.4766 | O12: =M12-L12 -> 156694.8907 | P12: 6441592500 | Q12: 1129
A13: =Control!A73 -> Hutt city | B13: =Control!C73 -> Rural | C13: 316542000 | D13: ='Capital values'!F25 -> 388613000 | F13: 488 | G13: ='Capital values'!F74 -> 440 | J13: ='Capital values'!F120 -> 0 | L13: 648651.6393 | M13: 883211.3636 | O13: 234559.7243 | P13: 72071000 | Q13: -48
A14: =Control!A74 -> Upper Hutt city | B14: =Control!C74 -> Business | C14: 1182339500 | D14: ='Capital values'!F26 -> 1448246700 | F14: 746 | G14: ='Capital values'!F75 -> 768 | J14: ='Capital values'!F121 -> 17 | L14: 1584905.496 | M14: 1885737.891 | O14: =M14-L14 -> 300832.3946 | P14: 265907200 | Q14: 22
A15: =Control!A75 -> Upper Hutt city | B15: =Control!C75 -> Residential | C15: 6233760420 | D15: ='Capital values'!F27 -> 9098976100 | F15: 14902 | G15: ='Capital values'!F76 -> 15478 | I15: 29 | J15: ='Capital values'!F122 -> 34 | L15: 418317.0326 | M15: 587865.1053 | O15: 169548.0727 | P15: 2865215680 | Q15: 576
A16: =Control!A76 -> Upper Hutt city | B16: =Control!C76 -> Rural | C16: 861586340 | D16: ='Capital values'!F28 -> 1170687000 | F16: 1266 | G16: ='Capital values'!F77 -> 1329 | I16: 67 | J16: ='Capital values'!F123 -> 50 | L16: 680557.9305 | M16: 880878.1038 | O16: =M16-L16 -> 200320.1733 | P16: 309100660 | Q16: 63
A17: =Control!A77 -> Porirua city | B17: =Control!C77 -> Business | C17: 1101735500 | D17: ='Capital values'!F29 -> 1400176000 | F17: 798 | G17: ='Capital values'!F78 -> 801 | J17: ='Capital values'!F124 -> 0 | L17: 1380620.927 | M17: 1748034.956 | O17: =M17-L17 -> 367414.029 | P17: 298440500 | Q17: 3
A18: =Control!A78 -> Porirua city | B18: =Control!C78 -> Residential | C18: 8642049050 | D18: ='Capital values'!F30 -> 12370577500 | F18: 17394 | G18: ='Capital values'!F79 -> 18419 | J18: ='Capital values'!F125 -> 0 | L18: 496840.81 | M18: 671620.4734 | O18: 174779.6634 | P18: 3728528450 | Q18: 1025
A19: =Control!A79 -> Porirua city | B19: =Control!C79 -> Rural | C19: 623527750 | D19: ='Capital values'!F31 -> 852855700 | F19: 616 | G19: ='Capital values'!F80 -> 639 | J19: ='Capital values'!F126 -> 0 | L19: 1012220.373 | M19: 1334672.457 | O19: 322452.0836 | P19: 229327950 | Q19: 23
A20: =Control!A80 -> Kāpiti Coast district | B20: =Control!C80 -> Business | C20: 1476489000 | D20: ='Capital values'!F32 -> 1775736500 | F20: 1333 | G20: ='Capital values'!F81 -> 1303 | J20: ='Capital values'!F127 -> 0 | L20: 1107643.661 | M20: 1362806.216 | O20: 255162.5555 | P20: 299247500 | Q20: -30
A21: =Control!A81 -> Kāpiti Coast district | B21: =Control!C81 -> Residential | C21: 10311045500 | D21: ='Capital values'!F33 -> 13678059800 | F21: 17951 | G21: ='Capital values'!F82 -> 18314 | I21: 163 | J21: ='Capital values'!F128 -> 128 | L21: 574399.5042 | M21: 746863.5907 | O21: 172464.0865 | P21: 3367014300 | Q21: 363
A22: =Control!A82 -> Kāpiti Coast district | B22: =Control!C82 -> Residential | C22: 1121512900 | D22: ='Capital values'!F34 -> 1671453400 | F22: 3173 | G22: ='Capital values'!F83 -> 3227 | I22: 44 | J22: ='Capital values'!F129 -> 39 | L22: 353455.0583 | M22: 517958.9092 | O22: 164503.8509 | P22: 549940500 | Q22: 54
A23: =Control!A83 -> Kāpiti Coast district | B23: =Control!C83 -> Rural | C23: 1985010700 | D23: ='Capital values'!F35 -> 2657907950 | F23: 2647 | G23: ='Capital values'!F84 -> 2710 | I23: 155 | J23: ='Capital values'!F130 -> 122 | L23: 749909.5958 | M23: 980777.8413 | O23: 230868.2456 | P23: 672897250 | Q23: 63
A24: =Control!A84 -> Masterton district | B24: =Control!C84 -> Business | C24: 433209100 | D24: ='Capital values'!F36 -> 736487600 | F24: 549 | G24: ='Capital values'!F85 -> 570 | J24: ='Capital values'!F131 -> 0 | L24: =C24/F24 -> 789087.6138 | M24: 1292083.509 | O24: 502995.8949 | P24: 303278500 | Q24: 21
A25: =Control!A85 -> Masterton district | B25: =Control!C85 -> Residential | C25: 2678795300 | D25: ='Capital values'!F37 -> 4080427400 | F25: 8086 | G25: ='Capital values'!F86 -> 8488 | I25: 19 | J25: ='Capital values'!F132 -> 92 | L25: 331288.0658 | M25: 480728.9585 | O25: 149440.8927 | P25: 1401632100 | Q25: 402
A26: =Control!A86 -> Masterton district | B26: =Control!C86 -> Rural | C26: 2808505600 | D26: ='Capital values'!F38 -> 3970969155 | F26: 3895 | G26: ='Capital values'!F87 -> 4016 | I26: 445 | J26: ='Capital values'!F133 -> 436 | L26: 721054.0693 | M26: 988787.1402 | O26: 267733.0709 | P26: 1162463555 | Q26: 121
A27: =Control!A87 -> Carterton district | B27: =Control!C87 -> Business | C27: 97126500 | D27: ='Capital values'!F39 -> 133894500 | F27: 226 | G27: ='Capital values'!F88 -> 236 | J27: ='Capital values'!F134 -> 0 | L27: 429763.2743 | M27: 567349.5763 | O27: 137586.3019 | P27: 36768000 | Q27: 10
A28: =Control!A88 -> Carterton district | B28: =Control!C88 -> Residential | C28: 858895500 | D28: ='Capital values'!F40 -> 1318035500 | F28: 2397 | G28: ='Capital values'!F89 -> 2599 | I28: 70 | J28: ='Capital values'!F135 -> 78 | L28: 358321.0263 | M28: 507131.7815 | O28: 148810.7552 | P28: 459140000 | Q28: 202
A29: =Control!A89 -> Carterton district | B29: =Control!C89 -> Rural | C29: 1749109700 | D29: ='Capital values'!F41 -> 2277084800 | F29: 2048 | G29: ='Capital values'!F90 -> 2175 | I29: 303 | J29: ='Capital values'!F136 -> 316 | L29: 854057.4707 | M29: 1046935.54 | O29: 192878.0695 | P29: 527975100 | Q29: 127
A30: =Control!A90 -> South Wairarapa district | B30: =Control!C90 -> Business | C30: 211288600 | D30: ='Capital values'!F42 -> 287242000 | F30: 312 | G30: ='Capital values'!F91 -> 315 | J30: ='Capital values'!F137 -> 0 | L30: 677207.0513 | M30: 911879.3651 | O30: 234672.3138 | P30: 75953400 | Q30: 3
A31: =Control!A91 -> South Wairarapa district | B31: =Control!C91 -> Residential | C31: 1373326100 | D31: ='Capital values'!F43 -> 2151921500 | F31: 3307 | G31: ='Capital values'!F92 -> 3536 | I31: 102 | J31: ='Capital values'!F138 -> 89 | L31: 415278.5304 | M31: 608575.0848 | O31: 193296.5545 | P31: 778595400 | Q31: 229
A32: =Control!A92 -> South Wairarapa district | B32: =Control!C92 -> Rural | C32: 2970196100 | D32: ='Capital values'!F44 -> 3915526700 | F32: 3127 | G32: ='Capital values'!F93 -> 3282 | I32: 300 | J32: ='Capital values'!F139 -> 279 | L32: 949854.8449 | M32: 1193030.683 | O32: 243175.8376 | P32: 945330600 | Q32: 155
A33: =Control!A93 -> Tararua district | B33: =Control!C93 -> Rural | C33: 10673500 | D33: ='Capital values'!F45 -> 15976500 | F33: 10 | G33: ='Capital values'!F94 -> 10 | I33: 1 | J33: ='Capital values'!F140 -> 1 | L33: =C33/F33 -> 1067350 | M33: =D33/G33 -> 1597650 | O33: =M33-L33 -> 530300 | P33: 5303000 | Q33: 0
A34: =Control!A94 -> Region wide | B34: =Control!C94 -> 0 | C34: =SUM(C7:C33) -> 141110137110 | D34: =SUM(D7:D33) -> 208896062055 | F34: =SUM(F7:F33) -> 202034 | G34: =SUM(G7:G33) -> 208539 | I34: =SUM(I7:I33) -> 1823 | J34: =SUM(J7:J33) -> 1700 | L34: =C34/F34 -> 698447.4747 | M34: =D34/G34 -> 1001712.208 | O34: =M34-L34 -> 303264.7328 | P34: =SUM(P7:P33) -> 67785924945 | Q34: =SUM(Q7:Q33) -> 6505
A36: Greytown Urban -CV | C36: 739130000 | D36: =+'Capital values'!F48 -> 1131557500
A37: Featherston Urban - LV | C37: 162213500 | D37: =+'Capital values'!F49 -> 282168500
A39: Wellington CBD | C39: =SUMIF($B$7:$B$33,$A39,C$7:C$33) -> 9921148650 | D39: =SUMIF($B$7:$B$33,$A39,D$7:D$33) -> 13133427700 | F39: =SUMIF($B$7:$B$33,$A39,F$7:F$33) -> 3340 | G39: 3331 | I39: 0 | J39: 0 | L39: 2970403.787 | M39: 3942788.262 | O39: =SUMIF($B$7:$B$33,$A39,O$7:O$33) -> 972384.4744 | P39: =SUMIF($B$7:$B$33,$A39,P$7:P$33) -> 3212279050 | Q39: =SUMIF($B$7:$B$33,$A39,Q$7:Q$33) -> -9
A40: Business | C40: =SUMIF($B$7:$B$33,$A40,C$7:C$33) -> 12953717350 | D40: =SUMIF($B$7:$B$33,$A40,D$7:D$33) -> 17347577950 | F40: 8220 | G40: 8226 | I40: 0 | J40: 17 | L40: 10030781.46 | M40: 13390387.93 | O40: 3359606.472 | P40: 4393860600 | Q40: 6
A41: Residential | C41: 106115197320 | D41: 161864351250 | F41: 175587 | G41: 181537 | I41: 552 | J41: 479 | L41: 4224378.876 | M41: 6022512.429 | O41: 1798133.553 | P41: 55749153930 | Q41: 5950
A42: Rural | C42: 12120073790 | D42: 16550705155 | F42: 14887 | G42: 15445 | I42: 1271 | J42: 1204 | L42: 7689886.43 | M42: 10447512.26 | O42: 2757625.834 | P42: 4430631365 | Q42: 558
A43: Total | C43: =SUM(C39:C42) -> 141110137110 | D43: =SUM(D39:D42) -> 208896062055 | F43: =SUM(F39:F42) -> 202034 | G43: =SUM(G39:G42) -> 208539 | I43: =SUM(I39:I42) -> 1823 | J43: =SUM(J39:J42) -> 1700 | L43: =C43/F43 -> 698447.4747 | M43: =D43/G43 -> 1001712.208 | O43: =M43-L43 -> 303264.7328 | P43: =SUM(P39:P42) -> 67785924945 | Q43: =SUM(Q39:Q42) -> 6505

Sheet ESSbase
A1: Wellington Regional Council
A2: ESSBase values
A3: =check_total -> 0
B5: Model naming convention | C5: Essbase name | D5: Essbase name | F5: Last Year Base | G5: Current Year Base | H5: Change | J5: Proposed Budget Base
F6: =year_previous -> 2021/22 | G6: =year_current -> 2022/23 | H6: =year_current -> 2022/23 | J6: =year_current -> 2022/23
B8: General rate | C8: WRC - Mgmt | D8: General Rates | F8: 63113015.51 | G8: =73337780 -> 73337780 | H8: =G8/F8-1 -> 0.1620072247 | J8: 62657212.72 | K8: =+G8-J8 -> 10680567.28
B9: Remission of rates | D9: Remission of Regional Rates | F9: 0 | G9: 0 | H9: 0 | J9: 0 | K9: 0
B10: Public transport rate | D10: Transport Rate | F10: 81810330.83 | G10: 90658479.92 | H10: =G10/F10-1 -> 0.1081544226 | J10: 81810330.83 | K10: 8848149.091
B11: River management rate | D11: River Rate | F11: 6796139.723 | G11: 7874549.21 | H11: =G11/F11-1 -> 0.158679711 | J11: 6802436.468 | K11: 1072112.742
B12: Stadium purposes rate | D12: Stadium Rate | F12: 0 | G12: 0 | H12: 0 | J12: 0 | K12: 0
B13: Economic Development rate | D13: Economic Development Rate | F13: 4690801.632 | G13: 4620623.29 | H13: =G13/F13-1 -> -0.01496084202 | J13: 4690801.632 | K13: -70178.34219 | N13: Previously Wellington Regional Strategy (WRS) Rate. Make sure name change to economic development rate is picked up in summary from finance system
B14: District-Wide Rates | D14: District-Wide Rates | F14: =SUM(F8:F13) -> 156410287.7 | G14: =SUM(G8:G13) -> 176491432.4 | H14: =G14/F14-1 -> 0.1283876209 | J14: =SUM(J8:J13) -> 155960781.7 | K14: 20530650.77
B15: Rates penalties | D15: Rates Penalties | F15: 0 | G15: 0 | H15: 0 | J15: 0 | K15: 0
B16: Remission of rates penalties | D16: Remission of Rates Penalties | F16: 0 | G16: 0 | H16: 0 | J16: 0 | K16: 0
B17: Pest management rate | D17: Pest Rate | F17: 666799.94 | G17: 0 | H17: =G17/F17-1 -> -1 | J17: 666799.94 | K17: -666799.94
B18: River management rate - Non district wide | D18: River Mgmt Rates - Non District Wide | F18: 99998.4 | G18: 101498.37 | H18: 0.01499994 | J18: 99998.4 | K18: 1499.97
B19: Special Rates | D19: Special Rates | F19: 1608620.652 | G19: 1680741.46 | H19: 0.04483394382 | J19: 1609109.146 | K19: 71632.31395
B20: Total Other Rates | D20: Total Other Rates | F20: =SUM(F17:F19) -> 2375418.992 | G20: =SUM(G17:G19) -> 1782239.83 | H20: -0.2497155929 | J20: 2375907.486 | K20: -593667.6561
B21: Total Regnl Rates | D21: Total Regnl Rates | F21: =F20+F14 -> 158785706.7 | G21: =G20+G14 -> 178273672.3 | H21: 0.122731233 | J21: =J20+J14 -> 158336689.1 | K21: 19936983.11
B22: Bulk water levies | D22: Bulk Water Levies | F22: 39319128.33 | G22: 42068773 | H22: 0.0699314757 | J22: 39423848.59 | K22: 2644924.409
B23: Total Regnl Rates & levies | D23: Total Regnl Rates & levies | F23: =F22+F21 -> 198104835 | G23: =G22+G21 -> 220342445.3 | H23: 0.1122517289 | J23: =J22+J21 -> 197760537.7 | K23: 22581907.52
B24: Warm Greater Wellington rate | D24: Warm Greater Wellington rate | F24: 2868617.589 | G24: 1937525.05 | H24: -0.3245788295 | J24: 2868617.589 | K24: -931092.5394
B25: Total Rates & Levies | D25: Total Rates & Levies | F25: =F24+F23 -> 200973452.6 | G25: =G24+G23 -> 222279970.3 | H25: 0.1060165779 | J25: =J24+J23 -> 200629155.3 | K25: 21650814.98
B30: Total River, Drainage etc | D30: Total River, Drainage etc
B32: General Rates | C32: Te Hunga Whiriwhiri Department | D32: General Rates | F32: 2741315.284 | G32: 4816190 | H32: =G32/F32-1 -> 0.7568902153 | J32: 2416867.924 | K32: =+G32-J32 -> 2399322.076
B33: General Rates | C33: Managing Emergencies | D33: General Rates | F33: 1079575.098 | G33: 1336088 | H33: =G33/F33-1 -> 0.2376054274 | J33: 1079575.098 | K33: 256512.9024
B34: General Rates | C34: Fit for the Future | D34: General Rates | F34: 0 | G34: 0 | H34: 0 | J34: 0 | K34: 0
B35: General Rates | C35: Old 30000 | D35: General Rates | F35: 23311856.31 | G35: =26155793 -> 26155793 | H35: 0 | J35: 30429090.92 | K35: -4273297.919
B36: General Rates | C36: Parks & Forests Group | D36: General Rates | F36: 7007434.344 | G36: 7282830 | H36: =G36/F36-1 -> 0.03930049745 | J36: 6871763.516 | K36: 411066.4841
B37: General Rates | C37: Wairarapa Water Use (was Env Edu) activity | D37: General Rates | F37: 312971.0909 | G37: -982830 | H37: =G37/F37-1 -> -4.140321993 | J37: 312971.0909 | K37: -1295801.091
B38: General Rates | C38: Catchment Management (excluding forests) | D38: General Rates | F38: 26585680.65 | G38: 29269006 | H38: =G38/F38-1 -> 0.1009312264 | J38: 26401396.34 | K38: 2867609.664
B39: General Rates | C39: Strategy Group | D39: General Rates | F39: 8755752.391 | G39: 8753629 | H39: =G39/F39-1 -> -0.0002425138259 | J39: 8755752.391 | K39: -2123.391011
C40: Metlink | D40: General Rates | G40: 881226
B41: General Rates | C41: Investment Management. | D41: General Rates | F41: -6681569.655 | G41: =-4174188+36 -> -4174152 | H41: =G41/F41-1 -> -0.3752737433 | J41: -6425469.945 | K41: =+G41-J41 -> 2251317.945
B43: General Rates | C43: WRC - Mgmt | D43: General Rates | F43: 63113015.51 | G43: =SUM(G32:G41) -> 73337780 | H43: =G43/F43-1 -> 0.1620072247 | J43: 62657212.72 | K43: =+G43-J43 -> 10680567.28
B51: Warm Greater Wellington rate | C51: Warm Greater Wellington management | D51: Warm Greater Wellington rate | F51: 2868617.589 | G51: 1937525 | H51: =G51/F51-1 -> -0.3245788469 | J51: 2868617.589
B52: External Income | C52: Warm Greater Wellington management | D52: External Income | F52: 0 | G52: 0 | H52: 0 | J52: 0

Sheet Class Rates
A1: Wellington Regional Council
A2: ="Class rates "&year_current -> Class rates 2022/23
A3: Printed : | B3: =NOW() -> 2023-01-19T08:30:06.840
A4: =check_total -> 0
A6: 2021-06-14 | B6: Revenue Required | D6: Class | E6: $ per Hectare | F6: Class Total | G6: Class Areas | H6: Scheme Total | I6: Var
A7: Draft | B7: ex gst | E7: ex gst | F7: ex gst | G7: Hectares | H7: ex gst | I7: $ | K7: Lookup index
A8: River Management | K8: Scheme | L8: Class | M8: Concat
A9: Lower Wairarapa Valley Development Scheme | B9: 903147.59 | D9: A | E9: 0.2685285151 | F9: =E9*G9+J9 -> 781928.7541 | G9: 2911902.126 | H9: =SUM(F9:F11) -> 903147.59 | I9: =B9-H9 -> 0 | K9: =A9 -> Lower Wairarapa Valley Development Scheme | L9: =D9 -> A | M9: =K9&L9 -> Lower Wairarapa Valley Development SchemeA
D10: Sa | E10: 22.04543119 | F10: =E10*G10 -> 9501.580843 | G10: 431 | K10: =K9 -> Lower Wairarapa Valley Development Scheme | L10: =D10 -> Sa | M10: Lower Wairarapa Valley Development SchemeSa
D11: Sb | E11: 44.12213866 | F11: 111717.2551 | G11: 2532 | K11: =K10 -> Lower Wairarapa Valley Development Scheme | L11: =D11 -> Sb | M11: Lower Wairarapa Valley Development SchemeSb
A12: Waiohine Rural | B12: 98709.61558 | D12: A | E12: 48.8584 | F12: =E12*G12 -> 5495.201965 | G12: 112.472 | H12: =SUM(F12:F17) -> 98709.61558 | I12: =B12-H12 -> 0 | K12: =A12 -> Waiohine Rural | L12: =D12 -> A | M12: Waiohine RuralA
D13: B | E13: 40.715 | F13: =E13*G13 -> 15585.21749 | G13: 382.7881 | K13: =K12 -> Waiohine Rural | L13: B | M13: Waiohine RuralB
D14: C | E14: 32.572 | F14: 41685.70423 | G14: 1279.8018 | K14: =K13 -> Waiohine Rural | L14: C | M14: Waiohine RuralC
D15: D | E15: 24.429 | F15: 9036.343287 | G15: 369.9023 | K15: =K14 -> Waiohine Rural | L15: D | M15: Waiohine RuralD
D16: E | E16: 16.286 | F16: 12982.77251 | G16: 797.1738 | K16: =K15 -> Waiohine Rural | L16: E | M16: Waiohine RuralE
D17: S | E17: 814.291 | F17: 13924.3761 | G17: 17.1 | K17: =K16 -> Waiohine Rural | L17: S | M17: Waiohine RuralS
A18: Mangatarere | B18: 10566.44651 | D18: A | E18: 36.9179 | F18: 792.1473803 | G18: 21.457 | H18: =SUM(F18:F21) -> 10566.44651 | I18: =B18-H18 -> 0 | K18: =A18 -> Mangatarere | L18: A | M18: MangatarereA
D19: B | E19: 35.3127 | F19: 7399.81866 | G19: 209.5512 | K19: =K18 -> Mangatarere | L19: B | M19: MangatarereB
D20: C | E20: 29.9241 | F20: 471.8551784 | G20: 15.7684 | K20: =K19 -> Mangatarere | L20: C | M20: MangatarereC
D21: D | E21: 26.4845 | F21: 1902.625292 | G21: 71.8392 | K21: =K20 -> Mangatarere | L21: D | M21: MangatarereD
A22: Catchment Schemes | K22: =K21 -> Mangatarere | L22: 0 | M22: Mangatarere0
A23: Awhea-Opouawe | B23: 22790.88 | F23: =+H23 -> 22790.88 | H23: =+H98 -> 22790.88 | I23: =B23-H23 -> 0 | K23: =A23 -> Awhea-Opouawe | L23: 0 | M23: Awhea-Opouawe0
F24: =E24*G24 -> 0 | H24: see bottom of sheet | K24: =K23 -> Awhea-Opouawe | L24: 0 | M24: Awhea-Opouawe0
A25: Whareama | B25: 20179.94 | D25: A | E25: 4.741243238 | F25: =E25*G25 -> 3391.819212 | G25: 715.3860372 | H25: =SUM(F25:F29) -> 20179.94043 | I25: =B25-H25 -> -0.0004290859797 | K25: =A25 -> Whareama | L25: A | M25: WhareamaA
D26: B | E26: 1.823555092 | F26: =E26*G26 -> 1737.054647 | G26: 952.5649402 | K26: =K25 -> Whareama | L26: B | M26: WhareamaB
D27: C | E27: 0.319122141 | F27: =E27*G27 -> 14544.34845 | G27: 45576.1183 | K27: =K26 -> Whareama | L27: C | M27: WhareamaC
D28: E | E28: 0.2279443865 | F28: =E28*G28 -> 3.510913412 | G28: 15.4025 | K28: =K27 -> Whareama | L28: E | M28: WhareamaE
D29: F | E29: 0.1823555092 | F29: =E29*G29 -> 503.2072051 | G29: 2759.484523 | K29: =K28 -> Whareama | L29: F | M29: WhareamaF
A30: Homewood | B30: 12273.94 | D30: A | E30: 2.018698092 | F30: 4632.505904 | G30: 2294.798773 | H30: =SUM(F30:F33) -> 12273.94 | I30: =B30-H30 -> 0 | K30: =A30 -> Homewood | L30: A | M30: HomewoodA
D31: B | E31: 1.922569611 | F31: 1062.214413 | G31: 552.497245 | K31: =K30 -> Homewood | L31: B | M31: HomewoodB
D32: C | E32: 1.68224841 | F32: 6161.190863 | G32: 3662.473882 | K32: =K31 -> Homewood | L32: C | M32: HomewoodC
D33: D | E33: 0.2403212014 | F33: =E33*G33 -> 418.0288194 | G33: 1739.458762 | K33: =K32 -> Homewood | L33: D | M33: HomewoodD
A34: Mataikona-Whakataki | B34: 6817.74 | F34: =+H34 -> 6817.74 | H34: =+H102 -> 6817.74 | I34: =B34-H34 -> 0 | K34: =A34 -> Mataikona-Whakataki | L34: 0 | M34: Mataikona-Whakataki0
F35: 0 | H35: see bottom of sheet | K35: =A35 -> 0 | L35: 0 | M35: 00
A36: Maungaraki | B36: 7111.13 | F36: =+H36 -> 7111.134 | G36: 3305.470824 | H36: =+H108 -> 7111.134 | I36: =B36-H36 -> -0.003999999999 | K36: =A36 -> Maungaraki | L36: 0 | M36: Maungaraki0
F37: - | G37: 2972.005702 | H37: see bottom of sheet | K37: =A37 -> 0 | L37: 0 | M37: 00
A38: Upper Kaiwhata | B38: 2593.59 | D38: A | E38: 10.8437535 | F38: =E38*G38 -> 353.6592611 | G38: 32.6141 | H38: =SUM(F38:F43) -> 2593.59 | I38: =B38-H38 -> 0 | K38: =A38 -> Upper Kaiwhata | L38: A | M38: Upper KaiwhataA
D39: B | E39: 4.744142158 | F39: 249.5788818 | G39: 52.6078 | K39: =K38 -> Upper Kaiwhata | L39: B | M39: Upper KaiwhataB
D40: C | E40: 0.677734594 | F40: 649.4002727 | G40: 958.1926 | K40: =K39 -> Upper Kaiwhata | L40: C | M40: Upper KaiwhataC
D41: D | E41: 0.4066407564 | F41: 834.7028192 | G41: 2052.6787 | K41: =K40 -> Upper Kaiwhata | L41: D | M41: Upper KaiwhataD
D42: E | E42: 0.2710938376 | F42: 444.9251703 | G42: 1641.222 | K42: =K41 -> Upper Kaiwhata | L42: E | M42: Upper KaiwhataE
D43: F | E43: 0.1355469188 | F43: 61.32359481 | G43: 452.416 | K43: =K42 -> Upper Kaiwhata | L43: F | M43: Upper KaiwhataF
A44: Lower Kaiwhata | B44: 4460.26 | D44: A | E44: 17.59853233 | F44: 811.5013636 | G44: 46.11187731 | H44: =SUM(F44:F48) -> 4460.26 | I44: =B44-H44 -> 0 | K44: =A44 -> Lower Kaiwhata | L44: A | M44: Lower KaiwhataA
D45: B | E45: 7.699357894 | F45: 343.2980414 | G45: 44.58787942 | K45: =K44 -> Lower Kaiwhata | L45: B | M45: Lower KaiwhataB
D46: C | E46: 1.099908271 | F46: 1275.355195 | G46: 1159.510506 | K46: =K45 -> Lower Kaiwhata | L46: C | M46: Lower KaiwhataC
D47: D | E47: 0.6599449623 | F47: 1953.444151 | G47: 2960.010701 | K47: =K46 -> Lower Kaiwhata | L47: D | M47: Lower KaiwhataD
D48: F | E48: 0.2199816541 | F48: 76.66124898 | G48: 348.4892833 | K48: =K47 -> Lower Kaiwhata | L48: F | M48: Lower KaiwhataF
A49: Pump Drainage | L49: =D49 -> 0 | M49: =K49&L49 -> 0
A50: Te Hopai | B50: 55485.839 | D50: A | E50: 44.50912 | F50: =E50*G50 -> 55485.839 | G50: 1246.6173 | H50: =F50 -> 55485.839 | I50: =B50-H50 -> 0 | K50: =A50 -> Te Hopai | L50: A | M50: Te HopaiA
A51: Moonmoot Pump | B51: 28425.04119 | D51: A | E51: 124.823 | F51: =E51*G51 -> 28425.04119 | G51: 227.722785 | H51: =F51 -> 28425.04119 | I51: =B51-H51 -> 0 | K51: =A51 -> Moonmoot Pump | L51: A | M51: Moonmoot PumpA
A52: Onoke Pump | B52: 51805.57008 | D52: A | E52: 72.61504 | F52: =E52*G52 -> 51805.57008 | G52: 713.42755 | H52: =F52 -> 51805.57008 | I52: =B52-H52 -> 0 | K52: =A52 -> Onoke Pump | L52: A | M52: Onoke PumpA
A53: Pouawha Pump | B53: 103575.0397 | D53: A | E53: 109.5447 | F53: =E53*G53 -> 103575.0397 | G53: 945.5048 | H53: =F53 -> 103575.0397 | I53: =B53-H53 -> 0 | K53: =A53 -> Pouawha Pump | L53: A | M53: Pouawha PumpA
A54: Gravity Drainage | L54: 0 | M54: 0
A55: Okawa | B55: 2118.420165 | D55: A | E55: 7.5121 | F55: =E55*G55 -> 2118.420165 | G55: 282.0010603 | H55: =F55 -> 2118.420165 | I55: =B55-H55 -> 0 | K55: =A55 -> Okawa | L55: A | M55: OkawaA
A56: Taumata | B56: 1966.063453 | D56: A | E56: 6.7664 | F56: 1966.063453 | G56: 290.5627 | H56: =F56 -> 1966.063453 | I56: =B56-H56 -> 0 | K56: =A56 -> Taumata | L56: A | M56: TaumataA
A57: East Pukio | B57: 3376.234327 | D57: A | E57: 29.7453 | F57: 3376.234327 | G57: 113.5048 | H57: =F57 -> 3376.234327 | I57: 0 | K57: =A57 -> East Pukio | L57: A | M57: East PukioA
A58: Longbush | B58: 4745.432023 | D58: A | E58: 16.8907 | F58: 3684.64407 | G58: 218.1463214 | H58: =SUM(F58:F59) -> 4745.432023 | I58: 0 | K58: =A58 -> Longbush | L58: A | M58: LongbushA
D59: B | E59: 8.4453 | F59: 1060.787953 | G59: 125.6069 | I59: 0 | K59: =K58 -> Longbush | L59: B | M59: LongbushB
A60: Otahoua | B60: 3215.456864 | D60: A | E60: 34.6813 | F60: 3215.456864 | G60: 92.7144272 | H60: =F60 -> 3215.456864 | I60: =B60-H60 -> 0 | K60: =A60 -> Otahoua | L60: A | M60: OtahouaA
A61: Te Whiti | B61: 1444.85158 | D61: A | E61: 10.2273 | F61: 1444.85158 | G61: 141.274 | H61: =F61 -> 1444.85158 | I61: 0 | K61: =A61 -> Te Whiti | L61: A | M61: Te WhitiA
A62: Ahikouka | B62: 3266.953989 | D62: A | E62: 29.1128 | F62: 3266.953989 | G62: 112.2171 | H62: =F62 -> 3266.953989 | I62: 0 | K62: =A62 -> Ahikouka | L62: A | M62: AhikoukaA
A63: Battersea | B63: 11074.43844 | D63: A | E63: 16.26567 | F63: =E63*G63 -> 2743.712734 | G63: 168.6812 | H63: =SUM(F63:F68) -> 11074.43844 | I63: 0 | K63: =A63 -> Battersea | L63: A | M63: BatterseaA
D64: B | E64: 13.46728 | F64: 2630.977917 | G64: 195.3607497 | K64: =K63 -> Battersea | L64: B | M64: BatterseaB
D65: C | E65: 10.494 | F65: 3328.981187 | G65: 317.2271 | K65: =K64 -> Battersea | L65: =D65 -> C | M65: BatterseaC
D66: D | E66: 6.2964 | F66: =E66*G66 -> 960.7859356 | G66: 152.5929 | K66: =K65 -> Battersea | L66: D | M66: =K66&L66 -> BatterseaD
D67: E | E67: 5.4219 | F67: 1040.386703 | G67: 191.886 | K67: =K66 -> Battersea | L67: E | M67: =K67&L67 -> BatterseaE
D68: F | E68: 5.247 | F68: 369.5939577 | G68: 70.4391 | K68: =K67 -> Battersea | L68: F | M68: =K68&L68 -> BatterseaF
A69: Manaia | B69: 4253.652041 | D69: A | E69: 24.3769 | F69: 4253.652041 | G69: 174.4952 | H69: =F69 -> 4253.652041 | I69: =B69-H69 -> 0 | K69: =A69 -> Manaia | L69: A | M69: =K69&L69 -> ManaiaA
A70: Whakawiriwiri | B70: 8866.693115 | D70: A | E70: 12.2864 | F70: 8866.693115 | G70: 721.6673 | H70: =F70 -> 8866.693115 | I70: =B70-H70 -> 0 | K70: =A70 -> Whakawiriwiri | L70: A | M70: =K70&L70 -> WhakawiriwiriA
A71: Hectare based Scheme Rates | B71: =SUM(B9:B70) -> 1372270.818 | F71: =SUM(F8:F70) -> 1372270.822 | H71: =SUM(H8:H70) -> 1372270.822 | I71: =SUM(I8:I70) -> -0.004429085979
H72: =+H71-F71 -> 0
A74: Schemes recovered based on capital value
A75: Rate | B75: Total rates | C75: Properties | D75: CV | E75: ECV | F75: Cents per $ | H75: Scheme total | I75: Check
A77: Te Kauru schemes (targeted portion only) | B77: 298779.21 | C77: 12959 | D77: 8806809555 | E77: n/a | F77: =B77/D77*100 -> 0.003392593063 | H77: =F77*D77/100 -> 298779.21 | I77: =B77-H77 -> 0
A80: Waiohine FMP scheme (targeted portion only) | B80: 9691.43 | C80: 1270 | D80: 1017857000 | E80: n/a | F80: =B80/D80*100 -> 0.0009521406249 | H80: =F80*D80/100 -> 9691.43 | I80: =B80-H80 -> 0
A84: Land management rate (targeted portion only)
A85: Masterton district | B85: =E85/$E$88*$B$88 -> 0 | C85: =INDEX('Capital values'!$F$57:$F$65,MATCH(A85,'Capital values'!$A$8:$A$16,0)) -> 13074 | D85: =INDEX('Capital values'!$F$8:$F$16,MATCH(A85,'Capital values'!$A$8:$A$16,0)) -> 8787884155 | E85: =INDEX('Capital values'!$H$8:$H$16,MATCH(A85,'Capital values'!$A$8:$A$16,0)) -> 11263219050 | F85: =B85/D85*100 -> 0 | H85: =F85*D85/100 -> 0 | I85: =B85-H85 -> 0
A86: Carterton district | B86: =E86/$E$88*$B$88 -> 0 | C86: =INDEX('Capital values'!$F$57:$F$65,MATCH(A86,'Capital values'!$A$8:$A$16,0)) -> 5010 | D86: =INDEX('Capital values'!$F$8:$F$16,MATCH(A86,'Capital values'!$A$8:$A$16,0)) -> 3729014800 | E86: =INDEX('Capital values'!$H$8:$H$16,MATCH(A86,'Capital values'!$A$8:$A$16,0)) -> 4976485118 | F86: =B86/D86*100 -> 0 | H86: =F86*D86/100 -> 0 | I86: =B86-H86 -> 0
A87: South Wairarapa district | B87: =E87/$E$88*$B$88 -> 0 | C87: =INDEX('Capital values'!$F$57:$F$65,MATCH(A87,'Capital values'!$A$8:$A$16,0)) -> 7133 | D87: =INDEX('Capital values'!$F$8:$F$16,MATCH(A87,'Capital values'!$A$8:$A$16,0)) -> 6354690200 | E87: =INDEX('Capital values'!$H$8:$H$16,MATCH(A87,'Capital values'!$A$8:$A$16,0)) -> 8115723950 | F87: =B87/D87*100 -> 0 | H87: =F87*D87/100 -> 0 | I87: =B87-H87 -> 0
A88: Total | B88: 0 | C88: =SUM(C85:C87) -> 25217 | D88: =SUM(D85:D87) -> 18871589155 | E88: =SUM(E85:E87) -> 24355428118 | F88: =B88/D88*100 -> 0 | H88: =SUM(H85:H87) -> 0 | I88: =B88-H88 -> 0
A91: Total Scheme Rates | B91: =SUM(B88,B80,B77,B71) -> 1680741.458 | H91: =SUM(H88,H80,H77,H71) -> 1680741.462
A92: Checks | B92: =IF(ABS(INDEX(ESSbase!$G$8:$G$25,MATCH("Special Rates",ESSbase!$B$8:$B$25,0),)-B91)>tolerance_dollar,1,0) -> 0 | F92: =IF(ABS(H71-F71)>tolerance_dollar,1,0) -> 0 | H92: =IF(ABS(INDEX(ESSbase!$G$8:$G$25,MATCH("Special Rates",ESSbase!$B$8:$B$25,0),)-H91)>tolerance_dollar,1,0) -> 0
A95: Catchment Schemes | B95: $GST Excl | E95: Rate Base | K95: 121598100
A96: Awhea-Opouawe Catchment Scheme | B96: =+B23 -> 22790.88 | E96: land value | F96: $121,598,100 x 0.007516 cents | H96: =22790.88-H97 -> 9138.93 | K96: =+H96/K95*100 -> 0.007515684867
E97: charge per dwelling | F97: $140.02 / $70.09 | H97: 13651.95 | J97: =+H97/96 -> 142.2078125 | K97: =K95*K96/100 -> 9138.93
E98: GST Inclusive | F98: $161.02 / $80.60 | H98: =SUM(H96:H97) -> 22790.88
A100: Mataikona Whakataki Catchment Scheme | B100: =+B34 -> 6817.74 | E100: land value within scheme area | F100: $140,425,000 x 0.02801 cents | H100: =B100-H101 -> 3933.34 | K100: 140425000
E101: charge per dwelling | F101: 23.45 | H101: 2884.4 | J101: =+H101/233 -> 12.37939914 | K101: =+H100/K100*100 -> 0.002801025458
H102: =SUM(H100:H101) -> 6817.74 | K102: =K100*K101/100 -> 3933.34
A104: Maungaraki Catchment Scheme | B104: =+B36 -> 7111.13 | E104: Class A | F104: 1.030438111 | G104: 3305.470824 | H104: =F104*G104 -> 3406.083113
E105: Class B | F105: 0.4849120524 | G105: 2972.005702 | H105: =F105*G105 -> 1441.161385
E106: Charge per dwelling | F106: 36.36840393 | G106: 19 | H106: =F106*G106 -> 690.9996746
E107: River frontage | F107: 0.03394384367 | G107: 46338 | H107: =F107*G107 -> 1572.889828
H108: =SUM(H104:H107) -> 7111.134

Sheet >>District wide rates
L7: New category to be added in GL
L8: New category to be added in GL, was "River Mgmt Rates"

Sheet Gen
A1: Wellington Regional Council
A2: ="General rate "&year_current -> General rate 2022/23
A3: Printed: | B3: =NOW() -> 2023-01-19T08:30:06.840
A4: =check_total -> 0
B6: CV | C6: ="ECV "&year_current -> ECV 2022/23 | D6: General Rate | E6: Rates sought
B7: $ | C7: $ | D7: $ | E7: Cents per $
A9: By TA
A10: Wellington city | B10: =INDEX(capital_values,MATCH($A10&"district wide",capital_values_rows,0),MATCH(B$6&" "&year_current,capital_values_header,0)) -> 114751871250 | C10: =INDEX(capital_values,MATCH($A10&"district wide",capital_values_rows,0),MATCH(C$6,capital_values_header,0)) -> 119439703683 | D10: =C10/C$19*D$19 -> 34594985.81 | E10: =D10/B10*100 -> 0.03014764416
A11: Hutt city | B11: 29131948500 | C11: 44154024498 | D11: =C11/C$19*D$19 -> 12788945.42 | E11: =D11/B11*100 -> 0.04390006873
A12: Upper Hutt city | B12: 11717909800 | C12: 17817751914 | D12: 5160803.783 | E12: =D12/B12*100 -> 0.04404201663
A13: Porirua city | B13: 14623609200 | C13: 21241698999 | D13: 6152529.291 | E13: 0.04207257734
A14: Kāpiti Coast district | B14: 19783157650 | C14: 26169483904 | D14: 7579832.303 | E14: 0.03831457261
A15: Masterton district | B15: 8787884155 | C15: 11263219050 | D15: 3262323.09 | E15: 0.03712296421
A16: Carterton district | B16: 3729014800 | C16: 4976485118 | D16: 1441408.734 | E16: 0.03865387538
A17: South Wairarapa district | B17: 6354690200 | C17: 8115723950 | D17: 2350670.223 | E17: 0.03699110655
A18: Tararua district | B18: 15976500 | C18: 21686475 | D18: 6281.355962 | E18: 0.03931622046
A19: Region wide | B19: =SUM(B10:B18) -> 208896062055 | C19: =SUM(C10:C18) -> 253199777591 | D19: =+ESSbase!G8 -> 73337780 | E19: 0.03510730613
B22: CV | C22: ECV | D22: differetial | E22: ECV multiplied | F22: General rate | G22: Rates sought
A23: Wellington city differentials | B23: $ | C23: $ | E23: $ | F23: $ | G23: Cents/$
A24: Wellington cityWellington CBD | B24: ='Capital values'!F19 -> 13133427700 | C24: =B24/$B$28*$C$10 -> 1.366995323e+10 | D24: 1.7 | E24: =C24*D24 -> 2.323892049e+10 | F24: =E24/$E$28*$D$10 -> 6132891.786 | G24: =F24/B24*100 -> 0.04669681005
A25: Wellington cityBusiness | B25: ='Capital values'!F20 -> 6659900150 | C25: =B25/$B$28*$C$10 -> 6931969752 | D25: 1.3 | E25: =C25*D25 -> 9011560677 | F25: =E25/$E$28*$D$10 -> 2378205.411 | G25: =F25/B25*100 -> 0.03570932533
A26: Wellington cityResidential | B26: ='Capital values'!F21 -> 93657459050 | C26: =B26/$B$28*$C$10 -> 9.748354458e+10 | D26: 1 | E26: =C26*D26 -> 9.748354458e+10 | F26: =E26/$E$28*$D$10 -> 25726497.5 | G26: =F26/B26*100 -> 0.02746871179
A27: Wellington cityRural | B27: ='Capital values'!F22 -> 1301084350 | C27: =B27/$B$28*$C$10 -> 1354236123 | D27: 1 | E27: =C27*D27 -> 1354236123 | F27: =E27/$E$28*$D$10 -> 357391.1103 | G27: =F27/B27*100 -> 0.02746871179
A28: Total Upper Hutt city | B28: =SUM(B24:B27) -> 114751871250 | C28: =SUM(C24:C27) -> 1.194397037e+11 | E28: =SUM(E24:E27) -> 1.310882619e+11 | F28: =SUM(F24:F27) -> 34594985.81 | G28: =F28/B28*100 -> 0.03014764416
A33: Upper Hutt breakdown
A34: Trentham Military Camp | B34: =SUMIFS('UHCC Adjustments'!$D$9:$D$27,'UHCC Adjustments'!$B$9:$B$27,"Total",'UHCC Adjustments'!$C$9:$C$27,A34) -> 109354000 | D34: =+D12*'UHCC Adjustments'!$E$34 -> 41668.42667 | E34: =D34/B34*100 -> 0.03810416324
A35: Rest of Upper Hutt city | B35: =SUMIFS('UHCC Adjustments'!$D$9:$D$27,'UHCC Adjustments'!$B$9:$B$27,"Total",'UHCC Adjustments'!$C$9:$C$27,A35) -> 11608555800 | D35: =+D12-D34 -> 5119135.356 | E35: =D35/B35*100 -> 0.04409795193
A36: Total Upper Hutt city | B36: =+B35+B34 -> 11717909800 | D36: =+D35+D34 -> 5160803.783 | E36: =D36/B36*100 -> 0.04404201663
A39: Check Upper Hutt total | B39: =B36-B12 -> 0 | D39: =D36-D12 -> 0
A40: Check totals | B40: =B19-SUM(B10:B18) -> 0 | C40: =C19-SUM(C10:C18) -> 0 | D40: =D19-SUM(D10:D18) -> 0

Sheet Remission
A1: Wellington Regional Council
A2: General rate 2022/23
A3: Printed: | B3: 2022-04-04
A4: All error checks ok
B6: CV | C6: ECV 2022/23 | D6: Remission of Regional Rates | E6: Rates sought
B7: $ | C7: $ | D7: $ | E7: Cents per $
A9: By TA
A10: Wellington city | B10: =INDEX(capital_values,MATCH($A10&"district wide",capital_values_rows,0),MATCH(B$6&" "&year_current,capital_values_header,0)) -> 114751871250 | C10: =INDEX(capital_values,MATCH($A10&"district wide",capital_values_rows,0),MATCH(C$6,capital_values_header,0)) -> 119439703683 | D10: =C10/C$19*D$19 -> 0 | E10: =D10/B10*100 -> 0
A11: Hutt city | B11: 29131948500 | C11: 44154024498 | D11: =C11/C$19*D$19 -> 0 | E11: =D11/B11*100 -> 0
A12: Upper Hutt city | B12: 11717909800 | C12: 17817751914 | D12: 0 | E12: 0
A13: Porirua city | B13: 14623609200 | C13: 21241698999 | D13: 0 | E13: 0
A14: Kāpiti Coast district | B14: 19783157650 | C14: 26169483904 | D14: 0 | E14: 0
A15: Masterton district | B15: 8787884155 | C15: 11263219050 | D15: 0 | E15: 0
A16: Carterton district | B16: 3729014800 | C16: 4976485118 | D16: 0 | E16: 0
A17: South Wairarapa district | B17: 6354690200 | C17: 8115723950 | D17: 0 | E17: 0
A18: Tararua district | B18: 15976500 | C18: 21686475 | D18: 0 | E18: 0
A19: Region wide | B19: =SUM(B10:B18) -> 208896062055 | C19: =SUM(C10:C18) -> 253199777591 | D19: =+ESSbase!G9 -> 0 | E19: 0
B22: CV | C22: ECV | D22: differetial | E22: ECV multiplied | F22: General rate | G22: Rates sought
A23: Wellington city differentials | B23: $ | C23: $ | E23: $ | F23: $ | G23: Cents/$
A24: Wellington cityWellington CBD | B24: ='Capital values'!F19 -> 13133427700 | C24: =B24/$B$28*$C$10 -> 1.366995323e+10 | D24: 1.7 | E24: =C24*D24 -> 2.323892049e+10 | F24: =E24/$E$28*$D$10 -> 0 | G24: =F24/B24*100 -> 0
A25: Wellington cityBusiness | B25: ='Capital values'!F20 -> 6659900150 | C25: =B25/$B$28*$C$10 -> 6931969752 | D25: 1.3 | E25: =C25*D25 -> 9011560677 | F25: =E25/$E$28*$D$10 -> 0 | G25: =F25/B25*100 -> 0
A26: Wellington cityResidential | B26: ='Capital values'!F21 -> 93657459050 | C26: =B26/$B$28*$C$10 -> 9.748354458e+10 | D26: 1 | E26: =C26*D26 -> 9.748354458e+10 | F26: =E26/$E$28*$D$10 -> 0 | G26: =F26/B26*100 -> 0
A27: Wellington cityRural | B27: ='Capital values'!F22 -> 1301084350 | C27: =B27/$B$28*$C$10 -> 1354236123 | D27: 1 | E27: =C27*D27 -> 1354236123 | F27: =E27/$E$28*$D$10 -> 0 | G27: =F27/B27*100 -> 0
A28: Total Upper Hutt city | B28: =SUM(B24:B27) -> 114751871250 | C28: =SUM(C24:C27) -> 1.194397037e+11 | E28: =SUM(E24:E27) -> 1.310882619e+11 | F28: =SUM(F24:F27) -> 0 | G28: =F28/B28*100 -> 0
A33: Upper Hutt breakdown
A34: Trentham Military Camp | B34: =SUMIFS('UHCC Adjustments'!$D$9:$D$27,'UHCC Adjustments'!$B$9:$B$27,"Total",'UHCC Adjustments'!$C$9:$C$27,A34) -> 109354000 | D34: =+D12*'UHCC Adjustments'!$E$34 -> 0 | E34: =D34/B34*100 -> 0
A35: Rest of Upper Hutt city | B35: =SUMIFS('UHCC Adjustments'!$D$9:$D$27,'UHCC Adjustments'!$B$9:$B$27,"Total",'UHCC Adjustments'!$C$9:$C$27,A35) -> 11608555800 | D35: =D12-D34 -> 0 | E35: =D35/B35*100 -> 0
A36: Total Upper Hutt city | B36: =SUM(B34:B35) -> 11717909800 | D36: =SUM(D34:D35) -> 0 | E36: =D36/B36*100 -> 0
A39: Check Upper Hutt total | B39: OK | D39: OK
A40: Check totals | B40: OK | C40: OK | D40: OK

Sheet River management
A1: Wellington Regional Council
A2: ="River management rate "&year_current -> River management rate 2022/23
A3: Printed: | B3: =NOW() -> 2023-01-19T08:30:06.840
A4: =check_total -> 0
B6: CV | C6: River management rate | D6: Rates sought
B7: $ | C7: $ | D7: Cents per $
A9: By TA
A10: Wellington city | B10: =INDEX(capital_values,MATCH($A10&"district wide",capital_values_rows,0),MATCH(B$6&" "&year_current,capital_values_header,0)) -> 114751871250 | C10: =INDEX(Control!$C$110:$C$121,MATCH(A10,Control!$A$110:$A$121,0),) -> 55131.48 | D10: =C10/B10*100 -> 4.804407928e-05
A11: Hutt city | B11: 29131948500 | C11: =INDEX(Control!$C$110:$C$121,MATCH(A11,Control!$A$110:$A$121,0),) -> 5098043.33 | D11: 0.01749983641
A12: Upper Hutt city | B12: 11717909800 | C12: =INDEX(Control!$C$110:$C$121,MATCH(A12,Control!$A$110:$A$121,0),) -> 1136721.52 | D12: 0.00970071915
A13: Porirua city | B13: 14623609200 | C13: =INDEX(Control!$C$110:$C$121,MATCH(A13,Control!$A$110:$A$121,0),) -> 45883.36 | D13: 0.0003137622141
A14: Kāpiti Coast district | B14: 19783157650 | C14: =INDEX(Control!$C$110:$C$121,MATCH(A14,Control!$A$110:$A$121,0),) -> 1513486.56 | D14: 0.007650379109
A15: Masterton district | B15: 8787884155 | C15: =INDEX(Control!$C$110:$C$121,MATCH(A15,Control!$A$110:$A$121,0),) -> 0 | D15: =C15/B15*100 -> 0
A16: Carterton district | B16: 3729014800 | C16: =INDEX(Control!$C$110:$C$121,MATCH(A16,Control!$A$110:$A$121,0),) -> 25282.96 | D16: 0.0006780064268
A17: South Wairarapa district | B17: 6354690200 | C17: =INDEX(Control!$C$110:$C$121,MATCH(A17,Control!$A$110:$A$121,0),) -> 0 | D17: 0
A18: Tararua district | B18: 15976500 | C18: =INDEX(Control!$C$110:$C$121,MATCH(A18,Control!$A$110:$A$121,0),) -> 0 | D18: 0
A19: Region wide | B19: =SUM(B10:B18) -> 208896062055 | C19: =INDEX(ess_base_estract,MATCH(C6,ESSbase!$B$8:$B$25,0),MATCH(year_current,ESSbase!$F$6:$G$6,0)) -> 7874549.21 | D19: 0.003769601558
A22: Upper Hutt breakdown
A23: Trentham Military Camp | B23: =SUMIFS('UHCC Adjustments'!$D$9:$D$27,'UHCC Adjustments'!$B$9:$B$27,"Total",'UHCC Adjustments'!$C$9:$C$27,A23) -> 109354000 | C23: =+C12*'UHCC Adjustments'!$E$34 -> 9177.910903 | D23: =C23/B23*100 -> 0.008392844252
A24: Rest of Upper Hutt city | B24: =SUMIFS('UHCC Adjustments'!$D$9:$D$27,'UHCC Adjustments'!$B$9:$B$27,"Total",'UHCC Adjustments'!$C$9:$C$27,A24) -> 11608555800 | C24: =+C12-C23 -> 1127543.609 | D24: =C24/B24*100 -> 0.00971303949
A25: Total Upper Hutt city | B25: =+B24+B23 -> 11717909800 | C25: =+C24+C23 -> 1136721.52 | D25: =C25/B25*100 -> 0.00970071915
A28: Non district wide
A29: Greytown River Management Rate | B29: =INDEX('Capital values'!$F$48:$F$49,MATCH("Greytown Urban -CV",'Capital values'!$A$48:$A$49,0),) -> 1131557500 | C29: =INDEX(Control!$D$125:$D$126,MATCH(A29,Control!$A$125:$A$126,0),) -> 98709.62 | D29: =C29/B29*100 -> 0.008723341059
A30: Donalds Creek Stopbank River Management Rate | B30: =INDEX('Capital values'!$F$48:$F$49,MATCH("Featherston Urban - LV",'Capital values'!$A$48:$A$49,0),) -> 282168500 | C30: =INDEX(Control!$D$125:$D$126,MATCH(A30,Control!$A$125:$A$126,0),) -> 2788.75 | D30: =C30/B30*100 -> 0.0009883278963
A31: Total non-district wide rates | C31: =INDEX(ess_base_estract,MATCH(C6&" - Non district Wide",ESSbase!$B$8:$B$25,0),MATCH(year_current,ESSbase!$F$6:$G$6,0)) -> 101498.37
A34: Check Upper Hutt total | B34: =B25-B12 -> 0 | C34: =C25-C12 -> 0
A35: Check Non district Wide total | C35: =IF(ABS(C31-SUM(C29:C30))>tolerance_dollar,1,0) -> 0
A36: Check totals | B36: =B19-SUM(B10:B18) -> 0 | C36: =IF(ABS(C19-SUM(C10:C18))>tolerance_dollar,1,0) -> 0

Sheet Stadium
A1: Wellington Regional Council
A2: ="Stadium purposes rate "&year_current -> Stadium purposes rate 2022/23
A3: Printed: | C3: =NOW() -> 2023-01-19T08:30:06.840
A4: =check_total -> 0
A6: =Control!A66 -> TA full name | B6: =Control!B66 -> Rating area | C6: =Control!C66 -> Category group | D6: =Control!D66 -> Concatenated name | E6: CV | F6: ECV | G6: Differential | H6: ECV multiplied | I6: Stadium purposes rate | J6: Rates sought
A7: =Control!A52 -> 0 | C7: =Control!B52 -> 0 | D7: =Control!C52 -> 0 | E7: $ | F7: $ | G7: # | H7: # | I7: $ | J7: Cents per $
A9: By TA
A10: =Control!A42 -> Wellington city | C10: =Control!B42 -> District wide | D10: =Control!C42 -> Wellington cityDistrict wide | E10: =INDEX(capital_values,MATCH($D10,capital_values_rows,0),MATCH(E$6&" "&year_current,capital_values_header,0)) -> 114751871250 | F10: 119439703683 | I10: =SUMIF($A$23:$A$49,$A10,$I$23:$I$49) -> 0 | J10: =I10/E10*100 -> 0
A11: =Control!A43 -> Hutt city | C11: =Control!B43 -> District wide | D11: =Control!C43 -> Hutt cityDistrict wide | E11: 29131948500 | F11: 44154024498 | I11: 0 | J11: 0
A12: =Control!A44 -> Upper Hutt city | C12: =Control!B44 -> District wide | D12: =Control!C44 -> Upper Hutt cityDistrict wide | E12: 11717909800 | F12: 17817751914 | I12: 0 | J12: 0
A13: =Control!A45 -> Porirua city | C13: =Control!B45 -> District wide | D13: =Control!C45 -> Porirua cityDistrict wide | E13: 14623609200 | F13: 21241698999 | I13: 0 | J13: 0
A14: =Control!A46 -> Kāpiti Coast district | C14: =Control!B46 -> District wide | D14: =Control!C46 -> Kāpiti Coast districtDistrict wide | E14: 19783157650 | F14: 26169483904 | I14: 0 | J14: 0
A15: =Control!A47 -> Masterton district | C15: =Control!B47 -> District wide | D15: =Control!C47 -> Masterton districtDistrict wide | E15: 8787884155 | F15: 11263219050 | I15: 0 | J15: 0
A16: =Control!A48 -> Carterton district | C16: =Control!B48 -> District wide | D16: =Control!C48 -> Carterton districtDistrict wide | E16: 3729014800 | F16: 4976485118 | I16: 0 | J16: 0
A17: =Control!A49 -> South Wairarapa district | C17: =Control!B49 -> District wide | D17: =Control!C49 -> South Wairarapa districtDistrict wide | E17: 6354690200 | F17: 8115723950 | I17: 0 | J17: 0
A18: =Control!A50 -> Tararua district | C18: =Control!B50 -> District wide | D18: =Control!C50 -> Tararua districtDistrict wide | E18: 15976500 | F18: 21686475 | I18: 0 | J18: 0
A19: Region wide | E19: =SUM(E10:E18) -> 208896062055 | F19: =SUM(F10:F18) -> 253199777591 | I19: =SUM(I10:I18) -> 0
A22: By TA & Category
A23: =Control!A67 -> Wellington city | B23: =Control!B67 -> Wellington city | C23: =Control!C67 -> Wellington CBD | D23: =Control!D67 -> Wellington cityWellington CBD | E23: =INDEX(capital_values,MATCH($D23,capital_values_rows,0),MATCH(E$6&" "&year_current,capital_values_header,0)) -> 13133427700 | F23: =INDEX($F$10:$F$18,MATCH(A23,$A$10:$A$18,0),)/INDEX($E$10:$E$18,MATCH(A23,$A$10:$A$18,0),)*E23 -> 1.366995323e+10 | G23: =INDEX(stadium_rate_differentials,MATCH($D23,concat_rating_category_stadium,0),) -> 2 | H23: =F23*G23 -> 2.733990646e+10 | I23: =I$50*H23/H$50 -> 0 | J23: =I23/E23*100 -> 0
A24: =Control!A68 -> Wellington city | B24: =Control!B68 -> Wellington city | C24: =Control!C68 -> Business | D24: =Control!D68 -> Wellington cityBusiness | E24: 6659900150 | F24: =INDEX($F$10:$F$18,MATCH(A24,$A$10:$A$18,0),)/INDEX($E$10:$E$18,MATCH(A24,$A$10:$A$18,0),)*E24 -> 6931969752 | G24: 1.2 | H24: =F24*G24 -> 8318363702 | I24: 0 | J24: 0
A25: =Control!A69 -> Wellington city | B25: =Control!B69 -> Wellington city | C25: =Control!C69 -> Residential | D25: =Control!D69 -> Wellington cityResidential | E25: 93657459050 | F25: 9.748354458e+10 | G25: 1.2 | H25: 1.169802535e+11 | I25: 0 | J25: 0
A26: =Control!A70 -> Wellington city | B26: =Control!B70 -> Wellington city | C26: =Control!C70 -> Rural | D26: =Control!D70 -> Wellington cityRural | E26: 1301084350 | F26: 1354236123 | G26: 1.2 | H26: 1625083348 | I26: 0 | J26: 0
A27: =Control!A71 -> Hutt city | B27: =Control!B71 -> Hutt city | C27: =Control!C71 -> Business | D27: =Control!D71 -> Hutt cityBusiness | E27: 4905894500 | F27: 7435650449 | G27: 1 | H27: 7435650449 | I27: 0 | J27: 0
A28: =Control!A72 -> Hutt city | B28: =Control!B72 -> Hutt city | C28: =Control!C72 -> Residential | D28: =Control!D72 -> Hutt cityResidential | E28: =INDEX(capital_values,MATCH($D28,capital_values_rows,0),MATCH(E$6&" "&year_current,capital_values_header,0)) -> 23837441000 | F28: 3.612937026e+10 | G28: 1 | H28: 3.612937026e+10 | I28: 0 | J28: 0
A29: =Control!A73 -> Hutt city | B29: =Control!B73 -> Hutt city | C29: =Control!C73 -> Rural | D29: =Control!D73 -> Hutt cityRural | E29: 388613000 | F29: 589003784.7 | G29: 1 | H29: 589003784.7 | I29: 0 | J29: 0
A30: =Control!A74 -> Upper Hutt city | B30: =Control!B74 -> Upper Hutt city | C30: =Control!C74 -> Business | D30: =Control!D74 -> Upper Hutt cityBusiness | E30: 1448246700 | F30: 2202141922 | G30: 1 | H30: 2202141922 | I30: 0 | J30: 0
A31: =Control!A75 -> Upper Hutt city | B31: =Control!B75 -> Upper Hutt city | C31: =Control!C75 -> Residential | D31: =Control!D75 -> Upper Hutt cityResidential | E31: 9098976100 | F31: 1.383551347e+10 | G31: 1 | H31: 1.383551347e+10 | I31: 0 | J31: 0
A32: =Control!A76 -> Upper Hutt city | B32: =Control!B76 -> Upper Hutt city | C32: =Control!C76 -> Rural | D32: =Control!D76 -> Upper Hutt cityRural | E32: 1170687000 | F32: 1780096527 | G32: 1 | H32: 1780096527 | I32: 0 | J32: 0
A33: =Control!A77 -> Porirua city | B33: =Control!B77 -> Porirua city | C33: =Control!C77 -> Business | D33: =Control!D77 -> Porirua cityBusiness | E33: 1400176000 | F33: 2033842448 | G33: 1 | H33: 2033842448 | I33: 0 | J33: 0
A34: =Control!A78 -> Porirua city | B34: =Control!B78 -> Porirua city | C34: =Control!C78 -> Residential | D34: =Control!D78 -> Porirua cityResidential | E34: 12370577500 | F34: 1.796903077e+10 | G34: 1 | H34: 1.796903077e+10 | I34: 0 | J34: =I34/E34*100 -> 0
A35: =Control!A79 -> Porirua city | B35: =Control!B79 -> Porirua city | C35: =Control!C79 -> Rural | D35: =Control!D79 -> Porirua cityRural | E35: 852855700 | F35: 1238825780 | G35: 1 | H35: 1238825780 | I35: 0 | J35: 0
A36: =Control!A80 -> Kāpiti Coast district | B36: =Control!B80 -> Kāpiti Coast district | C36: =Control!C80 -> Business | D36: =Control!D80 -> Kāpiti Coast districtBusiness | E36: 1775736500 | F36: 2348973232 | G36: 0.5 | H36: 1174486616 | I36: 0 | J36: 0
A37: =Control!A81 -> Kāpiti Coast district | B37: =Control!B81 -> Kāpiti Coast district excl Ōtaki | C37: =Control!C81 -> Residential | D37: =Control!D81 -> Kāpiti Coast district excl Ōtaki Residential | E37: 13678059800 | F37: 1.80935608e+10 | G37: 0.5 | H37: 9046780400 | I37: 0 | J37: 0
A38: =Control!A82 -> Kāpiti Coast district | B38: =Control!B82 -> Ōtaki rating area | C38: =Control!C82 -> Residential | D38: =Control!D82 -> Ōtaki rating areaResidential | E38: 1671453400 | F38: 2211025844 | G38: 0.5 | H38: 1105512922 | I38: 0 | J38: 0
A39: =Control!A83 -> Kāpiti Coast district | B39: =Control!B83 -> Kāpiti Coast district | C39: =Control!C83 -> Rural | D39: =Control!D83 -> Kāpiti Coast districtRural | E39: 2657907950 | F39: 3515924027 | G39: 0.5 | H39: 1757962014 | I39: 0 | J39: 0
A40: =Control!A84 -> Masterton district | B40: =Control!B84 -> Masterton district | C40: =Control!C84 -> Business | D40: =Control!D84 -> Masterton districtBusiness | E40: 736487600 | F40: 943938383.8 | G40: 0.5 | H40: 471969191.9 | I40: 0 | J40: 0
A41: =Control!A85 -> Masterton district | B41: =Control!B85 -> Masterton district | C41: =Control!C85 -> Residential | D41: =Control!D85 -> Masterton districtResidential | E41: 4080427400 | F41: 5229785329 | G41: 0.5 | H41: 2614892664 | I41: 0 | J41: 0
A42: =Control!A86 -> Masterton district | B42: =Control!B86 -> Masterton district | C42: =Control!C86 -> Rural | D42: =Control!D86 -> Masterton districtRural | E42: 3970969155 | F42: 5089495338 | G42: 0.5 | H42: 2544747669 | I42: 0 | J42: 0
A43: =Control!A87 -> Carterton district | B43: =Control!B87 -> Carterton district | C43: =Control!C87 -> Business | D43: =Control!D87 -> Carterton districtBusiness | E43: 133894500 | F43: 178686334.7 | G43: 0.5 | H43: 89343167.35 | I43: 0 | J43: 0
A44: =Control!A88 -> Carterton district | B44: =Control!B88 -> Carterton district | C44: =Control!C88 -> Residential | D44: =Control!D88 -> Carterton districtResidential | E44: 1318035500 | F44: 1758958975 | G44: 0.5 | H44: 879479487.6 | I44: 0 | J44: 0
A45: =Control!A89 -> Carterton district | B45: =Control!B89 -> Carterton district | C45: =Control!C89 -> Rural | D45: =Control!D89 -> Carterton districtRural | E45: 2277084800 | F45: 3038839808 | G45: 0.5 | H45: 1519419904 | I45: 0 | J45: 0
A46: =Control!A90 -> South Wairarapa district | B46: =Control!B90 -> South Wairarapa district | C46: =Control!C90 -> Business | D46: =Control!D90 -> South Wairarapa districtBusiness | E46: 287242000 | F46: 366843497.6 | G46: 0.5 | H46: 183421748.8 | I46: 0 | J46: 0
A47: =Control!A91 -> South Wairarapa district | B47: =Control!B91 -> South Wairarapa district | C47: =Control!C91 -> Residential | D47: =Control!D91 -> South Wairarapa districtResidential | E47: 2151921500 | F47: 2748269437 | G47: 0.5 | H47: 1374134718 | I47: 0 | J47: 0
A48: =Control!A92 -> South Wairarapa district | B48: =Control!B92 -> South Wairarapa district | C48: =Control!C92 -> Rural | D48: =Control!D92 -> South Wairarapa districtRural | E48: 3915526700 | F48: 5000611016 | G48: 0.5 | H48: 2500305508 | I48: 0 | J48: 0
A49: =Control!A93 -> Tararua district | B49: =Control!B93 -> Tararua district | C49: =Control!C93 -> Rural | D49: =Control!D93 -> Tararua districtRural | E49: 15976500 | F49: 21686475 | G49: 0.5 | H49: 10843237.5 | I49: 0 | J49: 0
A50: Region wide | E50: =SUM(E23:E49) -> 208896062055 | F50: =SUM(F23:F49) -> 2.531997776e+11 | H50: =SUM(H23:H49) -> 2.627503817e+11 | I50: =INDEX(ess_base_estract,MATCH(I6,ESSbase!$B$8:$B$25,0),MATCH(year_current,ESSbase!$F$6:$G$6,0)) -> 0
A53: Upper Hutt breakdown
A54: =$A$12 -> Upper Hutt city | B54: Trentham Military Camp | C54: Business | D54: =B54&C54 -> Trentham Military CampBusiness | E54: =SUMIFS('UHCC Adjustments'!$D$9:$D$27,'UHCC Adjustments'!$B$9:$B$27,C54,'UHCC Adjustments'!$C$9:$C$27,B54) -> 70490000 | I54: =SUMIFS($I$23:$I$49,$A$23:$A$49,A54,$C$23:$C$49,C54) * IF(B54="Trentham Military Camp", INDEX('UHCC Adjustments'!$E$30:$E$34,MATCH(C54,'UHCC Adjustments'!$B$30:$B$34,0),), 1-INDEX('UHCC Adjustments'!$E$30:$E$34,MATCH(C54,'UHCC Adjustments'!$B$30:$B$34,0),)) -> 0 | J54: =I54/E54*100 -> 0
A55: Upper Hutt city | B55: Rest of Upper Hutt City | C55: Business | D55: Rest of Upper Hutt CityBusiness | E55: =SUMIFS('UHCC Adjustments'!$D$9:$D$27,'UHCC Adjustments'!$B$9:$B$27,C55,'UHCC Adjustments'!$C$9:$C$27,B55) -> 1377756700 | I55: =SUMIFS($I$23:$I$49,$A$23:$A$49,A55,$C$23:$C$49,C55) * IF(B55="Trentham Military Camp", INDEX('UHCC Adjustments'!$E$30:$E$34,MATCH(C55,'UHCC Adjustments'!$B$30:$B$34,0),), 1-INDEX('UHCC Adjustments'!$E$30:$E$34,MATCH(C55,'UHCC Adjustments'!$B$30:$B$34,0),)) -> 0 | J55: 0
A56: Upper Hutt city | B56: Trentham Military Camp | C56: Residential | D56: Trentham Military CampResidential | E56: =SUMIFS('UHCC Adjustments'!$D$9:$D$27,'UHCC Adjustments'!$B$9:$B$27,C56,'UHCC Adjustments'!$C$9:$C$27,B56) -> 32750000 | I56: =SUMIFS($I$23:$I$49,$A$23:$A$49,A56,$C$23:$C$49,C56) * IF(B56="Trentham Military Camp", INDEX('UHCC Adjustments'!$E$30:$E$34,MATCH(C56,'UHCC Adjustments'!$B$30:$B$34,0),), 1-INDEX('UHCC Adjustments'!$E$30:$E$34,MATCH(C56,'UHCC Adjustments'!$B$30:$B$34,0),)) -> 0 | J56: 0
A57: Upper Hutt city | B57: Rest of Upper Hutt City | C57: Residential | D57: Rest of Upper Hutt CityResidential | E57: =SUMIFS('UHCC Adjustments'!$D$9:$D$27,'UHCC Adjustments'!$B$9:$B$27,C57,'UHCC Adjustments'!$C$9:$C$27,B57) -> 9066226100 | I57: =SUMIFS($I$23:$I$49,$A$23:$A$49,A57,$C$23:$C$49,C57) * IF(B57="Trentham Military Camp", INDEX('UHCC Adjustments'!$E$30:$E$34,MATCH(C57,'UHCC Adjustments'!$B$30:$B$34,0),), 1-INDEX('UHCC Adjustments'!$E$30:$E$34,MATCH(C57,'UHCC Adjustments'!$B$30:$B$34,0),)) -> 0 | J57: 0
A58: Upper Hutt city | B58: Trentham Military Camp | C58: Rural | D58: Trentham Military CampRural | E58: =SUMIFS('UHCC Adjustments'!$D$9:$D$27,'UHCC Adjustments'!$B$9:$B$27,C58,'UHCC Adjustments'!$C$9:$C$27,B58) -> 6114000 | I58: =SUMIFS($I$23:$I$49,$A$23:$A$49,A58,$C$23:$C$49,C58) * IF(B58="Trentham Military Camp", INDEX('UHCC Adjustments'!$E$30:$E$34,MATCH(C58,'UHCC Adjustments'!$B$30:$B$34,0),), 1-INDEX('UHCC Adjustments'!$E$30:$E$34,MATCH(C58,'UHCC Adjustments'!$B$30:$B$34,0),)) -> 0 | J58: 0
A59: Upper Hutt city | B59: Rest of Upper Hutt City | C59: Rural | D59: Rest of Upper Hutt CityRural | E59: =SUMIFS('UHCC Adjustments'!$D$9:$D$27,'UHCC Adjustments'!$B$9:$B$27,C59,'UHCC Adjustments'!$C$9:$C$27,B59) -> 1164573000 | I59: =SUMIFS($I$23:$I$49,$A$23:$A$49,A59,$C$23:$C$49,C59) * IF(B59="Trentham Military Camp", INDEX('UHCC Adjustments'!$E$30:$E$34,MATCH(C59,'UHCC Adjustments'!$B$30:$B$34,0),), 1-INDEX('UHCC Adjustments'!$E$30:$E$34,MATCH(C59,'UHCC Adjustments'!$B$30:$B$34,0),)) -> 0 | J59: 0
A60: Total | E60: =SUM(E54:E59) -> 11717909800 | I60: =SUM(I54:I59) -> 0
A63: Check Upper Hutt total | E63: =E60-E12 -> 0 | I63: =I60-I12 -> 0
A64: Check TA totals | E64: =INDEX(capital_values,MATCH("Region wide",capital_values_rows,0),MATCH(E6&" "&year_current,capital_values_header,0))-SUM(E10:E18) -> 0 | F64: =INDEX(capital_values,MATCH("Region wide",capital_values_rows,0),MATCH(F6&" "&year_current,capital_values_header,0))-SUM(F10:F18) -> 0 | I64: =INDEX(ess_base_estract,MATCH(I6,ESSbase!$B$8:$B$25,0),MATCH(year_current,ESSbase!$F$6:$G$6,0))-SUM(I10:I18) -> 0
A65: Check category totals | E65: =INDEX(capital_values,MATCH("Region wide",capital_values_rows,0),MATCH(E6&" "&year_current,capital_values_header,0))-SUM(E23:E49) -> 0 | F65: =INDEX(capital_values,MATCH("Region wide",capital_values_rows,0),MATCH(F6&" "&year_current,capital_values_header,0))-SUM(F23:F49) -> 0 | H65: =H50-SUM(H23:H49) -> 0 | I65: =INDEX(ess_base_estract,MATCH(I6,ESSbase!$B$8:$B$25,0),MATCH(year_current,ESSbase!$F$6:$G$6,0))-SUM(I23:I49) -> 0
A66: Category matches TA | E66: =E50-E19 -> 0 | F66: =F50-F19 -> 0 | I66: =I50-I19 -> 0

Sheet Economic Development
A1: Wellington Regional Council
A2: ="Economic Development Rate "&year_current -> Economic Development Rate 2022/23
A3: Printed: | B3: =NOW() -> 2023-01-19T08:30:06.840
A4: =check_total -> 0
A6: =Control!A66 -> TA full name | B6: =Control!B66 -> Rating area | C6: =Control!C66 -> Category group | D6: =Control!D66 -> Concatenated name | E6: CV assessments | F6: Contiguous assements | G6: Rateable properties | H6: Rating basis | I6: CV | J6: ECV | K6: Economic development rate | L6: Rates sought
A7: =Control!A52 -> 0 | C7: =Control!B52 -> 0 | D7: =Control!C52 -> 0 | E7: # | F7: # | G7: # | H7: $ | I7: $ | J7: $ | K7: $ | L7: Cents per $
A9: By TA
A10: =Control!A42 -> Wellington city | C10: =Control!B42 -> District wide | D10: =Control!C42 -> Wellington cityDistrict wide | I10: =INDEX(capital_values,MATCH($D10,capital_values_rows,0),MATCH(I$6&" "&year_current,capital_values_header,0)) -> 114751871250 | J10: 119439703683 | K10: =SUMIF($A$23:$A$49,$A10,$K$23:$K$49) -> 2084395.678
A11: =Control!A43 -> Hutt city | C11: =Control!B43 -> District wide | D11: =Control!C43 -> Hutt cityDistrict wide | I11: 29131948500 | J11: 44154024498 | K11: =SUMIF($A$23:$A$49,$A11,$K$23:$K$49) -> 919729.2625
A12: =Control!A44 -> Upper Hutt city | C12: =Control!B44 -> District wide | D12: =Control!C44 -> Upper Hutt cityDistrict wide | I12: 11717909800 | J12: 17817751914 | K12: 353972.1212
A13: =Control!A45 -> Porirua city | C13: =Control!B45 -> District wide | D13: =Control!C45 -> Porirua cityDistrict wide | I13: 14623609200 | J13: 21241698999 | K13: 381115.5946
A14: =Control!A46 -> Kāpiti Coast district | C14: =Control!B46 -> District wide | D14: =Control!C46 -> Kāpiti Coast districtDistrict wide | I14: 19783157650 | J14: 26169483904 | K14: 469433.2858
A15: =Control!A47 -> Masterton district | C15: =Control!B47 -> District wide | D15: =Control!C47 -> Masterton districtDistrict wide | I15: 8787884155 | J15: 11263219050 | K15: 223844.9839
A16: =Control!A48 -> Carterton district | C16: =Control!B48 -> District wide | D16: =Control!C48 -> Carterton districtDistrict wide | I16: 3729014800 | J16: 4976485118 | K16: 74067.94719
A17: =Control!A49 -> South Wairarapa district | C17: =Control!B49 -> District wide | D17: =Control!C49 -> South Wairarapa districtDistrict wide | I17: 6354690200 | J17: 8115723950 | K17: 113929.4168
A18: =Control!A50 -> Tararua district | C18: =Control!B50 -> District wide | D18: =Control!C50 -> Tararua districtDistrict wide | I18: 15976500 | J18: 21686475 | K18: 135
A19: Region wide | I19: =SUM(I10:I18) -> 208896062055 | J19: =SUM(J10:J18) -> 253199777591 | K19: =SUM(K10:K18) -> 4620623.29
A22: By TA & Category
A23: =Control!A67 -> Wellington city | B23: =Control!B67 -> Wellington city | C23: =Control!C67 -> Wellington CBD | D23: =Control!D67 -> Wellington cityWellington CBD | E23: =INDEX(assessments,MATCH($D23,assessments_rows,0),MATCH(E$6&" "&year_current,assessments_header,0)) -> 3331 | F23: =INDEX(assessments_contiguous,MATCH($D23,assessments_contiguous_rows,0),MATCH(F$6&" "&year_current,assessments_contiguous_header,0)) -> 0 | G23: =E23-F23 -> 3331 | H23: =INDEX(WRS_value,MATCH($C23,WRS_categories,0),) -> Remainder | I23: =INDEX(capital_values,MATCH($D23,capital_values_rows,0),MATCH(I$6&" "&year_current,capital_values_header,0)) -> 13133427700 | J23: =INDEX($J$10:$J$18,MATCH(A23,$A$10:$A$18,0),)/INDEX($I$10:$I$18,MATCH(A23,$A$10:$A$18,0),)*I23 -> 1.366995323e+10 | K23: =IF(H23="Remainder", J23/SUMIF($H$23:$H$49,"Remainder",$J$23:$J$49) *($K$50-SUMPRODUCT($H$23:$H$49,$G$23:$G$49)), H23*G23) -> 640168.969 | L23: =K23/I23*100 -> 0.004874347989
A24: =Control!A68 -> Wellington city | B24: =Control!B68 -> Wellington city | C24: =Control!C68 -> Business | D24: =Control!D68 -> Wellington cityBusiness | E24: 1885 | F24: 0 | G24: =E24-F24 -> 1885 | H24: Remainder | I24: 6659900150 | J24: =INDEX($J$10:$J$18,MATCH(A24,$A$10:$A$18,0),)/INDEX($I$10:$I$18,MATCH(A24,$A$10:$A$18,0),)*I24 -> 6931969752 | K24: =IF(H24="Remainder", J24/SUMIF($H$23:$H$49,"Remainder",$J$23:$J$49) *($K$50-SUMPRODUCT($H$23:$H$49,$G$23:$G$49)), H24*G24) -> 324626.709 | L24: 0.004874347989
A25: =Control!A69 -> Wellington city | B25: =Control!B69 -> Wellington city | C25: =Control!C69 -> Residential | D25: =Control!D69 -> Wellington cityResidential | E25: 73796 | F25: 0 | G25: 73796 | H25: 15 | I25: 93657459050 | J25: 9.748354458e+10 | K25: 1106940 | L25: 0.00118190266
A26: =Control!A70 -> Wellington city | B26: =Control!B70 -> Wellington city | C26: =Control!C70 -> Rural | D26: =Control!D70 -> Wellington cityRural | E26: 844 | F26: 0 | G26: 844 | H26: 15 | I26: 1301084350 | J26: 1354236123 | K26: 12660 | L26: 0.0009730345308
A27: =Control!A71 -> Hutt city | B27: =Control!B71 -> Hutt city | C27: =Control!C71 -> Business | D27: =Control!D71 -> Hutt cityBusiness | E27: 2348 | F27: 0 | G27: 2348 | H27: Remainder | I27: 4905894500 | J27: 7435650449 | K27: 348214.2625 | L27: 0.007097875066
A28: =Control!A72 -> Hutt city | B28: =Control!B72 -> Hutt city | C28: =Control!C72 -> Residential | D28: =Control!D72 -> Hutt cityResidential | E28: 37680 | F28: 19 | G28: 37661 | H28: 15 | I28: =INDEX(capital_values,MATCH($D28,capital_values_rows,0),MATCH(I$6&" "&year_current,capital_values_header,0)) -> 23837441000 | J28: 3.612937026e+10 | K28: 564915 | L28: 0.002369864282
A29: =Control!A73 -> Hutt city | B29: =Control!B73 -> Hutt city | C29: =Control!C73 -> Rural | D29: =Control!D73 -> Hutt cityRural | E29: 440 | F29: 0 | G29: 440 | H29: 15 | I29: 388613000 | J29: 589003784.7 | K29: 6600 | L29: 0.001698347714
A30: =Control!A74 -> Upper Hutt city | B30: =Control!B74 -> Upper Hutt city | C30: =Control!C74 -> Business | D30: =Control!D74 -> Upper Hutt cityBusiness | E30: 768 | F30: 17 | G30: 751 | H30: Remainder | I30: 1448246700 | J30: 2202141922 | K30: 103127.1212 | L30: 0.007120825564
A31: =Control!A75 -> Upper Hutt city | B31: =Control!B75 -> Upper Hutt city | C31: =Control!C75 -> Residential | D31: =Control!D75 -> Upper Hutt cityResidential | E31: 15478 | F31: 34 | G31: 15444 | H31: 15 | I31: 9098976100 | J31: 1.383551347e+10 | K31: 231660 | L31: 0.002546000753
A32: =Control!A76 -> Upper Hutt city | B32: =Control!B76 -> Upper Hutt city | C32: =Control!C76 -> Rural | D32: =Control!D76 -> Upper Hutt cityRural | E32: 1329 | F32: 50 | G32: 1279 | H32: 15 | I32: 1170687000 | J32: 1780096527 | K32: 19185 | L32: 0.001638781331
A33: =Control!A77 -> Porirua city | B33: =Control!B77 -> Porirua city | C33: =Control!C77 -> Business | D33: =Control!D77 -> Porirua cityBusiness | E33: 801 | F33: 0 | G33: 801 | H33: Remainder | I33: 1400176000 | J33: 2033842448 | K33: 95245.59459 | L33: 0.006802401597
A34: =Control!A78 -> Porirua city | B34: =Control!B78 -> Porirua city | C34: =Control!C78 -> Residential | D34: =Control!D78 -> Porirua cityResidential | E34: 18419 | F34: 0 | G34: 18419 | H34: 15 | I34: 12370577500 | J34: 1.796903077e+10 | K34: 276285 | L34: 0.002233404221
A35: =Control!A79 -> Porirua city | B35: =Control!B79 -> Porirua city | C35: =Control!C79 -> Rural | D35: =Control!D79 -> Porirua cityRural | E35: 639 | F35: 0 | G35: 639 | H35: 15 | I35: 852855700 | J35: 1238825780 | K35: 9585 | L35: 0.001123871248
A36: =Control!A80 -> Kāpiti Coast district | B36: =Control!B80 -> Kāpiti Coast district | C36: =Control!C80 -> Business | D36: =Control!D80 -> Kāpiti Coast districtBusiness | E36: 1303 | F36: 0 | G36: 1303 | H36: Remainder | I36: 1775736500 | J36: 2348973232 | K36: 110003.2858 | L36: 0.006194797809
A37: =Control!A81 -> Kāpiti Coast district | B37: =Control!B81 -> Kāpiti Coast district excl Ōtaki | C37: =Control!C81 -> Residential | D37: =Control!D81 -> Kāpiti Coast district excl Ōtaki Residential | E37: 18314 | F37: 128 | G37: 18186 | H37: 15 | I37: 13678059800 | J37: 1.80935608e+10 | K37: 272790 | L37: 0.001994361803
A38: =Control!A82 -> Kāpiti Coast district | B38: =Control!B82 -> Ōtaki rating area | C38: =Control!C82 -> Residential | D38: =Control!D82 -> Ōtaki rating areaResidential | E38: 3227 | F38: 39 | G38: =E38-F38 -> 3188 | H38: 15 | I38: 1671453400 | J38: =INDEX($J$10:$J$18,MATCH(A38,$A$10:$A$18,0),)/INDEX($I$10:$I$18,MATCH(A38,$A$10:$A$18,0),)*I38 -> 2211025844 | K38: 47820 | L38: =K38/I38*100 -> 0.002860983142
A39: =Control!A83 -> Kāpiti Coast district | B39: =Control!B83 -> Kāpiti Coast district | C39: =Control!C83 -> Rural | D39: =Control!D83 -> Kāpiti Coast districtRural | E39: 2710 | F39: 122 | G39: 2588 | H39: 15 | I39: 2657907950 | J39: 3515924027 | K39: 38820 | L39: 0.001460547195
A40: =Control!A84 -> Masterton district | B40: =Control!B84 -> Masterton district | C40: =Control!C84 -> Business | D40: =Control!D84 -> Masterton districtBusiness | E40: 570 | F40: 0 | G40: 570 | H40: Remainder | I40: 736487600 | J40: 943938383.8 | K40: 44204.98387 | L40: 0.006002135524
A41: =Control!A85 -> Masterton district | B41: =Control!B85 -> Masterton district | C41: =Control!C85 -> Residential | D41: =Control!D85 -> Masterton districtResidential | E41: 8488 | F41: 92 | G41: 8396 | H41: 15 | I41: 4080427400 | J41: 5229785329 | K41: 125940 | L41: 0.003086441386
A42: =Control!A86 -> Masterton district | B42: =Control!B86 -> Masterton district | C42: =Control!C86 -> Rural | D42: =Control!D86 -> Masterton districtRural | E42: 4016 | F42: 436 | G42: 3580 | H42: 15 | I42: 3970969155 | J42: 5089495338 | K42: 53700 | L42: 0.00135231471
A43: =Control!A87 -> Carterton district | B43: =Control!B87 -> Carterton district | C43: =Control!C87 -> Business | D43: =Control!D87 -> Carterton districtBusiness | E43: 236 | F43: 0 | G43: 236 | H43: Remainder | I43: 133894500 | J43: 178686334.7 | K43: 8367.947187 | L43: 0.006249657145
A44: =Control!A88 -> Carterton district | B44: =Control!B88 -> Carterton district | C44: =Control!C88 -> Residential | D44: =Control!D88 -> Carterton districtResidential | E44: 2599 | F44: 78 | G44: 2521 | H44: 15 | I44: 1318035500 | J44: 1758958975 | K44: 37815 | L44: 0.002869042602
A45: =Control!A89 -> Carterton district | B45: =Control!B89 -> Carterton district | C45: =Control!C89 -> Rural | D45: =Control!D89 -> Carterton districtRural | E45: 2175 | F45: 316 | G45: 1859 | H45: 15 | I45: 2277084800 | J45: 3038839808 | K45: 27885 | L45: 0.001224592075
A46: =Control!A90 -> South Wairarapa district | B46: =Control!B90 -> South Wairarapa district | C46: =Control!C90 -> Business | D46: =Control!D90 -> South Wairarapa districtBusiness | E46: 315 | F46: 0 | G46: 315 | H46: Remainder | I46: 287242000 | J46: 366843497.6 | K46: 17179.41676 | L46: 0.005980816441
A47: =Control!A91 -> South Wairarapa district | B47: =Control!B91 -> South Wairarapa district | C47: =Control!C91 -> Residential | D47: =Control!D91 -> South Wairarapa districtResidential | E47: 3536 | F47: 89 | G47: 3447 | H47: 15 | I47: 2151921500 | J47: 2748269437 | K47: 51705 | L47: 0.002402736345
A48: =Control!A92 -> South Wairarapa district | B48: =Control!B92 -> South Wairarapa district | C48: =Control!C92 -> Rural | D48: =Control!D92 -> South Wairarapa districtRural | E48: 3282 | F48: 279 | G48: 3003 | H48: 15 | I48: 3915526700 | J48: 5000611016 | K48: 45045 | L48: 0.001150419942
A49: =Control!A93 -> Tararua district | B49: =Control!B93 -> Tararua district | C49: =Control!C93 -> Rural | D49: =Control!D93 -> Tararua districtRural | E49: 10 | F49: 1 | G49: 9 | H49: 15 | I49: 15976500 | J49: 21686475 | K49: 135 | L49: 0.0008449910806
A50: Region wide | E50: =SUM(E23:E49) -> 208539 | F50: =SUM(F23:F49) -> 1700 | G50: =SUM(G23:G49) -> 206839 | I50: =SUM(I23:I49) -> 208896062055 | J50: =SUM(J23:J49) -> 2.531997776e+11 | K50: =INDEX(ess_base_estract,MATCH(K6,ESSbase!$B$8:$B$25,0),MATCH(year_current,ESSbase!$F$6:$G$6,0)) -> 4620623.29
A52: Check TA totals | I52: =INDEX(capital_values,MATCH("Region wide",capital_values_rows,0),MATCH(I6&" "&year_current,capital_values_header,0))-SUM(I10:I18) -> 0 | J52: =INDEX(capital_values,MATCH("Region wide",capital_values_rows,0),MATCH(J6&" "&year_current,capital_values_header,0))-SUM(J10:J18) -> 0 | K52: =INDEX(ess_base_estract,MATCH(K6,ESSbase!$B$8:$B$25,0),MATCH(year_current,ESSbase!$F$6:$G$6,0))-SUM(K10:K18) -> 0
A53: Check category totals | E53: =INDEX(assessments,MATCH("region wide",assessments_rows,0),MATCH("CV assessments "&year_current,assessments_header,0))-SUM(E23:E49) -> 0 | F53: =INDEX(assessments_contiguous,MATCH("region wide",assessments_contiguous_rows,0),MATCH("Contiguous assements "&year_current,assessments_contiguous_header,0))-SUM(F23:F49) -> 0 | G53: =G50-SUM(G23:G49) -> 0 | I53: =INDEX(capital_values,MATCH("Region wide",capital_values_rows,0),MATCH(I6&" "&year_current,capital_values_header,0))-SUM(I23:I49) -> 0 | J53: =INDEX(capital_values,MATCH("Region wide",capital_values_rows,0),MATCH(J6&" "&year_current,capital_values_header,0))-SUM(J23:J49) -> 0 | K53: =INDEX(ess_base_estract,MATCH(K6,ESSbase!$B$8:$B$25,0),MATCH(year_current,ESSbase!$F$6:$G$6,0))-SUM(K23:K49) -> 0
A54: Category matches TA | I54: =I50-I19 -> 0 | J54: =J50-J19 -> 0 | K54: =K50-K19 -> 0

Sheet Public transport
A1: Wellington Regional Council
A2: ="Public transport rate "&year_current -> Public transport rate 2022/23
A3: Printed: | B3: =NOW() -> 2023-01-19T08:30:06.840
A4: =check_total -> 0
A6: =Control!A41 -> TA full name | C6: =Control!B41 -> Category group | D6: =Control!C41 -> Concatenated row | E6: ="CV" -> CV | F6: ECV | G6: Differential | H6: ECV multiplied | I6: Public transport rate | J6: Rates sought
E7: $ | F7: $ | G7: # | H7: # | I7: $ | J7: Cents/$
A9: By TA
A10: =Control!A42 -> Wellington city | C10: =Control!B42 -> District wide | D10: =Control!C42 -> Wellington cityDistrict wide | E10: =INDEX(capital_values,MATCH($D10,capital_values_rows,0),MATCH(E$6&" "&year_current,capital_values_header,0)) -> 114751871250 | F10: 119439703683 | I10: =SUMIF($A$23:$A$49,$A10,$I$23:$I$49) -> 55813220.47
A11: =Control!A43 -> Hutt city | C11: =Control!B43 -> District wide | D11: =Control!C43 -> Hutt cityDistrict wide | E11: 29131948500 | F11: 44154024498 | I11: 14007552.98
A12: =Control!A44 -> Upper Hutt city | C12: =Control!B44 -> District wide | D12: =Control!C44 -> Upper Hutt cityDistrict wide | E12: 11717909800 | F12: 17817751914 | I12: 5363263.637
A13: =Control!A45 -> Porirua city | C13: =Control!B45 -> District wide | D13: =Control!C45 -> Porirua cityDistrict wide | E13: 14623609200 | F13: 21241698999 | I13: 6593785.125
A14: =Control!A46 -> Kāpiti Coast district | C14: =Control!B46 -> District wide | D14: =Control!C46 -> Kāpiti Coast districtDistrict wide | E14: 19783157650 | F14: 26169483904 | I14: 6324054.456
A15: =Control!A47 -> Masterton district | C15: =Control!B47 -> District wide | D15: =Control!C47 -> Masterton districtDistrict wide | E15: 8787884155 | F15: 11263219050 | I15: 1235093.995
A16: =Control!A48 -> Carterton district | C16: =Control!B48 -> District wide | D16: =Control!C48 -> Carterton districtDistrict wide | E16: 3729014800 | F16: 4976485118 | I16: 489099.9768
A17: =Control!A49 -> South Wairarapa district | C17: =Control!B49 -> District wide | D17: =Control!C49 -> South Wairarapa districtDistrict wide | E17: 6354690200 | F17: 8115723950 | I17: 832409.2769
A18: =Control!A50 -> Tararua district | C18: =Control!B50 -> District wide | D18: =Control!C50 -> Tararua districtDistrict wide | E18: 15976500 | F18: 21686475 | I18: 0
A19: Region wide | E19: =SUM(E10:E18) -> 208896062055 | F19: =SUM(F10:F18) -> 253199777591 | I19: =SUM(I10:I18) -> 90658479.92
A22: By TA & Category
A23: =Control!A67 -> Wellington city | B23: =Control!B67 -> Wellington city | C23: =Control!C67 -> Wellington CBD | D23: =Control!D67 -> Wellington cityWellington CBD | E23: =INDEX(capital_values,MATCH($D23,capital_values_rows,0),MATCH(E$6&" "&year_current,capital_values_header,0)) -> 13133427700 | F23: 1.366995323e+10 | G23: =INDEX(PT_differentials,MATCH($D23,Concat_rating_category,0),) -> 6.957200855 | H23: =F23*G23 -> 9.510461029e+10 | I23: =I$50*H23/H$50 -> 27047320.24 | J23: =I23/E23*100 -> 0.205942583
A24: =Control!A68 -> Wellington city | B24: =Control!B68 -> Wellington city | C24: =Control!C68 -> Business | D24: =Control!D68 -> Wellington cityBusiness | E24: 6659900150 | F24: 6931969752 | G24: =INDEX(PT_differentials,MATCH($D24,Concat_rating_category,0),) -> 1.276837037 | H24: 8850995718 | I24: 2517183.077 | J24: 0.03779610836
A25: =Control!A69 -> Wellington city | B25: =Control!B69 -> Wellington city | C25: =Control!C69 -> Residential | D25: =Control!D69 -> Wellington cityResidential | E25: 93657459050 | F25: 9.748354458e+10 | G25: 0.9435037036 | H25: 9.197608536e+10 | I25: 26157581.92 | J25: 0.02792898952
A26: =Control!A70 -> Wellington city | B26: =Control!B70 -> Wellington city | C26: =Control!C70 -> Rural | D26: =Control!D70 -> Wellington cityRural | E26: 1301084350 | F26: 1354236123 | G26: 0.2366297035 | H26: 320452492.2 | I26: 91135.23678 | J26: 0.007004560218
A27: =Control!A71 -> Hutt city | B27: =Control!B71 -> Hutt city | C27: =Control!C71 -> Business | D27: =Control!D71 -> Hutt cityBusiness | E27: 4905894500 | F27: 7435650449 | G27: 1.403388872 | H27: 1.04351091e+10 | I27: 2967697.745 | J27: 0.06049249011
A28: =Control!A72 -> Hutt city | B28: =Control!B72 -> Hutt city | C28: =Control!C72 -> Residential | D28: =Control!D72 -> Hutt cityResidential | E28: 23837441000 | F28: 3.612937026e+10 | G28: 1.070055539 | H28: 3.866043277e+10 | I28: 10994851.91 | J28: 0.04612429625
A29: =Control!A73 -> Hutt city | B29: =Control!B73 -> Hutt city | C29: =Control!C73 -> Rural | D29: =Control!D73 -> Hutt cityRural | E29: 388613000 | F29: 589003784.7 | G29: 0.2686605526 | H29: =F29*G29 -> 158242082.3 | I29: =I$50*H29/H$50 -> 45003.33118 | J29: =I29/E29*100 -> 0.0115805007
A30: =Control!A74 -> Upper Hutt city | B30: =Control!B74 -> Upper Hutt city | C30: =Control!C74 -> Business | D30: =Control!D74 -> Upper Hutt cityBusiness | E30: 1448246700 | F30: 2202141922 | G30: 1.432797773 | H30: 3155224042 | I30: 897331.4209 | J30: 0.06195984571
A31: =Control!A75 -> Upper Hutt city | B31: =Control!B75 -> Upper Hutt city | C31: =Control!C75 -> Residential | D31: =Control!D75 -> Upper Hutt cityResidential | E31: 9098976100 | F31: 1.383551347e+10 | G31: 1.09946444 | H31: 1.521165506e+10 | I31: 4326125.773 | J31: 0.04754519328
A32: =Control!A76 -> Upper Hutt city | B32: =Control!B76 -> Upper Hutt city | C32: =Control!C76 -> Rural | D32: =Control!D76 -> Upper Hutt cityRural | E32: 1170687000 | F32: 1780096527 | G32: 0.2761601175 | H32: 491591666 | I32: 139806.4423 | J32: 0.01194225633
A33: =Control!A77 -> Porirua city | B33: =Control!B77 -> Porirua city | C33: =Control!C77 -> Business | D33: =Control!D77 -> Porirua cityBusiness | E33: 1400176000 | F33: 2033842448 | G33: 1.441301386 | H33: 2931379940 | I33: 833671.1725 | J33: 0.0595404558
A34: =Control!A78 -> Porirua city | B34: =Control!B78 -> Porirua city | C34: =Control!C78 -> Residential | D34: =Control!D78 -> Porirua cityResidential | E34: 12370577500 | F34: 1.796903077e+10 | G34: 1.107968053 | H34: 1.990911203e+10 | I34: 5662061.252 | J34: 0.04577038745
A35: =Control!A79 -> Porirua city | B35: =Control!B79 -> Porirua city | C35: =Control!C79 -> Rural | D35: =Control!D79 -> Porirua cityRural | E35: 852855700 | F35: 1238825780 | G35: 0.2783086151 | H35: 344775887.1 | I35: 98052.70006 | J35: 0.01149698596
A36: =Control!A80 -> Kāpiti Coast district | B36: =Control!B80 -> Kāpiti Coast district | C36: =Control!C80 -> Business | D36: =Control!D80 -> Kāpiti Coast districtBusiness | E36: 1775736500 | F36: 2348973232 | G36: 1.283996095 | H36: 3016072457 | I36: 857757.3405 | J36: 0.04830431432
A37: =Control!A81 -> Kāpiti Coast district | B37: =Control!B81 -> Kāpiti Coast district excl Ōtaki | C37: =Control!C81 -> Residential | D37: =Control!D81 -> Kāpiti Coast district excl Ōtaki Residential | E37: 13678059800 | F37: 1.80935608e+10 | G37: 0.9506627618 | H37: 1.720087448e+10 | I37: 4891850.763 | J37: 0.03576421536
A38: =Control!A82 -> Kāpiti Coast district | B38: =Control!B82 -> Ōtaki rating area | C38: =Control!C82 -> Residential | D38: =Control!D82 -> Ōtaki rating areaResidential | E38: 1671453400 | F38: 2211025844 | G38: 0.5339960951 | H38: 1180679167 | I38: 335779.8053 | J38: 0.02008909164
A39: =Control!A83 -> Kāpiti Coast district | B39: =Control!B83 -> Kāpiti Coast district | C39: =Control!C83 -> Rural | D39: =Control!D83 -> Kāpiti Coast districtRural | E39: 2657907950 | F39: 3515924027 | G39: 0.2386873459 | H39: 839206574.3 | I39: 238666.5472 | J39: 0.008979488819
A40: =Control!A84 -> Masterton district | B40: =Control!B84 -> Masterton district | C40: =Control!C84 -> Business | D40: =Control!D84 -> Masterton districtBusiness | E40: 736487600 | F40: 943938383.8 | G40: 0.8748312371 | H40: 825786784.1 | I40: 234850.0197 | J40: 0.03188784437
A41: =Control!A85 -> Masterton district | B41: =Control!B85 -> Masterton district | C41: =Control!C85 -> Residential | D41: =Control!D85 -> Masterton districtResidential | E41: 4080427400 | F41: 5229785329 | G41: 0.4581645705 | H41: 2396102349 | I41: 681440.651 | J41: 0.01670022731
A42: =Control!A86 -> Masterton district | B42: =Control!B86 -> Masterton district | C42: =Control!C86 -> Rural | D42: =Control!D86 -> Masterton districtRural | E42: 3970969155 | F42: 5089495338 | G42: 0.2202548332 | H42: 1120985947 | I42: 318803.324 | J42: 0.008028350549
A43: =Control!A87 -> Carterton district | B43: =Control!B87 -> Carterton district | C43: =Control!C87 -> Business | D43: =Control!D87 -> Carterton districtBusiness | E43: 133894500 | F43: 178686334.7 | G43: 0.9077836874 | H43: 162208539.8 | I43: 46131.37373 | J43: 0.03445352403
A44: =Control!A88 -> Carterton district | B44: =Control!B88 -> Carterton district | C44: =Control!C88 -> Residential | D44: =Control!D88 -> Carterton districtResidential | E44: 1318035500 | F44: 1758958975 | G44: 0.4911170207 | H44: 863854691.4 | I44: 245676.36 | J44: 0.01863958596
A45: =Control!A89 -> Carterton district | B45: =Control!B89 -> Carterton district | C45: =Control!C89 -> Rural | D45: =Control!D89 -> Carterton districtRural | E45: 2277084800 | F45: 3038839808 | G45: 0.2282861326 | H45: 693724987.4 | I45: 197292.2431 | J45: 0.008664246631
A46: =Control!A90 -> South Wairarapa district | B46: =Control!B90 -> South Wairarapa district | C46: =Control!C90 -> Business | D46: =Control!D90 -> South Wairarapa districtBusiness | E46: 287242000 | F46: 366843497.6 | G46: 0.9317082878 | H46: 341791127 | I46: 97203.84783 | J46: 0.03384040211
A47: =Control!A91 -> South Wairarapa district | B47: =Control!B91 -> South Wairarapa district | C47: =Control!C91 -> Residential | D47: =Control!D91 -> South Wairarapa districtResidential | E47: 2151921500 | F47: 2748269437 | G47: 0.5150416212 | H47: 1415473146 | I47: 402554.1491 | J47: 0.0187067302
A48: =Control!A92 -> South Wairarapa district | B48: =Control!B92 -> South Wairarapa district | C48: =Control!C92 -> Rural | D48: =Control!D92 -> South Wairarapa districtRural | E48: 3915526700 | F48: 5000611016 | G48: 0.2339071261 | H48: 1169678551 | I48: 332651.28 | J48: 0.008495696889
A49: =Control!A93 -> Tararua district | B49: =Control!B93 -> Tararua district | C49: =Control!C93 -> Rural | D49: =Control!D93 -> Tararua districtRural | E49: 15976500 | F49: 21686475 | G49: 0 | H49: 0 | I49: 0 | J49: 0
A50: Region wide | E50: =SUM(E23:E49) -> 208896062055 | F50: =SUM(F23:F49) -> 2.531997776e+11 | H50: =SUM(H23:H49) -> 3.187761052e+11 | I50: =INDEX(ess_base_estract,MATCH(I6,ESSbase!$B$8:$B$25,0),MATCH(year_current,ESSbase!$F$6:$G$6,0)) -> 90658479.92
A53: Upper Hutt breakdown
A54: =$A$12 -> Upper Hutt city | B54: Trentham Military Camp | C54: Business | D54: =B54&C54 -> Trentham Military CampBusiness | E54: =SUMIFS('UHCC Adjustments'!$D$9:$D$27,'UHCC Adjustments'!$B$9:$B$27,C54,'UHCC Adjustments'!$C$9:$C$27,B54) -> 70490000 | I54: =SUMIFS($I$23:$I$49,$A$23:$A$49,A54,$C$23:$C$49,C54) * IF(B54="Trentham Military Camp", INDEX('UHCC Adjustments'!$E$30:$E$34,MATCH(C54,'UHCC Adjustments'!$B$30:$B$34,0),), 1-INDEX('UHCC Adjustments'!$E$30:$E$34,MATCH(C54,'UHCC Adjustments'!$B$30:$B$34,0),)) -> 64917.48287 | J54: =I54/E54*100 -> 0.09209459905
A55: Upper Hutt city | B55: Rest of Upper Hutt City | C55: Business | D55: Rest of Upper Hutt CityBusiness | E55: =SUMIFS('UHCC Adjustments'!$D$9:$D$27,'UHCC Adjustments'!$B$9:$B$27,C55,'UHCC Adjustments'!$C$9:$C$27,B55) -> 1377756700 | I55: =SUMIFS($I$23:$I$49,$A$23:$A$49,A55,$C$23:$C$49,C55) * IF(B55="Trentham Military Camp", INDEX('UHCC Adjustments'!$E$30:$E$34,MATCH(C55,'UHCC Adjustments'!$B$30:$B$34,0),), 1-INDEX('UHCC Adjustments'!$E$30:$E$34,MATCH(C55,'UHCC Adjustments'!$B$30:$B$34,0),)) -> 832413.938 | J55: 0.06041806496
A56: Upper Hutt city | B56: Trentham Military Camp | C56: Residential | D56: Trentham Military CampResidential | E56: =SUMIFS('UHCC Adjustments'!$D$9:$D$27,'UHCC Adjustments'!$B$9:$B$27,C56,'UHCC Adjustments'!$C$9:$C$27,B56) -> 32750000 | I56: =SUMIFS($I$23:$I$49,$A$23:$A$49,A56,$C$23:$C$49,C56) * IF(B56="Trentham Military Camp", INDEX('UHCC Adjustments'!$E$30:$E$34,MATCH(C56,'UHCC Adjustments'!$B$30:$B$34,0),), 1-INDEX('UHCC Adjustments'!$E$30:$E$34,MATCH(C56,'UHCC Adjustments'!$B$30:$B$34,0),)) -> 13053.10867 | J56: 0.03985682038
A57: Upper Hutt city | B57: Rest of Upper Hutt City | C57: Residential | D57: Rest of Upper Hutt CityResidential | E57: =SUMIFS('UHCC Adjustments'!$D$9:$D$27,'UHCC Adjustments'!$B$9:$B$27,C57,'UHCC Adjustments'!$C$9:$C$27,B57) -> 9066226100 | I57: =SUMIFS($I$23:$I$49,$A$23:$A$49,A57,$C$23:$C$49,C57) * IF(B57="Trentham Military Camp", INDEX('UHCC Adjustments'!$E$30:$E$34,MATCH(C57,'UHCC Adjustments'!$B$30:$B$34,0),), 1-INDEX('UHCC Adjustments'!$E$30:$E$34,MATCH(C57,'UHCC Adjustments'!$B$30:$B$34,0),)) -> 4313072.665 | J57: 0.04757296605
A58: Upper Hutt city | B58: Trentham Military Camp | C58: Rural | D58: Trentham Military CampRural | E58: =SUMIFS('UHCC Adjustments'!$D$9:$D$27,'UHCC Adjustments'!$B$9:$B$27,C58,'UHCC Adjustments'!$C$9:$C$27,B58) -> 6114000 | I58: =SUMIFS($I$23:$I$49,$A$23:$A$49,A58,$C$23:$C$49,C58) * IF(B58="Trentham Military Camp", INDEX('UHCC Adjustments'!$E$30:$E$34,MATCH(C58,'UHCC Adjustments'!$B$30:$B$34,0),), 1-INDEX('UHCC Adjustments'!$E$30:$E$34,MATCH(C58,'UHCC Adjustments'!$B$30:$B$34,0),)) -> 903.1206361 | J58: 0.01477135486
A59: Upper Hutt city | B59: Rest of Upper Hutt City | C59: Rural | D59: Rest of Upper Hutt CityRural | E59: =SUMIFS('UHCC Adjustments'!$D$9:$D$27,'UHCC Adjustments'!$B$9:$B$27,C59,'UHCC Adjustments'!$C$9:$C$27,B59) -> 1164573000 | I59: =SUMIFS($I$23:$I$49,$A$23:$A$49,A59,$C$23:$C$49,C59) * IF(B59="Trentham Military Camp", INDEX('UHCC Adjustments'!$E$30:$E$34,MATCH(C59,'UHCC Adjustments'!$B$30:$B$34,0),), 1-INDEX('UHCC Adjustments'!$E$30:$E$34,MATCH(C59,'UHCC Adjustments'!$B$30:$B$34,0),)) -> 138903.3217 | J59: 0.01192740358
A60: Total | E60: =SUM(E54:E59) -> 11717909800 | I60: =SUM(I54:I59) -> 5363263.637
A63: Check Upper Hutt total | E63: =E60-E12 -> 0 | I63: =I60-I12 -> 0
A64: Check TA totals | E64: =INDEX(capital_values,MATCH("Region wide",capital_values_rows,0),MATCH(E6&" "&year_current,capital_values_header,0))-SUM(E10:E18) -> 0 | F64: =INDEX(capital_values,MATCH("Region wide",capital_values_rows,0),MATCH(F6&" "&year_current,capital_values_header,0))-SUM(F10:F18) -> 0 | I64: =INDEX(ess_base_estract,MATCH(I6,ESSbase!$B$8:$B$25,0),MATCH(year_current,ESSbase!$F$6:$G$6,0))-SUM(I10:I18) -> 0
A65: Check category totals | E65: =INDEX(capital_values,MATCH("Region wide",capital_values_rows,0),MATCH(E6&" "&year_current,capital_values_header,0))-SUM(E23:E49) -> 0 | F65: =INDEX(capital_values,MATCH("Region wide",capital_values_rows,0),MATCH(F6&" "&year_current,capital_values_header,0))-SUM(F23:F49) -> 0 | H65: =H50-SUM(H23:H49) -> 0 | I65: =INDEX(ess_base_estract,MATCH(I6,ESSbase!$B$8:$B$25,0),MATCH(year_current,ESSbase!$F$6:$G$6,0))-SUM(I23:I49) -> 0
A66: Category matches TA | E66: =E50-E19 -> 0 | F66: =F50-F19 -> 0 | I66: =I50-I19 -> 0

Sheet >>Other rates & levies

Sheet Water levy
A1: Wellington Regional Council
A2: ="Water supply levy "&year_current -> Water supply levy 2022/23
A3: Printed : | B3: =NOW() -> 2023-01-19T08:30:06.840
A4: =check_total -> 0
B6: Share | C6: Bulk Water Levies
B7: % | C7: $
A9: By TA
A10: Wellington city | B10: =INDEX(Control!$B$164:$B$172,MATCH(A10,Control!$A$164:$A$172,0),) -> 0.51 | C10: =B10*$C$19 -> 21455074.23
A11: Hutt city | B11: =INDEX(Control!$B$164:$B$172,MATCH(A11,Control!$A$164:$A$172,0),) -> 0.2637 | C11: 11093535.44
A12: Upper Hutt city | B12: =INDEX(Control!$B$164:$B$172,MATCH(A12,Control!$A$164:$A$172,0),) -> 0.1087 | C12: 4572875.625
A13: Porirua city | B13: =INDEX(Control!$B$164:$B$172,MATCH(A13,Control!$A$164:$A$172,0),) -> 0.1176 | C13: =B13*$C$19 -> 4947287.705
A14: Kāpiti Coast district | B14: =INDEX(Control!$B$164:$B$172,MATCH(A14,Control!$A$164:$A$172,0),) -> 0 | C14: 0
A15: Masterton district | B15: =INDEX(Control!$B$164:$B$172,MATCH(A15,Control!$A$164:$A$172,0),) -> 0 | C15: 0
A16: Carterton district | B16: =INDEX(Control!$B$164:$B$172,MATCH(A16,Control!$A$164:$A$172,0),) -> 0 | C16: 0
A17: South Wairarapa district | B17: =INDEX(Control!$B$164:$B$172,MATCH(A17,Control!$A$164:$A$172,0),) -> 0 | C17: 0
A18: Tararua district | B18: =INDEX(Control!$B$164:$B$172,MATCH(A18,Control!$A$164:$A$172,0),) -> 0 | C18: =B18*$C$19 -> 0
A19: Region wide | B19: =SUM(B10:B18) -> 1 | C19: =INDEX(ess_base_estract,MATCH(C6,ESSbase!$B$8:$B$25,0),MATCH(year_current,ESSbase!$F$6:$G$6,0)) -> 42068773
A21: Checks | B21: =1-B19 -> 0 | C21: =C19-SUM(C10:C18) -> 0

Sheet >>Output tabs

Sheet Comparison - TA
A1: Comparison of proposed vs current
A2: =check_total -> 0
A4: =year_previous&" rates" -> 2021/22 rates
B5: TA
B6: Wellington city | C6: Hutt city | D6: Upper Hutt city | E6: Porirua city | F6: Kāpiti Coast district | G6: Masterton District | H6: Carterton District | I6: South Wairarapa District | J6: Tararua District | K6: Other | L6: Region wide
A7: General rate | B7: 29568388.71 | C7: 10945060.96 | D7: 4423679.605 | E7: 5310919.228 | F7: 6610566.549 | G7: 2920823.497 | H7: 1238631.841 | I7: 2089539.054 | J7: 5406.075474 | K7: 0 | L7: =INDEX(ess_base_estract,MATCH(A7,ESSbase!$B$8:$B$25,0),MATCH(year_previous,ESSbase!$F$6:$G$6,0)) -> 63113015.51 | M7: =ROUND(L7-SUM(B7:K7),-1) -> 0
A8: Remission of rates | B8: 0 | C8: 0 | D8: 0 | E8: 0 | F8: 0 | G8: 0 | H8: 0 | I8: 0 | J8: 0 | K8: 0 | L8: =INDEX(ess_base_estract,MATCH(A8,ESSbase!$B$8:$B$25,0),MATCH(year_previous,ESSbase!$F$6:$G$6,0)) -> 0 | M8: =ROUND(L8-SUM(B8:K8),-1) -> 0
A9: Public transport rate | B9: 50191134.82 | C9: 12819721.64 | D9: 5043238.698 | E9: 6303357.841 | F9: 5323670.71 | G9: 996637.0169 | H9: 400840.913 | I9: 731729.1903 | J9: 0 | K9: 0 | L9: =INDEX(ess_base_estract,MATCH(A9,ESSbase!$B$8:$B$25,0),MATCH(year_previous,ESSbase!$F$6:$G$6,0)) -> 81810330.83 | M9: 0
A10: River management rate | B10: 56888.245 | C10: 4306466.295 | D10: 1069965.736 | E10: 56371.23595 | F10: 1281538.891 | G10: 0 | H10: 24909.32 | I10: 0 | J10: 0 | K10: 0 | L10: =INDEX(ess_base_estract,MATCH(A10,ESSbase!$B$8:$B$25,0),MATCH(year_previous,ESSbase!$F$6:$G$6,0)) -> 6796139.723 | M10: =ROUND(L10-SUM(B10:K10),-1) -> 0
A11: Stadium purposes rate | B11: 0 | C11: 0 | D11: 0 | E11: 0 | F11: 0 | G11: 0 | H11: 0 | I11: 0 | J11: 0 | K11: 0 | L11: =INDEX(ess_base_estract,MATCH(A11,ESSbase!$B$8:$B$25,0),MATCH(year_previous,ESSbase!$F$6:$G$6,0)) -> 0 | M11: 0
A12: Economic development rate | B12: 2113485.02 | C12: 880711.1336 | D12: 348890.0915 | E12: 366011.1214 | F12: 479425.5905 | G12: 260727.7645 | H12: 94035.49006 | I12: 147263.4207 | J12: 252 | K12: 0 | L12: =INDEX(ess_base_estract,MATCH(A12,ESSbase!$B$8:$B$25,0),MATCH(year_previous,ESSbase!$F$6:$G$6,0)) -> 4690801.632 | M12: 0
A13: District-Wide Rates | B13: =SUM(B7:B12) -> 81929896.79 | C13: 28951960.02 | D13: 10885774.13 | E13: 12036659.43 | F13: 13695201.74 | G13: 4178188.279 | H13: 1758417.564 | I13: 2968531.665 | J13: 5658.075474 | K13: 0 | L13: =INDEX(ess_base_estract,MATCH(A13,ESSbase!$B$8:$B$25,0),MATCH(year_previous,ESSbase!$F$6:$G$6,0)) -> 156410287.7 | M13: =ROUND(L13-SUM(B13:K13),-1) -> 0
A14: Rates Penalties | B14: 0 | C14: 0 | D14: 0 | E14: 0 | F14: 0 | G14: 0 | H14: 0 | I14: 0 | J14: 0 | K14: 0 | L14: =INDEX(ess_base_estract,MATCH(A14,ESSbase!$B$8:$B$25,0),MATCH(year_previous,ESSbase!$F$6:$G$6,0)) -> 0 | M14: 0
A15: Remission of Rates Penalties | B15: 0 | C15: 0 | D15: 0 | E15: 0 | F15: 0 | G15: 0 | H15: 0 | I15: 0 | J15: 0 | K15: 0 | L15: =INDEX(ess_base_estract,MATCH(A15,ESSbase!$B$8:$B$25,0),MATCH(year_previous,ESSbase!$F$6:$G$6,0)) -> 0 | M15: 0
A16: Pest management rate | B16: 17925.01092 | C16: 16701.21158 | D16: 60144.02684 | E16: 13987.3798 | F16: 32116.81219 | G16: 228612.5827 | H16: 95040.48121 | I16: 196400.0403 | J16: 5872.394513 | K16: 0 | L16: =INDEX(ess_base_estract,MATCH(A16,ESSbase!$B$8:$B$25,0),MATCH(year_previous,ESSbase!$F$6:$G$6,0)) -> 666799.94 | M16: =ROUND(L16-SUM(B16:K16),-1) -> 0
A17: River management rate - Non district wide | B17: 0 | C17: 0 | D17: 0 | E17: 0 | F17: 0 | G17: 0 | H17: 0 | I17: 99998.4 | J17: 0 | K17: 0 | L17: =INDEX(ess_base_estract,MATCH(A17,ESSbase!$B$8:$B$25,0),MATCH(year_previous,ESSbase!$F$6:$G$6,0)) -> 99998.4 | M17: 0
A18: Special rates | B18: 0 | C18: 0 | D18: 0 | E18: 0 | F18: 0 | G18: 0 | H18: 0 | I18: 0 | J18: 0 | K18: 1608620.649 | L18: =INDEX(ess_base_estract,MATCH(A18,ESSbase!$B$8:$B$25,0),MATCH(year_previous,ESSbase!$F$6:$G$6,0)) -> 1608620.652 | M18: 0
A19: Total Other Rates | B19: =SUM(B14:B18) -> 17925.01092 | C19: 16701.21158 | D19: 60144.02684 | E19: 13987.3798 | F19: 32116.81219 | G19: 228612.5827 | H19: 95040.48121 | I19: 296398.4403 | J19: 5872.394513 | K19: 1608620.649 | L19: =INDEX(ess_base_estract,MATCH(A19,ESSbase!$B$8:$B$25,0),MATCH(year_previous,ESSbase!$F$6:$G$6,0)) -> 2375418.992 | M19: 0
A20: Total Regnl Rates | B20: =SUM(B19,B13) -> 81947821.8 | C20: 28968661.24 | D20: 10945918.16 | E20: 12050646.81 | F20: 13727318.55 | G20: 4406800.861 | H20: 1853458.045 | I20: 3264930.106 | J20: 11530.46999 | K20: 1608620.649 | L20: =INDEX(ess_base_estract,MATCH(A20,ESSbase!$B$8:$B$25,0),MATCH(year_previous,ESSbase!$F$6:$G$6,0)) -> 158785706.7 | M20: 0
A21: Bulk Water Levies | B21: 20052755.45 | C21: 10368454.14 | D21: 4273989.25 | E21: 4623929.492 | F21: 0 | G21: 0 | H21: 0 | I21: 0 | J21: 0 | K21: 0 | L21: =INDEX(ess_base_estract,MATCH(A21,ESSbase!$B$8:$B$25,0),MATCH(year_previous,ESSbase!$F$6:$G$6,0)) -> 39319128.33 | M21: 0
A22: Total Regnl Rates & levies | B22: =SUM(B20:B21) -> 102000577.3 | C22: =SUM(C20:C21) -> 39337115.38 | D22: 15219907.41 | E22: 16674576.3 | F22: 13727318.55 | G22: 4406800.861 | H22: 1853458.045 | I22: 3264930.106 | J22: 11530.46999 | K22: 1608620.649 | L22: =INDEX(ess_base_estract,MATCH(A22,ESSbase!$B$8:$B$25,0),MATCH(year_previous,ESSbase!$F$6:$G$6,0)) -> 198104835 | M22: 0
A23: Warm Greater Wellington rate | K23: 2868617.589 | L23: =INDEX(ess_base_estract,MATCH(A23,ESSbase!$B$8:$B$25,0),MATCH(year_previous,ESSbase!$F$6:$G$6,0)) -> 2868617.589 | M23: 0
A24: Total Rates & Levies | B24: =SUM(B22:B23) -> 102000577.3 | C24: 39337115.38 | D24: 15219907.41 | E24: 16674576.3 | F24: 13727318.55 | G24: 4406800.861 | H24: 1853458.045 | I24: 3264930.106 | J24: 11530.46999 | K24: 4477238.238 | L24: =INDEX(ess_base_estract,MATCH(A24,ESSbase!$B$8:$B$25,0),MATCH(year_previous,ESSbase!$F$6:$G$6,0)) -> 200973452.6 | M24: 0
A27: =year_current&" rates" -> 2022/23 rates
B28: TA
B29: Wellington city | C29: Hutt city | D29: Upper Hutt city | E29: Porirua city | F29: Kāpiti Coast district | G29: Masterton District | H29: Carterton District | I29: South Wairarapa district | J29: Tararua District | K29: Other | L29: Region wide
A30: General rate | B30: =IFERROR(INDEX(Gen!$D$10:$D$18,MATCH(B$29,Gen!$A$10:$A$18,0),),0) -> 34594985.81 | C30: =IFERROR(INDEX(Gen!$D$10:$D$18,MATCH(C$29,Gen!$A$10:$A$18,0),),0) -> 12788945.42 | D30: =IFERROR(INDEX(Gen!$D$10:$D$18,MATCH(D$29,Gen!$A$10:$A$18,0),),0) -> 5160803.783 | E30: =IFERROR(INDEX(Gen!$D$10:$D$18,MATCH(E$29,Gen!$A$10:$A$18,0),),0) -> 6152529.291 | F30: =IFERROR(INDEX(Gen!$D$10:$D$18,MATCH(F$29,Gen!$A$10:$A$18,0),),0) -> 7579832.303 | G30: =IFERROR(INDEX(Gen!$D$10:$D$18,MATCH(G$29,Gen!$A$10:$A$18,0),),0) -> 3262323.09 | H30: =IFERROR(INDEX(Gen!$D$10:$D$18,MATCH(H$29,Gen!$A$10:$A$18,0),),0) -> 1441408.734 | I30: =IFERROR(INDEX(Gen!$D$10:$D$18,MATCH(I$29,Gen!$A$10:$A$18,0),),0) -> 2350670.223 | J30: =IFERROR(INDEX(Gen!$D$10:$D$18,MATCH(J$29,Gen!$A$10:$A$18,0),),0) -> 6281.355962 | K30: =IFERROR(INDEX(Gen!$D$10:$D$18,MATCH(K$29,Gen!$A$10:$A$18,0),),0) -> 0 | L30: =INDEX(ess_base_estract,MATCH(A30,ESSbase!$B$8:$B$25,0),MATCH(year_current,ESSbase!$F$6:$G$6,0)) -> 73337780 | M30: =ROUND(L30-SUM(B30:K30),-1) -> 0
A31: Remission of rates | B31: =IFERROR(INDEX(Remission!$D$10:$D$18,MATCH(B$29,Remission!$A$10:$A$18,0),),0) -> 0 | C31: =IFERROR(INDEX(Remission!$D$10:$D$18,MATCH(C$29,Remission!$A$10:$A$18,0),),0) -> 0 | D31: =IFERROR(INDEX(Remission!$D$10:$D$18,MATCH(D$29,Remission!$A$10:$A$18,0),),0) -> 0 | E31: =IFERROR(INDEX(Remission!$D$10:$D$18,MATCH(E$29,Remission!$A$10:$A$18,0),),0) -> 0 | F31: =IFERROR(INDEX(Remission!$D$10:$D$18,MATCH(F$29,Remission!$A$10:$A$18,0),),0) -> 0 | G31: =IFERROR(INDEX(Remission!$D$10:$D$18,MATCH(G$29,Remission!$A$10:$A$18,0),),0) -> 0 | H31: =IFERROR(INDEX(Remission!$D$10:$D$18,MATCH(H$29,Remission!$A$10:$A$18,0),),0) -> 0 | I31: =IFERROR(INDEX(Remission!$D$10:$D$18,MATCH(I$29,Remission!$A$10:$A$18,0),),0) -> 0 | J31: =IFERROR(INDEX(Remission!$D$10:$D$18,MATCH(J$29,Remission!$A$10:$A$18,0),),0) -> 0 | K31: 0 | L31: =INDEX(ess_base_estract,MATCH(A31,ESSbase!$B$8:$B$25,0),MATCH(year_current,ESSbase!$F$6:$G$6,0)) -> 0 | M31: 0
A32: Public transport rate | B32: =IFERROR(INDEX('Public transport'!$I$10:$I$18,MATCH(B$29,'Public transport'!$A$10:$A$18,0),),0) -> 55813220.47 | C32: =IFERROR(INDEX('Public transport'!$I$10:$I$18,MATCH(C$29,'Public transport'!$A$10:$A$18,0),),0) -> 14007552.98 | D32: =IFERROR(INDEX('Public transport'!$I$10:$I$18,MATCH(D$29,'Public transport'!$A$10:$A$18,0),),0) -> 5363263.637 | E32: =IFERROR(INDEX('Public transport'!$I$10:$I$18,MATCH(E$29,'Public transport'!$A$10:$A$18,0),),0) -> 6593785.125 | F32: =IFERROR(INDEX('Public transport'!$I$10:$I$18,MATCH(F$29,'Public transport'!$A$10:$A$18,0),),0) -> 6324054.456 | G32: =IFERROR(INDEX('Public transport'!$I$10:$I$18,MATCH(G$29,'Public transport'!$A$10:$A$18,0),),0) -> 1235093.995 | H32: =IFERROR(INDEX('Public transport'!$I$10:$I$18,MATCH(H$29,'Public transport'!$A$10:$A$18,0),),0) -> 489099.9768 | I32: =IFERROR(INDEX('Public transport'!$I$10:$I$18,MATCH(I$29,'Public transport'!$A$10:$A$18,0),),0) -> 832409.2769 | J32: =IFERROR(INDEX('Public transport'!$I$10:$I$18,MATCH(J$29,'Public transport'!$A$10:$A$18,0),),0) -> 0 | K32: =IFERROR(INDEX('Public transport'!$I$10:$I$18,MATCH(K$29,'Public transport'!$A$10:$A$18,0),),0) -> 0 | L32: =INDEX(ess_base_estract,MATCH(A32,ESSbase!$B$8:$B$25,0),MATCH(year_current,ESSbase!$F$6:$G$6,0)) -> 90658479.92 | M32: 0
A33: River management rate | B33: =IFERROR(INDEX('River management'!$C$10:$C$18,MATCH(B$29,'River management'!$A$10:$A$18,0),),0) -> 55131.48 | C33: =IFERROR(INDEX('River management'!$C$10:$C$18,MATCH(C$29,'River management'!$A$10:$A$18,0),),0) -> 5098043.33 | D33: =IFERROR(INDEX('River management'!$C$10:$C$18,MATCH(D$29,'River management'!$A$10:$A$18,0),),0) -> 1136721.52 | E33: =IFERROR(INDEX('River management'!$C$10:$C$18,MATCH(E$29,'River management'!$A$10:$A$18,0),),0) -> 45883.36 | F33: =IFERROR(INDEX('River management'!$C$10:$C$18,MATCH(F$29,'River management'!$A$10:$A$18,0),),0) -> 1513486.56 | G33: =IFERROR(INDEX('River management'!$C$10:$C$18,MATCH(G$29,'River management'!$A$10:$A$18,0),),0) -> 0 | H33: =IFERROR(INDEX('River management'!$C$10:$C$18,MATCH(H$29,'River management'!$A$10:$A$18,0),),0) -> 25282.96 | I33: =IFERROR(INDEX('River management'!$C$10:$C$18,MATCH(I$29,'River management'!$A$10:$A$18,0),),0) -> 0 | J33: =IFERROR(INDEX('River management'!$C$10:$C$18,MATCH(J$29,'River management'!$A$10:$A$18,0),),0) -> 0 | K33: =IFERROR(INDEX('River management'!$C$10:$C$18,MATCH(K$29,'River management'!$A$10:$A$18,0),),0) -> 0 | L33: =INDEX(ess_base_estract,MATCH(A33,ESSbase!$B$8:$B$25,0),MATCH(year_current,ESSbase!$F$6:$G$6,0)) -> 7874549.21 | M33: 0
A34: Stadium purposes rate | B34: =IFERROR(INDEX(Stadium!$I$10:$I$18,MATCH(B$29,Stadium!$A$10:$A$18,0),),0) -> 0 | C34: =IFERROR(INDEX(Stadium!$I$10:$I$18,MATCH(C$29,Stadium!$A$10:$A$18,0),),0) -> 0 | D34: =IFERROR(INDEX(Stadium!$I$10:$I$18,MATCH(D$29,Stadium!$A$10:$A$18,0),),0) -> 0 | E34: =IFERROR(INDEX(Stadium!$I$10:$I$18,MATCH(E$29,Stadium!$A$10:$A$18,0),),0) -> 0 | F34: =IFERROR(INDEX(Stadium!$I$10:$I$18,MATCH(F$29,Stadium!$A$10:$A$18,0),),0) -> 0 | G34: =IFERROR(INDEX(Stadium!$I$10:$I$18,MATCH(G$29,Stadium!$A$10:$A$18,0),),0) -> 0 | H34: =IFERROR(INDEX(Stadium!$I$10:$I$18,MATCH(H$29,Stadium!$A$10:$A$18,0),),0) -> 0 | I34: =IFERROR(INDEX(Stadium!$I$10:$I$18,MATCH(I$29,Stadium!$A$10:$A$18,0),),0) -> 0 | J34: =IFERROR(INDEX(Stadium!$I$10:$I$18,MATCH(J$29,Stadium!$A$10:$A$18,0),),0) -> 0 | K34: =IFERROR(INDEX(Stadium!$I$10:$I$18,MATCH(K$29,Stadium!$A$10:$A$18,0),),0) -> 0 | L34: =INDEX(ess_base_estract,MATCH(A34,ESSbase!$B$8:$B$25,0),MATCH(year_current,ESSbase!$F$6:$G$6,0)) -> 0 | M34: 0
A35: Economic development rate | B35: =IFERROR(INDEX('Economic Development'!$K$10:$K$18,MATCH(B$29,'Economic Development'!$A$10:$A$18,0),),0) -> 2084395.678 | C35: =IFERROR(INDEX('Economic Development'!$K$10:$K$18,MATCH(C$29,'Economic Development'!$A$10:$A$18,0),),0) -> 919729.2625 | D35: =IFERROR(INDEX('Economic Development'!$K$10:$K$18,MATCH(D$29,'Economic Development'!$A$10:$A$18,0),),0) -> 353972.1212 | E35: =IFERROR(INDEX('Economic Development'!$K$10:$K$18,MATCH(E$29,'Economic Development'!$A$10:$A$18,0),),0) -> 381115.5946 | F35: =IFERROR(INDEX('Economic Development'!$K$10:$K$18,MATCH(F$29,'Economic Development'!$A$10:$A$18,0),),0) -> 469433.2858 | G35: =IFERROR(INDEX('Economic Development'!$K$10:$K$18,MATCH(G$29,'Economic Development'!$A$10:$A$18,0),),0) -> 223844.9839 | H35: =IFERROR(INDEX('Economic Development'!$K$10:$K$18,MATCH(H$29,'Economic Development'!$A$10:$A$18,0),),0) -> 74067.94719 | I35: =IFERROR(INDEX('Economic Development'!$K$10:$K$18,MATCH(I$29,'Economic Development'!$A$10:$A$18,0),),0) -> 113929.4168 | J35: =IFERROR(INDEX('Economic Development'!$K$10:$K$18,MATCH(J$29,'Economic Development'!$A$10:$A$18,0),),0) -> 135 | K35: =IFERROR(INDEX('Economic Development'!$K$10:$K$18,MATCH(K$29,'Economic Development'!$A$10:$A$18,0),),0) -> 0 | L35: =INDEX(ess_base_estract,MATCH(A35,ESSbase!$B$8:$B$25,0),MATCH(year_current,ESSbase!$F$6:$G$6,0)) -> 4620623.29 | M35: 0
A36: District-Wide Rates | B36: =SUM(B30:B35) -> 92547733.44 | C36: 32814270.99 | D36: 12014761.06 | E36: 13173313.37 | F36: 15886806.61 | G36: 4721262.068 | H36: 2029859.618 | I36: =SUM(I30:I35) -> 3297008.916 | J36: 6416.355962 | K36: 0 | L36: =INDEX(ess_base_estract,MATCH(A36,ESSbase!$B$8:$B$25,0),MATCH(year_current,ESSbase!$F$6:$G$6,0)) -> 176491432.4 | M36: 0
A37: Rates Penalties | B37: 0 | C37: 0 | D37: 0 | E37: 0 | F37: 0 | G37: 0 | H37: 0 | I37: 0 | J37: 0 | K37: 0 | L37: =INDEX(ess_base_estract,MATCH(A37,ESSbase!$B$8:$B$25,0),MATCH(year_current,ESSbase!$F$6:$G$6,0)) -> 0 | M37: 0
A38: Remission of Rates Penalties | B38: 0 | C38: 0 | D38: 0 | E38: 0 | F38: 0 | G38: 0 | H38: 0 | I38: 0 | J38: 0 | K38: 0 | L38: =INDEX(ess_base_estract,MATCH(A38,ESSbase!$B$8:$B$25,0),MATCH(year_current,ESSbase!$F$6:$G$6,0)) -> 0 | M38: 0
A39: Pest management rate | B39: =IFERROR(INDEX(#REF!,MATCH(B$29,#REF!,0),),0) -> 0 | C39: =IFERROR(INDEX(#REF!,MATCH(C$29,#REF!,0),),0) -> 0 | D39: =IFERROR(INDEX(#REF!,MATCH(D$29,#REF!,0),),0) -> 0 | E39: =IFERROR(INDEX(#REF!,MATCH(E$29,#REF!,0),),0) -> 0 | F39: =IFERROR(INDEX(#REF!,MATCH(F$29,#REF!,0),),0) -> 0 | G39: =IFERROR(INDEX(#REF!,MATCH(G$29,#REF!,0),),0) -> 0 | H39: =IFERROR(INDEX(#REF!,MATCH(H$29,#REF!,0),),0) -> 0 | I39: =IFERROR(INDEX(#REF!,MATCH(I$29,#REF!,0),),0) -> 0 | J39: =IFERROR(INDEX(#REF!,MATCH(J$29,#REF!,0),),0) -> 0 | K39: =IFERROR(INDEX(#REF!,MATCH(K$29,#REF!,0),),0) -> 0 | L39: =INDEX(ess_base_estract,MATCH(A39,ESSbase!$B$8:$B$25,0),MATCH(year_current,ESSbase!$F$6:$G$6,0)) -> 0 | M39: 0
A40: River management rate - Non district wide | B40: 0 | C40: 0 | D40: 0 | E40: 0 | F40: 0 | G40: 0 | H40: 0 | I40: ='River management'!C31 -> 101498.37 | J40: 0 | K40: 0 | L40: =INDEX(ess_base_estract,MATCH(A40,ESSbase!$B$8:$B$25,0),MATCH(year_current,ESSbase!$F$6:$G$6,0)) -> 101498.37 | M40: 0
A41: Special Rates | B41: 0 | C41: 0 | D41: 0 | E41: 0 | F41: 0 | G41: 0 | H41: 0 | I41: 0 | J41: 0 | K41: ='Class Rates'!B91 -> 1680741.458 | L41: =INDEX(ess_base_estract,MATCH(A41,ESSbase!$B$8:$B$25,0),MATCH(year_current,ESSbase!$F$6:$G$6,0)) -> 1680741.46 | M41: 0
A42: Total Other Rates | B42: =SUM(B37:B41) -> 0 | C42: 0 | D42: 0 | E42: 0 | F42: 0 | G42: 0 | H42: 0 | I42: 101498.37 | J42: 0 | K42: 1680741.458 | L42: =INDEX(ess_base_estract,MATCH(A42,ESSbase!$B$8:$B$25,0),MATCH(year_current,ESSbase!$F$6:$G$6,0)) -> 1782239.83 | M42: 0
A43: Total Regnl Rates | B43: =SUM(B42,B36) -> 92547733.44 | C43: 32814270.99 | D43: 12014761.06 | E43: 13173313.37 | F43: 15886806.61 | G43: 4721262.068 | H43: 2029859.618 | I43: =SUM(I42,I36) -> 3398507.286 | J43: 6416.355962 | K43: 1680741.458 | L43: =INDEX(ess_base_estract,MATCH(A43,ESSbase!$B$8:$B$25,0),MATCH(year_current,ESSbase!$F$6:$G$6,0)) -> 178273672.3 | M43: 0
A44: Bulk Water Levies | B44: =IFERROR(INDEX('Water levy'!$C$10:$C$18,MATCH('Comparison - TA'!B29,'Water levy'!$A$10:$A$18,0),),0) -> 21455074.23 | C44: =IFERROR(INDEX('Water levy'!$C$10:$C$18,MATCH('Comparison - TA'!C29,'Water levy'!$A$10:$A$18,0),),0) -> 11093535.44 | D44: =IFERROR(INDEX('Water levy'!$C$10:$C$18,MATCH('Comparison - TA'!D29,'Water levy'!$A$10:$A$18,0),),0) -> 4572875.625 | E44: =IFERROR(INDEX('Water levy'!$C$10:$C$18,MATCH('Comparison - TA'!E29,'Water levy'!$A$10:$A$18,0),),0) -> 4947287.705 | F44: =IFERROR(INDEX('Water levy'!$C$10:$C$18,MATCH('Comparison - TA'!F29,'Water levy'!$A$10:$A$18,0),),0) -> 0 | G44: =IFERROR(INDEX('Water levy'!$C$10:$C$18,MATCH('Comparison - TA'!G29,'Water levy'!$A$10:$A$18,0),),0) -> 0 | H44: =IFERROR(INDEX('Water levy'!$C$10:$C$18,MATCH('Comparison - TA'!H29,'Water levy'!$A$10:$A$18,0),),0) -> 0 | I44: =IFERROR(INDEX('Water levy'!$C$10:$C$18,MATCH('Comparison - TA'!I29,'Water levy'!$A$10:$A$18,0),),0) -> 0 | J44: =IFERROR(INDEX('Water levy'!$C$10:$C$18,MATCH('Comparison - TA'!J29,'Water levy'!$A$10:$A$18,0),),0) -> 0 | K44: =IFERROR(INDEX('Water levy'!$C$10:$C$18,MATCH('Comparison - TA'!K29,'Water levy'!$A$10:$A$18,0),),0) -> 0 | L44: =INDEX(ess_base_estract,MATCH(A44,ESSbase!$B$8:$B$25,0),MATCH(year_current,ESSbase!$F$6:$G$6,0)) -> 42068773 | M44: =ROUND(L44-SUM(B44:K44),-1) -> 0
A45: Total Regnl Rates & levies | B45: =SUM(B43:B44) -> 114002807.7 | C45: 43907806.43 | D45: 16587636.69 | E45: 18120601.07 | F45: 15886806.61 | G45: 4721262.068 | H45: 2029859.618 | I45: 3398507.286 | J45: 6416.355962 | K45: 1680741.458 | L45: =INDEX(ess_base_estract,MATCH(A45,ESSbase!$B$8:$B$25,0),MATCH(year_current,ESSbase!$F$6:$G$6,0)) -> 220342445.3 | M45: =ROUND(L45-SUM(B45:K45),-1) -> 0
A46: Warm Greater Wellington rate | K46: =L46 -> 1937525.05 | L46: =INDEX(ess_base_estract,MATCH(A46,ESSbase!$B$8:$B$25,0),MATCH(year_current,ESSbase!$F$6:$G$6,0)) -> 1937525.05 | M46: =ROUND(L46-SUM(B46:K46),-1) -> 0
A47: Total Rates & Levies | B47: =SUM(B45:B46) -> 114002807.7 | C47: =SUM(C45:C46) -> 43907806.43 | D47: 16587636.69 | E47: 18120601.07 | F47: 15886806.61 | G47: 4721262.068 | H47: 2029859.618 | I47: 3398507.286 | J47: 6416.355962 | K47: 3618266.508 | L47: =INDEX(ess_base_estract,MATCH(A47,ESSbase!$B$8:$B$25,0),MATCH(year_current,ESSbase!$F$6:$G$6,0)) -> 222279970.3 | M47: =ROUND(L47-SUM(B47:K47),-1) -> 0
A50: Delta
B51: TA
B52: Wellington city | C52: Hutt city | D52: Upper Hutt city | E52: Porirua city | F52: Kāpiti Coast district | G52: Masterton District | H52: Carterton District | I52: South Wairarapa District | J52: Tararua District | K52: Other | L52: Region wide
A53: General rate | B53: =B30-B7 -> 5026597.101 | C53: 1843884.458 | D53: 737124.1773 | E53: 841610.0628 | F53: 969265.7539 | G53: 341499.5927 | H53: 202776.893 | I53: 261131.1683 | J53: 875.2804875 | K53: 0 | L53: 10224764.49 | M53: =ROUND(L53-SUM(B53:K53),-1) -> 0
A54: Remission of rates | B54: =B31-B8 -> 0 | C54: 0 | D54: 0 | E54: 0 | F54: 0 | G54: 0 | H54: 0 | I54: 0 | J54: 0 | K54: 0 | L54: 0 | M54: 0
A55: Public transport rate | B55: =B32-B9 -> 5622085.651 | C55: 1187831.342 | D55: 320024.9391 | E55: 290427.2836 | F55: 1000383.747 | G55: 238456.9777 | H55: 88259.06388 | I55: 100680.0866 | J55: 0 | K55: 0 | L55: 8848149.091 | M55: 0
A56: River management rate | B56: =B33-B10 -> -1756.765 | C56: 791577.0353 | D56: 66755.78378 | E56: -10487.87595 | F56: 231947.669 | G56: 0 | H56: 373.64 | I56: 0 | J56: 0 | K56: 0 | L56: 1078409.487 | M56: =ROUND(L56-SUM(B56:K56),-1) -> 0
A57: Stadium purposes rate | B57: =B34-B11 -> 0 | C57: 0 | D57: 0 | E57: 0 | F57: 0 | G57: 0 | H57: 0 | I57: 0 | J57: 0 | K57: 0 | L57: 0 | M57: =ROUND(L57-SUM(B57:K57),-1) -> 0
A58: Economic development rate | B58: =B35-B12 -> -29089.34188 | C58: 39018.12893 | D58: 5082.029758 | E58: 15104.47316 | F58: -9992.304671 | G58: -36882.78066 | H58: -19967.54287 | I58: -33334.00395 | J58: -117 | K58: 0 | L58: -70178.34219 | M58: =ROUND(L58-SUM(B58:K58),-1) -> 0
A59: District-Wide Rates | B59: =B36-B13 -> 10617836.65 | C59: 3862310.965 | D59: 1128986.93 | E59: 1136653.944 | F59: 2191604.865 | G59: 543073.7898 | H59: 271442.054 | I59: 328477.2509 | J59: 758.2804875 | K59: 0 | L59: 20081144.72 | M59: 0
A60: Rates Penalties | B60: =B37-B14 -> 0 | C60: 0 | D60: 0 | E60: 0 | F60: 0 | G60: 0 | H60: 0 | I60: 0 | J60: 0 | K60: 0 | L60: 0 | M60: 0
A61: Remission of Rates Penalties | B61: =B38-B15 -> 0 | C61: 0 | D61: 0 | E61: 0 | F61: 0 | G61: 0 | H61: 0 | I61: 0 | J61: 0 | K61: 0 | L61: 0 | M61: 0
A62: Pest management rate | B62: =B39-B16 -> -17925.01092 | C62: -16701.21158 | D62: -60144.02684 | E62: -13987.3798 | F62: -32116.81219 | G62: -228612.5827 | H62: -95040.48121 | I62: -196400.0403 | J62: -5872.394513 | K62: 0 | L62: -666799.94 | M62: 0
A63: River management rate - Non district wide | B63: =B40-B17 -> 0 | C63: 0 | D63: 0 | E63: 0 | F63: 0 | G63: 0 | H63: 0 | I63: 1499.97 | J63: 0 | K63: 0 | L63: 1499.97 | M63: =ROUND(L63-SUM(B63:K63),-1) -> 0
A64: Special Rates | B64: =B41-B18 -> 0 | C64: 0 | D64: 0 | E64: 0 | F64: 0 | G64: 0 | H64: 0 | I64: 0 | J64: 0 | K64: 72120.80917 | L64: 72120.80795 | M64: 0
A65: Total Other Rates | B65: =B42-B19 -> -17925.01092 | C65: -16701.21158 | D65: -60144.02684 | E65: -13987.3798 | F65: -32116.81219 | G65: -228612.5827 | H65: -95040.48121 | I65: -194900.0703 | J65: -5872.394513 | K65: 72120.80917 | L65: -593179.1621 | M65: 0
A66: Total Regnl Rates | B66: =B43-B20 -> 10599911.63 | C66: 3845609.753 | D66: 1068842.903 | E66: 1122666.564 | F66: 2159488.053 | G66: 314461.2071 | H66: 176401.5728 | I66: 133577.1806 | J66: -5114.114025 | K66: 72120.80917 | L66: 19487965.56 | M66: 0
A67: Bulk Water Levies | B67: =B44-B21 -> 1402318.78 | C67: 725081.2988 | D67: 298886.3754 | E67: 323358.2129 | F67: 0 | G67: 0 | H67: 0 | I67: 0 | J67: 0 | K67: 0 | L67: 2749644.667 | M67: 0
A68: Total Regnl Rates & levies | B68: =B45-B22 -> 12002230.42 | C68: 4570691.052 | D68: 1367729.278 | E68: 1446024.777 | F68: 2159488.053 | G68: 314461.2071 | H68: 176401.5728 | I68: 133577.1806 | J68: -5114.114025 | K68: 72120.80917 | L68: 22237610.23 | M68: 0
A69: Warm Greater Wellington rate | B69: =B46-B23 -> 0 | C69: 0 | D69: 0 | E69: 0 | F69: 0 | G69: 0 | H69: 0 | I69: 0 | J69: 0 | K69: -931092.5394 | L69: -931092.5394 | M69: 0
A70: Total Rates & Levies | B70: =B47-B24 -> 12002230.42 | C70: 4570691.052 | D70: 1367729.278 | E70: 1446024.777 | F70: 2159488.053 | G70: 314461.2071 | H70: 176401.5728 | I70: 133577.1806 | J70: -5114.114025 | K70: -858971.7303 | L70: 21306517.69 | M70: 0

Sheet Comparison - Category
A1: Comparison of proposed vs current
A2: =check_total -> 0
A5: =year_previous&" rates" -> 2021/22 rates
J6: Rates | R6: Rates for average property | Z6: Cents/$ OR Economic Development Rate $/property
A7: =Control!A$66 -> TA full name | B7: =Control!B$66 -> Rating area | C7: =Control!C$66 -> Category group | D7: =Control!D$66 -> Concatenated name | F7: CV | G7: CV Assessments | H7: Average CV | J7: General rate | K7: River management rate | L7: Public transport rate | M7: Stadium purposes rate | N7: Remission of rates | O7: Economic development rate | P7: District-Wide rates | R7: General rate | S7: River management rate | T7: Public transport rate | U7: Stadium purposes rate | V7: Remission of rates | W7: Economic development rate | X7: District-Wide rates | Z7: General rate | AA7: River management rate | AB7: Public transport rate | AC7: Stadium purposes rate | AD7: Remission of rates | AE7: Economic development rate | AF7: District-Wide rates
A9: By TA
A10: =Control!A42 -> Wellington city | C10: =Control!B42 -> District wide | D10: =Control!C42 -> Wellington cityDistrict wide | F10: 74139924400 | G10: 79344 | H10: 934411.2271 | J10: 29568388.71 | K10: 56888.245 | L10: 50191134.82 | M10: 0 | N10: 0 | O10: 2113485.02 | P10: 81929896.79 | R10: =J10/$F10*$H10 -> 372.6606764 | S10: 0.7169823175 | T10: 632.576311 | U10: 0 | V10: 0 | W10: 26.63698603 | X10: =IF('Comparison - Category'!C10="Residential",SUM(R10:U10,Control!$B$103),IF('Comparison - Category'!C10="Rural",SUM(R10:U10,Control!$B$104),P10/$F10*$H10)) -> 1032.590956
A11: =Control!A43 -> Hutt city | C11: =Control!B43 -> District wide | D11: =Control!C43 -> Hutt cityDistrict wide | F11: 28871779500 | G11: 40078 | H11: 720389.7275 | J11: 10945060.96 | K11: 4306466.295 | L11: 12819721.64 | M11: 0 | N11: 0 | O11: 880711.1336 | P11: 28951960.02 | R11: =J11/$F11*$H11 -> 273.0939906 | S11: =K11/$F11*$H11 -> 107.4521257 | T11: =L11/$F11*$H11 -> 319.8692959 | U11: =M11/$F11*$H11 -> 0 | V11: =N11/$F11*$H11 -> 0 | W11: =O11/$F11*$H11 -> 21.97492723 | X11: =IF('Comparison - Category'!C11="Residential",SUM(R11:U11,Control!$B$103),IF('Comparison - Category'!C11="Rural",SUM(R11:U11,Control!$B$104),P11/$F11*$H11)) -> 722.3903395
A12: =Control!A44 -> Upper Hutt city | C12: =Control!B44 -> District wide | D12: =Control!C44 -> Upper Hutt cityDistrict wide | F12: 11543431800 | G12: 17323 | H12: 666364.475 | J12: 4423679.605 | K12: 1069965.736 | L12: 5043238.698 | M12: 0 | N12: 0 | O12: 348890.0915 | P12: 10885774.13 | R12: 255.3645215 | S12: 61.76561428 | T12: 291.1296368 | U12: 0 | V12: 0 | W12: 20.14028121 | X12: =IF('Comparison - Category'!C12="Residential",SUM(R12:U12,Control!$B$103),IF('Comparison - Category'!C12="Rural",SUM(R12:U12,Control!$B$104),P12/$F12*$H12)) -> 628.4000537
A13: =Control!A45 -> Porirua city | C13: =Control!B45 -> District wide | D13: =Control!C45 -> Porirua cityDistrict wide | F13: 14451701650 | G13: 19397 | H13: 745048.2884 | J13: 5310919.228 | K13: 56371.23595 | L13: 6303357.841 | M13: 0 | N13: 0 | O13: 366011.1214 | P13: 12036659.43 | R13: 273.8010635 | S13: 2.906183222 | T13: 324.965605 | U13: 0 | V13: 0 | W13: 18.86947061 | X13: =IF('Comparison - Category'!C13="Residential",SUM(R13:U13,Control!$B$103),IF('Comparison - Category'!C13="Rural",SUM(R13:U13,Control!$B$104),P13/$F13*$H13)) -> 620.5423223
A14: =Control!A46 -> Kāpiti Coast district | C14: =Control!B46 -> District wide | D14: =Control!C46 -> Kāpiti Coast districtDistrict wide | F14: 19628808150 | G14: 25477 | H14: 770452.0999 | J14: 6610566.549 | K14: 1281538.891 | L14: 5323670.71 | M14: 0 | N14: 0 | O14: 479425.5905 | P14: 13695201.74 | R14: =J14/$F14*$H14 -> 259.4719374 | S14: 50.30179735 | T14: 208.959874 | U14: 0 | V14: 0 | W14: 18.81797662 | X14: =IF('Comparison - Category'!C14="Residential",SUM(R14:U14,Control!$B$103),IF('Comparison - Category'!C14="Rural",SUM(R14:U14,Control!$B$104),P14/$F14*$H14)) -> 537.5515854
A15: =Control!A47 -> Masterton district | C15: =Control!B47 -> District wide | D15: =Control!C47 -> Masterton districtDistrict wide | F15: 8640582655 | G15: 12869 | H15: 671426.1135 | J15: 2920823.497 | K15: 0 | L15: 996637.0169 | M15: 0 | N15: 0 | O15: 260727.7645 | P15: 4178188.279 | R15: 226.9658479 | S15: 0 | T15: 77.44479112 | U15: 0 | V15: 0 | W15: 20.26014178 | X15: =IF('Comparison - Category'!C15="Residential",SUM(R15:U15,Control!$B$103),IF('Comparison - Category'!C15="Rural",SUM(R15:U15,Control!$B$104),P15/$F15*$H15)) -> 324.6707808
A16: =Control!A48 -> Carterton district | C16: =Control!B48 -> District wide | D16: =Control!C48 -> Carterton districtDistrict wide | F16: 3665691300 | G16: 4919 | H16: 745210.6729 | J16: 1238631.841 | K16: 24909.32 | L16: 400840.913 | M16: 0 | N16: 0 | O16: 94035.49006 | P16: 1758417.564 | R16: 251.8056191 | S16: 5.063899166 | T16: 81.48829294 | U16: 0 | V16: 0 | W16: 19.11679001 | X16: =IF('Comparison - Category'!C16="Residential",SUM(R16:U16,Control!$B$103),IF('Comparison - Category'!C16="Rural",SUM(R16:U16,Control!$B$104),P16/$F16*$H16)) -> 357.4746013
A17: =Control!A49 -> South Wairarapa district | C17: =Control!B49 -> District wide | D17: =Control!C49 -> South Wairarapa districtDistrict wide | F17: 6252191400 | G17: 7023 | H17: 890245.1089 | J17: 2089539.054 | K17: 0 | L17: 731729.1903 | M17: 0 | N17: 0 | O17: 147263.4207 | P17: 2968531.665 | R17: 297.5279872 | S17: 0 | T17: 104.1904016 | U17: 0 | V17: 0 | W17: 20.96873426 | X17: =IF('Comparison - Category'!C17="Residential",SUM(R17:U17,Control!$B$103),IF('Comparison - Category'!C17="Rural",SUM(R17:U17,Control!$B$104),P17/$F17*$H17)) -> 422.6871231
A18: =Control!A50 -> Tararua district | C18: =Control!B50 -> District wide | D18: =Control!C50 -> Tararua districtDistrict wide | F18: 15976500 | G18: 10 | H18: 1597650 | J18: 5406.075474 | K18: 0 | L18: 0 | M18: 0 | N18: 0 | O18: 252 | P18: 5658.075474 | R18: 540.6075474 | S18: 0 | T18: 0 | U18: 0 | V18: 0 | W18: 25.2 | X18: =IF('Comparison - Category'!C18="Residential",SUM(R18:U18,Control!$B$103),IF('Comparison - Category'!C18="Rural",SUM(R18:U18,Control!$B$104),P18/$F18*$H18)) -> 565.8075474
A19: =Control!A51 -> Region wide | C19: =Control!B51 -> 0 | D19: =Control!C51 -> Region wide | F19: 167210087355 | G19: 206440 | H19: 809969.4214 | J19: 63113015.51 | K19: 6796139.723 | L19: 81810330.83 | M19: 0 | N19: 0 | O19: 4690801.632 | P19: 156410287.7 | R19: 305.7208657 | S19: 32.92065357 | T19: 396.2910813 | U19: 0 | V19: =N19/$F19*$H19 -> 0 | W19: =O19/$F19*$H19 -> 22.72234854 | X19: =IF('Comparison - Category'!C19="Residential",SUM(R19:U19,Control!$B$103),IF('Comparison - Category'!C19="Rural",SUM(R19:U19,Control!$B$104),P19/$F19*$H19)) -> 757.6549491
A21: By TA & Category
A22: =Control!A67 -> Wellington city | B22: =Control!B67 -> Wellington city | C22: =Control!C67 -> Wellington CBD | D22: =Control!D67 -> Wellington cityWellington CBD | F22: 9896987150 | G22: 3276 | H22: 3021058.349 | J22: 6033820.643 | K22: 7594.049148 | L22: 27237587.73 | M22: 0 | N22: 0 | O22: 725587.7282 | P22: 34004590.15 | R22: 1841.825593 | S22: 2.318085821 | T22: 8314.281969 | U22: 0 | V22: 0 | W22: 221.4858755 | X22: 10379.91152 | Z22: =J22/$F22*100 -> 0.06096623701 | AA22: =K22/$F22*100 -> 7.673091854e-05 | AB22: =L22/$F22*100 -> 0.2752109032 | AC22: =M22/$F22*100 -> 0 | AD22: =N22/$F22*100 -> 0 | AE22: =IF(OR('Comparison - Category'!C22="Residential",'Comparison - Category'!C22="Rural"),W22,O22/$F22*100) -> 0.007331400124 | AF22: =P22/$F22*100 -> 0.3435852713
A23: =Control!A68 -> Wellington city | B23: =Control!B68 -> Wellington city | C23: =Control!C68 -> Business | D23: =Control!D68 -> Wellington cityBusiness | F23: 4605086150 | G23: 1885 | H23: 2443016.525 | J23: 2146948.269 | K23: 3533.524903 | L23: 2114617.98 | M23: 0 | N23: 0 | O23: 337617.2917 | P23: 4602717.065 | R23: 1138.964599 | S23: 1.87454902 | T23: 1121.813252 | U23: 0 | V23: 0 | W23: 179.1073166 | X23: 2441.759716 | Z23: 0.04662124007 | AA23: 7.673091854e-05 | AB23: 0.04591918394 | AC23: =M23/$F23*100 -> 0 | AD23: =N23/$F23*100 -> 0 | AE23: =IF(OR('Comparison - Category'!C23="Residential",'Comparison - Category'!C23="Rural"),W23,O23/$F23*100) -> 0.007331400124 | AF23: =P23/$F23*100 -> 0.09994855504
A24: =Control!A69 -> Wellington city | B24: =Control!B69 -> Wellington city | C24: =Control!C69 -> Residential | D24: =Control!D69 -> Wellington cityResidential | F24: 58819065000 | G24: 73346 | H24: 801939.6422 | J24: 21093982.69 | K24: 45132.40885 | L24: 20766169.35 | M24: 0 | N24: 0 | O24: 1026844 | P24: 42932128.45 | R24: 287.5955429 | S24: 0.6153356537 | T24: 283.126133 | U24: 0 | V24: 0 | W24: 14 | X24: 585.3370116 | Z24: 0.03586249236 | AA24: 7.673091854e-05 | AB24: 0.03530516738 | AC24: 0 | AD24: 0 | AE24: =IF(OR('Comparison - Category'!C24="Residential",'Comparison - Category'!C24="Rural"),W24,O24/$F24*100) -> 14 | AF24: 0.07299015796
A25: =Control!A70 -> Wellington city | B25: =Control!B70 -> Wellington city | C25: =Control!C70 -> Rural | D25: =Control!D70 -> Wellington cityRural | F25: 818786100 | G25: 837 | H25: 978239.0681 | J25: 293637.1025 | K25: 628.2620954 | L25: 72759.75975 | M25: 0 | N25: 0 | O25: 23436 | P25: 390461.1244 | R25: 350.820911 | S25: 0.7506118225 | T25: 86.92922312 | U25: 0 | V25: 0 | W25: 28 | X25: 466.500746 | Z25: 0.03586249236 | AA25: 7.673091854e-05 | AB25: 0.008886296402 | AC25: 0 | AD25: 0 | AE25: =IF(OR('Comparison - Category'!C25="Residential",'Comparison - Category'!C25="Rural"),W25,O25/$F25*100) -> 28 | AF25: 0.04768780569
A26: =Control!A71 -> Hutt city | B26: =Control!B71 -> Hutt city | C26: =Control!C71 -> Business | D26: =Control!D71 -> Hutt cityBusiness | F26: 4972573500 | G26: 2388 | H26: 2082317.211 | J26: 1885062.889 | K26: 741700.7385 | L26: 2646591.059 | M26: 0 | N26: 0 | O26: 346527.1336 | P26: 5619881.82 | R26: 789.3898194 | S26: 310.5949491 | T26: 1108.287713 | U26: 0 | V26: 0 | W26: 145.111865 | X26: 2353.384347 | Z26: 0.03790920112 | AA26: 0.01491583259 | AB26: 0.05322376953 | AC26: 0 | AD26: 0 | AE26: =IF(OR('Comparison - Category'!C26="Residential",'Comparison - Category'!C26="Rural"),W26,O26/$F26*100) -> 0.006968768457 | AF26: 0.1130175717
A27: =Control!A72 -> Hutt city | B27: =Control!B72 -> Hutt city | C27: =Control!C72 -> Residential | D27: =Control!D72 -> Hutt cityResidential | F27: 23478516000 | G27: 37205 | H27: 631058.0836 | J27: 8900517.85 | K27: 3502016.14 | L27: 10127399.67 | M27: 0 | N27: 0 | O27: 520604 | P27: 23050537.66 | R27: 239.2290781 | S27: 94.12756727 | T27: 272.2053399 | U27: 0 | V27: 0 | W27: 14 | X27: 619.5619852 | Z27: 0.03790920112 | AA27: 0.01491583259 | AB27: 0.04313475208 | AC27: 0 | AD27: 0 | AE27: =IF(OR('Comparison - Category'!C27="Residential",'Comparison - Category'!C27="Rural"),W27,O27/$F27*100) -> 14 | AF27: 0.0981771491
A28: =Control!A73 -> Hutt city | B28: =Control!B73 -> Hutt city | C28: =Control!C73 -> Rural | D28: =Control!D73 -> Hutt cityRural | F28: 420690000 | G28: 485 | H28: 867402.0619 | J28: 159480.2182 | K28: 62749.4161 | L28: 45730.91149 | M28: 0 | N28: 0 | O28: 13580 | P28: 281540.5458 | R28: 328.8251921 | S28: 129.3802394 | T28: 94.29053915 | U28: 0 | V28: 0 | W28: 28 | X28: 580.4959707 | Z28: 0.03790920112 | AA28: 0.01491583259 | AB28: 0.01087045366 | AC28: 0 | AD28: 0 | AE28: =IF(OR('Comparison - Category'!C28="Residential",'Comparison - Category'!C28="Rural"),W28,O28/$F28*100) -> 28 | AF28: 0.0669235175
A29: =Control!A74 -> Upper Hutt city | B29: =Control!B74 -> Upper Hutt city | C29: =Control!C74 -> Business | D29: =Control!D74 -> Upper Hutt cityBusiness | F29: 1426045700 | G29: 748 | H29: 1906478.209 | J29: 546489.9337 | K29: 132180.7989 | L29: 799340.4885 | M29: 0 | N29: 0 | O29: 100460.0915 | P29: 1578471.313 | R29: 730.6015157 | S29: 176.712298 | T29: 1068.637017 | U29: 0 | V29: 0 | W29: 134.3049351 | X29: 2110.255765 | Z29: 0.03832204913 | AA29: 0.009269043684 | AB29: 0.05605293634 | AC29: 0 | AD29: 0 | AE29: =IF(OR('Comparison - Category'!C29="Residential",'Comparison - Category'!C29="Rural"),W29,O29/$F29*100) -> 0.007044661436 | AF29: 0.1106886906
A30: =Control!A75 -> Upper Hutt city | B30: =Control!B75 -> Upper Hutt city | C30: =Control!C75 -> Residential | D30: =Control!D75 -> Upper Hutt cityResidential | F30: 8964529100 | G30: 15249 | H30: 587876.5231 | J30: 3435391.246 | K30: 830926.1184 | L30: 4110599.21 | M30: 0 | N30: 0 | O30: 212814 | P30: 8589730.574 | R30: 225.28633 | S30: 54.49053173 | T30: 269.5651656 | U30: 0 | V30: 0 | W30: 14 | X30: 563.3420273 | Z30: 0.03832204913 | AA30: 0.009269043684 | AB30: 0.04585404503 | AC30: 0 | AD30: 0 | AE30: =IF(OR('Comparison - Category'!C30="Residential",'Comparison - Category'!C30="Rural"),W30,O30/$F30*100) -> 14 | AF30: 0.0958190941
A31: =Control!A76 -> Upper Hutt city | B31: =Control!B76 -> Upper Hutt city | C31: =Control!C76 -> Rural | D31: =Control!D76 -> Upper Hutt cityRural | F31: 1152857000 | G31: 1326 | H31: 869424.5852 | J31: 441798.4259 | K31: 106858.8189 | L31: 133298.9993 | M31: 0 | N31: 0 | O31: 35616 | P31: 717572.2441 | R31: 333.1813167 | S31: 80.58734461 | T31: 100.5271488 | U31: 0 | V31: 0 | W31: 28 | X31: 542.29581 | Z31: 0.03832204913 | AA31: 0.009269043684 | AB31: 0.01156249208 | AC31: 0 | AD31: 0 | AE31: =IF(OR('Comparison - Category'!C31="Residential",'Comparison - Category'!C31="Rural"),W31,O31/$F31*100) -> 28 | AF31: 0.0622429533
A32: =Control!A77 -> Porirua city | B32: =Control!B77 -> Porirua city | C32: =Control!C77 -> Business | D32: =Control!D77 -> Porirua cityBusiness | F32: 1434625000 | G32: 803 | H32: 1786581.569 | J32: 527216.6338 | K32: 5595.990447 | L32: 780098.4592 | M32: 0 | N32: 0 | O32: 96917.12143 | P32: 1409828.205 | R32: 656.5586972 | S32: 6.968854853 | T32: 971.4800238 | U32: 0 | V32: 0 | W32: 120.6938 | X32: 1755.701376 | Z32: 0.03674943862 | AA32: 0.0003900664248 | AB32: 0.05437647184 | AC32: 0 | AD32: 0 | AE32: =IF(OR('Comparison - Category'!C32="Residential",'Comparison - Category'!C32="Rural"),W32,O32/$F32*100) -> 0.006755571765 | AF32: 0.09827154865
A33: =Control!A78 -> Porirua city | B33: =Control!B78 -> Porirua city | C33: =Control!C78 -> Residential | D33: =Control!D78 -> Porirua cityResidential | F33: 12171960950 | G33: 17967 | H33: 677462.0666 | J33: 4473127.319 | K33: 47478.73291 | L33: 5428221.02 | M33: 0 | N33: 0 | O33: 251538 | P33: 10200365.07 | R33: 248.9635063 | S33: 2.642552062 | T33: 302.1217242 | U33: 0 | V33: 0 | W33: 14 | X33: 567.7277827 | Z33: 0.03674943862 | AA33: 0.0003900664248 | AB33: 0.04459610938 | AC33: 0 | AD33: 0 | AE33: =IF(OR('Comparison - Category'!C33="Residential",'Comparison - Category'!C33="Rural"),W33,O33/$F33*100) -> 14 | AF33: 0.0838021508
A34: =Control!A79 -> Porirua city | B34: =Control!B79 -> Porirua city | C34: =Control!C79 -> Rural | D34: =Control!D79 -> Porirua cityRural | F34: 845115700 | G34: 627 | H34: 1347871.93 | J34: 310575.2755 | K34: 3296.512596 | L34: 95038.3622 | M34: 0 | N34: 0 | O34: 17556 | P34: 426466.1503 | R34: 495.3353676 | S34: 5.257595848 | T34: 151.5763352 | U34: 0 | V34: 0 | W34: 28 | X34: 680.1692987 | Z34: 0.03674943862 | AA34: 0.0003900664248 | AB34: 0.01124560367 | AC34: 0 | AD34: 0 | AE34: =IF(OR('Comparison - Category'!C34="Residential",'Comparison - Category'!C34="Rural"),W34,O34/$F34*100) -> 28 | AF34: 0.05046245742
A35: =Control!A80 -> Kāpiti Coast district | B35: =Control!B80 -> Kāpiti Coast district | C35: =Control!C80 -> Business | D35: =Control!D80 -> Kāpiti Coast districtBusiness | F35: 1763120000 | G35: 1309 | H35: 1346921.314 | J35: 593781.4464 | K35: 115111.77 | L35: 692152.944 | M35: 0 | N35: 0 | O35: 109153.5905 | P35: 1510199.751 | R35: 453.6145503 | S35: 87.93870895 | T35: 528.7646631 | U35: 0 | V35: 0 | W35: 83.38700571 | X35: 1153.704928 | Z35: 0.03367788048 | AA35: 0.006528867577 | AB35: 0.03925727937 | AC35: 0 | AD35: 0 | AE35: =IF(OR('Comparison - Category'!C35="Residential",'Comparison - Category'!C35="Rural"),W35,O35/$F35*100) -> 0.006190933713 | AF35: 0.08565496114
A36: =Control!A81 -> Kāpiti Coast district | B36: =Control!B81 -> Kāpiti Coast district excl Ōtaki | C36: =Control!C81 -> Residential | D36: =Control!D81 -> Kāpiti Coast district excl Ōtaki Residential | F36: 13585040800 | G36: 18238 | H36: 744875.5785 | J36: 4575153.804 | K36: 886949.3241 | L36: 4115502.561 | M36: 0 | N36: 0 | O36: 253484 | P36: 9831089.689 | R36: 250.8583071 | S36: 48.63194013 | T36: 225.6553658 | U36: 0 | V36: 0 | W36: 14 | X36: 539.1456129 | Z36: 0.03367788048 | AA36: 0.006528867577 | AB36: 0.03029437027 | AC36: 0 | AD36: 0 | AE36: =IF(OR('Comparison - Category'!C36="Residential",'Comparison - Category'!C36="Rural"),W36,O36/$F36*100) -> 14 | AF36: 0.07236702365
A37: =Control!A82 -> Kāpiti Coast district | B37: =Control!B82 -> Ōtaki rating area | C37: =Control!C82 -> Residential | D37: =Control!D82 -> Ōtaki rating areaResidential | F37: 1649798400 | G37: 3205 | H37: 514757.6911 | J37: 555617.1334 | K37: 107713.1528 | L37: 314958.6223 | M37: 0 | N37: 0 | O37: 44296 | P37: 1022584.908 | R37: 173.35948 | S37: 33.60784799 | T37: 98.27102099 | U37: 0 | V37: 0 | W37: 14 | X37: 319.238349 | Z37: 0.03367788048 | AA37: 0.006528867577 | AB37: 0.01909073389 | AC37: 0 | AD37: 0 | AE37: =IF(OR('Comparison - Category'!C37="Residential",'Comparison - Category'!C37="Rural"),W37,O37/$F37*100) -> 14 | AF37: 0.06198241606
A38: =Control!A83 -> Kāpiti Coast district | B38: =Control!B83 -> Kāpiti Coast district | C38: =Control!C83 -> Rural | D38: =Control!D83 -> Kāpiti Coast districtRural | F38: 2630848950 | G38: 2725 | H38: 965449.156 | J38: 886014.1651 | K38: 171764.6441 | L38: 201056.5827 | M38: 0 | N38: 0 | O38: 72492 | P38: 1331327.392 | R38: 325.1428129 | S38: 63.03289691 | T38: 73.78223219 | U38: 0 | V38: 0 | W38: 28 | X38: 489.957942 | Z38: 0.03367788048 | AA38: 0.006528867577 | AB38: 0.007642270101 | AC38: 0 | AD38: 0 | AE38: =IF(OR('Comparison - Category'!C38="Residential",'Comparison - Category'!C38="Rural"),W38,O38/$F38*100) -> 28 | AF38: 0.05060447852
A39: =Control!A84 -> Masterton district | B39: =Control!B84 -> Masterton district | C39: =Control!C84 -> Business | D39: =Control!D84 -> Masterton districtBusiness | F39: 734108600 | G39: 571 | H39: 1285654.291 | J39: 248154.7523 | K39: 0 | L39: 185662.3644 | M39: 0 | N39: 0 | O39: 45617.76453 | P39: 479434.8812 | R39: 434.5967641 | S39: 0 | T39: 325.1530024 | U39: 0 | V39: 0 | W39: 79.89100619 | X39: 839.6407727 | Z39: 0.03380354791 | AA39: 0 | AB39: 0.02529085811 | AC39: 0 | AD39: 0 | AE39: =IF(OR('Comparison - Category'!C39="Residential",'Comparison - Category'!C39="Rural"),W39,O39/$F39*100) -> 0.00621403489 | AF39: 0.0653084409
A40: =Control!A85 -> Masterton district | B40: =Control!B85 -> Masterton district | C40: =Control!C85 -> Residential | D40: =Control!D85 -> Masterton districtResidential | F40: 3974865400 | G40: 8337 | H40: 476774.0674 | J40: 1343645.53 | K40: 0 | L40: 558286.3766 | M40: 0 | N40: 0 | O40: 115570 | P40: 2017501.906 | R40: 161.1665503 | S40: 0 | T40: 66.96490063 | U40: 0 | V40: 0 | W40: 14 | X40: 242.1314509 | Z40: 0.03380354791 | AA40: 0 | AB40: 0.01404541589 | AC40: 0 | AD40: 0 | AE40: =IF(OR('Comparison - Category'!C40="Residential",'Comparison - Category'!C40="Rural"),W40,O40/$F40*100) -> 14 | AF40: 0.05075648363
A41: =Control!A86 -> Masterton district | B41: =Control!B86 -> Masterton district | C41: =Control!C86 -> Rural | D41: =Control!D86 -> Masterton districtRural | F41: 3931608655 | G41: 3961 | H41: 992579.817 | J41: 1329023.215 | K41: 0 | L41: 252688.2759 | M41: 0 | N41: 0 | O41: 99540 | P41: 1681251.491 | R41: 335.5271939 | S41: 0 | T41: 63.79406107 | U41: 0 | V41: 0 | W41: 28 | X41: 427.321255 | Z41: 0.03380354791 | AA41: 0 | AB41: 0.006427096339 | AC41: 0 | AD41: 0 | AE41: =IF(OR('Comparison - Category'!C41="Residential",'Comparison - Category'!C41="Rural"),W41,O41/$F41*100) -> 28 | AF41: 0.04276243234
A42: =Control!A87 -> Carterton district | B42: =Control!B87 -> Carterton district | C42: =Control!C87 -> Business | D42: =Control!D87 -> Carterton districtBusiness | F42: 126627500 | G42: 228 | H42: 555383.7719 | J42: 42787.2509 | K42: 860.4665969 | L42: 34826.49243 | M42: 0 | N42: 0 | O42: 7865.490057 | P42: 86339.69999 | R42: 187.6633812 | S42: 3.773976302 | T42: 152.7477738 | U42: 0 | V42: 0 | W42: 34.49776341 | X42: 378.6828947 | Z42: 0.03378985679 | AA42: 0.000679525851 | AB42: 0.02750310354 | AC42: 0 | AD42: 0 | AE42: =IF(OR('Comparison - Category'!C42="Residential",'Comparison - Category'!C42="Rural"),W42,O42/$F42*100) -> 0.00621151808 | AF42: 0.06818400426
A43: =Control!A88 -> Carterton district | B43: =Control!B88 -> Carterton district | C43: =Control!C88 -> Residential | D43: =Control!D88 -> Carterton districtResidential | F43: 1285248500 | G43: 2558 | H43: 502442.7287 | J43: 434283.6275 | K43: 8733.595807 | L43: 209009.8866 | M43: 0 | N43: 0 | O43: 34846 | P43: 686873.1099 | R43: 169.7746785 | S43: 3.414228228 | T43: 81.70832157 | U43: 0 | V43: 0 | W43: 14 | X43: 268.8972283 | Z43: 0.03378985679 | AA43: 0.000679525851 | AB43: 0.01626221595 | AC43: 0 | AD43: 0 | AE43: =IF(OR('Comparison - Category'!C43="Residential",'Comparison - Category'!C43="Rural"),W43,O43/$F43*100) -> 14 | AF43: 0.05344282525
A44: =Control!A89 -> Carterton district | B44: =Control!B89 -> Carterton district | C44: =Control!C89 -> Rural | D44: =Control!D89 -> Carterton districtRural | F44: 2253815300 | G44: 2133 | H44: 1056641.022 | J44: 761560.9621 | K44: 15315.2576 | L44: 157004.5339 | M44: 0 | N44: 0 | O44: 51324 | P44: 985204.7537 | R44: 357.0374881 | S44: 7.180148897 | T44: 73.60737644 | U44: 0 | V44: 0 | W44: 28 | X44: 465.8250134 | Z44: 0.03378985679 | AA44: 0.000679525851 | AB44: 0.006966166835 | AC44: 0 | AD44: 0 | AE44: =IF(OR('Comparison - Category'!C44="Residential",'Comparison - Category'!C44="Rural"),W44,O44/$F44*100) -> 28 | AF44: 0.04371275471
A45: =Control!A90 -> South Wairarapa district | B45: =Control!B90 -> South Wairarapa district | C45: =Control!C90 -> Business | D45: =Control!D90 -> South Wairarapa districtBusiness | F45: 279106000 | G45: 312 | H45: 894570.5128 | J45: 93279.75585 | K45: 0 | L45: 80379.12809 | M45: 0 | N45: 0 | O45: 17147.42071 | P45: 190806.3047 | R45: 298.9735764 | S45: 0 | T45: 257.6254105 | U45: 0 | V45: 0 | W45: 54.95968176 | X45: 611.5586688 | Z45: 0.0334209067 | AA45: 0 | AB45: 0.02879878186 | AC45: 0 | AD45: 0 | AE45: =IF(OR('Comparison - Category'!C45="Residential",'Comparison - Category'!C45="Rural"),W45,O45/$F45*100) -> 0.006143694764 | AF45: 0.06836338332
A46: =Control!A91 -> South Wairarapa district | B46: =Control!B91 -> South Wairarapa district | C46: =Control!C91 -> Residential | D46: =Control!D91 -> South Wairarapa districtResidential | F46: 2087271500 | G46: 3463 | H46: 602735.0563 | J46: 697585.0606 | K46: 0 | L46: 369042.8151 | M46: 0 | N46: 0 | O46: 47208 | P46: 1113835.876 | R46: 201.4395208 | S46: 0 | T46: 106.5673737 | U46: 0 | V46: 0 | W46: 14 | X46: 322.0068945 | Z46: 0.0334209067 | AA46: 0 | AB46: 0.01768063307 | AC46: 0 | AD46: =N46/$F46*100 -> 0 | AE46: =IF(OR('Comparison - Category'!C46="Residential",'Comparison - Category'!C46="Rural"),W46,O46/$F46*100) -> 14 | AF46: 0.05336324842
A47: =Control!A92 -> South Wairarapa district | B47: =Control!B92 -> South Wairarapa district | C47: =Control!C92 -> Rural | D47: =Control!D92 -> South Wairarapa districtRural | F47: 3885813900 | G47: 3248 | H47: 1196371.275 | J47: 1298674.238 | K47: 0 | L47: 282307.2471 | M47: 0 | N47: 0 | O47: 82908 | P47: 1663889.485 | R47: 399.8381275 | S47: 0 | T47: 86.91725589 | U47: 0 | V47: 0 | W47: 28 | X47: 514.7553834 | Z47: 0.0334209067 | AA47: 0 | AB47: 0.007265073789 | AC47: 0 | AD47: 0 | AE47: =IF(OR('Comparison - Category'!C47="Residential",'Comparison - Category'!C47="Rural"),W47,O47/$F47*100) -> 28 | AF47: 0.04281958756
A48: =Control!A93 -> Tararua district | B48: =Control!B93 -> Tararua district | C48: =Control!C93 -> Rural | D48: =Control!D93 -> Tararua districtRural | F48: 15976500 | G48: 10 | H48: 1597650 | J48: 5406.075474 | K48: 0 | L48: 0 | M48: 0 | N48: 0 | O48: 252 | P48: 5658.075474 | R48: 540.6075474 | S48: 0 | T48: 0 | U48: 0 | V48: 0 | W48: 28 | X48: 568.6075474 | Z48: 0.03383767079 | AA48: 0 | AB48: 0 | AC48: 0 | AD48: 0 | AE48: =IF(OR('Comparison - Category'!C48="Residential",'Comparison - Category'!C48="Rural"),W48,O48/$F48*100) -> 28 | AF48: 0.03541498748
A49: =Control!A94 -> Region wide | C49: =Control!C94 -> 0 | D49: =Control!D94 -> Region wide | F49: 167210087355 | G49: 206440 | H49: 809969.4214 | J49: 63113015.51 | K49: 6796139.723 | L49: 81810330.83 | M49: 0 | N49: 0 | O49: 4690801.632 | P49: 156410287.7 | R49: 305.7208657 | S49: 32.92065357 | T49: 396.2910813 | U49: 0 | V49: 0 | W49: 22.72234854 | X49: 757.6549491 | Z49: 0.03774474167 | AA49: 0.004064431656 | AB49: 0.0489266719 | AC49: 0 | AD49: =N49/$F49*100 -> 0 | AE49: =O49/$F49*100 -> 0.00280533412 | AF49: 0.09354117935
A51: By category
A52: Region Wide | C52: =C22 -> Wellington CBD | D52: =A52&C52 -> Region WideWellington CBD | F52: =SUMIF($C$22:$C$48,$C52,F$22:F$48) -> 9896987150 | G52: 3276 | H52: =F52/G52 -> 3021058.349 | J52: =SUMIF($C$22:$C$48,$C52,J$22:J$48) -> 6033820.643 | K52: 7594.049148 | L52: 27237587.73 | M52: 0 | N52: 0 | O52: =SUMIF($C$22:$C$48,$C52,O$22:O$48) -> 725587.7282 | P52: =SUMIF($C$22:$C$48,$C52,P$22:P$48) -> 34004590.15 | R52: 1841.825593 | S52: 2.318085821 | T52: 8314.281969 | U52: 0 | V52: 0 | W52: 221.4858755 | X52: 10379.91152 | Z52: =J52/$F52*100 -> 0.06096623701 | AA52: 7.673091854e-05 | AB52: 0.2752109032 | AC52: 0 | AD52: 0 | AE52: =IF(OR('Comparison - Category'!C52="Residential",'Comparison - Category'!C52="Rural"),W52,O52/$F52*100) -> 0.007331400124 | AF52: =P52/$F52*100 -> 0.3435852713
A53: Region Wide | C53: =C23 -> Business | D53: =A53&C53 -> Region WideBusiness | F53: 15341292450 | G53: 8244 | H53: =F53/G53 -> 1860903.985 | J53: 6083720.931 | K53: 998983.2893 | L53: 7333668.915 | M53: 0 | N53: 0 | O53: 1061305.904 | P53: 15477679.04 | R53: 737.9574152 | S53: 121.1770123 | T53: 889.5765302 | U53: 0 | V53: 0 | W53: 128.7367666 | X53: 1877.447724 | Z53: 0.03965585658 | AA53: 0.006511728347 | AB53: 0.04780346206 | AC53: 0 | AD53: 0 | AE53: =IF(OR('Comparison - Category'!C53="Residential",'Comparison - Category'!C53="Rural"),W53,O53/$F53*100) -> 0.006917969313 | AF53: =P53/$F53*100 -> 0.1008890163
A54: Region Wide | C54: =C24 -> Residential | D54: =A54&C54 -> Region WideResidential | F54: 126016295650 | G54: 179568 | H54: =F54/G54 -> 701774.7909 | J54: 45509304.26 | K54: 5428949.473 | L54: 45999189.51 | M54: 0 | N54: 0 | O54: 2507204 | P54: 99444647.25 | R54: 253.4377186 | S54: 30.23339054 | T54: 256.1658509 | U54: 0 | V54: 0 | W54: 13.96242092 | X54: 553.8369601 | Z54: 0.03611382482 | AA54: 0.004308132885 | AB54: 0.03650257237 | AC54: 0 | AD54: 0 | AE54: =IF(OR('Comparison - Category'!C54="Residential",'Comparison - Category'!C54="Rural"),W54,O54/$F54*100) -> 13.96242092 | AF54: =P54/$F54*100 -> 0.0789141172
A55: Region Wide | C55: =C25 -> Rural | D55: =A55&C55 -> Region WideRural | F55: 15955512105 | G55: 15352 | H55: =F55/G55 -> 1039311.627 | J55: 5486169.678 | K55: 360612.9114 | L55: 1239884.672 | M55: 0 | N55: 0 | O55: 396704 | P55: 7483371.262 | R55: 357.3586294 | S55: 23.48963727 | T55: 80.7637228 | U55: 0 | V55: 0 | W55: 25.84054195 | X55: 489.6119894 | Z55: 0.03438416543 | AA55: 0.002260114931 | AB55: 0.0077708861 | AC55: 0 | AD55: 0 | AE55: =IF(OR('Comparison - Category'!C55="Residential",'Comparison - Category'!C55="Rural"),W55,O55/$F55*100) -> 25.84054195 | AF55: =P55/$F55*100 -> 0.04690147964
A56: Region Wide | C56: Total | D56: =A56&C56 -> Region WideTotal | F56: =SUM(F52:F55) -> 167210087355 | G56: =SUM(G52:G55) -> 206440 | H56: =F56/G56 -> 809969.4214 | J56: =SUM(J52:J55) -> 63113015.51 | K56: 6796139.723 | L56: 81810330.83 | M56: 0 | N56: 0 | O56: 4690801.632 | P56: =SUM(P52:P55) -> 156410287.7 | R56: 305.7208657 | S56: 32.92065357 | T56: 396.2910813 | U56: 0 | V56: 0 | W56: 22.72234854 | X56: 757.6549491 | Z56: 0.03774474167 | AA56: 0.004064431656 | AB56: 0.0489266719 | AC56: 0 | AD56: 0 | AE56: =IF(OR('Comparison - Category'!C56="Residential",'Comparison - Category'!C56="Rural"),W56,O56/$F56*100) -> 0.00280533412 | AF56: =P56/$F56*100 -> 0.09354117935
J59: =IF(ABS(J19-SUM(J10:J18))>tolerance_dollar,1,0) -> 0 | K59: 0 | L59: 0 | M59: 0 | N59: 0 | O59: 0 | P59: 0
J60: =J49-SUM(J22:J48) -> 0 | K60: 0 | L60: 0 | M60: 0 | N60: 0 | O60: 0 | P60: 0
F61: =F49-F19 -> 0 | G61: =G49-G19 -> 0 | J61: =IF(ABS(J49-J19)>tolerance_dollar,1,0) -> 0 | K61: 0 | L61: 0 | M61: 0 | N61: 0 | O61: 0 | P61: =IF(ABS(P49-P19)>tolerance_dollar,1,0) -> 0 | R61: =IF(ABS(R49-R19)>tolerance_dollar,1,0) -> 0 | S61: =IF(ABS(S49-S19)>tolerance_dollar,1,0) -> 0 | T61: 0 | U61: 0 | V61: =IF(ABS(V49-V19)>tolerance_dollar,1,0) -> 0 | W61: 0 | X61: 0
A64: =year_current&" rates" -> 2022/23 rates
J65: Rates | R65: Rates / average CV | Z65: Cents/$ OR Economic Development Rate $/property
A66: =Control!A$66 -> TA full name | B66: =Control!B$66 -> Rating area | C66: =Control!C$66 -> Category group | D66: =Control!D$66 -> Concatenated name | F66: CV | G66: CV Assessments | H66: Average CV | J66: General rate | K66: River management rate | L66: Public transport rate | M66: Stadium purposes rate | N66: Remission of rates | O66: Economic development rate | P66: District-Wide rates | R66: General rate | S66: River management rate | T66: Public transport rate | U66: Stadium purposes rate | V66: Remission of rates | W66: Economic development rate | X66: District-Wide rates | Z66: General rate | AA66: River management rate | AB66: Public transport rate | AC66: Stadium purposes rate | AD66: Remission of rates | AE66: Economic development rate | AF66: District-Wide rates
A68: By TA
A69: =Control!A42 -> Wellington city | C69: =Control!B42 -> District wide | D69: =Control!C42 -> Wellington cityDistrict wide | F69: =INDEX(capital_values,MATCH($D69,capital_values_rows,0),MATCH(F$66&" "&year_current,capital_values_header,0)) -> 114751871250 | G69: =INDEX(assessments,MATCH($D69,assessments_rows,0),MATCH(G$66&" "&year_current,assessments_header,0)) -> 79856 | H69: =F69/G69 -> 1436984.964 | J69: =INDEX(Gen!$D$10:$D$18,MATCH($A69,Gen!$A$10:$A$18,0),) -> 34594985.81 | K69: =INDEX('River management'!$C$10:$C$18,MATCH($A69,'River management'!$A$10:$A$18,0),) -> 55131.48 | L69: =INDEX('Public transport'!$I$10:$I$18,MATCH($A69,'Public transport'!$A$10:$A$18,0),) -> 55813220.47 | M69: =INDEX(Stadium!$I$10:$I$18,MATCH($A69,Stadium!$A$10:$A$18,0),) -> 0 | N69: =INDEX(Remission!$D$10:$D$18,MATCH($A69,Remission!$A$10:$A$18,0),) -> 0 | O69: =INDEX('Economic Development'!$K$10:$K$18,MATCH($A69,'Economic Development'!$A$10:$A$18,0),) -> 2084395.678 | P69: =SUM(J69:O69) -> 92547733.44 | R69: =J69/$F69*$H69 -> 433.2171134 | S69: =K69/$F69*$H69 -> 0.6903861952 | T69: =L69/$F69*$H69 -> 698.9233179 | U69: =M69/$F69*$H69 -> 0 | V69: =N69/$F69*$H69 -> 0 | W69: =O69/$F69*$H69 -> 26.10192945 | X69: =IF('Comparison - Category'!C69="Residential",SUM(R69:W69,Control!$B$103),IF('Comparison - Category'!C69="Rural",SUM(R69:V69,Control!$B$104),P69/$F69*$H69)) -> 1158.932747
A70: =Control!A43 -> Hutt city | C70: =Control!B43 -> District wide | D70: =Control!C43 -> Hutt cityDistrict wide | F70: 29131948500 | G70: 40468 | H70: =F70/G70 -> 719876.1614 | J70: =INDEX(Gen!$D$10:$D$18,MATCH($A70,Gen!$A$10:$A$18,0),) -> 12788945.42 | K70: =INDEX('River management'!$C$10:$C$18,MATCH($A70,'River management'!$A$10:$A$18,0),) -> 5098043.33 | L70: =INDEX('Public transport'!$I$10:$I$18,MATCH($A70,'Public transport'!$A$10:$A$18,0),) -> 14007552.98 | M70: =INDEX(Stadium!$I$10:$I$18,MATCH($A70,Stadium!$A$10:$A$18,0),) -> 0 | N70: =INDEX(Remission!$D$10:$D$18,MATCH($A70,Remission!$A$10:$A$18,0),) -> 0 | O70: =INDEX('Economic Development'!$K$10:$K$18,MATCH($A70,'Economic Development'!$A$10:$A$18,0),) -> 919729.2625 | P70: =SUM(J70:O70) -> 32814270.99 | R70: 316.0261297 | S70: 125.9771506 | T70: 346.1389983 | U70: 0 | V70: 0 | W70: 22.7273219 | X70: =IF('Comparison - Category'!C70="Residential",SUM(R70:W70,Control!$B$103),IF('Comparison - Category'!C70="Rural",SUM(R70:V70,Control!$B$104),P70/$F70*$H70)) -> 810.8696004
A71: =Control!A44 -> Upper Hutt city | C71: =Control!B44 -> District wide | D71: =Control!C44 -> Upper Hutt cityDistrict wide | F71: 11717909800 | G71: 17575 | H71: 666737.3997 | J71: =INDEX(Gen!$D$10:$D$18,MATCH($A71,Gen!$A$10:$A$18,0),) -> 5160803.783 | K71: =INDEX('River management'!$C$10:$C$18,MATCH($A71,'River management'!$A$10:$A$18,0),) -> 1136721.52 | L71: =INDEX('Public transport'!$I$10:$I$18,MATCH($A71,'Public transport'!$A$10:$A$18,0),) -> 5363263.637 | M71: =INDEX(Stadium!$I$10:$I$18,MATCH($A71,Stadium!$A$10:$A$18,0),) -> 0 | N71: =INDEX(Remission!$D$10:$D$18,MATCH($A71,Remission!$A$10:$A$18,0),) -> 0 | O71: =INDEX('Economic Development'!$K$10:$K$18,MATCH($A71,'Economic Development'!$A$10:$A$18,0),) -> 353972.1212 | P71: 12014761.06 | R71: 293.6445965 | S71: 64.67832262 | T71: 305.1643606 | U71: 0 | V71: 0 | W71: 20.14066124 | X71: =IF('Comparison - Category'!C71="Residential",SUM(R71:W71,Control!$B$103),IF('Comparison - Category'!C71="Rural",SUM(R71:V71,Control!$B$104),P71/$F71*$H71)) -> 683.6279409
A72: =Control!A45 -> Porirua city | C72: =Control!B45 -> District wide | D72: =Control!C45 -> Porirua cityDistrict wide | F72: 14623609200 | G72: 19859 | H72: 736371.8818 | J72: =INDEX(Gen!$D$10:$D$18,MATCH($A72,Gen!$A$10:$A$18,0),) -> 6152529.291 | K72: =INDEX('River management'!$C$10:$C$18,MATCH($A72,'River management'!$A$10:$A$18,0),) -> 45883.36 | L72: =INDEX('Public transport'!$I$10:$I$18,MATCH($A72,'Public transport'!$A$10:$A$18,0),) -> 6593785.125 | M72: =INDEX(Stadium!$I$10:$I$18,MATCH($A72,Stadium!$A$10:$A$18,0),) -> 0 | N72: =INDEX(Remission!$D$10:$D$18,MATCH($A72,Remission!$A$10:$A$18,0),) -> 0 | O72: =INDEX('Economic Development'!$K$10:$K$18,MATCH($A72,'Economic Development'!$A$10:$A$18,0),) -> 381115.5946 | P72: 13173313.37 | R72: 309.8106295 | S72: 2.31045672 | T72: 332.0300682 | U72: 0 | V72: 0 | W72: 19.19107682 | X72: =IF('Comparison - Category'!C72="Residential",SUM(R72:W72,Control!$B$103),IF('Comparison - Category'!C72="Rural",SUM(R72:V72,Control!$B$104),P72/$F72*$H72)) -> 663.3422312
A73: =Control!A46 -> Kāpiti Coast district | C73: =Control!B46 -> District wide | D73: =Control!C46 -> Kāpiti Coast districtDistrict wide | F73: 19783157650 | G73: 25554 | H73: 774170.6837 | J73: =INDEX(Gen!$D$10:$D$18,MATCH($A73,Gen!$A$10:$A$18,0),) -> 7579832.303 | K73: =INDEX('River management'!$C$10:$C$18,MATCH($A73,'River management'!$A$10:$A$18,0),) -> 1513486.56 | L73: =INDEX('Public transport'!$I$10:$I$18,MATCH($A73,'Public transport'!$A$10:$A$18,0),) -> 6324054.456 | M73: =INDEX(Stadium!$I$10:$I$18,MATCH($A73,Stadium!$A$10:$A$18,0),) -> 0 | N73: =INDEX(Remission!$D$10:$D$18,MATCH($A73,Remission!$A$10:$A$18,0),) -> 0 | O73: =INDEX('Economic Development'!$K$10:$K$18,MATCH($A73,'Economic Development'!$A$10:$A$18,0),) -> 469433.2858 | P73: 15886806.61 | R73: 296.6201887 | S73: 59.22699225 | T73: 247.4780644 | U73: 0 | V73: 0 | W73: 18.37024676 | X73: =IF('Comparison - Category'!C73="Residential",SUM(R73:W73,Control!$B$103),IF('Comparison - Category'!C73="Rural",SUM(R73:V73,Control!$B$104),P73/$F73*$H73)) -> 621.6954921
A74: =Control!A47 -> Masterton district | C74: =Control!B47 -> District wide | D74: =Control!C47 -> Masterton districtDistrict wide | F74: 8787884155 | G74: 13074 | H74: 672164.9193 | J74: =INDEX(Gen!$D$10:$D$18,MATCH($A74,Gen!$A$10:$A$18,0),) -> 3262323.09 | K74: =INDEX('River management'!$C$10:$C$18,MATCH($A74,'River management'!$A$10:$A$18,0),) -> 0 | L74: =INDEX('Public transport'!$I$10:$I$18,MATCH($A74,'Public transport'!$A$10:$A$18,0),) -> 1235093.995 | M74: =INDEX(Stadium!$I$10:$I$18,MATCH($A74,Stadium!$A$10:$A$18,0),) -> 0 | N74: =INDEX(Remission!$D$10:$D$18,MATCH($A74,Remission!$A$10:$A$18,0),) -> 0 | O74: =INDEX('Economic Development'!$K$10:$K$18,MATCH($A74,'Economic Development'!$A$10:$A$18,0),) -> 223844.9839 | P74: 4721262.068 | R74: 249.5275424 | S74: 0 | T74: 94.469481 | U74: 0 | V74: 0 | W74: 17.12138472 | X74: =IF('Comparison - Category'!C74="Residential",SUM(R74:W74,Control!$B$103),IF('Comparison - Category'!C74="Rural",SUM(R74:V74,Control!$B$104),P74/$F74*$H74)) -> 361.1184082
A75: =Control!A48 -> Carterton district | C75: =Control!B48 -> District wide | D75: =Control!C48 -> Carterton districtDistrict wide | F75: 3729014800 | G75: 5010 | H75: 744314.3313 | J75: =INDEX(Gen!$D$10:$D$18,MATCH($A75,Gen!$A$10:$A$18,0),) -> 1441408.734 | K75: =INDEX('River management'!$C$10:$C$18,MATCH($A75,'River management'!$A$10:$A$18,0),) -> 25282.96 | L75: =INDEX('Public transport'!$I$10:$I$18,MATCH($A75,'Public transport'!$A$10:$A$18,0),) -> 489099.9768 | M75: =INDEX(Stadium!$I$10:$I$18,MATCH($A75,Stadium!$A$10:$A$18,0),) -> 0 | N75: =INDEX(Remission!$D$10:$D$18,MATCH($A75,Remission!$A$10:$A$18,0),) -> 0 | O75: =INDEX('Economic Development'!$K$10:$K$18,MATCH($A75,'Economic Development'!$A$10:$A$18,0),) -> 74067.94719 | P75: 2029859.618 | R75: 287.706334 | S75: 5.046499002 | T75: 97.62474588 | U75: 0 | V75: 0 | W75: 14.78402139 | X75: =IF('Comparison - Category'!C75="Residential",SUM(R75:W75,Control!$B$103),IF('Comparison - Category'!C75="Rural",SUM(R75:V75,Control!$B$104),P75/$F75*$H75)) -> 405.1616003
A76: =Control!A49 -> South Wairarapa district | C76: =Control!B49 -> District wide | D76: =Control!C49 -> South Wairarapa districtDistrict wide | F76: 6354690200 | G76: 7133 | H76: 890886.0508 | J76: =INDEX(Gen!$D$10:$D$18,MATCH($A76,Gen!$A$10:$A$18,0),) -> 2350670.223 | K76: =INDEX('River management'!$C$10:$C$18,MATCH($A76,'River management'!$A$10:$A$18,0),) -> 0 | L76: =INDEX('Public transport'!$I$10:$I$18,MATCH($A76,'Public transport'!$A$10:$A$18,0),) -> 832409.2769 | M76: =INDEX(Stadium!$I$10:$I$18,MATCH($A76,Stadium!$A$10:$A$18,0),) -> 0 | N76: =INDEX(Remission!$D$10:$D$18,MATCH($A76,Remission!$A$10:$A$18,0),) -> 0 | O76: =INDEX('Economic Development'!$K$10:$K$18,MATCH($A76,'Economic Development'!$A$10:$A$18,0),) -> 113929.4168 | P76: 3297008.916 | R76: 329.5486083 | S76: 0 | T76: 116.6983425 | U76: 0 | V76: 0 | W76: 15.97215993 | X76: =IF('Comparison - Category'!C76="Residential",SUM(R76:W76,Control!$B$103),IF('Comparison - Category'!C76="Rural",SUM(R76:V76,Control!$B$104),P76/$F76*$H76)) -> 462.2191107
A77: =Control!A50 -> Tararua district | C77: =Control!B50 -> District wide | D77: =Control!C50 -> Tararua districtDistrict wide | F77: 15976500 | G77: 10 | H77: 1597650 | J77: =INDEX(Gen!$D$10:$D$18,MATCH($A77,Gen!$A$10:$A$18,0),) -> 6281.355962 | K77: =INDEX('River management'!$C$10:$C$18,MATCH($A77,'River management'!$A$10:$A$18,0),) -> 0 | L77: =INDEX('Public transport'!$I$10:$I$18,MATCH($A77,'Public transport'!$A$10:$A$18,0),) -> 0 | M77: =INDEX(Stadium!$I$10:$I$18,MATCH($A77,Stadium!$A$10:$A$18,0),) -> 0 | N77: =INDEX(Remission!$D$10:$D$18,MATCH($A77,Remission!$A$10:$A$18,0),) -> 0 | O77: =INDEX('Economic Development'!$K$10:$K$18,MATCH($A77,'Economic Development'!$A$10:$A$18,0),) -> 135 | P77: 6416.355962 | R77: 628.1355962 | S77: 0 | T77: 0 | U77: 0 | V77: 0 | W77: 13.5 | X77: =IF('Comparison - Category'!C77="Residential",SUM(R77:W77,Control!$B$103),IF('Comparison - Category'!C77="Rural",SUM(R77:V77,Control!$B$104),P77/$F77*$H77)) -> 641.6355962
A78: Region wide | D78: =Control!C51 -> Region wide | F78: =SUM(F69:F77) -> 208896062055 | G78: =SUM(G69:G77) -> 208539 | H78: =F78/G78 -> 1001712.208 | J78: =INDEX(ess_base_estract,MATCH(J66,ESSbase!$B$8:$B$25,0),MATCH(year_current,ESSbase!$F$6:$G$6,0)) -> 73337780 | K78: =INDEX(ess_base_estract,MATCH(K66,ESSbase!$B$8:$B$25,0),MATCH(year_current,ESSbase!$F$6:$G$6,0)) -> 7874549.21 | L78: =INDEX(ess_base_estract,MATCH(L66,ESSbase!$B$8:$B$25,0),MATCH(year_current,ESSbase!$F$6:$G$6,0)) -> 90658479.92 | M78: =INDEX(ess_base_estract,MATCH(M66,ESSbase!$B$8:$B$25,0),MATCH(year_current,ESSbase!$F$6:$G$6,0)) -> 0 | N78: =INDEX(ess_base_estract,MATCH(N66,ESSbase!$B$8:$B$25,0),MATCH(year_current,ESSbase!$F$6:$G$6,0)) -> 0 | O78: =INDEX(ess_base_estract,MATCH(O66,ESSbase!$B$8:$B$25,0),MATCH(year_current,ESSbase!$F$6:$G$6,0)) -> 4620623.29 | P78: =SUM(P69:P77) -> 176491432.4 | R78: 351.6741713 | S78: 37.76055898 | T78: 434.7315366 | U78: 0 | V78: 0 | W78: 22.15711828 | X78: =IF('Comparison - Category'!C78="Residential",SUM(R78:W78,Control!$B$103),IF('Comparison - Category'!C78="Rural",SUM(R78:V78,Control!$B$104),P78/$F78*$H78)) -> 846.3233852
A80: By TA & Category
A81: =Control!A67 -> Wellington city | B81: =Control!B67 -> Wellington city | C81: =Control!C67 -> Wellington CBD | D81: =Control!D67 -> Wellington cityWellington CBD | F81: =INDEX(capital_values,MATCH($D81,capital_values_rows,0),MATCH(F$66&" "&year_current,capital_values_header,0)) -> 13133427700 | G81: =INDEX(assessments,MATCH($D81,assessments_rows,0),MATCH(G$66&" "&year_current,assessments_header,0)) -> 3331 | H81: =F81/G81 -> 3942788.262 | J81: =Gen!F24 -> 6132891.786 | K81: =($F81/INDEX($F$69:$F$77,MATCH($A81,$A$69:$A$77,0),)) * INDEX(K$69:K$77,MATCH($A81,$A$69:$A$77,0),) -> 6309.834417 | L81: =INDEX('Public transport'!$I$23:$I$49,MATCH($D81,'Public transport'!$D$23:$D$49,0),) -> 27047320.24 | M81: =INDEX(Stadium!$I$23:$I$49,MATCH($D81,Stadium!$D$23:$D$49,0),) -> 0 | N81: =Remission!F24 -> 0 | O81: =INDEX('Economic Development'!$K$23:$K$49,MATCH($D81,'Economic Development'!$D$23:$D$49,0),) -> 640168.969 | P81: =SUM(J81:O81) -> 33826690.83 | R81: =J81/$F81*$H81 -> 1841.156345 | S81: =K81/$F81*$H81 -> 1.894276318 | T81: =L81/$F81*$H81 -> 8119.879987 | U81: =M81/$F81*$H81 -> 0 | V81: 0 | W81: =IF(AND('Comparison - Category'!C81="Residential",Control!$B$103<>"Remainder"),Control!$B$103,IF(AND('Comparison - Category'!C81="Rural",Control!$B$103<>"Remainder"),Control!$B$104,O81/$F81*$H81)) -> 192.1852204 | X81: =IF('Comparison - Category'!C81="Residential",SUM(R81:V81,Control!$B$103),IF('Comparison - Category'!C81="Rural",SUM(R81:V81,Control!$B$104),P81/$F81*$H81)) -> 10155.11583 | Z81: =J81/$F81*100 -> 0.04669681005 | AA81: =K81/$F81*100 -> 4.804407928e-05 | AB81: =L81/$F81*100 -> 0.205942583 | AC81: =M81/$F81*100 -> 0 | AD81: 0 | AE81: =IF(OR('Comparison - Category'!C81="Residential",'Comparison - Category'!C81="Rural"),W81,O81/$F81*100) -> 0.004874347989 | AF81: =P81/$F81*100 -> 0.2575617851
A82: =Control!A68 -> Wellington city | B82: =Control!B68 -> Wellington city | C82: =Control!C68 -> Business | D82: =Control!D68 -> Wellington cityBusiness | F82: 6659900150 | G82: 1885 | H82: 3533103.528 | J82: =Gen!F25 -> 2378205.411 | K82: =($F82/INDEX($F$69:$F$77,MATCH($A82,$A$69:$A$77,0),)) * INDEX(K$69:K$77,MATCH($A82,$A$69:$A$77,0),) -> 3199.687708 | L82: =INDEX('Public transport'!$I$23:$I$49,MATCH($D82,'Public transport'!$D$23:$D$49,0),) -> 2517183.077 | M82: =INDEX(Stadium!$I$23:$I$49,MATCH($D82,Stadium!$D$23:$D$49,0),) -> 0 | N82: =Remission!F25 -> 0 | O82: =INDEX('Economic Development'!$K$23:$K$49,MATCH($D82,'Economic Development'!$D$23:$D$49,0),) -> 324626.709 | P82: =SUM(J82:O82) -> 5223214.885 | R82: =J82/$F82*$H82 -> 1261.647433 | S82: 1.69744706 | T82: 1335.375638 | U82: 0 | V82: 0 | W82: =IF(AND('Comparison - Category'!C82="Residential",Control!$B$103<>"Remainder"),Control!$B$103,IF(AND('Comparison - Category'!C82="Rural",Control!$B$103<>"Remainder"),Control!$B$104,O82/$F82*$H82)) -> 172.2157608 | X82: =IF('Comparison - Category'!C82="Residential",SUM(R82:V82,Control!$B$103),IF('Comparison - Category'!C82="Rural",SUM(R82:V82,Control!$B$104),P82/$F82*$H82)) -> 2770.936279 | Z82: =J82/$F82*100 -> 0.03570932533 | AA82: 4.804407928e-05 | AB82: 0.03779610836 | AC82: 0 | AD82: 0 | AE82: =IF(OR('Comparison - Category'!C82="Residential",'Comparison - Category'!C82="Rural"),W82,O82/$F82*100) -> 0.004874347989 | AF82: =P82/$F82*100 -> 0.07842782576
A83: =Control!A69 -> Wellington city | B83: =Control!B69 -> Wellington city | C83: =Control!C69 -> Residential | D83: =Control!D69 -> Wellington cityResidential | F83: 93657459050 | G83: 73796 | H83: 1269140.049 | J83: =Gen!F26 -> 25726497.5 | K83: 44996.86388 | L83: =INDEX('Public transport'!$I$23:$I$49,MATCH($D83,'Public transport'!$D$23:$D$49,0),) -> 26157581.92 | M83: =INDEX(Stadium!$I$23:$I$49,MATCH($D83,Stadium!$D$23:$D$49,0),) -> 0 | N83: =Remission!F26 -> 0 | O83: =INDEX('Economic Development'!$K$23:$K$49,MATCH($D83,'Economic Development'!$D$23:$D$49,0),) -> 1106940 | P83: 53036016.28 | R83: 348.6164223 | S83: 0.6097466513 | T83: 354.4579912 | U83: 0 | V83: 0 | W83: =IF(AND('Comparison - Category'!C83="Residential",Control!$B$103<>"Remainder"),Control!$B$103,IF(AND('Comparison - Category'!C83="Rural",Control!$B$103<>"Remainder"),Control!$B$104,O83/$F83*$H83)) -> 15 | X83: =IF('Comparison - Category'!C83="Residential",SUM(R83:V83,Control!$B$103),IF('Comparison - Category'!C83="Rural",SUM(R83:V83,Control!$B$104),P83/$F83*$H83)) -> 718.6841602 | Z83: 0.02746871179 | AA83: 4.804407928e-05 | AB83: 0.02792898952 | AC83: 0 | AD83: 0 | AE83: =IF(OR('Comparison - Category'!C83="Residential",'Comparison - Category'!C83="Rural"),W83,O83/$F83*100) -> 15 | AF83: 0.05662764805
A84: =Control!A70 -> Wellington city | B84: =Control!B70 -> Wellington city | C84: =Control!C70 -> Rural | D84: =Control!D70 -> Wellington cityRural | F84: 1301084350 | G84: 844 | H84: 1541569.135 | J84: =Gen!F27 -> 357391.1103 | K84: 625.0939966 | L84: =INDEX('Public transport'!$I$23:$I$49,MATCH($D84,'Public transport'!$D$23:$D$49,0),) -> 91135.23678 | M84: =INDEX(Stadium!$I$23:$I$49,MATCH($D84,Stadium!$D$23:$D$49,0),) -> 0 | N84: =Remission!F27 -> 0 | O84: =INDEX('Economic Development'!$K$23:$K$49,MATCH($D84,'Economic Development'!$D$23:$D$49,0),) -> 12660 | P84: 461811.4411 | R84: 423.4491828 | S84: 0.7406326974 | T84: 107.9801384 | U84: 0 | V84: 0 | W84: =IF(AND('Comparison - Category'!C84="Residential",Control!$B$103<>"Remainder"),Control!$B$103,IF(AND('Comparison - Category'!C84="Rural",Control!$B$103<>"Remainder"),Control!$B$104,O84/$F84*$H84)) -> 15 | X84: =IF('Comparison - Category'!C84="Residential",SUM(R84:V84,Control!$B$103),IF('Comparison - Category'!C84="Rural",SUM(R84:V84,Control!$B$104),P84/$F84*$H84)) -> 547.1699539 | Z84: 0.02746871179 | AA84: 4.804407928e-05 | AB84: 0.007004560218 | AC84: 0 | AD84: 0 | AE84: =IF(OR('Comparison - Category'!C84="Residential",'Comparison - Category'!C84="Rural"),W84,O84/$F84*100) -> 15 | AF84: 0.03549435062
A85: =Control!A71 -> Hutt city | B85: =Control!B71 -> Hutt city | C85: =Control!C71 -> Business | D85: =Control!D71 -> Hutt cityBusiness | F85: 4905894500 | G85: 2348 | H85: 2089392.888 | J85: =($F85/INDEX($F$69:$F$77,MATCH($A85,$A$69:$A$77,0),)) * INDEX(J$69:J$77,MATCH($A85,$A$69:$A$77,0),) -> 2153691.058 | K85: 858523.5119 | L85: =INDEX('Public transport'!$I$23:$I$49,MATCH($D85,'Public transport'!$D$23:$D$49,0),) -> 2967697.745 | M85: =INDEX(Stadium!$I$23:$I$49,MATCH($D85,Stadium!$D$23:$D$49,0),) -> 0 | N85: =($F85/INDEX($F$69:$F$77,MATCH($A85,$A$69:$A$77,0),))*INDEX(N$69:N$77,MATCH($A85,$A$69:$A$77,0),) -> 0 | O85: =INDEX('Economic Development'!$K$23:$K$49,MATCH($D85,'Economic Development'!$D$23:$D$49,0),) -> 348214.2625 | P85: 6328126.577 | R85: 917.2449138 | S85: 365.6403372 | T85: 1263.925786 | U85: 0 | V85: 0 | W85: =IF(AND('Comparison - Category'!C85="Residential",Control!$B$103<>"Remainder"),Control!$B$103,IF(AND('Comparison - Category'!C85="Rural",Control!$B$103<>"Remainder"),Control!$B$104,O85/$F85*$H85)) -> 148.3024968 | X85: =IF('Comparison - Category'!C85="Residential",SUM(R85:V85,Control!$B$103),IF('Comparison - Category'!C85="Rural",SUM(R85:V85,Control!$B$104),P85/$F85*$H85)) -> 2695.113534 | Z85: 0.04390006873 | AA85: 0.01749983641 | AB85: 0.06049249011 | AC85: 0 | AD85: 0 | AE85: =IF(OR('Comparison - Category'!C85="Residential",'Comparison - Category'!C85="Rural"),W85,O85/$F85*100) -> 0.007097875066 | AF85: 0.1289902703
A86: =Control!A72 -> Hutt city | B86: =Control!B72 -> Hutt city | C86: =Control!C72 -> Residential | D86: =Control!D72 -> Hutt cityResidential | F86: 23837441000 | G86: 37680 | H86: 632628.4766 | J86: 10464652.98 | K86: 4171513.179 | L86: =INDEX('Public transport'!$I$23:$I$49,MATCH($D86,'Public transport'!$D$23:$D$49,0),) -> 10994851.91 | M86: =INDEX(Stadium!$I$23:$I$49,MATCH($D86,Stadium!$D$23:$D$49,0),) -> 0 | N86: =($F86/INDEX($F$69:$F$77,MATCH($A86,$A$69:$A$77,0),))*INDEX(N$69:N$77,MATCH($A86,$A$69:$A$77,0),) -> 0 | O86: =INDEX('Economic Development'!$K$23:$K$49,MATCH($D86,'Economic Development'!$D$23:$D$49,0),) -> 564915 | P86: 26195933.07 | R86: 277.7243361 | S86: 110.7089485 | T86: 291.7954327 | U86: 0 | V86: 0 | W86: =IF(AND('Comparison - Category'!C86="Residential",Control!$B$103<>"Remainder"),Control!$B$103,IF(AND('Comparison - Category'!C86="Rural",Control!$B$103<>"Remainder"),Control!$B$104,O86/$F86*$H86)) -> 15 | X86: =IF('Comparison - Category'!C86="Residential",SUM(R86:V86,Control!$B$103),IF('Comparison - Category'!C86="Rural",SUM(R86:V86,Control!$B$104),P86/$F86*$H86)) -> 695.2287173 | Z86: 0.04390006873 | AA86: 0.01749983641 | AB86: 0.04612429625 | AC86: 0 | AD86: 0 | AE86: =IF(OR('Comparison - Category'!C86="Residential",'Comparison - Category'!C86="Rural"),W86,O86/$F86*100) -> 15 | AF86: 0.1098940657
A87: =Control!A73 -> Hutt city | B87: =Control!B73 -> Hutt city | C87: =Control!C73 -> Rural | D87: =Control!D73 -> Hutt cityRural | F87: 388613000 | G87: 440 | H87: 883211.3636 | J87: 170601.3741 | K87: 68006.63926 | L87: =INDEX('Public transport'!$I$23:$I$49,MATCH($D87,'Public transport'!$D$23:$D$49,0),) -> 45003.33118 | M87: =INDEX(Stadium!$I$23:$I$49,MATCH($D87,Stadium!$D$23:$D$49,0),) -> 0 | N87: 0 | O87: =INDEX('Economic Development'!$K$23:$K$49,MATCH($D87,'Economic Development'!$D$23:$D$49,0),) -> 6600 | P87: 290211.3446 | R87: 387.7303957 | S87: 154.5605438 | T87: 102.2802981 | U87: 0 | V87: 0 | W87: =IF(AND('Comparison - Category'!C87="Residential",Control!$B$103<>"Remainder"),Control!$B$103,IF(AND('Comparison - Category'!C87="Rural",Control!$B$103<>"Remainder"),Control!$B$104,O87/$F87*$H87)) -> 15 | X87: =IF('Comparison - Category'!C87="Residential",SUM(R87:V87,Control!$B$103),IF('Comparison - Category'!C87="Rural",SUM(R87:V87,Control!$B$104),P87/$F87*$H87)) -> 659.5712376 | Z87: 0.04390006873 | AA87: 0.01749983641 | AB87: 0.0115805007 | AC87: 0 | AD87: 0 | AE87: =IF(OR('Comparison - Category'!C87="Residential",'Comparison - Category'!C87="Rural"),W87,O87/$F87*100) -> 15 | AF87: 0.07467875356
A88: =Control!A74 -> Upper Hutt city | B88: =Control!B74 -> Upper Hutt city | C88: =Control!C74 -> Business | D88: =Control!D74 -> Upper Hutt cityBusiness | F88: 1448246700 | G88: 768 | H88: 1885737.891 | J88: 637837.0524 | K88: 140490.345 | L88: =INDEX('Public transport'!$I$23:$I$49,MATCH($D88,'Public transport'!$D$23:$D$49,0),) -> 897331.4209 | M88: =INDEX(Stadium!$I$23:$I$49,MATCH($D88,Stadium!$D$23:$D$49,0),) -> 0 | N88: 0 | O88: =INDEX('Economic Development'!$K$23:$K$49,MATCH($D88,'Economic Development'!$D$23:$D$49,0),) -> 103127.1212 | P88: 1778785.94 | R88: 830.5169954 | S88: 182.9301367 | T88: 1168.400288 | U88: 0 | V88: 0 | W88: =IF(AND('Comparison - Category'!C88="Residential",Control!$B$103<>"Remainder"),Control!$B$103,IF(AND('Comparison - Category'!C88="Rural",Control!$B$103<>"Remainder"),Control!$B$104,O88/$F88*$H88)) -> 134.2801058 | X88: =IF('Comparison - Category'!C88="Residential",SUM(R88:V88,Control!$B$103),IF('Comparison - Category'!C88="Rural",SUM(R88:V88,Control!$B$104),P88/$F88*$H88)) -> 2316.127525 | Z88: 0.04404201663 | AA88: 0.00970071915 | AB88: 0.06195984571 | AC88: 0 | AD88: 0 | AE88: =IF(OR('Comparison - Category'!C88="Residential",'Comparison - Category'!C88="Rural"),W88,O88/$F88*100) -> 0.007120825564 | AF88: 0.1228234071
A89: =Control!A75 -> Upper Hutt city | B89: =Control!B75 -> Upper Hutt city | C89: =Control!C75 -> Residential | D89: =Control!D75 -> Upper Hutt cityResidential | F89: 9098976100 | G89: 15478 | H89: 587865.1053 | J89: 4007372.567 | K89: 882666.117 | L89: =INDEX('Public transport'!$I$23:$I$49,MATCH($D89,'Public transport'!$D$23:$D$49,0),) -> 4326125.773 | M89: =INDEX(Stadium!$I$23:$I$49,MATCH($D89,Stadium!$D$23:$D$49,0),) -> 0 | N89: 0 | O89: =INDEX('Economic Development'!$K$23:$K$49,MATCH($D89,'Economic Development'!$D$23:$D$49,0),) -> 231660 | P89: 9447824.457 | R89: 258.9076474 | S89: 57.02714285 | T89: 279.5016006 | U89: 0 | V89: 0 | W89: =IF(AND('Comparison - Category'!C89="Residential",Control!$B$103<>"Remainder"),Control!$B$103,IF(AND('Comparison - Category'!C89="Rural",Control!$B$103<>"Remainder"),Control!$B$104,O89/$F89*$H89)) -> 15 | X89: =IF('Comparison - Category'!C89="Residential",SUM(R89:V89,Control!$B$103),IF('Comparison - Category'!C89="Rural",SUM(R89:V89,Control!$B$104),P89/$F89*$H89)) -> 610.4363908 | Z89: 0.04404201663 | AA89: 0.00970071915 | AB89: 0.04754519328 | AC89: 0 | AD89: 0 | AE89: =IF(OR('Comparison - Category'!C89="Residential",'Comparison - Category'!C89="Rural"),W89,O89/$F89*100) -> 15 | AF89: 0.1038339298
A90: =Control!A76 -> Upper Hutt city | B90: =Control!B76 -> Upper Hutt city | C90: =Control!C76 -> Rural | D90: =Control!D76 -> Upper Hutt cityRural | F90: 1170687000 | G90: 1329 | H90: 880878.1038 | J90: 515594.1632 | K90: 113565.058 | L90: =INDEX('Public transport'!$I$23:$I$49,MATCH($D90,'Public transport'!$D$23:$D$49,0),) -> 139806.4423 | M90: =INDEX(Stadium!$I$23:$I$49,MATCH($D90,Stadium!$D$23:$D$49,0),) -> 0 | N90: 0 | O90: =INDEX('Economic Development'!$K$23:$K$49,MATCH($D90,'Economic Development'!$D$23:$D$49,0),) -> 19185 | P90: 788150.6636 | R90: 387.956481 | S90: 85.45151091 | T90: 105.1967211 | U90: 0 | V90: 0 | W90: =IF(AND('Comparison - Category'!C90="Residential",Control!$B$103<>"Remainder"),Control!$B$103,IF(AND('Comparison - Category'!C90="Rural",Control!$B$103<>"Remainder"),Control!$B$104,O90/$F90*$H90)) -> 15 | X90: =IF('Comparison - Category'!C90="Residential",SUM(R90:V90,Control!$B$103),IF('Comparison - Category'!C90="Rural",SUM(R90:V90,Control!$B$104),P90/$F90*$H90)) -> 593.604713 | Z90: 0.04404201663 | AA90: 0.00970071915 | AB90: 0.01194225633 | AC90: 0 | AD90: 0 | AE90: =IF(OR('Comparison - Category'!C90="Residential",'Comparison - Category'!C90="Rural"),W90,O90/$F90*100) -> 15 | AF90: 0.06732377344
A91: =Control!A77 -> Porirua city | B91: =Control!B77 -> Porirua city | C91: =Control!C77 -> Business | D91: =Control!D77 -> Porirua cityBusiness | F91: 1400176000 | G91: 801 | H91: 1748034.956 | J91: 589090.1305 | K91: 4393.223218 | L91: =INDEX('Public transport'!$I$23:$I$49,MATCH($D91,'Public transport'!$D$23:$D$49,0),) -> 833671.1725 | M91: =INDEX(Stadium!$I$23:$I$49,MATCH($D91,Stadium!$D$23:$D$49,0),) -> 0 | N91: 0 | O91: =INDEX('Economic Development'!$K$23:$K$49,MATCH($D91,'Economic Development'!$D$23:$D$49,0),) -> 95245.59459 | P91: 1522400.121 | R91: 735.4433589 | S91: 5.484673181 | T91: 1040.787981 | U91: 0 | V91: 0 | W91: =IF(AND('Comparison - Category'!C91="Residential",Control!$B$103<>"Remainder"),Control!$B$103,IF(AND('Comparison - Category'!C91="Rural",Control!$B$103<>"Remainder"),Control!$B$104,O91/$F91*$H91)) -> 118.9083578 | X91: =IF('Comparison - Category'!C91="Residential",SUM(R91:V91,Control!$B$103),IF('Comparison - Category'!C91="Rural",SUM(R91:V91,Control!$B$104),P91/$F91*$H91)) -> 1900.624371 | Z91: 0.04207257734 | AA91: 0.0003137622141 | AB91: 0.0595404558 | AC91: 0 | AD91: 0 | AE91: =IF(OR('Comparison - Category'!C91="Residential",'Comparison - Category'!C91="Rural"),W91,O91/$F91*100) -> 0.006802401597 | AF91: 0.108729197
A92: =Control!A78 -> Porirua city | B92: =Control!B78 -> Porirua city | C92: =Control!C78 -> Residential | D92: =Control!D78 -> Porirua cityResidential | F92: 12370577500 | G92: 18419 | H92: 671620.4734 | J92: 5204620.786 | K92: 38814.19785 | L92: =INDEX('Public transport'!$I$23:$I$49,MATCH($D92,'Public transport'!$D$23:$D$49,0),) -> 5662061.252 | M92: =INDEX(Stadium!$I$23:$I$49,MATCH($D92,Stadium!$D$23:$D$49,0),) -> 0 | N92: 0 | O92: =INDEX('Economic Development'!$K$23:$K$49,MATCH($D92,'Economic Development'!$D$23:$D$49,0),) -> 276285 | P92: 11181781.24 | R92: 282.5680431 | S92: 2.107291267 | T92: 307.4032929 | U92: 0 | V92: 0 | W92: =IF(AND('Comparison - Category'!C92="Residential",Control!$B$103<>"Remainder"),Control!$B$103,IF(AND('Comparison - Category'!C92="Rural",Control!$B$103<>"Remainder"),Control!$B$104,O92/$F92*$H92)) -> 15 | X92: =IF('Comparison - Category'!C92="Residential",SUM(R92:V92,Control!$B$103),IF('Comparison - Category'!C92="Rural",SUM(R92:V92,Control!$B$104),P92/$F92*$H92)) -> 607.0786273 | Z92: 0.04207257734 | AA92: 0.0003137622141 | AB92: 0.04577038745 | AC92: 0 | AD92: 0 | AE92: =IF(OR('Comparison - Category'!C92="Residential",'Comparison - Category'!C92="Rural"),W92,O92/$F92*100) -> 15 | AF92: 0.09039013123
A93: =Control!A79 -> Porirua city | B93: =Control!B79 -> Porirua city | C93: =Control!C79 -> Rural | D93: =Control!D79 -> Porirua cityRural | F93: 852855700 | G93: 639 | H93: 1334672.457 | J93: 358818.374 | K93: 2675.938927 | L93: =INDEX('Public transport'!$I$23:$I$49,MATCH($D93,'Public transport'!$D$23:$D$49,0),) -> 98052.70006 | M93: =INDEX(Stadium!$I$23:$I$49,MATCH($D93,Stadium!$D$23:$D$49,0),) -> 0 | N93: 0 | O93: =INDEX('Economic Development'!$K$23:$K$49,MATCH($D93,'Economic Development'!$D$23:$D$49,0),) -> 9585 | P93: 469132.013 | R93: 561.5311017 | S93: 4.187697851 | T93: 153.4471049 | U93: 0 | V93: 0 | W93: =IF(AND('Comparison - Category'!C93="Residential",Control!$B$103<>"Remainder"),Control!$B$103,IF(AND('Comparison - Category'!C93="Rural",Control!$B$103<>"Remainder"),Control!$B$104,O93/$F93*$H93)) -> 15 | X93: =IF('Comparison - Category'!C93="Residential",SUM(R93:V93,Control!$B$103),IF('Comparison - Category'!C93="Rural",SUM(R93:V93,Control!$B$104),P93/$F93*$H93)) -> 734.1659045 | Z93: 0.04207257734 | AA93: 0.0003137622141 | AB93: 0.01149698596 | AC93: 0 | AD93: 0 | AE93: =IF(OR('Comparison - Category'!C93="Residential",'Comparison - Category'!C93="Rural"),W93,O93/$F93*100) -> 15 | AF93: 0.05500719676
A94: =Control!A80 -> Kāpiti Coast district | B94: =Control!B80 -> Kāpiti Coast district | C94: =Control!C80 -> Business | D94: =Control!D80 -> Kāpiti Coast districtBusiness | F94: 1775736500 | G94: 1303 | H94: 1362806.216 | J94: 680365.8507 | K94: 135850.5742 | L94: =INDEX('Public transport'!$I$23:$I$49,MATCH($D94,'Public transport'!$D$23:$D$49,0),) -> 857757.3405 | M94: =INDEX(Stadium!$I$23:$I$49,MATCH($D94,Stadium!$D$23:$D$49,0),) -> 0 | N94: 0 | O94: =INDEX('Economic Development'!$K$23:$K$49,MATCH($D94,'Economic Development'!$D$23:$D$49,0),) -> 110003.2858 | P94: 1783977.051 | R94: 522.1533774 | S94: 104.2598421 | T94: 658.2941984 | U94: 0 | V94: 0 | W94: =IF(AND('Comparison - Category'!C94="Residential",Control!$B$103<>"Remainder"),Control!$B$103,IF(AND('Comparison - Category'!C94="Rural",Control!$B$103<>"Remainder"),Control!$B$104,O94/$F94*$H94)) -> 84.42308964 | X94: =IF('Comparison - Category'!C94="Residential",SUM(R94:V94,Control!$B$103),IF('Comparison - Category'!C94="Rural",SUM(R94:V94,Control!$B$104),P94/$F94*$H94)) -> 1369.130507 | Z94: 0.03831457261 | AA94: 0.007650379109 | AB94: 0.04830431432 | AC94: 0 | AD94: 0 | AE94: =IF(OR('Comparison - Category'!C94="Residential",'Comparison - Category'!C94="Rural"),W94,O94/$F94*100) -> 0.006194797809 | AF94: 0.1004640639
A95: =Control!A81 -> Kāpiti Coast district | B95: =Control!B81 -> Kāpiti Coast district excl Ōtaki | C95: =Control!C81 -> Residential | D95: =Control!D81 -> Kāpiti Coast district excl Ōtaki Residential | F95: 13678059800 | G95: 18314 | H95: 746863.5907 | J95: 5240690.154 | K95: 1046423.429 | L95: =INDEX('Public transport'!$I$23:$I$49,MATCH($D95,'Public transport'!$D$23:$D$49,0),) -> 4891850.763 | M95: =INDEX(Stadium!$I$23:$I$49,MATCH($D95,Stadium!$D$23:$D$49,0),) -> 0 | N95: 0 | O95: =INDEX('Economic Development'!$K$23:$K$49,MATCH($D95,'Economic Development'!$D$23:$D$49,0),) -> 272790 | P95: 11451754.35 | R95: 286.1575928 | S95: 57.13789612 | T95: 267.109903 | U95: 0 | V95: 0 | W95: =IF(AND('Comparison - Category'!C95="Residential",Control!$B$103<>"Remainder"),Control!$B$103,IF(AND('Comparison - Category'!C95="Rural",Control!$B$103<>"Remainder"),Control!$B$104,O95/$F95*$H95)) -> 15 | X95: =IF('Comparison - Category'!C95="Residential",SUM(R95:V95,Control!$B$103),IF('Comparison - Category'!C95="Rural",SUM(R95:V95,Control!$B$104),P95/$F95*$H95)) -> 625.4053919 | Z95: 0.03831457261 | AA95: 0.007650379109 | AB95: 0.03576421536 | AC95: 0 | AD95: 0 | AE95: =IF(OR('Comparison - Category'!C95="Residential",'Comparison - Category'!C95="Rural"),W95,O95/$F95*100) -> 15 | AF95: 0.08372352888
A96: =Control!A82 -> Kāpiti Coast district | B96: =Control!B82 -> Ōtaki rating area | C96: =Control!C82 -> Residential | D96: =Control!D82 -> Ōtaki rating areaResidential | F96: 1671453400 | G96: 3227 | H96: =F96/G96 -> 517958.9092 | J96: 640410.2266 | K96: 127872.5217 | L96: =INDEX('Public transport'!$I$23:$I$49,MATCH($D96,'Public transport'!$D$23:$D$49,0),) -> 335779.8053 | M96: =INDEX(Stadium!$I$23:$I$49,MATCH($D96,Stadium!$D$23:$D$49,0),) -> 0 | N96: 0 | O96: =INDEX('Economic Development'!$K$23:$K$49,MATCH($D96,'Economic Development'!$D$23:$D$49,0),) -> 47820 | P96: 1151882.554 | R96: =J96/$F96*$H96 -> 198.4537424 | S96: =K96/$F96*$H96 -> 39.62582018 | T96: =L96/$F96*$H96 -> 104.05324 | U96: =M96/$F96*$H96 -> 0 | V96: 0 | W96: =IF(AND('Comparison - Category'!C96="Residential",Control!$B$103<>"Remainder"),Control!$B$103,IF(AND('Comparison - Category'!C96="Rural",Control!$B$103<>"Remainder"),Control!$B$104,O96/$F96*$H96)) -> 15 | X96: =IF('Comparison - Category'!C96="Residential",SUM(R96:V96,Control!$B$103),IF('Comparison - Category'!C96="Rural",SUM(R96:V96,Control!$B$104),P96/$F96*$H96)) -> 357.1328025 | Z96: 0.03831457261 | AA96: 0.007650379109 | AB96: 0.02008909164 | AC96: 0 | AD96: 0 | AE96: =IF(OR('Comparison - Category'!C96="Residential",'Comparison - Category'!C96="Rural"),W96,O96/$F96*100) -> 15 | AF96: 0.06891502651
A97: =Control!A83 -> Kāpiti Coast district | B97: =Control!B83 -> Kāpiti Coast district | C97: =Control!C83 -> Rural | D97: =Control!D83 -> Kāpiti Coast districtRural | F97: 2657907950 | G97: 2710 | H97: 980777.8413 | J97: 1018366.071 | K97: 203340.0345 | L97: =INDEX('Public transport'!$I$23:$I$49,MATCH($D97,'Public transport'!$D$23:$D$49,0),) -> 238666.5472 | M97: =INDEX(Stadium!$I$23:$I$49,MATCH($D97,Stadium!$D$23:$D$49,0),) -> 0 | N97: 0 | O97: =INDEX('Economic Development'!$K$23:$K$49,MATCH($D97,'Economic Development'!$D$23:$D$49,0),) -> 38820 | P97: 1499192.653 | R97: 375.7808382 | S97: 75.03322308 | T97: 88.0688366 | U97: 0 | V97: 0 | W97: =IF(AND('Comparison - Category'!C97="Residential",Control!$B$103<>"Remainder"),Control!$B$103,IF(AND('Comparison - Category'!C97="Rural",Control!$B$103<>"Remainder"),Control!$B$104,O97/$F97*$H97)) -> 15 | X97: =IF('Comparison - Category'!C97="Residential",SUM(R97:V97,Control!$B$103),IF('Comparison - Category'!C97="Rural",SUM(R97:V97,Control!$B$104),P97/$F97*$H97)) -> 553.8828979 | Z97: 0.03831457261 | AA97: 0.007650379109 | AB97: 0.008979488819 | AC97: 0 | AD97: 0 | AE97: =IF(OR('Comparison - Category'!C97="Residential",'Comparison - Category'!C97="Rural"),W97,O97/$F97*100) -> 15 | AF97: 0.05640498774
A98: =Control!A84 -> Masterton district | B98: =Control!B84 -> Masterton district | C98: =Control!C84 -> Business | D98: =Control!D84 -> Masterton districtBusiness | F98: =INDEX(capital_values,MATCH($D98,capital_values_rows,0),MATCH(F$66&" "&year_current,capital_values_header,0)) -> 736487600 | G98: 570 | H98: 1292083.509 | J98: 273406.0282 | K98: 0 | L98: =INDEX('Public transport'!$I$23:$I$49,MATCH($D98,'Public transport'!$D$23:$D$49,0),) -> 234850.0197 | M98: =INDEX(Stadium!$I$23:$I$49,MATCH($D98,Stadium!$D$23:$D$49,0),) -> 0 | N98: 0 | O98: =INDEX('Economic Development'!$K$23:$K$49,MATCH($D98,'Economic Development'!$D$23:$D$49,0),) -> 44204.98387 | P98: 552461.0317 | R98: 479.6596986 | S98: 0 | T98: 412.0175784 | U98: 0 | V98: 0 | W98: =IF(AND('Comparison - Category'!C98="Residential",Control!$B$103<>"Remainder"),Control!$B$103,IF(AND('Comparison - Category'!C98="Rural",Control!$B$103<>"Remainder"),Control!$B$104,O98/$F98*$H98)) -> 77.55260328 | X98: =IF('Comparison - Category'!C98="Residential",SUM(R98:V98,Control!$B$103),IF('Comparison - Category'!C98="Rural",SUM(R98:V98,Control!$B$104),P98/$F98*$H98)) -> 969.2298802 | Z98: 0.03712296421 | AA98: 0 | AB98: 0.03188784437 | AC98: 0 | AD98: 0 | AE98: =IF(OR('Comparison - Category'!C98="Residential",'Comparison - Category'!C98="Rural"),W98,O98/$F98*100) -> 0.006002135524 | AF98: 0.0750129441
A99: =Control!A85 -> Masterton district | B99: =Control!B85 -> Masterton district | C99: =Control!C85 -> Residential | D99: =Control!D85 -> Masterton districtResidential | F99: =INDEX(capital_values,MATCH($D99,capital_values_rows,0),MATCH(F$66&" "&year_current,capital_values_header,0)) -> 4080427400 | G99: 8488 | H99: 480728.9585 | J99: 1514775.603 | K99: 0 | L99: =INDEX('Public transport'!$I$23:$I$49,MATCH($D99,'Public transport'!$D$23:$D$49,0),) -> 681440.651 | M99: =INDEX(Stadium!$I$23:$I$49,MATCH($D99,Stadium!$D$23:$D$49,0),) -> 0 | N99: 0 | O99: =INDEX('Economic Development'!$K$23:$K$49,MATCH($D99,'Economic Development'!$D$23:$D$49,0),) -> 125940 | P99: =SUM(J99:O99) -> 2322156.254 | R99: 178.4608392 | S99: 0 | T99: 80.28282881 | U99: 0 | V99: 0 | W99: =IF(AND('Comparison - Category'!C99="Residential",Control!$B$103<>"Remainder"),Control!$B$103,IF(AND('Comparison - Category'!C99="Rural",Control!$B$103<>"Remainder"),Control!$B$104,O99/$F99*$H99)) -> 15 | X99: =IF('Comparison - Category'!C99="Residential",SUM(R99:V99,Control!$B$103),IF('Comparison - Category'!C99="Rural",SUM(R99:V99,Control!$B$104),P99/$F99*$H99)) -> 273.743668 | Z99: 0.03712296421 | AA99: 0 | AB99: 0.01670022731 | AC99: 0 | AD99: 0 | AE99: =IF(OR('Comparison - Category'!C99="Residential",'Comparison - Category'!C99="Rural"),W99,O99/$F99*100) -> 15 | AF99: 0.05690963291
A100: =Control!A86 -> Masterton district | B100: =Control!B86 -> Masterton district | C100: =Control!C86 -> Rural | D100: =Control!D86 -> Masterton districtRural | F100: 3970969155 | G100: 4016 | H100: 988787.1402 | J100: 1474141.458 | K100: 0 | L100: =INDEX('Public transport'!$I$23:$I$49,MATCH($D100,'Public transport'!$D$23:$D$49,0),) -> 318803.324 | M100: =INDEX(Stadium!$I$23:$I$49,MATCH($D100,Stadium!$D$23:$D$49,0),) -> 0 | N100: 0 | O100: =INDEX('Economic Development'!$K$23:$K$49,MATCH($D100,'Economic Development'!$D$23:$D$49,0),) -> 53700 | P100: 1846644.782 | R100: 367.0670962 | S100: 0 | T100: 79.3832978 | U100: 0 | V100: 0 | W100: =IF(AND('Comparison - Category'!C100="Residential",Control!$B$103<>"Remainder"),Control!$B$103,IF(AND('Comparison - Category'!C100="Rural",Control!$B$103<>"Remainder"),Control!$B$104,O100/$F100*$H100)) -> 15 | X100: =IF('Comparison - Category'!C100="Residential",SUM(R100:V100,Control!$B$103),IF('Comparison - Category'!C100="Rural",SUM(R100:V100,Control!$B$104),P100/$F100*$H100)) -> 461.450394 | Z100: 0.03712296421 | AA100: 0 | AB100: 0.008028350549 | AC100: 0 | AD100: 0 | AE100: =IF(OR('Comparison - Category'!C100="Residential",'Comparison - Category'!C100="Rural"),W100,O100/$F100*100) -> 15 | AF100: 0.04650362947
A101: =Control!A87 -> Carterton district | B101: =Control!B87 -> Carterton district | C101: =Control!C87 -> Business | D101: =Control!D87 -> Carterton districtBusiness | F101: 133894500 | G101: 236 | H101: 567349.5763 | J101: 51755.41317 | K101: 907.8133151 | L101: =INDEX('Public transport'!$I$23:$I$49,MATCH($D101,'Public transport'!$D$23:$D$49,0),) -> 46131.37373 | M101: =INDEX(Stadium!$I$23:$I$49,MATCH($D101,Stadium!$D$23:$D$49,0),) -> 0 | N101: 0 | O101: =INDEX('Economic Development'!$K$23:$K$49,MATCH($D101,'Economic Development'!$D$23:$D$49,0),) -> 8367.947187 | P101: 107162.5474 | R101: 219.3025982 | S101: 3.846666589 | T101: 195.4719226 | U101: 0 | V101: 0 | W101: =IF(AND('Comparison - Category'!C101="Residential",Control!$B$103<>"Remainder"),Control!$B$103,IF(AND('Comparison - Category'!C101="Rural",Control!$B$103<>"Remainder"),Control!$B$104,O101/$F101*$H101)) -> 35.45740333 | X101: =IF('Comparison - Category'!C101="Residential",SUM(R101:V101,Control!$B$103),IF('Comparison - Category'!C101="Rural",SUM(R101:V101,Control!$B$104),P101/$F101*$H101)) -> 454.0785907 | Z101: 0.03865387538 | AA101: 0.0006780064268 | AB101: 0.03445352403 | AC101: 0 | AD101: 0 | AE101: =IF(OR('Comparison - Category'!C101="Residential",'Comparison - Category'!C101="Rural"),W101,O101/$F101*100) -> 0.006249657145 | AF101: 0.08003506298
A102: =Control!A88 -> Carterton district | B102: =Control!B88 -> Carterton district | C102: =Control!C88 -> Residential | D102: =Control!D88 -> Carterton districtResidential | F102: 1318035500 | G102: 2599 | H102: 507131.7815 | J102: 509471.7996 | K102: 8936.365397 | L102: =INDEX('Public transport'!$I$23:$I$49,MATCH($D102,'Public transport'!$D$23:$D$49,0),) -> 245676.36 | M102: =INDEX(Stadium!$I$23:$I$49,MATCH($D102,Stadium!$D$23:$D$49,0),) -> 0 | N102: 0 | O102: =INDEX('Economic Development'!$K$23:$K$49,MATCH($D102,'Economic Development'!$D$23:$D$49,0),) -> 37815 | P102: 801899.525 | R102: 196.0260868 | S102: 3.438386071 | T102: 94.52726434 | U102: 0 | V102: 0 | W102: =IF(AND('Comparison - Category'!C102="Residential",Control!$B$103<>"Remainder"),Control!$B$103,IF(AND('Comparison - Category'!C102="Rural",Control!$B$103<>"Remainder"),Control!$B$104,O102/$F102*$H102)) -> 15 | X102: =IF('Comparison - Category'!C102="Residential",SUM(R102:V102,Control!$B$103),IF('Comparison - Category'!C102="Rural",SUM(R102:V102,Control!$B$104),P102/$F102*$H102)) -> 308.9917372 | Z102: 0.03865387538 | AA102: 0.0006780064268 | AB102: 0.01863958596 | AC102: 0 | AD102: 0 | AE102: =IF(OR('Comparison - Category'!C102="Residential",'Comparison - Category'!C102="Rural"),W102,O102/$F102*100) -> 15 | AF102: 0.06084051037
A103: =Control!A89 -> Carterton district | B103: =Control!B89 -> Carterton district | C103: =Control!C89 -> Rural | D103: =Control!D89 -> Carterton districtRural | F103: 2277084800 | G103: 2175 | H103: 1046935.54 | J103: 880181.5208 | K103: 15438.78129 | L103: =INDEX('Public transport'!$I$23:$I$49,MATCH($D103,'Public transport'!$D$23:$D$49,0),) -> 197292.2431 | M103: =INDEX(Stadium!$I$23:$I$49,MATCH($D103,Stadium!$D$23:$D$49,0),) -> 0 | N103: 0 | O103: =INDEX('Economic Development'!$K$23:$K$49,MATCH($D103,'Economic Development'!$D$23:$D$49,0),) -> 27885 | P103: 1120797.545 | R103: 404.681159 | S103: 7.098290247 | T103: 90.70907728 | U103: 0 | V103: 0 | W103: =IF(AND('Comparison - Category'!C103="Residential",Control!$B$103<>"Remainder"),Control!$B$103,IF(AND('Comparison - Category'!C103="Rural",Control!$B$103<>"Remainder"),Control!$B$104,O103/$F103*$H103)) -> 15 | X103: =IF('Comparison - Category'!C103="Residential",SUM(R103:V103,Control!$B$103),IF('Comparison - Category'!C103="Rural",SUM(R103:V103,Control!$B$104),P103/$F103*$H103)) -> 517.4885265 | Z103: 0.03865387538 | AA103: 0.0006780064268 | AB103: 0.008664246631 | AC103: 0 | AD103: 0 | AE103: =IF(OR('Comparison - Category'!C103="Residential",'Comparison - Category'!C103="Rural"),W103,O103/$F103*100) -> 15 | AF103: 0.04922072051
A104: =Control!A90 -> South Wairarapa district | B104: =Control!B90 -> South Wairarapa district | C104: =Control!C90 -> Business | D104: =Control!D90 -> South Wairarapa districtBusiness | F104: 287242000 | G104: 315 | H104: 911879.3651 | J104: 106253.9943 | K104: 0 | L104: =INDEX('Public transport'!$I$23:$I$49,MATCH($D104,'Public transport'!$D$23:$D$49,0),) -> 97203.84783 | M104: =INDEX(Stadium!$I$23:$I$49,MATCH($D104,Stadium!$D$23:$D$49,0),) -> 0 | N104: 0 | O104: =INDEX('Economic Development'!$K$23:$K$49,MATCH($D104,'Economic Development'!$D$23:$D$49,0),) -> 17179.41676 | P104: 220637.2589 | R104: 337.3142675 | S104: 0 | T104: 308.5836439 | U104: 0 | V104: 0 | W104: =IF(AND('Comparison - Category'!C104="Residential",Control!$B$103<>"Remainder"),Control!$B$103,IF(AND('Comparison - Category'!C104="Rural",Control!$B$103<>"Remainder"),Control!$B$104,O104/$F104*$H104)) -> 54.53783099 | X104: =IF('Comparison - Category'!C104="Residential",SUM(R104:V104,Control!$B$103),IF('Comparison - Category'!C104="Rural",SUM(R104:V104,Control!$B$104),P104/$F104*$H104)) -> 700.4357424 | Z104: 0.03699110655 | AA104: 0 | AB104: 0.03384040211 | AC104: 0 | AD104: 0 | AE104: =IF(OR('Comparison - Category'!C104="Residential",'Comparison - Category'!C104="Rural"),W104,O104/$F104*100) -> 0.005980816441 | AF104: 0.0768123251
A105: =Control!A91 -> South Wairarapa district | B105: =Control!B91 -> South Wairarapa district | C105: =Control!C91 -> Residential | D105: =Control!D91 -> South Wairarapa districtResidential | F105: 2151921500 | G105: 3536 | H105: 608575.0848 | J105: 796019.5749 | K105: 0 | L105: =INDEX('Public transport'!$I$23:$I$49,MATCH($D105,'Public transport'!$D$23:$D$49,0),) -> 402554.1491 | M105: =INDEX(Stadium!$I$23:$I$49,MATCH($D105,Stadium!$D$23:$D$49,0),) -> 0 | N105: 0 | O105: =INDEX('Economic Development'!$K$23:$K$49,MATCH($D105,'Economic Development'!$D$23:$D$49,0),) -> 51705 | P105: 1250278.724 | R105: 225.1186581 | S105: 0 | T105: 113.8444992 | U105: 0 | V105: 0 | W105: =IF(AND('Comparison - Category'!C105="Residential",Control!$B$103<>"Remainder"),Control!$B$103,IF(AND('Comparison - Category'!C105="Rural",Control!$B$103<>"Remainder"),Control!$B$104,O105/$F105*$H105)) -> 15 | X105: =IF('Comparison - Category'!C105="Residential",SUM(R105:V105,Control!$B$103),IF('Comparison - Category'!C105="Rural",SUM(R105:V105,Control!$B$104),P105/$F105*$H105)) -> 353.9631572 | Z105: 0.03699110655 | AA105: 0 | AB105: 0.0187067302 | AC105: 0 | AD105: 0 | AE105: =IF(OR('Comparison - Category'!C105="Residential",'Comparison - Category'!C105="Rural"),W105,O105/$F105*100) -> 15 | AF105: 0.05810057309
A106: =Control!A92 -> South Wairarapa district | B106: =Control!B92 -> South Wairarapa district | C106: =Control!C92 -> Rural | D106: =Control!D92 -> South Wairarapa districtRural | F106: 3915526700 | G106: 3282 | H106: 1193030.683 | J106: 1448396.654 | K106: 0 | L106: =INDEX('Public transport'!$I$23:$I$49,MATCH($D106,'Public transport'!$D$23:$D$49,0),) -> 332651.28 | M106: =INDEX(Stadium!$I$23:$I$49,MATCH($D106,Stadium!$D$23:$D$49,0),) -> 0 | N106: 0 | O106: =INDEX('Economic Development'!$K$23:$K$49,MATCH($D106,'Economic Development'!$D$23:$D$49,0),) -> 45045 | P106: 1826092.934 | R106: 441.3152509 | S106: 0 | T106: 101.3562706 | U106: 0 | V106: 0 | W106: =IF(AND('Comparison - Category'!C106="Residential",Control!$B$103<>"Remainder"),Control!$B$103,IF(AND('Comparison - Category'!C106="Rural",Control!$B$103<>"Remainder"),Control!$B$104,O106/$F106*$H106)) -> 15 | X106: =IF('Comparison - Category'!C106="Residential",SUM(R106:V106,Control!$B$103),IF('Comparison - Category'!C106="Rural",SUM(R106:V106,Control!$B$104),P106/$F106*$H106)) -> 557.6715215 | Z106: 0.03699110655 | AA106: 0 | AB106: 0.008495696889 | AC106: 0 | AD106: 0 | AE106: =IF(OR('Comparison - Category'!C106="Residential",'Comparison - Category'!C106="Rural"),W106,O106/$F106*100) -> 15 | AF106: 0.04663722338
A107: =Control!A93 -> Tararua district | B107: =Control!B93 -> Tararua district | C107: =Control!C93 -> Rural | D107: =Control!D93 -> Tararua districtRural | F107: 15976500 | G107: 10 | H107: 1597650 | J107: 6281.355962 | K107: 0 | L107: =INDEX('Public transport'!$I$23:$I$49,MATCH($D107,'Public transport'!$D$23:$D$49,0),) -> 0 | M107: =INDEX(Stadium!$I$23:$I$49,MATCH($D107,Stadium!$D$23:$D$49,0),) -> 0 | N107: 0 | O107: =INDEX('Economic Development'!$K$23:$K$49,MATCH($D107,'Economic Development'!$D$23:$D$49,0),) -> 135 | P107: =SUM(J107:O107) -> 6416.355962 | R107: 628.1355962 | S107: 0 | T107: 0 | U107: 0 | V107: 0 | W107: =IF(AND('Comparison - Category'!C107="Residential",Control!$B$103<>"Remainder"),Control!$B$103,IF(AND('Comparison - Category'!C107="Rural",Control!$B$103<>"Remainder"),Control!$B$104,O107/$F107*$H107)) -> 15 | X107: =IF('Comparison - Category'!C107="Residential",SUM(R107:V107,Control!$B$103),IF('Comparison - Category'!C107="Rural",SUM(R107:V107,Control!$B$104),P107/$F107*$H107)) -> 643.1355962 | Z107: 0.03931622046 | AA107: 0 | AB107: 0 | AC107: 0 | AD107: 0 | AE107: =IF(OR('Comparison - Category'!C107="Residential",'Comparison - Category'!C107="Rural"),W107,O107/$F107*100) -> 15 | AF107: 0.04016121154
A108: Region wide | D108: =Control!D94 -> Region wide | F108: =SUM(F81:F107) -> 208896062055 | G108: =SUM(G81:G107) -> 208539 | H108: 1001712.208 | J108: =SUM(J81:J107) -> 73337780 | K108: 7874549.21 | L108: 90658479.92 | M108: 0 | N108: 0 | O108: 4620623.29 | P108: 176491432.4 | R108: 351.6741713 | S108: 37.76055898 | T108: 434.7315366 | U108: 0 | V108: 0 | W108: =IF(AND('Comparison - Category'!C108="Residential",Control!$B$103<>"Remainder"),Control!$B$103,IF(AND('Comparison - Category'!C108="Rural",Control!$B$103<>"Remainder"),Control!$B$104,O108/$F108*$H108)) -> 22.15711828 | X108: =IF('Comparison - Category'!C108="Residential",SUM(R108:V108,Control!$B$103),IF('Comparison - Category'!C108="Rural",SUM(R108:V108,Control!$B$104),P108/$F108*$H108)) -> 846.3233852 | Z108: 0.03510730613 | AA108: 0.003769601558 | AB108: 0.04339884583 | AC108: 0 | AD108: 0 | AE108: =IF(OR('Comparison - Category'!C108="Residential",'Comparison - Category'!C108="Rural"),W108,O108/$F108*100) -> 0.002211924555 | AF108: 0.08448767807
A110: By category
A111: Region Wide | C111: =C81 -> Wellington CBD | D111: =A111&C111 -> Region WideWellington CBD | F111: =SUMIF($C$81:$C$107,$C111,F$81:F$107) -> 13133427700 | G111: 3331 | H111: =F111/G111 -> 3942788.262 | J111: =SUMIF($C$81:$C$107,$C111,J$81:J$107) -> 6132891.786 | K111: 6309.834417 | L111: 27047320.24 | M111: 0 | N111: 0 | O111: 640168.969 | P111: =SUMIF($C$81:$C$107,$C111,P$81:P$107) -> 33826690.83 | R111: =J111/$F111*$H111 -> 1841.156345 | S111: 1.894276318 | T111: 8119.879987 | U111: 0 | V111: 0 | W111: 192.1852204 | X111: =IF('Comparison - Category'!C111="Residential",SUM(R111:U111,Control!$B$103),IF('Comparison - Category'!C111="Rural",SUM(R111:U111,Control!$B$104),P111/$F111*$H111)) -> 10155.11583
A112: Region Wide | C112: =C82 -> Business | D112: =A112&C112 -> Region WideBusiness | F112: 17347577950 | G112: 8226 | H112: =F112/G112 -> 2108871.62 | J112: 6870604.938 | K112: 1143365.155 | L112: 8451825.998 | M112: 0 | N112: 0 | O112: 1050969.321 | P112: =SUMIF($C$81:$C$107,$C112,P$81:P$107) -> 17516765.41 | R112: =J112/$F112*$H112 -> 835.2303596 | S112: 138.9940622 | T112: 1027.452711 | U112: 0 | V112: 0 | W112: 127.7618917 | X112: =IF('Comparison - Category'!C112="Residential",SUM(R112:U112,Control!$B$103),IF('Comparison - Category'!C112="Rural",SUM(R112:U112,Control!$B$104),P112/$F112*$H112)) -> 2129.439024
A113: Region Wide | C113: =C83 -> Residential | D113: =A113&C113 -> Region WideResidential | F113: 161864351250 | G113: 181537 | H113: =F113/G113 -> 891632.8421 | J113: 54104511.19 | K113: 6321222.674 | L113: 53697922.58 | M113: 0 | N113: 0 | O113: 2715870 | P113: =SUMIF($C$81:$C$107,$C113,P$81:P$107) -> 116839526.4 | R113: 298.0357238 | S113: 34.82057473 | T113: 295.7960227 | U113: 0 | V113: 0 | W113: 14.96042129 | X113: =IF('Comparison - Category'!C113="Residential",SUM(R113:V113,Control!$B$103),IF('Comparison - Category'!C113="Rural",SUM(R113:V113,Control!$B$104),P113/$F113*$H113)) -> 643.6523213
A114: Region Wide | C114: =C84 -> Rural | D114: =A114&C114 -> Region WideRural | F114: 16550705155 | G114: 15445 | H114: =F114/G114 -> 1071589.845 | J114: 6229772.082 | K114: 403651.546 | L114: 1461411.105 | M114: 0 | N114: 0 | O114: 213615 | P114: =SUMIF($C$81:$C$107,$C114,P$81:P$107) -> 8308449.732 | R114: 403.3520286 | S114: 26.13477151 | T114: 94.62033698 | U114: 0 | V114: 0 | W114: 13.83068954 | X114: =IF('Comparison - Category'!C114="Residential",SUM(R114:V114,Control!$B$103),IF('Comparison - Category'!C114="Rural",SUM(R114:V114,Control!$B$104),P114/$F114*$H114)) -> 539.1071371
A115: Region Wide | C115: Total | D115: =A115&C115 -> Region WideTotal | F115: =SUM(F111:F114) -> 208896062055 | G115: =SUM(G111:G114) -> 208539 | H115: =F115/G115 -> 1001712.208 | J115: =SUM(J111:J114) -> 73337780 | K115: =SUM(K111:K114) -> 7874549.21 | L115: 90658479.92 | M115: 0 | N115: 0 | O115: 4620623.29 | P115: =SUM(P111:P114) -> 176491432.4 | R115: 351.6741713 | S115: 37.76055898 | T115: 434.7315366 | U115: 0 | V115: 0 | W115: 22.15711828 | X115: =IF('Comparison - Category'!C115="Residential",SUM(R115:V115,Control!$B$103),IF('Comparison - Category'!C115="Rural",SUM(R115:V115,Control!$B$104),P115/$F115*$H115)) -> 846.3233852
J118: =IF(ABS(J78-SUM(J69:J77))>tolerance_dollar,1,0) -> 0 | K118: 0 | L118: 0 | M118: 0 | N118: 0 | O118: 0 | P118: 0
J119: =J108-SUM(J81:J107) -> 0 | K119: 0 | L119: 0 | M119: 0 | N119: 0 | O119: 0 | P119: 0
F120: =F108-F78 -> 0 | G120: =G108-G78 -> 0 | J120: =IF(ABS(J108-J78)>tolerance_dollar,1,0) -> 0 | K120: =IF(ABS(K108-K78)>tolerance_dollar,1,0) -> 0 | L120: 0 | M120: 0 | N120: 0 | O120: 0 | P120: =IF(ABS(P108-P78)>tolerance_dollar,1,0) -> 0 | R120: =IF(ABS(R108-R78)>tolerance_dollar,1,0) -> 0 | S120: 0 | T120: 0 | U120: 0 | V120: 0 | W120: 0 | X120: 0
A123: Delta
J124: Rates | R124: Rates / average CV | Z124: Cents/$ OR Economic Development Rate $/property
A125: =Control!A$66 -> TA full name | B125: =Control!B$66 -> Rating area | C125: =Control!C$66 -> Category group | D125: =Control!D$66 -> Concatenated name | F125: CV | G125: CV Assessments | H125: Average CV | J125: General rate | K125: River management rate | L125: Public transport rate | M125: Stadium purposes rate | N125: Remission of rates | O125: Economic development rate | R125: General rate | S125: River management rate | T125: Public transport rate | U125: Remission of rates | V125: Stadium purposes rate | W125: Economic development rate | X125: District-Wide rates | Z125: General rate | AA125: River management rate | AB125: Public transport rate | AC125: Remission of rates | AD125: Stadium purposes rate | AE125: Economic development rate | AF125: District-Wide rates
A127: By TA
A128: =Control!A42 -> Wellington city | C128: =Control!B42 -> District wide | D128: =Control!C42 -> Wellington cityDistrict wide | F128: =F69-F10 -> 40611946850 | G128: 512 | H128: 502573.7365 | J128: =J69-J10 -> 5026597.101 | K128: =K69-K10 -> -1756.765 | L128: 5622085.651 | M128: 0 | N128: 0 | O128: -29089.34188 | P128: 10617836.65 | R128: =R69-R10 -> 60.55643702 | S128: -0.02659612235 | T128: 66.34700687 | U128: 0 | V128: 0 | W128: -0.535056586 | X128: =X69-X10 -> 126.3417912
A129: =Control!A43 -> Hutt city | C129: =Control!B43 -> District wide | D129: =Control!C43 -> Hutt cityDistrict wide | F129: 260169000 | G129: 390 | H129: -513.5661198 | J129: 1843884.458 | K129: =K70-K11 -> 791577.0353 | L129: =L70-L11 -> 1187831.342 | M129: 0 | N129: 0 | O129: 39018.12893 | P129: 3862310.965 | R129: 42.93213903 | S129: 18.52502486 | T129: 26.2697024 | U129: =U70-U11 -> 0 | V129: 0 | W129: 0.7523946651 | X129: =X70-X11 -> 88.47926096
A130: =Control!A44 -> Upper Hutt city | C130: =Control!B44 -> District wide | D130: =Control!C44 -> Upper Hutt cityDistrict wide | F130: 174478000 | G130: 252 | H130: 372.92474 | J130: 737124.1773 | K130: 66755.78378 | L130: 320024.9391 | M130: 0 | N130: 0 | O130: 5082.029758 | P130: 1128986.93 | R130: 38.28007498 | S130: 2.912708334 | T130: 14.03472379 | U130: 0 | V130: 0 | W130: 0.0003800223021 | X130: 55.22788713
A131: =Control!A45 -> Porirua city | C131: =Control!B45 -> District wide | D131: =Control!C45 -> Porirua cityDistrict wide | F131: 171907550 | G131: 462 | H131: -8676.406629 | J131: 841610.0628 | K131: -10487.87595 | L131: 290427.2836 | M131: 0 | N131: 0 | O131: 15104.47316 | P131: 1136653.944 | R131: 36.00956601 | S131: -0.5957265018 | T131: 7.06446317 | U131: 0 | V131: 0 | W131: 0.3216062107 | X131: 42.79990889
A132: =Control!A46 -> Kāpiti Coast district | C132: =Control!B46 -> District wide | D132: =Control!C46 -> Kāpiti Coast districtDistrict wide | F132: 154349500 | G132: 77 | H132: 3718.583717 | J132: 969265.7539 | K132: 231947.669 | L132: 1000383.747 | M132: 0 | N132: 0 | O132: -9992.304671 | P132: 2191604.865 | R132: 37.14825134 | S132: 8.925194906 | T132: 38.51819036 | U132: 0 | V132: 0 | W132: -0.4477298611 | X132: 84.14390674
A133: =Control!A47 -> Masterton district | C133: =Control!B47 -> District wide | D133: =Control!C47 -> Masterton districtDistrict wide | F133: 147301500 | G133: 205 | H133: 738.8057769 | J133: 341499.5927 | K133: 0 | L133: 238456.9777 | M133: 0 | N133: 0 | O133: -36882.78066 | P133: 543073.7898 | R133: 22.5616945 | S133: 0 | T133: 17.02468988 | U133: 0 | V133: 0 | W133: -3.138757054 | X133: 36.44762733
A134: =Control!A48 -> Carterton district | C134: =Control!B48 -> District wide | D134: =Control!C48 -> Carterton districtDistrict wide | F134: 63323500 | G134: 91 | H134: -896.3415637 | J134: 202776.893 | K134: 373.64 | L134: 88259.06388 | M134: 0 | N134: 0 | O134: -19967.54287 | P134: 271442.054 | R134: 35.9007149 | S134: -0.0174001645 | T134: 16.13645294 | U134: 0 | V134: 0 | W134: -4.332768615 | X134: 47.68699906
A135: =Control!A49 -> South Wairarapa district | C135: =Control!B49 -> District wide | D135: =Control!C49 -> South Wairarapa districtDistrict wide | F135: 102498800 | G135: 110 | H135: 640.9418222 | J135: 261131.1683 | K135: 0 | L135: 100680.0866 | M135: 0 | N135: 0 | O135: -33334.00395 | P135: 328477.2509 | R135: 32.02062101 | S135: 0 | T135: 12.5079409 | U135: 0 | V135: 0 | W135: -4.996574333 | X135: 39.53198758
A136: =Control!A50 -> Tararua district | C136: =Control!B50 -> District wide | D136: =Control!C50 -> Tararua districtDistrict wide | F136: 0 | G136: 0 | H136: 0 | J136: 875.2804875 | K136: 0 | L136: 0 | M136: 0 | N136: 0 | O136: -117 | P136: 758.2804875 | R136: 87.52804875 | S136: 0 | T136: 0 | U136: 0 | V136: 0 | W136: -11.7 | X136: 75.82804875
A137: Region wide | D137: =Control!C51 -> Region wide | F137: 41685974700 | G137: 2099 | H137: 191742.7862 | J137: 10224764.49 | K137: 1078409.487 | L137: 8848149.091 | M137: 0 | N137: 0 | O137: =O78-O19 -> -70178.34219 | P137: =P78-P19 -> 20081144.72 | R137: 45.95330557 | S137: 4.839905415 | T137: 38.44045532 | U137: 0 | V137: 0 | W137: -0.5652302532 | X137: 88.66843605
A139: By TA & Category
A140: =Control!A67 -> Wellington city | B140: =Control!B67 -> Wellington city | C140: =Control!C67 -> Wellington CBD | D140: =Control!D67 -> Wellington cityWellington CBD | F140: =F81-F22 -> 3236440550 | G140: 55 | H140: 921729.9132 | J140: =J81-J22 -> 99071.14322 | K140: -1284.214732 | L140: -190267.4927 | M140: 0 | N140: 0 | O140: -85418.7592 | P140: -177899.3234 | R140: =R81-R22 -> -0.6692477912 | S140: -0.4238095022 | T140: -194.4019817 | U140: 0 | V140: 0 | W140: -29.30065517 | X140: -224.7956941 | Z140: =Z81-Z22 -> -0.01426942696 | AA140: -2.868683926e-05 | AB140: -0.06926832028 | AC140: 0 | AD140: 0 | AE140: -0.002457052135 | AF140: =AF81-AF22 -> -0.08602348622
A141: =Control!A68 -> Wellington city | B141: =Control!B68 -> Wellington city | C141: =Control!C68 -> Business | D141: =Control!D68 -> Wellington cityBusiness | F141: 2054814000 | G141: 0 | H141: 1090087.003 | J141: =J82-J23 -> 231257.142 | K141: =K82-K23 -> -333.8371945 | L141: 402565.0978 | M141: 0 | N141: 0 | O141: -12990.58268 | P141: 620497.82 | R141: 122.682834 | S141: -0.17710196 | T141: 213.5623861 | U141: 0 | V141: 0 | W141: =W82-W23 -> -6.891555798 | X141: 329.1765623 | Z141: -0.01091191474 | AA141: -2.868683926e-05 | AB141: -0.008123075574 | AC141: 0 | AD141: =AD82-AD23 -> 0 | AE141: -0.002457052135 | AF141: -0.02152072928
A142: =Control!A69 -> Wellington city | B142: =Control!B69 -> Wellington city | C142: =Control!C69 -> Residential | D142: =Control!D69 -> Wellington cityResidential | F142: 34838394050 | G142: 450 | H142: 467200.4067 | J142: 4632514.808 | K142: -135.5449748 | L142: 5391412.569 | M142: 0 | N142: 0 | O142: 80096 | P142: 10103887.83 | R142: 61.02087937 | S142: -0.005589002371 | T142: 71.33185822 | U142: 0 | V142: 0 | W142: 1 | X142: 133.3471486 | Z142: -0.008393780565 | AA142: -2.868683926e-05 | AB142: -0.007376177866 | AC142: 0 | AD142: 0 | AE142: 1 | AF142: -0.01636250991
A143: =Control!A70 -> Wellington city | B143: =Control!B70 -> Wellington city | C143: =Control!C70 -> Rural | D143: =Control!D70 -> Wellington cityRural | F143: 482298250 | G143: 7 | H143: 563330.067 | J143: 63754.00774 | K143: -3.168098812 | L143: 18375.47703 | M143: 0 | N143: 0 | O143: -10776 | P143: 71350.31668 | R143: 72.62827176 | S143: -0.009979125082 | T143: 21.05091525 | U143: 0 | V143: =V84-V25 -> 0 | W143: -13 | X143: 80.66920788 | Z143: -0.008393780565 | AA143: -2.868683926e-05 | AB143: -0.001881736184 | AC143: 0 | AD143: 0 | AE143: -13 | AF143: -0.01219345507
A144: =Control!A71 -> Hutt city | B144: =Control!B71 -> Hutt city | C144: =Control!C71 -> Business | D144: =Control!D71 -> Hutt cityBusiness | F144: -66679000 | G144: -40 | H144: 7075.676509 | J144: 268628.1687 | K144: 116822.7734 | L144: 321106.6858 | M144: 0 | N144: 0 | O144: 1687.128927 | P144: 708244.7568 | R144: 127.8550943 | S144: 55.04538814 | T144: 155.6380725 | U144: 0 | V144: 0 | W144: 3.190631825 | X144: 341.7291868 | Z144: 0.005990867617 | AA144: 0.002584003822 | AB144: 0.007268720578 | AC144: 0 | AD144: 0 | AE144: 0.0001291066093 | AF144: 0.01597269863
A145: =Control!A72 -> Hutt city | B145: =Control!B72 -> Hutt city | C145: =Control!C72 -> Residential | D145: =Control!D72 -> Hutt cityResidential | F145: 358925000 | G145: 475 | H145: 1570.393055 | J145: 1564135.134 | K145: 669497.0387 | L145: 867452.2367 | M145: 0 | N145: 0 | O145: 44311 | P145: 3145395.409 | R145: 38.49525801 | S145: 16.58138122 | T145: 19.59009289 | U145: 0 | V145: 0 | W145: 1 | X145: 75.66673212 | Z145: 0.005990867617 | AA145: 0.002584003822 | AB145: 0.00298954417 | AC145: 0 | AD145: 0 | AE145: 1 | AF145: 0.01171691658
A146: =Control!A73 -> Hutt city | B146: =Control!B73 -> Hutt city | C146: =Control!C73 -> Rural | D146: =Control!D73 -> Hutt cityRural | F146: -32077000 | G146: -45 | H146: 15809.30178 | J146: 11121.15593 | K146: 5257.223156 | L146: -727.5803068 | M146: 0 | N146: 0 | O146: -6980 | P146: 8670.798781 | R146: 58.90520359 | S146: 25.18030438 | T146: 7.989758989 | U146: 0 | V146: 0 | W146: -13 | X146: 79.07526696 | Z146: 0.005990867617 | AA146: 0.002584003822 | AB146: 0.0007100470424 | AC146: 0 | AD146: 0 | AE146: -13 | AF146: 0.007755236055
A147: =Control!A74 -> Upper Hutt city | B147: =Control!B74 -> Upper Hutt city | C147: =Control!C74 -> Business | D147: =Control!D74 -> Upper Hutt cityBusiness | F147: 22201000 | G147: 20 | H147: -20740.31793 | J147: 91347.1187 | K147: 8309.54608 | L147: 97990.93243 | M147: 0 | N147: 0 | O147: 2667.029758 | P147: 200314.627 | R147: 99.91547968 | S147: 6.217838698 | T147: 99.76327096 | U147: 0 | V147: 0 | W147: -0.02482935506 | X147: 205.87176 | Z147: 0.005719967501 | AA147: 0.000431675466 | AB147: 0.005906909371 | AC147: 0 | AD147: 0 | AE147: 7.616412817e-05 | AF147: 0.01213471647
A148: =Control!A75 -> Upper Hutt city | B148: =Control!B75 -> Upper Hutt city | C148: =Control!C75 -> Residential | D148: =Control!D75 -> Upper Hutt cityResidential | F148: 134447000 | G148: 229 | H148: -11.41773993 | J148: 571981.3213 | K148: 51739.99864 | L148: 215526.5636 | M148: 0 | N148: 0 | O148: 18846 | P148: 858093.8835 | R148: 33.62131746 | S148: 2.536611118 | T148: 9.936434983 | U148: 0 | V148: 0 | W148: 1 | X148: 47.09436356 | Z148: 0.005719967501 | AA148: 0.000431675466 | AB148: 0.001691148256 | AC148: 0 | AD148: 0 | AE148: 1 | AF148: 0.008014835714
A149: =Control!A76 -> Upper Hutt city | B149: =Control!B76 -> Upper Hutt city | C149: =Control!C76 -> Rural | D149: =Control!D76 -> Upper Hutt cityRural | F149: 17830000 | G149: 3 | H149: 11453.51862 | J149: 73795.7373 | K149: 6706.239052 | L149: 6507.44308 | M149: 0 | N149: 0 | O149: -16431 | P149: 70578.41943 | R149: 54.7751643 | S149: 4.864166304 | T149: 4.669572336 | U149: 0 | V149: 0 | W149: -13 | X149: 51.30890294 | Z149: 0.005719967501 | AA149: 0.000431675466 | AB149: 0.0003797642532 | AC149: 0 | AD149: 0 | AE149: -13 | AF149: 0.005080820139
A150: =Control!A77 -> Porirua city | B150: =Control!B77 -> Porirua city | C150: =Control!C77 -> Business | D150: =Control!D77 -> Porirua cityBusiness | F150: -34449000 | G150: -2 | H150: -38546.61281 | J150: 61873.49666 | K150: -1202.767229 | L150: 53572.71332 | M150: 0 | N150: 0 | O150: -1671.52684 | P150: 112571.9159 | R150: 78.88466174 | S150: -1.484181672 | T150: 69.30795676 | U150: 0 | V150: 0 | W150: -1.785442248 | X150: 144.9229946 | Z150: 0.005323138717 | AA150: -7.630421076e-05 | AB150: 0.005163983964 | AC150: 0 | AD150: 0 | AE150: 4.68298326e-05 | AF150: 0.0104576483
A151: =Control!A78 -> Porirua city | B151: =Control!B78 -> Porirua city | C151: =Control!C78 -> Residential | D151: =Control!D78 -> Porirua cityResidential | F151: 198616550 | G151: 452 | H151: -5841.593142 | J151: 731493.4676 | K151: -8664.535052 | L151: 233840.2324 | M151: 0 | N151: 0 | O151: 24747 | P151: 981416.165 | R151: 33.60453677 | S151: -0.5352607951 | T151: 5.281568657 | U151: 0 | V151: 0 | W151: 1 | X151: 39.35084463 | Z151: 0.005323138717 | AA151: -7.630421076e-05 | AB151: 0.001174278069 | AC151: 0 | AD151: 0 | AE151: 1 | AF151: 0.006587980426
A152: =Control!A79 -> Porirua city | B152: =Control!B79 -> Porirua city | C152: =Control!C79 -> Rural | D152: =Control!D79 -> Porirua cityRural | F152: =F93-F34 -> 7740000 | G152: 12 | H152: -13199.47286 | J152: 48243.09852 | K152: -620.5736695 | L152: 3014.337862 | M152: 0 | N152: 0 | O152: -7971 | P152: 42665.86271 | R152: 66.19573413 | S152: -1.069897996 | T152: 1.870769702 | U152: 0 | V152: 0 | W152: -13 | X152: 53.99660584 | Z152: 0.005323138717 | AA152: -7.630421076e-05 | AB152: 0.000251382284 | AC152: 0 | AD152: 0 | AE152: -13 | AF152: 0.00454473934
A153: =Control!A80 -> Kāpiti Coast district | B153: =Control!B80 -> Kāpiti Coast district | C153: =Control!C80 -> Business | D153: =Control!D80 -> Kāpiti Coast districtBusiness | F153: 12616500 | G153: -6 | H153: 15884.90244 | J153: 86584.40433 | K153: =K94-K35 -> 20738.80421 | L153: =L94-L35 -> 165604.3966 | M153: =M94-M35 -> 0 | N153: =N94-N35 -> 0 | O153: =O94-O35 -> 849.6953289 | P153: =P94-P35 -> 273777.3004 | R153: 68.53882704 | S153: 16.32113313 | T153: 129.5295353 | U153: 0 | V153: 0 | W153: 1.036083932 | X153: 215.4255794 | Z153: 0.004636692129 | AA153: 0.001121511533 | AB153: 0.009047034958 | AC153: 0 | AD153: 0 | AE153: 3.864096788e-06 | AF153: 0.01480910272
A154: =Control!A81 -> Kāpiti Coast district | B154: =Control!B81 -> Kāpiti Coast district excl Ōtaki | C154: =Control!C81 -> Residential | D154: =Control!D81 -> Kāpiti Coast district excl Ōtaki Residential | F154: =F95-F36 -> 93019000 | G154: 76 | H154: 1988.012233 | J154: =J95-J36 -> 665536.3499 | K154: 159474.1054 | L154: 776348.2026 | M154: 0 | N154: 0 | O154: 19306 | P154: 1620664.658 | R154: =R95-R36 -> 35.29928571 | S154: 8.505955989 | T154: 41.45453723 | U154: 0 | V154: 0 | W154: 1 | X154: 86.25977893 | Z154: =Z95-Z36 -> 0.004636692129 | AA154: 0.001121511533 | AB154: 0.00546984509 | AC154: 0 | AD154: 0 | AE154: 1 | AF154: 0.01135650523
A155: =Control!A82 -> Kāpiti Coast district | B155: =Control!B82 -> Ōtaki rating area | C155: =Control!C82 -> Residential | D155: =Control!D82 -> Ōtaki rating areaResidential | F155: 21655000 | G155: 22 | H155: 3201.218096 | J155: =J96-J37 -> 84793.09326 | K155: 20159.36892 | L155: 20821.18306 | M155: 0 | N155: 0 | O155: 3524 | P155: 129297.6452 | R155: =R96-R37 -> 25.09426238 | S155: 6.017972191 | T155: 5.782218964 | U155: 0 | V155: 0 | W155: 1 | X155: 37.89445354 | Z155: =Z96-Z37 -> 0.004636692129 | AA155: 0.001121511533 | AB155: 0.0009983577547 | AC155: 0 | AD155: 0 | AE155: 1 | AF155: 0.006932610448
A156: =Control!A83 -> Kāpiti Coast district | B156: =Control!B83 -> Kāpiti Coast district | C156: =Control!C83 -> Rural | D156: =Control!D83 -> Kāpiti Coast districtRural | F156: 27059000 | G156: -15 | H156: 15328.68537 | J156: =J97-J38 -> 132351.9064 | K156: 31575.39046 | L156: 37609.96448 | M156: 0 | N156: 0 | O156: -33672 | P156: 167865.2613 | R156: =R97-R38 -> 50.63802531 | S156: 12.00032617 | T156: 14.28660441 | U156: 0 | V156: 0 | W156: -13 | X156: 63.9249559 | Z156: =Z97-Z38 -> 0.004636692129 | AA156: 0.001121511533 | AB156: 0.001337218718 | AC156: 0 | AD156: 0 | AE156: -13 | AF156: 0.005800509213
A157: =Control!A84 -> Masterton district | B157: =Control!B84 -> Masterton district | C157: =Control!C84 -> Business | D157: =Control!D84 -> Masterton districtBusiness | F157: 2379000 | G157: -1 | H157: 6429.218054 | J157: =J98-J39 -> 25251.27589 | K157: 0 | L157: 49187.65527 | M157: 0 | N157: 0 | O157: -1412.780661 | P157: 73026.1505 | R157: =R98-R39 -> 45.06293448 | S157: 0 | T157: 86.86457592 | U157: 0 | V157: 0 | W157: -2.338402903 | X157: 129.5891075 | Z157: =Z98-Z39 -> 0.003319416306 | AA157: 0 | AB157: 0.006596986257 | AC157: 0 | AD157: 0 | AE157: -0.0002118993655 | AF157: 0.009704503197
A158: =Control!A85 -> Masterton district | B158: =Control!B85 -> Masterton district | C158: =Control!C85 -> Residential | D158: =Control!D85 -> Masterton districtResidential | F158: =F99-F40 -> 105562000 | G158: 151 | H158: 3954.891119 | J158: =J99-J40 -> 171130.0737 | K158: 0 | L158: 123154.2744 | M158: 0 | N158: 0 | O158: 10370 | P158: 304654.3481 | R158: =R99-R40 -> 17.29428895 | S158: 0 | T158: 13.31792818 | U158: 0 | V158: 0 | W158: 1 | X158: 31.61221713 | Z158: =Z99-Z40 -> 0.003319416306 | AA158: 0 | AB158: 0.002654811417 | AC158: 0 | AD158: 0 | AE158: 1 | AF158: 0.006153149272
A159: =Control!A86 -> Masterton district | B159: =Control!B86 -> Masterton district | C159: =Control!C86 -> Rural | D159: =Control!D86 -> Masterton districtRural | F159: 39360500 | G159: 55 | H159: -3792.676776 | J159: 145118.2431 | K159: 0 | L159: 66115.04806 | M159: 0 | N159: 0 | O159: -45840 | P159: 165393.2912 | R159: 31.53990225 | S159: 0 | T159: 15.58923673 | U159: 0 | V159: 0 | W159: -13 | X159: 34.12913898 | Z159: 0.003319416306 | AA159: 0 | AB159: 0.001601254211 | AC159: 0 | AD159: 0 | AE159: -13 | AF159: 0.003741197128
A160: =Control!A87 -> Carterton district | B160: =Control!B87 -> Carterton district | C160: =Control!C87 -> Business | D160: =Control!D87 -> Carterton districtBusiness | F160: 7267000 | G160: 8 | H160: 11965.80434 | J160: 8968.162262 | K160: 47.34671819 | L160: 11304.8813 | M160: 0 | N160: 0 | O160: 502.4571294 | P160: 20822.84741 | R160: 31.639217 | S160: 0.07269028718 | T160: 42.72414878 | U160: 0 | V160: 0 | W160: 0.9596399242 | X160: 75.39569599 | Z160: 0.004864018588 | AA160: -1.519424172e-06 | AB160: 0.006950420493 | AC160: 0 | AD160: 0 | AE160: 3.813906507e-05 | AF160: 0.01185105872
A161: =Control!A88 -> Carterton district | B161: =Control!B88 -> Carterton district | C161: =Control!C88 -> Residential | D161: =Control!D88 -> Carterton districtResidential | F161: 32787000 | G161: 41 | H161: 4689.05276 | J161: 75188.17207 | K161: 202.7695908 | L161: 36666.47345 | M161: 0 | N161: 0 | O161: 2969 | P161: 115026.4151 | R161: 26.25140833 | S161: 0.0241578428 | T161: 12.81894277 | U161: 0 | V161: 0 | W161: 1 | X161: 40.09450894 | Z161: 0.004864018588 | AA161: -1.519424172e-06 | AB161: 0.00237737001 | AC161: 0 | AD161: 0 | AE161: 1 | AF161: 0.007397685115
A162: =Control!A89 -> Carterton district | B162: =Control!B89 -> Carterton district | C162: =Control!C89 -> Rural | D162: =Control!D89 -> Carterton districtRural | F162: 23269500 | G162: 42 | H162: -9705.481805 | J162: 118620.5587 | K162: 123.523691 | L162: 40287.70913 | M162: 0 | N162: 0 | O162: -23439 | P162: 135592.7915 | R162: 47.64367088 | S162: -0.08185864948 | T162: 17.10170084 | U162: 0 | V162: 0 | W162: -13 | X162: 51.66351307 | Z162: 0.004864018588 | AA162: -1.519424172e-06 | AB162: 0.001698079796 | AC162: 0 | AD162: 0 | AE162: -13 | AF162: 0.005507965801
A163: =Control!A90 -> South Wairarapa district | B163: =Control!B90 -> South Wairarapa district | C163: =Control!C90 -> Business | D163: =Control!D90 -> South Wairarapa districtBusiness | F163: 8136000 | G163: 3 | H163: 17308.85226 | J163: 12974.23842 | K163: 0 | L163: 16824.71974 | M163: 0 | N163: 0 | O163: 31.99605351 | P163: 29830.95421 | R163: 38.34069109 | S163: 0 | T163: 50.95823335 | U163: 0 | V163: 0 | W163: -0.4218507675 | X163: 88.87707367 | Z163: 0.00357019985 | AA163: 0 | AB163: 0.005041620252 | AC163: 0 | AD163: 0 | AE163: -0.000162878323 | AF163: 0.008448941779
A164: =Control!A91 -> South Wairarapa district | B164: =Control!B91 -> South Wairarapa district | C164: =Control!C91 -> Residential | D164: =Control!D91 -> South Wairarapa districtResidential | F164: 64650000 | G164: 73 | H164: 5840.028532 | J164: 98434.51434 | K164: 0 | L164: 33511.33395 | M164: 0 | N164: 0 | O164: 4497 | P164: 136442.8483 | R164: 23.67913725 | S164: 0 | T164: 7.277125472 | U164: 0 | V164: 0 | W164: 1 | X164: 31.95626272 | Z164: 0.00357019985 | AA164: 0 | AB164: 0.001026097126 | AC164: 0 | AD164: 0 | AE164: 1 | AF164: 0.004737324674
A165: =Control!A92 -> South Wairarapa district | B165: =Control!B92 -> South Wairarapa district | C165: =Control!C92 -> Rural | D165: =Control!D92 -> South Wairarapa districtRural | F165: 29712800 | G165: 34 | H165: -3340.59212 | J165: 149722.4155 | K165: 0 | L165: 50344.03291 | M165: 0 | N165: 0 | O165: -37863 | P165: 162203.4484 | R165: 41.47712346 | S165: 0 | T165: 14.43901469 | U165: 0 | V165: 0 | W165: -13 | X165: 42.91613815 | Z165: 0.00357019985 | AA165: 0 | AB165: 0.0012306231 | AC165: 0 | AD165: 0 | AE165: -13 | AF165: 0.003817635825
A166: =Control!A93 -> Tararua district | B166: =Control!B93 -> Tararua district | C166: =Control!C93 -> Rural | D166: =Control!D93 -> Tararua districtRural | F166: 0 | G166: 0 | H166: 0 | J166: 875.2804875 | K166: 0 | L166: 0 | M166: 0 | N166: 0 | O166: -117 | P166: 758.2804875 | R166: 87.52804875 | S166: 0 | T166: 0 | U166: 0 | V166: 0 | W166: -13 | X166: 74.52804875 | Z166: 0.005478549667 | AA166: 0 | AB166: 0 | AC166: 0 | AD166: 0 | AE166: -13 | AF166: 0.004746224063
A167: Region wide | D167: =Control!D94 -> Region wide | F167: 41685974700 | G167: 2099 | H167: 191742.7862 | J167: 10224764.49 | K167: 1078409.487 | L167: 8848149.091 | M167: 0 | N167: 0 | O167: -70178.34219 | P167: 20081144.72 | R167: 45.95330557 | S167: 4.839905415 | T167: 38.44045532 | U167: 0 | V167: 0 | W167: -0.5652302532 | X167: 88.66843605 | Z167: -0.002637435536 | AA167: -0.0002948300982 | AB167: -0.005527826071 | AC167: 0 | AD167: 0 | AE167: -0.0005934095652 | AF167: -0.00905350127
A169: By category
A170: Region Wide | C170: =C140 -> Wellington CBD | D170: =A170&C170 -> Region WideWellington CBD | F170: =F111-F52 -> 3236440550 | G170: 55 | H170: 921729.9132 | J170: =J111-J52 -> 99071.14322 | K170: -1284.214732 | L170: -190267.4927 | M170: 0 | N170: 0 | O170: =O111-O52 -> -85418.7592 | P170: =P111-P52 -> -177899.3234 | R170: =R111-R52 -> -0.6692477912 | S170: -0.4238095022 | T170: -194.4019817 | U170: 0 | V170: 0 | W170: -29.30065517 | X170: =X111-X52 -> -224.7956941
A171: Region Wide | C171: =C141 -> Business | D171: =A171&C171 -> Region WideBusiness | F171: 2006285500 | G171: -18 | H171: 247967.6358 | J171: 786884.007 | K171: 144381.866 | L171: 1118157.082 | M171: 0 | N171: 0 | O171: -10336.58298 | P171: 2039086.372 | R171: =R112-R53 -> 97.27294438 | S171: 17.81704987 | T171: 137.8761804 | U171: 0 | V171: 0 | W171: -0.9748749312 | X171: =X112-X53 -> 251.9912997
A172: Region Wide | C172: =C142 -> Residential | D172: =A172&C172 -> Region WideResidential | F172: 35848055600 | G172: 1969 | H172: 189858.0512 | J172: 8595206.934 | K172: 892273.2013 | L172: 7698733.069 | M172: 0 | N172: 0 | O172: 208666 | P172: 17394879.2 | R172: =R113-R54 -> 44.59800518 | S172: 4.587184184 | T172: 39.63017186 | U172: 0 | V172: 0 | W172: 0.9980003702 | X172: =X113-X54 -> 89.81536122
A173: Region Wide | C173: =C143 -> Rural | D173: =A173&C173 -> Region WideRural | F173: 595193050 | G173: 93 | H173: 32278.21746 | J173: 743602.4037 | K173: 43038.63459 | L173: 221526.4322 | M173: 0 | N173: 0 | O173: -183089 | P173: 825078.4705 | R173: =R114-R55 -> 45.99339923 | S173: 2.645134239 | T173: 13.85661418 | U173: 0 | V173: 0 | W173: -12.00985241 | X173: =X114-X55 -> 49.49514765
A174: Region Wide | C174: Total | D174: =A174&C174 -> Region WideTotal | F174: 41685974700 | G174: 2099 | H174: 191742.7862 | J174: 10224764.49 | K174: 1078409.487 | L174: 8848149.091 | M174: 0 | N174: 0 | O174: -70178.34219 | P174: 20081144.72 | R174: 45.95330557 | S174: 4.839905415 | T174: 38.44045532 | U174: 0 | V174: 0 | W174: -0.5652302532 | X174: =X115-X56 -> 88.66843605
J177: =IF(ABS(J137-SUM(J128:J136))>tolerance_dollar,1,0) -> 0 | K177: =IF(ABS(K137-SUM(K128:K136))>tolerance_dollar,1,0) -> 0 | L177: =IF(ABS(L137-SUM(L128:L136))>tolerance_dollar,1,0) -> 0 | M177: =IF(ABS(M137-SUM(M128:M136))>tolerance_dollar,1,0) -> 0 | N177: =IF(ABS(O137-SUM(O128:O136))>tolerance_dollar,1,0) -> 0 | O177: =IF(ABS(P137-SUM(P128:P136))>tolerance_dollar,1,0) -> 0 | P177: =IF(ABS(Q137-SUM(Q128:Q136))>tolerance_dollar,1,0) -> 0
J178: =IF(ABS(J167-SUM(J140:J166))>tolerance_dollar,1,0) -> 0 | K178: 0 | L178: 0 | M178: 0 | N178: 0 | O178: 0 | P178: =IF(ABS(P167-SUM(P140:P166))>tolerance_dollar,1,0) -> 0
F179: =F167-F137 -> 0 | G179: =G167-G137 -> 0 | J179: =IF(ABS(J167-J137)>tolerance_dollar,1,0) -> 0 | K179: 0 | L179: 0 | M179: 0 | N179: 0 | O179: 0 | P179: =IF(ABS(P167-P137)>tolerance_dollar,1,0) -> 0 | R179: =IF(ABS(R167-R137)>tolerance_dollar,1,0) -> 0 | S179: 0 | T179: 0 | U179: 0 | V179: 0 | W179: 0 | X179: 0

Sheet Rates Check - ex-KCDC & UHC
A1: Wellington Regional Council
A2: =B5&" Check "&year_current -> Porirua city Check 2022/23
A3: =check_total -> 0
A4: Printed: | B4: =NOW() -> 2023-01-19T08:30:06.840
A5: TA to view | B5: Porirua city
D7: Excluding GST | H7: Including GST
A9: Total
A10: Rate | B10: Categories | D10: Rateable Capital Value | E10: Cents in Dollar | F10: Rates Set | H10: Cents in Dollar | I10: Rates Set
D11: $ | E11: Cents / $ | F11: $ | H11: Cents / $ | I11: $
A12: General rate | B12: District wide | D12: =INDEX(capital_values,MATCH($B$5&B12,capital_values_rows,0),MATCH("CV "&year_current,capital_values_header,0)) -> 14623609200 | E12: =INDEX(Gen!$E$10:$E$19,MATCH(B5,Gen!$A$10:$A$19,0),) -> 0.04207257734 | F12: =+E12*D12/100 -> 6152529.291 | H12: =+E12*(1+GST) -> 0.04838346394 | I12: =+F12*(1+GST) -> 7075408.684
A13: Remission of Rates | B13: District wide | D13: =INDEX(capital_values,MATCH($B$5&B13,capital_values_rows,0),MATCH("CV "&year_current,capital_values_header,0)) -> 14623609200 | E13: =INDEX(Remission!$E$10:$E$19,MATCH(B5,Remission!$A$10:$A$19,0),) -> 0 | F13: =+E13*D13/100 -> 0 | H13: 0 | I13: 0
A14: River management rate | B14: District wide | D14: =INDEX(capital_values,MATCH($B$5&B14,capital_values_rows,0),MATCH("CV "&year_current,capital_values_header,0)) -> 14623609200 | E14: =INDEX('River management'!$D$10:$D$19,MATCH(B5,'River management'!$A$10:$A$19,0),) -> 0.0003137622141 | F14: =+E14*D14/100 -> 45883.36 | H14: 0.0003608265462 | I14: 52765.864
A15: Public transport rate | B15: Wellington CBD | D15: =IFERROR(INDEX(capital_values,MATCH($B$5&B15,capital_values_rows,0),MATCH("CV "&year_current,capital_values_header,0)),0) -> 0 | E15: =IFERROR(INDEX('Public transport'!$J$23:$J$50,MATCH($B$5&B15,'Public transport'!$D$23:$D$50,0),),0) -> 0 | F15: 0 | H15: 0 | I15: 0
B16: Business | D16: 1400176000 | E16: =IFERROR(INDEX('Public transport'!$J$23:$J$50,MATCH($B$5&B16,'Public transport'!$D$23:$D$50,0),),0) -> 0.0595404558 | F16: 833671.1725 | H16: 0.06847152418 | I16: 958721.8483
B17: Residential | D17: 12370577500 | E17: =IFERROR(INDEX('Public transport'!$J$23:$J$50,MATCH($B$5&B17,'Public transport'!$D$23:$D$50,0),),0) -> 0.04577038745 | F17: 5662061.252 | H17: 0.05263594557 | I17: 6511370.44
B18: Rural | D18: 852855700 | E18: =IFERROR(INDEX('Public transport'!$J$23:$J$50,MATCH($B$5&B18,'Public transport'!$D$23:$D$50,0),),0) -> 0.01149698596 | F18: 98052.70006 | H18: 0.01322153385 | I18: 112760.6051
A19: Stadium purposes rate | B19: Wellington CBD | D19: 0 | E19: =IFERROR(INDEX(Stadium!$J$23:$J$49,MATCH($B$5&B19,Stadium!$D$23:$D$49,0),),0) -> 0 | F19: 0 | H19: 0 | I19: 0
B20: Business | D20: 1400176000 | E20: =IFERROR(INDEX(Stadium!$J$23:$J$49,MATCH($B$5&B20,Stadium!$D$23:$D$49,0),),0) -> 0 | F20: 0 | H20: 0 | I20: 0
B21: Residential | D21: 12370577500 | E21: =IFERROR(INDEX(Stadium!$J$23:$J$49,MATCH($B$5&B21,Stadium!$D$23:$D$49,0),),0) -> 0 | F21: 0 | H21: 0 | I21: 0
B22: Rural | D22: 852855700 | E22: =IFERROR(INDEX(Stadium!$J$23:$J$49,MATCH($B$5&B22,Stadium!$D$23:$D$49,0),),0) -> 0 | F22: 0 | H22: 0 | I22: 0
A23: Economic development rate | B23: Wellington CBD | D23: 0 | E23: =IFERROR(INDEX('Economic Development'!$L$23:$L$49,MATCH($B$5&B23,'Economic Development'!$D$23:$D$49,0),),0) -> 0 | F23: 0 | H23: 0 | I23: 0
B24: Business | D24: 1400176000 | E24: =IFERROR(INDEX('Economic Development'!$L$23:$L$49,MATCH($B$5&B24,'Economic Development'!$D$23:$D$49,0),),0) -> 0.006802401597 | F24: 95245.59459 | H24: 0.007822761837 | I24: 109532.4338
A26: Rate | B26: Categories | D26: Number of assessments | E26: Amount per rating unit | F26: Rates Set | H26: Amount per rating unit | I26: Rates Set
D27: # | E27: $ | F27: $ | H27: $ | I27: $
A28: =+A23 -> Economic development rate | B28: Residential | D28: =IFERROR(INDEX('Economic Development'!$G$23:$G$49,MATCH($B$5&B28,'Economic Development'!$D$23:$D$49,0),),0) -> 18419 | E28: =INDEX(WRS_value,MATCH(B28,WRS_categories,0),) -> 15 | F28: =D28*E28 -> 276285 | H28: =+E28*(1+GST) -> 17.25 | I28: =+F28*(1+GST) -> 317727.75
B29: Rural | D29: =IFERROR(INDEX('Economic Development'!$G$23:$G$49,MATCH($B$5&B29,'Economic Development'!$D$23:$D$49,0),),0) -> 639 | E29: =INDEX(WRS_value,MATCH(B29,WRS_categories,0),) -> 15 | F29: =D29*E29 -> 9585 | H29: =+E29*(1+GST) -> 17.25 | I29: =+F29*(1+GST) -> 11022.75
A32: District-Wide Rates | F32: =SUM(F12:F30) -> 13173313.37 | I32: =SUM(I12:I30) -> 15149310.38
A35: Rate | B35: Categories | D35: Rateable Capital Value or Land Value | E35: Cents in Dollar | F35: Rates Set | H35: Cents in Dollar | I35: Rates Set
D36: $ | E36: Cents / $ | F36: $ | H36: Cents / $ | I36: $
A37: Greytown river management rate | B37: Greytown Urban -CV | D37: =INDEX('Capital values'!$E$48:$F$49,MATCH(B37,'Capital values'!$A$48:$A$49,0),MATCH("CV "&year_current,capital_values_header,0)) -> 1131557500 | E37: =IF($B$5="South Wairarapa District",INDEX('River management'!$D$29:$D$30,MATCH(A37,'River management'!$A$29:$A$30,0),),0) -> 0 | F37: =+E37*D37/100 -> 0 | H37: =+E37*(1+GST) -> 0 | I37: =+F37*(1+GST) -> 0
A38: Donalds Creek stopbank river management rate | B38: Featherston Urban - LV | D38: =INDEX('Capital values'!$E$48:$F$49,MATCH(B38,'Capital values'!$A$48:$A$49,0),MATCH("CV "&year_current,capital_values_header,0)) -> 282168500 | E38: =IF($B$5="South Wairarapa District",INDEX('River management'!$D$29:$D$30,MATCH(A38,'River management'!$A$29:$A$30,0),),0) -> 0 | F38: =+E38*D38/100 -> 0 | H38: =+E38*(1+GST) -> 0 | I38: =+F38*(1+GST) -> 0
A41: Total regional rates (excl special rates) | F41: =SUM(F32:F40) -> 13173313.37 | I41: =SUM(I32:I40) -> 15149310.38
A43: Check | F43: =IF(ABS(INDEX('Comparison - TA'!$B$43:$L$43,,MATCH(B5,'Comparison - TA'!$B$29:$L$29,0))-F41)>tolerance_dollar,1,0) -> 0

Sheet Rates Check - UHC
A1: Wellington Regional Council
A2: =B5&" Check "&year_current -> Upper Hutt city Check 2022/23
A3: =check_total -> 0
A4: Printed: | B4: =NOW() -> 2023-01-19T08:30:06.840
A5: TA to view | B5: Upper Hutt city
D7: Excluding GST | H7: Including GST
A10: Rate | B10: Categories | D10: Rateable Capital Value | E10: Cents in Dollar | F10: Rates Set | H10: Cents in Dollar | I10: Rates Set
D11: $ | E11: Cents / $ | F11: $ | H11: Cents / $ | I11: $
A12: General rate | B12: District wide | D12: ='UHCC Adjustments'!$D$20 -> 11608555800 | E12: =Gen!E35 -> 0.04409795193 | F12: =+E12*D12/100 -> 5119135.356 | H12: =+E12*(1+GST) -> 0.05071264472 | I12: 5887005.659
A13: Remission of rates | B13: District wide | D13: ='UHCC Adjustments'!$D$20 -> 11608555800 | E13: =Remission!E35 -> 0 | F13: =+E13*D13/100 -> 0 | H13: 0 | I13: 0
A14: River management rate | B14: District wide | D14: ='UHCC Adjustments'!$D$20 -> 11608555800 | E14: ='River management'!D24 -> 0.00971303949 | F14: =+E14*D14/100 -> 1127543.609 | H14: 0.01116999541 | I14: 1296675.15
A15: Public transport rate | B15: Wellington CBD | D15: 0 | E15: 0 | F15: 0 | H15: 0 | I15: 0
B16: Business | D16: ='UHCC Adjustments'!D16 -> 1377756700 | E16: ='Public transport'!J55 -> 0.06041806496 | F16: 832413.938 | H16: 0.06948077471 | I16: 957276.0287
B17: Residential | D17: ='UHCC Adjustments'!D17 -> 9066226100 | E17: ='Public transport'!J57 -> 0.04757296605 | F17: 4313072.665 | H17: 0.05470891096 | I17: 4960033.564
B18: Rural | D18: ='UHCC Adjustments'!D18 -> 1164573000 | E18: ='Public transport'!J59 -> 0.01192740358 | F18: 138903.3217 | H18: 0.01371651412 | I18: 159738.82
A19: Stadium purposes rate | B19: Wellington CBD | D19: 0 | E19: 0 | F19: 0 | H19: 0 | I19: 0
B20: Business | D20: ='UHCC Adjustments'!D16 -> 1377756700 | E20: =Stadium!J55 -> 0 | F20: 0 | H20: 0 | I20: 0
B21: Residential | D21: ='UHCC Adjustments'!D17 -> 9066226100 | E21: =Stadium!J57 -> 0 | F21: 0 | H21: 0 | I21: 0
B22: Rural | D22: ='UHCC Adjustments'!D18 -> 1164573000 | E22: =Stadium!J59 -> 0 | F22: 0 | H22: 0 | I22: 0
A23: Economic development rate | B23: Wellington CBD | D23: 0 | E23: =IFERROR(INDEX('Economic Development'!$L$23:$L$49,MATCH($B$5&B23,'Economic Development'!$D$23:$D$49,0),),0) -> 0 | F23: 0 | H23: 0 | I23: 0
B24: Business | D24: ='UHCC Adjustments'!D16 -> 1377756700 | E24: =IFERROR(INDEX('Economic Development'!$L$23:$L$49,MATCH($B$5&B24,'Economic Development'!$D$23:$D$49,0),),0) -> 0.007120825564 | F24: 98107.6513 | H24: 0.008188949398 | I24: 112823.799
A26: Rate | B26: Categories | D26: Number of assessments | E26: Amount per rating unit | F26: Rates Set | H26: Amount per rating unit | I26: Rates Set
D27: # | E27: $ | F27: $ | H27: $ | I27: $
A28: =+A23 -> Economic development rate | B28: Residential | D28: =IFERROR(INDEX('Economic Development'!$G$23:$G$49,MATCH($B$5&B28,'Economic Development'!$D$23:$D$49,0),),0) -> 15444 | E28: =INDEX(WRS_value,MATCH(B28,WRS_categories,0),) -> 15 | F28: =D28*E28 -> 231660 | H28: =+E28*(1+GST) -> 17.25 | I28: =+F28*(1+GST) -> 266409
B29: Rural | D29: =IFERROR(INDEX('Economic Development'!$G$23:$G$49,MATCH($B$5&B29,'Economic Development'!$D$23:$D$49,0),),0) -> 1279 | E29: =INDEX(WRS_value,MATCH(B29,WRS_categories,0),) -> 15 | F29: =D29*E29 -> 19185 | H29: =+E29*(1+GST) -> 17.25 | I29: =+F29*(1+GST) -> 22062.75
A32: District-Wide Rates | F32: =SUM(F12:F30) -> 11880021.54 | I32: =SUM(I12:I30) -> 13662024.77
A34: Total regional rates (excl special rates) | F34: =SUM(F32:F33) -> 11880021.54 | I34: =SUM(I32:I33) -> 13662024.77
A38: Trentham Military Camp
A39: Rate | B39: Categories | D39: Rateable Capital Value | E39: Cents in Dollar | F39: Rates Set | H39: Cents in Dollar | I39: Rates Set
D40: $ | E40: Cents / $ | F40: $ | H40: Cents / $ | I40: $
A41: General rate | B41: Trentham Military Camp | D41: =Gen!B34 -> 109354000 | E41: =IF(B5="Upper Hutt City",Gen!E34,0) -> 0.03810416324 | F41: =+E41*D41/100 -> 41668.42667 | H41: =+E41*(1+GST) -> 0.04381978773 | I41: 47918.69067
A42: Remission of rates | B42: Trentham Military Camp | D42: =Remission!B34 -> 109354000 | E42: =IF(B5="Upper Hutt City",Remission!E34,0) -> 0 | F42: =+E42*D42/100 -> 0
A43: River management rate | B43: Trentham Military Camp | D43: ='River management'!B23 -> 109354000 | E43: =IF(B5="Upper Hutt City",'River management'!D23,0) -> 0.008392844252 | F43: 9177.910903 | H43: 0.009651770889 | I43: 10554.59754
A44: Public transport rate | B44: Business | D44: ='Public transport'!E54 -> 70490000 | E44: =IF(B5="Upper Hutt City",'Public transport'!J54,0) -> 0.09209459905 | F44: 64917.48287 | H44: 0.1059087889 | I44: 74655.1053
B45: Residential | D45: ='Public transport'!E56 -> 32750000 | E45: =IF(B5="Upper Hutt City",'Public transport'!J56,0) -> 0.03985682038 | F45: 13053.10867 | H45: 0.04583534344 | I45: 15011.07498
B46: Rural | D46: ='Public transport'!E58 -> 6114000 | E46: =IF(B5="Upper Hutt City",'Public transport'!J58,0) -> 0.01477135486 | F46: 903.1206361 | H46: 0.01698705809 | I46: 1038.588732
A47: Stadium purposes Rate | B47: Business | D47: =Stadium!E54 -> 70490000 | E47: =IF(B5="Upper Hutt City",Stadium!J54,0) -> 0 | F47: 0 | H47: 0 | I47: 0
B48: Residential | D48: =Stadium!E56 -> 32750000 | E48: =IF(B5="Upper Hutt City",Stadium!J56,0) -> 0 | F48: 0 | H48: 0 | I48: 0
B49: Rural | D49: =Stadium!E58 -> 6114000 | E49: =IF(B5="Upper Hutt City",Stadium!J58,0) -> 0 | F49: 0 | H49: 0 | I49: 0
A50: Economic development rate | B50: Business | D50: ='UHCC Adjustments'!D9 -> 70490000 | E50: =IF(B5="Upper Hutt City",'Economic Development'!L30,0) -> 0.007120825564 | F50: 5019.46994 | H50: 0.008188949398 | I50: 5772.390431
B51: No change for residential or rural as it is a fixed charge per property
A52: Trentham Military Camp | F52: =SUM(F41:F51) -> 134739.5197 | I52: =SUM(I41:I51) -> 154950.4476
A54: Check | F54: =ROUND(INDEX('Comparison - TA'!$B$43:$L$43,,MATCH(B5,'Comparison - TA'!$B$29:$L$29,0))-F34-F52,0) -> 0

Sheet Rates Check - KCDC
A1: Wellington Regional Council
A2: =B5&" Check "&year_current -> Kāpiti Coast district Check 2022/23
A3: =check_total -> 0
A4: Printed: | B4: =NOW() -> 2023-01-19T08:30:06.840
A5: TA to view | B5: Kāpiti Coast district
D7: Excluding GST | H7: Including GST
A9: Total
A10: Rate | B10: Categories | D10: Rateable Capital Value | E10: Cents in Dollar | F10: Rates Set | H10: Cents in Dollar | I10: Rates Set
D11: $ | E11: Cents / $ | F11: $ | H11: Cents / $ | I11: $
A12: General rate | B12: District wide | D12: =INDEX(capital_values,MATCH($B$5&B12,capital_values_rows,0),MATCH("CV "&year_current,capital_values_header,0)) -> 19783157650 | E12: =INDEX(Gen!$E$10:$E$19,MATCH(B5,Gen!$A$10:$A$19,0),) -> 0.03831457261 | F12: =+E12*D12/100 -> 7579832.303 | H12: =+E12*(1+GST) -> 0.0440617585 | I12: 8716807.148
A13: Remission of rates | B13: District wide | D13: =INDEX(capital_values,MATCH($B$5&B13,capital_values_rows,0),MATCH("CV "&year_current,capital_values_header,0)) -> 19783157650 | E13: =INDEX(Remission!$E$10:$E$19,MATCH(B5,Remission!$A$10:$A$19,0),) -> 0 | F13: =+E13*D13/100 -> 0 | H13: 0 | I13: 0
A14: River management rate | B14: District wide | D14: =INDEX(capital_values,MATCH($B$5&B14,capital_values_rows,0),MATCH("CV "&year_current,capital_values_header,0)) -> 19783157650 | E14: =INDEX('River management'!$D$10:$D$19,MATCH(B5,'River management'!$A$10:$A$19,0),) -> 0.007650379109 | F14: =+E14*D14/100 -> 1513486.56 | H14: 0.008797935976 | I14: 1740509.544
A15: Public transport rate | B15: Wellington CBD | D15: =IFERROR(INDEX(capital_values,MATCH($B$5&B15,capital_values_rows,0),MATCH("CV "&year_current,capital_values_header,0)),0) -> 0 | E15: =IFERROR(INDEX('Public transport'!$J$23:$J$52,MATCH($B$5&B15,'Public transport'!$D$23:$D$52,0),),0) -> 0 | F15: 0 | H15: 0 | I15: 0
B16: Business | D16: 1775736500 | E16: =IFERROR(INDEX('Public transport'!$J$23:$J$52,MATCH($B$5&B16,'Public transport'!$D$23:$D$52,0),),0) -> 0.04830431432 | F16: 857757.3405 | H16: 0.05554996147 | I16: 986420.9416
B17: Residential - excl-Otaki | D17: =IFERROR(INDEX(capital_values,MATCH("Kāpiti Coast district excl Ōtaki Residential",capital_values_rows,0),MATCH("CV "&year_current,capital_values_header,0)),0) -> 13678059800 | E17: =IFERROR(INDEX('Public transport'!$J$23:$J$52,MATCH("Kāpiti Coast district excl Ōtaki Residential",'Public transport'!$D$23:$D$52,0),),0) -> 0.03576421536 | F17: 4891850.763 | H17: 0.04112884766 | I17: 5625628.378
B18: Residential - Otaki | D18: =IFERROR(INDEX(capital_values,MATCH("Ōtaki rating areaResidential",capital_values_rows,0),MATCH("CV "&year_current,capital_values_header,0)),0) -> 1671453400 | E18: =IFERROR(INDEX('Public transport'!$J$23:$J$52,MATCH("Ōtaki rating areaResidential",'Public transport'!$D$23:$D$52,0),),0) -> 0.02008909164 | F18: 335779.8053 | H18: =+E18*(1+GST) -> 0.02310245539 | I18: =+F18*(1+GST) -> 386146.7761
B19: Rural | D19: 2657907950 | E19: =IFERROR(INDEX('Public transport'!$J$23:$J$52,MATCH($B$5&B19,'Public transport'!$D$23:$D$52,0),),0) -> 0.008979488819 | F19: 238666.5472 | H19: =+E19*(1+GST) -> 0.01032641214 | I19: =+F19*(1+GST) -> 274466.5293
A20: Stadium purposes rate | B20: Wellington CBD | D20: 0 | E20: =IFERROR(INDEX(Stadium!$J$23:$J$49,MATCH($B$5&B20,Stadium!$D$23:$D$49,0),),0) -> 0 | F20: 0 | H20: 0 | I20: 0
B21: Business | D21: 1775736500 | E21: =IFERROR(INDEX(Stadium!$J$23:$J$49,MATCH($B$5&B21,Stadium!$D$23:$D$49,0),),0) -> 0 | F21: 0 | H21: 0 | I21: 0
B22: Residential - excl-Otaki | D22: =IFERROR(INDEX(capital_values,MATCH("Kāpiti Coast district excl Ōtaki Residential",capital_values_rows,0),MATCH("CV "&year_current,capital_values_header,0)),0) -> 13678059800 | E22: =IFERROR(INDEX(Stadium!$J$23:$J$49,MATCH("Kāpiti Coast district excl Ōtaki Residential",Stadium!$D$23:$D$49,0),),0) -> 0 | F22: 0 | H22: 0 | I22: 0
B23: Residential - Otaki | D23: =IFERROR(INDEX(capital_values,MATCH("Ōtaki rating areaResidential",capital_values_rows,0),MATCH("CV "&year_current,capital_values_header,0)),0) -> 1671453400 | E23: =IFERROR(INDEX(Stadium!$J$23:$J$49,MATCH("Ōtaki rating areaResidential",Stadium!$D$23:$D$49,0),),0) -> 0 | F23: =+E23*D23/100 -> 0 | H23: =+E23*(1+GST) -> 0 | I23: =+F23*(1+GST) -> 0
B24: Rural | D24: 2657907950 | E24: =IFERROR(INDEX(Stadium!$J$23:$J$49,MATCH($B$5&B24,Stadium!$D$23:$D$49,0),),0) -> 0 | F24: 0 | H24: 0 | I24: 0
A25: Economic development rate | B25: Wellington CBD | D25: 0 | E25: =IFERROR(INDEX('Economic Development'!$L$23:$L$49,MATCH($B$5&B25,'Economic Development'!$D$23:$D$49,0),),0) -> 0 | F25: 0 | H25: 0 | I25: 0
B26: Business | D26: 1775736500 | E26: =IFERROR(INDEX('Economic Development'!$L$23:$L$49,MATCH($B$5&B26,'Economic Development'!$D$23:$D$49,0),),0) -> 0.006194797809 | F26: 110003.2858 | H26: 0.007124017481 | I26: 126503.7787
A28: Rate | B28: Categories | D28: Number of assessments | E28: Amount per rating unit | F28: Rates Set | H28: Amount per rating unit | I28: Rates Set
D29: # | E29: $ | F29: $ | H29: $ | I29: $
A30: =+A25 -> Economic development rate | B30: Residential | D30: =SUMIFS('Economic Development'!$G$23:$G$49,'Economic Development'!$A$23:$A$49,$B$5,'Economic Development'!$C$23:$C$49,$B30) -> 21374 | E30: =F30/D30 -> 15 | F30: =SUMIFS('Economic Development'!$K$23:$K$49,'Economic Development'!$A$23:$A$49,$B$5,'Economic Development'!$C$23:$C$49,$B30) -> 320610 | H30: =+E30*(1+GST) -> 17.25 | I30: =+F30*(1+GST) -> 368701.5
B31: Rural | D31: =SUMIFS('Economic Development'!$G$23:$G$49,'Economic Development'!$A$23:$A$49,$B$5,'Economic Development'!$C$23:$C$49,$B31) -> 2588 | E31: =F31/D31 -> 15 | F31: =SUMIFS('Economic Development'!$K$23:$K$49,'Economic Development'!$A$23:$A$49,$B$5,'Economic Development'!$C$23:$C$49,$B31) -> 38820 | H31: =+E31*(1+GST) -> 17.25 | I31: =+F31*(1+GST) -> 44643
A34: District-Wide Rates | F34: =SUM(F12:F32) -> 15886806.61 | I34: =SUM(I12:I32) -> 18269827.6
A36: Total regional rates (excl special rates) | F36: =SUM(F34:F35) -> 15886806.61 | I36: =SUM(I34:I35) -> 18269827.6
A38: Check | F38: =INDEX('Comparison - TA'!$B$43:$L$43,,MATCH(B5,'Comparison - TA'!$B$29:$L$29,0))-F36 -> 0

Sheet Checks
A1: Wellington Regional Council
A2: Value checks
A3: =check_total -> 0
A5: Tab/component | B5: Check | D5: Check notes
A7: OVERALL | B7: =SUM(B9:B47) -> 0
A10: Capital values tab
A11: Populated | B11: =SUM('Capital values'!J8:K140) -> 0
A12: TA total matches category
A13: Capital values | B13: =SUM('Capital values'!E51:F51) -> 0
A14: No. of Assessments (#) | B14: =SUM('Capital values'!E97:F97) -> 0
A15: Number of Assessments Contiguous for WRS | B15: =SUM('Capital values'!E143:F143) -> 0
A17: Rate model checks
A18: General rate | B18: =SUM(Gen!B39:D40) -> 0
A19: River management rate | B19: =SUM('River management'!B34:C36) -> 0
A20: Stadium rate | B20: =SUM(Stadium!E63:I66) -> 0
A21: Economic development rate | B21: =SUM('Economic Development'!E52:K54) -> 0
A22: Public transport rate | B22: =SUM('Public transport'!E63:I66) -> 0
A23: Water Levy | B23: =SUM('Water levy'!B21:C21) -> 0
A24: Class rates - schemes | B24: =SUM('Class Rates'!B92:H92) -> 0
A26: Comparison - TA | B26: =SUM('Comparison - TA'!M7:M68) -> 0
A28: Comparison - category
A29: Previous year | B29: =SUM('Comparison - Category'!F59:W61) -> 0
A30: Current year | B30: =SUM('Comparison - Category'!F118:W120) -> 0
A31: Delta | B31: =SUM('Comparison - Category'!F177:W179) -> 0
A33: Rates check
A34: ex-KCDC & UHC | B34: ='Rates Check - ex-KCDC & UHC'!F43 -> 0
A35: UHC | B35: ='Rates Check - UHC'!F54 -> 0
A36: KCDC | B36: ='Rates Check - KCDC'!F38 -> 0
A38: Rates
A39: 1 | B39: =SUM('1'!J19:K46) -> 0
A40: 2 | B40: =SUM('2'!J21:K41) -> 0
A41: 3 - changes | B41: =SUM('3'!V14:Y39) -> 0
A42: 3 - inputs | B42: =SUM('3'!W64:W124) -> 0
A43: 4 | B43: =SUM('4'!W16:X24) -> 0
A44: 5 | B44: =SUM('5'!R20:S42) -> 0
A45: Impact for annual plan - excl GST | B45: ='Impact - excl GST'!L197+'Impact - excl GST'!L201 -> 0
A46: Impact for annual plan - incl GST | B46: ='Impact - incl GST'!L197+'Impact - incl GST'!L201 -> 0

Sheet >>Rates

Sheet 1
A1: Summary of Rates and Water Levies
A3: Rates for Greater Wellington are mostly allocated to ratepayers on the basis of their capital values. Within the region, different territorial authorities undertake general revaluations at different times. To equalise the values, each year Council gets Quotable Value or another registered valuer to estimate the projected valuations of all the rateable land in the districts within the region. This means that rates are assessed on a consistent valuation basis, regardless of the timing of individual territorial authority revaluations.
A4: The summary information in this section should be read in conjunction with the Funding Impact Statement and the Revenue and Financing policy.
A5: All figures on this page exclude GST.
A6: ="This table shows the rates and levies for GWRC in "&year_current&", with the changes from last year "&year_previous&". Rates comprise the general rate and various targeted rates. GWRC also charges a water supply levy directly to the four city councils in the region, and they set their own rates to cover the cost of this levy." -> This table shows the rates and levies for GWRC in 2022/23, with the changes from last year 2021/22. Rates comprise the general rate and various targeted rates. GWRC also charges a water supply levy directly to the four city councils in the region, and they set their own rates to cover the cost of this levy.
A8: ="The total rate increase in regional rates for "&year_current&" is "&ROUND(E37*100,1)&"%. The water supply levy, which is charged to the four metropolitan city councils is proposed to increase by "&ROUND(E39*100,1)&"% compared to "&year_previous&". When the water supply levy is included, Greater Wellington Regional Council's overall increase is "&ROUND(E41*100,1)&"%" -> The total rate increase in regional rates for 2022/23 is 12.3%. The water supply levy, which is charged to the four metropolitan city councils is proposed to increase by 7% compared to 2021/22. When the water supply levy is included, Greater Wellington Regional Council's overall increase is 11.2%
A10: Summary of rates and levies
B11: =year_previous -> 2021/22 | C11: =year_current -> 2022/23
B12: Plan | C12: Plan | D12: Change | E12: Change
B13: $000s | C13: $000s | D13: $000s | E13: % | G13: Row lookup | H13: Column lookup
A14: General rates
A15: =ESSbase!C38 -> Catchment Management (excluding forests) | B15: =ESSbase!F38/1000 -> 26585.68065 | C15: =ESSbase!G38/1000 -> 29269.006 | D15: =C15-B15 -> 2683.325353 | E15: =ROUND(D15/B15,4) -> 0.1009
A16: Other | B16: =ESSbase!F43/1000-SUM(B15,B17:B18) -> 34453.15213 | C16: =ESSbase!G43/1000-SUM(C15,C17:C18) -> 39489.297 | D16: =C16-B16 -> 5036.14487 | E16: =ROUND(D16/B16,4) -> 0.1462
A17: =ESSbase!C39 -> Strategy Group | B17: =ESSbase!F39/1000 -> 8755.752391 | C17: =ESSbase!G39/1000 -> 8753.629 | D17: =C17-B17 -> -2.123391011 | E17: =ROUND(D17/B17,4) -> -0.0002
A18: =ESSbase!C41 -> Investment Management. | B18: =ESSbase!F41/1000 -> -6681.569655 | C18: =ESSbase!G41/1000 -> -4174.152 | D18: =C18-B18 -> 2507.417655 | E18: =-ROUND(D18/B18,4) -> 0.3753
A19: General rate | B19: =INDEX('Comparison - TA'!$B$7:$L$24,MATCH(G19,'Comparison - TA'!$A$7:$A$24,0),MATCH(H19,'Comparison - TA'!$B$6:$L$6,0))/1000 -> 63113.01551 | C19: =INDEX('Comparison - TA'!$B$30:$L$47,MATCH(G19,'Comparison - TA'!$A$30:$A$47,0),MATCH(H19,'Comparison - TA'!$B$29:$L$29,0))/1000 -> 73337.78 | D19: =C19-B19 -> 10224.76449 | E19: =ROUND(D19/B19,4) -> 0.162 | G19: General rate | H19: Region wide | J19: =INDEX(ess_base_estract,MATCH($A19,ESSbase!$B$8:$B$25,0),MATCH(B$11,ESSbase!$F$6:$G$6,0))/1000-B19 -> 0 | K19: =INDEX(ess_base_estract,MATCH($A19,ESSbase!$B$8:$B$25,0),MATCH(C$11,ESSbase!$F$6:$G$6,0))/1000-C19 -> 0
A22: Remission of rates | B22: =ESSbase!F9 -> 0 | C22: =ESSbase!G9/1000 -> 0 | D22: =+B22-C22 -> 0 | J22: =INDEX(ess_base_estract,MATCH($A22,ESSbase!$B$8:$B$25,0),MATCH(B$11,ESSbase!$F$6:$G$6,0))/1000-B22 -> 0 | K22: =INDEX(ess_base_estract,MATCH($A22,ESSbase!$B$8:$B$25,0),MATCH(C$11,ESSbase!$F$6:$G$6,0))/1000-C22 -> 0
A24: Targeted rates
A25: Region wide targeted rates1
A26: River management rate | B26: =INDEX('Comparison - TA'!$B$7:$L$24,MATCH(G26,'Comparison - TA'!$A$7:$A$24,0),MATCH(H26,'Comparison - TA'!$B$6:$L$6,0))/1000 -> 6796.139723 | C26: =INDEX('Comparison - TA'!$B$30:$L$47,MATCH(G26,'Comparison - TA'!$A$30:$A$47,0),MATCH(H26,'Comparison - TA'!$B$29:$L$29,0))/1000 -> 7874.54921 | D26: =C26-B26 -> 1078.409487 | E26: =ROUND(D26/B26,4) -> 0.1587 | G26: River management rate | H26: Region wide | J26: =INDEX(ess_base_estract,MATCH($A26,ESSbase!$B$8:$B$25,0),MATCH(B$11,ESSbase!$F$6:$G$6,0))/1000-B26 -> 0 | K26: =INDEX(ess_base_estract,MATCH($A26,ESSbase!$B$8:$B$25,0),MATCH(C$11,ESSbase!$F$6:$G$6,0))/1000-C26 -> 0
A27: Public transport rate | B27: =INDEX('Comparison - TA'!$B$7:$L$24,MATCH(G27,'Comparison - TA'!$A$7:$A$24,0),MATCH(H27,'Comparison - TA'!$B$6:$L$6,0))/1000 -> 81810.33083 | C27: =INDEX('Comparison - TA'!$B$30:$L$47,MATCH(G27,'Comparison - TA'!$A$30:$A$47,0),MATCH(H27,'Comparison - TA'!$B$29:$L$29,0))/1000 -> 90658.47992 | D27: =C27-B27 -> 8848.149091 | E27: =ROUND(D27/B27,4) -> 0.1082 | G27: Public transport rate | H27: Region wide | J27: =INDEX(ess_base_estract,MATCH($A27,ESSbase!$B$8:$B$25,0),MATCH(B$11,ESSbase!$F$6:$G$6,0))/1000-B27 -> 0 | K27: =INDEX(ess_base_estract,MATCH($A27,ESSbase!$B$8:$B$25,0),MATCH(C$11,ESSbase!$F$6:$G$6,0))/1000-C27 -> 0
A28: Stadium purposes rate | B28: =INDEX('Comparison - TA'!$B$7:$L$24,MATCH(G28,'Comparison - TA'!$A$7:$A$24,0),MATCH(H28,'Comparison - TA'!$B$6:$L$6,0))/1000 -> 0 | C28: =INDEX('Comparison - TA'!$B$30:$L$47,MATCH(G28,'Comparison - TA'!$A$30:$A$47,0),MATCH(H28,'Comparison - TA'!$B$29:$L$29,0))/1000 -> 0 | D28: =C28-B28 -> 0 | E28: =ROUND(D28/B28,4) ->  | G28: Stadium purposes rate | H28: Region wide | J28: =INDEX(ess_base_estract,MATCH($A28,ESSbase!$B$8:$B$25,0),MATCH(B$11,ESSbase!$F$6:$G$6,0))/1000-B28 -> 0 | K28: =INDEX(ess_base_estract,MATCH($A28,ESSbase!$B$8:$B$25,0),MATCH(C$11,ESSbase!$F$6:$G$6,0))/1000-C28 -> 0
A29: Economic development rate | B29: =INDEX('Comparison - TA'!$B$7:$L$24,MATCH(G29,'Comparison - TA'!$A$7:$A$24,0),MATCH(H29,'Comparison - TA'!$B$6:$L$6,0))/1000 -> 4690.801632 | C29: =INDEX('Comparison - TA'!$B$30:$L$47,MATCH(G29,'Comparison - TA'!$A$30:$A$47,0),MATCH(H29,'Comparison - TA'!$B$29:$L$29,0))/1000 -> 4620.62329 | D29: =C29-B29 -> -70.17834219 | E29: =ROUND(D29/B29,4) -> -0.015 | G29: Economic development rate | H29: Region wide | J29: =INDEX(ess_base_estract,MATCH($A29,ESSbase!$B$8:$B$25,0),MATCH(B$11,ESSbase!$F$6:$G$6,0))/1000-B29 -> 0 | K29: =INDEX(ess_base_estract,MATCH($A29,ESSbase!$B$8:$B$25,0),MATCH(C$11,ESSbase!$F$6:$G$6,0))/1000-C29 -> 0
A31: Specific area targeted rates:
A32: Pest management rate | B32: =INDEX('Comparison - TA'!$B$7:$L$24,MATCH(G32,'Comparison - TA'!$A$7:$A$24,0),MATCH(H32,'Comparison - TA'!$B$6:$L$6,0))/1000 -> 666.79994 | C32: =INDEX('Comparison - TA'!$B$30:$L$47,MATCH(G32,'Comparison - TA'!$A$30:$A$47,0),MATCH(H32,'Comparison - TA'!$B$29:$L$29,0))/1000 -> 0 | D32: =C32-B32 -> -666.79994 | E32: =ROUND(D32/B32,4) -> -1 | G32: Pest management rate | H32: Region wide | J32: =INDEX(ess_base_estract,MATCH($A32,ESSbase!$B$8:$B$25,0),MATCH(B$11,ESSbase!$F$6:$G$6,0))/1000-B32 -> 0 | K32: =INDEX(ess_base_estract,MATCH($A32,ESSbase!$B$8:$B$25,0),MATCH(C$11,ESSbase!$F$6:$G$6,0))/1000-C32 -> 0
A33: South Wairarapa district – river rates | B33: =INDEX('Comparison - TA'!$B$7:$L$24,MATCH(G33,'Comparison - TA'!$A$7:$A$24,0),MATCH(H33,'Comparison - TA'!$B$6:$L$6,0))/1000 -> 99.9984 | C33: =INDEX('Comparison - TA'!$B$30:$L$47,MATCH(G33,'Comparison - TA'!$A$30:$A$47,0),MATCH(H33,'Comparison - TA'!$B$29:$L$29,0))/1000 -> 101.49837 | D33: =C33-B33 -> 1.49997 | E33: =ROUND(D33/B33,4) -> 0.015 | G33: River management rate - Non district wide | H33: Region wide | J33: =INDEX(ess_base_estract,MATCH($G33,ESSbase!$B$8:$B$25,0),MATCH(B$11,ESSbase!$F$6:$G$6,0))/1000-B33 -> 0 | K33: =INDEX(ess_base_estract,MATCH($G33,ESSbase!$B$8:$B$25,0),MATCH(C$11,ESSbase!$F$6:$G$6,0))/1000-C33 -> 0
A34: Wairarapa scheme and stopbank rates | B34: =INDEX('Comparison - TA'!$B$7:$L$24,MATCH(G34,'Comparison - TA'!$A$7:$A$24,0),MATCH(H34,'Comparison - TA'!$B$6:$L$6,0))/1000 -> 1608.620652 | C34: =INDEX('Comparison - TA'!$B$30:$L$47,MATCH(G34,'Comparison - TA'!$A$30:$A$47,0),MATCH(H34,'Comparison - TA'!$B$29:$L$29,0))/1000 -> 1680.74146 | D34: =C34-B34 -> 72.12080795 | E34: =ROUND(D34/B34,4) -> 0.0448 | G34: Special Rates | H34: Region wide | J34: =INDEX(ess_base_estract,MATCH($G34,ESSbase!$B$8:$B$25,0),MATCH(B$11,ESSbase!$F$6:$G$6,0))/1000-B34 -> 0 | K34: =INDEX(ess_base_estract,MATCH($G34,ESSbase!$B$8:$B$25,0),MATCH(C$11,ESSbase!$F$6:$G$6,0))/1000-C34 -> 0
A35: Total targeted rates 2 | B35: =SUM(B26:B34) -> 95672.69118 | C35: =SUM(C26:C34) -> 104935.8923 | D35: =SUM(D26:D34) -> 9263.201074 | E35: =ROUND(D35/B35,4) -> 0.0968
A37: Total regional rates | B37: =INDEX('Comparison - TA'!$B$7:$L$24,MATCH(G37,'Comparison - TA'!$A$7:$A$24,0),MATCH(H37,'Comparison - TA'!$B$6:$L$6,0))/1000 -> 158785.7067 | C37: =INDEX('Comparison - TA'!$B$30:$L$47,MATCH(G37,'Comparison - TA'!$A$30:$A$47,0),MATCH(H37,'Comparison - TA'!$B$29:$L$29,0))/1000 -> 178273.6723 | D37: =C37-B37 -> 19487.96556 | E37: =ROUND(D37/B37,6) -> 0.122731 | G37: Total Regnl Rates | H37: Region wide | J37: =INDEX(ess_base_estract,MATCH($G37,ESSbase!$B$8:$B$25,0),MATCH(B$11,ESSbase!$F$6:$G$6,0))/1000-B37 -> 0 | K37: =INDEX(ess_base_estract,MATCH($G37,ESSbase!$B$8:$B$25,0),MATCH(C$11,ESSbase!$F$6:$G$6,0))/1000-C37 -> 0
A39: Water supply levy | B39: =INDEX('Comparison - TA'!$B$7:$L$24,MATCH(G39,'Comparison - TA'!$A$7:$A$24,0),MATCH(H39,'Comparison - TA'!$B$6:$L$6,0))/1000 -> 39319.12833 | C39: =INDEX('Comparison - TA'!$B$30:$L$47,MATCH(G39,'Comparison - TA'!$A$30:$A$47,0),MATCH(H39,'Comparison - TA'!$B$29:$L$29,0))/1000 -> 42068.773 | D39: =C39-B39 -> 2749.644667 | E39: =ROUND(D39/B39,6) -> 0.069931 | G39: Bulk Water Levies | H39: Region wide | J39: =INDEX(ess_base_estract,MATCH($G39,ESSbase!$B$8:$B$25,0),MATCH(B$11,ESSbase!$F$6:$G$6,0))/1000-B39 -> 0 | K39: =INDEX(ess_base_estract,MATCH($G39,ESSbase!$B$8:$B$25,0),MATCH(C$11,ESSbase!$F$6:$G$6,0))/1000-C39 -> 0
A41: Total regional rates and levies | B41: =INDEX('Comparison - TA'!$B$7:$L$24,MATCH(G41,'Comparison - TA'!$A$7:$A$24,0),MATCH(H41,'Comparison - TA'!$B$6:$L$6,0))/1000 -> 198104.835 | C41: =INDEX('Comparison - TA'!$B$30:$L$47,MATCH(G41,'Comparison - TA'!$A$30:$A$47,0),MATCH(H41,'Comparison - TA'!$B$29:$L$29,0))/1000 -> 220342.4453 | D41: =C41-B41 -> 22237.61023 | E41: =ROUND(D41/B41,6) -> 0.112252 | G41: Total Regnl Rates & levies | H41: Region wide | J41: =INDEX(ess_base_estract,MATCH($G41,ESSbase!$B$8:$B$25,0),MATCH(B$11,ESSbase!$F$6:$G$6,0))/1000-B41 -> 0 | K41: =INDEX(ess_base_estract,MATCH($G41,ESSbase!$B$8:$B$25,0),MATCH(C$11,ESSbase!$F$6:$G$6,0))/1000-C41 -> 0
A43: Warm Greater Wellington rates 3 | B43: =INDEX('Comparison - TA'!$B$7:$L$24,MATCH(G43,'Comparison - TA'!$A$7:$A$24,0),MATCH(H43,'Comparison - TA'!$B$6:$L$6,0))/1000 -> 2868.617589 | C43: =INDEX('Comparison - TA'!$B$30:$L$47,MATCH(G43,'Comparison - TA'!$A$30:$A$47,0),MATCH(H43,'Comparison - TA'!$B$29:$L$29,0))/1000 -> 1937.52505 | G43: Warm Greater Wellington rate | H43: Region wide | J43: =INDEX(ess_base_estract,MATCH($G43,ESSbase!$B$8:$B$25,0),MATCH(B$11,ESSbase!$F$6:$G$6,0))/1000-B43 -> 0 | K43: =INDEX(ess_base_estract,MATCH($G43,ESSbase!$B$8:$B$25,0),MATCH(C$11,ESSbase!$F$6:$G$6,0))/1000-C43 -> 0
A45: Total rates and levies | B45: =INDEX('Comparison - TA'!$B$7:$L$24,MATCH(G45,'Comparison - TA'!$A$7:$A$24,0),MATCH(H45,'Comparison - TA'!$B$6:$L$6,0))/1000 -> 200973.4526 | C45: =INDEX('Comparison - TA'!$B$30:$L$47,MATCH(G45,'Comparison - TA'!$A$30:$A$47,0),MATCH(H45,'Comparison - TA'!$B$29:$L$29,0))/1000 -> 222279.9703 | G45: Total Rates & Levies | H45: Region wide | J45: =INDEX(ess_base_estract,MATCH($G45,ESSbase!$B$8:$B$25,0),MATCH(B$11,ESSbase!$F$6:$G$6,0))/1000-B45 -> 0 | K45: =INDEX(ess_base_estract,MATCH($G45,ESSbase!$B$8:$B$25,0),MATCH(C$11,ESSbase!$F$6:$G$6,0))/1000-C45 -> 0
J46: =SUM(B43,B39,B25:B34,B15:B18)-B45 -> 0 | K46: =SUM(C43,C39,C25:C34,C15:C18)-C45 -> 0
A48: 1 Region-wide rates are charged to all ratepayers in the region. They exclude targeted rates for pest management, Wairarapa river and drainage schemes, and "Warm Greater Wellington", because those rates only apply to highly specific ratepayers in those work programmes.
A49: 2 This total excludes "Warm Greater Wellington" targeted rates because they only apply to ratepayers who participate in the scheme.
A50: 3 The Warm Greater Wellington scheme assists regional ratepayers to insulate thier homes. Only ratepayers who participate in the scheme are charged this rate.
C52: =+C19+C35+C39+C43 -> 222279.9703

Sheet 2
A1: Impact on each City and District
A3: Rates increases vary among cities and districts because of differing equalised capital values. Targeted rates are applied according to the Revenue and Financing policy. The next page shows the different rates paid in each city and district.
A6: All figures on this page exclude GST.
A8: Impact on each city and district
B9: =year_previous -> 2021/22 | C9: =year_current -> 2022/23
B10: Plan | C10: Plan | D10: Change | E10: Change | G10: Row lookup | H10: Column lookup
A11: Region-wide rates1 | B11: $000s | C11: $000s | D11: $000s | E11: %
A12: Wellington city | B12: =INDEX('Comparison - TA'!$B$7:$L$24,MATCH(G12,'Comparison - TA'!$A$7:$A$24,0),MATCH(H12,'Comparison - TA'!$B$6:$L$6,0))/1000 -> 81929.89679 | C12: =INDEX('Comparison - TA'!$B$30:$L$47,MATCH(G12,'Comparison - TA'!$A$30:$A$47,0),MATCH($H12,'Comparison - TA'!$B$29:$L$29,0))/1000 -> 92547.73344 | D12: =C12-B12 -> 10617.83665 | E12: =ROUND(+D12/B12,4) -> 0.1296 | G12: District-wide rates | H12: Wellington city
A13: Hutt city | B13: =INDEX('Comparison - TA'!$B$7:$L$24,MATCH(G13,'Comparison - TA'!$A$7:$A$24,0),MATCH(H13,'Comparison - TA'!$B$6:$L$6,0))/1000 -> 28951.96002 | C13: =INDEX('Comparison - TA'!$B$30:$L$47,MATCH(G13,'Comparison - TA'!$A$30:$A$47,0),MATCH($H13,'Comparison - TA'!$B$29:$L$29,0))/1000 -> 32814.27099 | D13: =C13-B13 -> 3862.310965 | E13: =ROUND(+D13/B13,4) -> 0.1334 | G13: District-wide rates | H13: Hutt city
A14: Upper Hutt city | B14: =INDEX('Comparison - TA'!$B$7:$L$24,MATCH(G14,'Comparison - TA'!$A$7:$A$24,0),MATCH(H14,'Comparison - TA'!$B$6:$L$6,0))/1000 -> 10885.77413 | C14: =INDEX('Comparison - TA'!$B$30:$L$47,MATCH(G14,'Comparison - TA'!$A$30:$A$47,0),MATCH($H14,'Comparison - TA'!$B$29:$L$29,0))/1000 -> 12014.76106 | D14: 1128.98693 | E14: =ROUND(+D14/B14,4) -> 0.1037 | G14: District-wide rates | H14: Upper Hutt city
A15: Porirua city | B15: =INDEX('Comparison - TA'!$B$7:$L$24,MATCH(G15,'Comparison - TA'!$A$7:$A$24,0),MATCH(H15,'Comparison - TA'!$B$6:$L$6,0))/1000 -> 12036.65943 | C15: =INDEX('Comparison - TA'!$B$30:$L$47,MATCH(G15,'Comparison - TA'!$A$30:$A$47,0),MATCH($H15,'Comparison - TA'!$B$29:$L$29,0))/1000 -> 13173.31337 | D15: 1136.653944 | E15: 0.0944 | G15: District-wide rates | H15: Porirua city
A16: Kāpiti Coast district | B16: =INDEX('Comparison - TA'!$B$7:$L$24,MATCH(G16,'Comparison - TA'!$A$7:$A$24,0),MATCH(H16,'Comparison - TA'!$B$6:$L$6,0))/1000 -> 13695.20174 | C16: =INDEX('Comparison - TA'!$B$30:$L$47,MATCH(G16,'Comparison - TA'!$A$30:$A$47,0),MATCH($H16,'Comparison - TA'!$B$29:$L$29,0))/1000 -> 15886.80661 | D16: 2191.604865 | E16: 0.16 | G16: District-wide rates | H16: Kāpiti Coast district
A17: Masterton district | B17: =INDEX('Comparison - TA'!$B$7:$L$24,MATCH(G17,'Comparison - TA'!$A$7:$A$24,0),MATCH(H17,'Comparison - TA'!$B$6:$L$6,0))/1000 -> 4178.188279 | C17: =INDEX('Comparison - TA'!$B$30:$L$47,MATCH(G17,'Comparison - TA'!$A$30:$A$47,0),MATCH($H17,'Comparison - TA'!$B$29:$L$29,0))/1000 -> 4721.262068 | D17: 543.0737898 | E17: 0.13 | G17: District-wide rates | H17: Masterton district
A18: Carterton district | B18: =INDEX('Comparison - TA'!$B$7:$L$24,MATCH(G18,'Comparison - TA'!$A$7:$A$24,0),MATCH(H18,'Comparison - TA'!$B$6:$L$6,0))/1000 -> 1758.417564 | C18: =INDEX('Comparison - TA'!$B$30:$L$47,MATCH(G18,'Comparison - TA'!$A$30:$A$47,0),MATCH($H18,'Comparison - TA'!$B$29:$L$29,0))/1000 -> 2029.859618 | D18: 271.442054 | E18: 0.1544 | G18: District-wide rates | H18: Carterton district
A19: South Wairarapa district | B19: =INDEX('Comparison - TA'!$B$7:$L$24,MATCH(G19,'Comparison - TA'!$A$7:$A$24,0),MATCH(H19,'Comparison - TA'!$B$6:$L$6,0))/1000 -> 2968.531665 | C19: =INDEX('Comparison - TA'!$B$30:$L$47,MATCH(G19,'Comparison - TA'!$A$30:$A$47,0),MATCH($H19,'Comparison - TA'!$B$29:$L$29,0))/1000 -> 3297.008916 | D19: 328.4772509 | E19: =ROUND(+D19/B19,4) -> 0.1107 | G19: District-wide rates | H19: South Wairarapa district
A20: Tararua district | B20: =INDEX('Comparison - TA'!$B$7:$L$24,MATCH(G20,'Comparison - TA'!$A$7:$A$24,0),MATCH(H20,'Comparison - TA'!$B$6:$L$6,0))/1000 -> 5.658075474 | C20: =INDEX('Comparison - TA'!$B$30:$L$47,MATCH(G20,'Comparison - TA'!$A$30:$A$47,0),MATCH($H20,'Comparison - TA'!$B$29:$L$29,0))/1000 -> 6.416355962 | D20: 0.7582804875 | E20: 0.134 | G20: District-wide rates | H20: Tararua district
A21: Total region-wide rates | B21: =INDEX('Comparison - TA'!$B$7:$L$24,MATCH(G21,'Comparison - TA'!$A$7:$A$24,0),MATCH(H21,'Comparison - TA'!$B$6:$L$6,0))/1000 -> 156410.2877 | C21: =INDEX('Comparison - TA'!$B$30:$L$47,MATCH(G21,'Comparison - TA'!$A$30:$A$47,0),MATCH($H21,'Comparison - TA'!$B$29:$L$29,0))/1000 -> 176491.4324 | D21: =C21-B21 -> 20081.14472 | E21: =ROUND(+D21/B21,6) -> 0.128388 | G21: District-wide rates | H21: Region wide | J21: =INDEX(ess_base_estract,MATCH($G21,ESSbase!$B$8:$B$25,0),MATCH(B$9,ESSbase!$F$6:$G$6,0))/1000-B21 -> 0 | K21: =INDEX(ess_base_estract,MATCH($G21,ESSbase!$B$8:$B$25,0),MATCH(C$9,ESSbase!$F$6:$G$6,0))/1000-C21 -> 0
A23: Specific area targeted rates
